Workbook

Sheet Contents
A1: 80 | M1: ESC USE ONLY
D2: ESSENTIAL SERVICES COMMISSION
D3: Water Price Review
D4: Financial Model Template
B7: Table of Contents | F7: Water Business: | H7: =+N24 -> North East Water | I7: =+O24 -> NEW
B8: Section & Sheet Titles | F8: Regulatory Period: | H8: 2018-19 to 2022-23 (Fourth) | N8: [Decision] | O8: [Month] | P8: [Year] | Q8: [Version]
F9: Model Name: | H9: =I7&"_Price Review Template_"&O9&P9&Q9 -> NEW_Price Review Template_Aug2017- v1.2 | N9: Draft | O9: Aug | P9: 2017 | Q9: - v1.2 | R9: << Select
B10: a. | C10: =+KeyAssumptionsPriceControl_FO!B1 -> Key Assumptions Price Control | F10: Decision type: | H10: =+N9&" Decision" -> Draft Decision | N10: Draft | O10: Jan | P10: 2016 | Q10: - v1
B11: b. | C11: Expenditure Detail - Removed as it contained confidential information | N11: Final | O11: Feb | P11: 2017 | Q11: - v1.2
B12: c. | C12: =Opex_FO!B1 -> Operating Expenditure - Forecast | F12: Model Key: | O12: Mar | P12: 2018 | Q12: - v3
B13: d. | C13: =Opex_Breakdown!B1 -> Operating Expenditure - Breakdown | O13: Apr | P13: 2019 | Q13: - v3.1
B14: e. | C14: =+'Capex_FO input'!B1 -> Capital Expenditure - Forecast Input | G14: BLUE | H14: =+I7&" - DATA INPUT CELL" -> NEW - DATA INPUT CELL | O14: May | P14: 2020 | Q14: - v4
B15: f. | C15: =Capex_FO_AC!B1 -> Capital Expenditure - Asset Category Breakdown | O15: Jun | P15: 2021 | Q15: - v4.1
B16: g. | C16: =ExpSummary_FO!B1 -> Expenditure Summary | G16: YELLOW | H16: NOTES / INSTRUCTIONS | O16: Jul | Q16: - v5
B17: h. | C17: =RollForward_FO!B1 -> Rolled forward regulatory asset base (RAB) | O17: Aug | Q17: - v5.1
B18: i. | C18: =PrevPerAdj_FO!B1 -> Previous period adjustments | G18: GREY | H18: MODEL PARAMETERS / ASSUMPTIONS | O18: Sep | Q18: - v6
B19: j. | C19: =RevenuePriceCap_FO!C1 -> Revenue forecast (price caps) | O19: Oct | Q19: - v6.1
B20: k. | C20: Revenue forecast (tariff basket) | G20: WHITE | H20: FORMULA / HARDCODED VALUES | O20: Nov | Q20: - v7
B21: l. | C21: =NotPres_FO!B1 -> Non Prescribed Services | O21: Dec | Q21: - v7.1
B22: m. | C22: ='Finance&Tax_FO'!B1 -> Cash, debt and tax assumptions | G22: ORANGE | H22: FORMULA DIFFERENT TO ADJACENT CELL
B23: n. | C23: ='Rev&RAV_FO'!B1 -> Revenue requirement detail | N23: [Business]
B24: o. | C24: =Indicators_FO!B1 -> Financial indicators | G24: GREEN | H24: DATA FROM 2013 DECISION OR PERFORMANCE REPORT | N24: North East Water | O24: =+VLOOKUP(N24,N25:O42,2,FALSE) -> NEW
B25: p. | C25: =Outcomes!B1 -> Outcomes | N25: Barwon Water | O25: BW
B26: q. | C26: =GSL!B1 -> Guaranteed Service Levels (GSL) | G26: RED | H26: ERROR CHECK | N26: Central Highlands Water | O26: CHW
N27: City West Water | O27: CWW
N28: Coliban Water | O28: CW
N29: East Gippsland Water | O29: EGW
N30: Gippsland Water | O30: CGW
N31: Goulburn Valley Water | O31: GVW
N32: GWM Water | O32: GWMW | P32: diff model
N33: Lower Murray Water - Urban | O33: LMW-U | P33: diff model
N34: Lower Murray Water - Rural | O34: LMW-R
N35: North East Water | O35: NEW
N36: South East Water | O36: SEW
N37: South Gippsland Water | O37: SGW
N38: Southern Rural Water | O38: SRW | P38: diff model
N39: Wannon Water | O39: WNW
N40: Western Water | O40: WW
N41: Westernport Water | O41: WPW
N42: Yarra Valley Water | O42: YVW

Sheet KeyAssumptionsPriceControl_FO
A1: 80 | B1: Key Assumptions Price Control
B2: =+Contents!H7 -> North East Water
B3: Go to Table of Contents
L4: FIRST REG PERIOD | P4: SECOND REG PERIOD | U4: THIRD REG PERIOD | Z4: FOURTH REG PERIOD | AC4: FIFTH REG PERIOD
F6: Straight Line | K6: 2006 | L6: 2007 | M6: 2008 | N6: 2009 | O6: 2010 | P6: 2011 | Q6: 2012 | R6: 2013 | S6: 2014 | T6: 2015 | U6: 2016 | V6: 2017 | W6: 2018 | X6: 2019 | Y6: 2020 | Z6: 2021 | AA6: 2022 | AB6: 2023 | AC6: 2024 | AD6: 2025 | AE6: 2026 | AF6: 2027 | AG6: 2028
F7: Declining Balance | I7: 2003-04 | J7: 2004-05 | K7: =+CONCATENATE(K6-1,"-",RIGHT(K6,2)) -> 2005-06 | L7: =+CONCATENATE(L6-1,"-",RIGHT(L6,2)) -> 2006-07 | M7: 2007-08 | N7: 2008-09 | O7: 2009-10 | P7: 2010-11 | Q7: 2011-12 | R7: 2012-13 | S7: 2013-14 | T7: 2014-15 | U7: 2015-16 | V7: 2016-17 | W7: 2017-18 | X7: 2018-19 | Y7: 2019-20 | Z7: 2020-21 | AA7: 2021-22 | AB7: 2022-23 | AC7: 2023-24 | AD7: 2024-25 | AE7: 2025-26 | AF7: 2026-27 | AG7: 2027-28
E11: Inflation assumptions
W12: Estimate
F13: March quarter annual CPI | I13: 141.3 | J13: 144.1 | K13: 147.5 | L13: 151.9 | M13: 155.6 | N13: 162.2 | O13: 166.2 | P13: 171 | Q13: 176.7 | R13: 99.9 | S13: 102.4 | T13: 105.4 | U13: 106.8 | V13: 108.2 | W13: 110.5 | X13: 0
F14: Inflation | J14: =+J13/I13-1 -> 0.01981599434 | K14: 0.02359472588 | L14: 0.02983050847 | M14: 0.02435813035 | N14: 0.04241645244 | O14: 0.02466091245 | P14: 0.02888086643 | Q14: 0.03333333333 | R14: 0.01584606678 | S14: =+IF(S13=0,$X$44,S13/R13-1) -> 0.02502502503 | T14: 0.029296875 | U14: 0.01328273245 | V14: 0.01310861423 | W14: 0.02125693161 | X14: 0.023 | Y14: 0.023 | Z14: 0.023 | AA14: 0.023 | AB14: 0.023 | AC14: 0.023 | AD14: 0.023 | AE14: 0.023 | AF14: 0.023 | AG14: 0.023
F15: Inflation factor | I15: 0.7871866295 | J15: 0.8027855153 | K15: 0.8217270195 | L15: 0.8462395543 | M15: 0.8668523677 | N15: 0.9036211699 | O15: 0.9259052925 | P15: 0.9526462396 | Q15: 0.9844011142 | R15: =+R13/$W$13 -> 0.9040723982 | S15: 0.9266968326 | T15: 0.9538461538 | U15: 0.9665158371 | V15: =+V13/$W$13 -> 0.9791855204 | W15: =+W13/$W$13 -> 1 | X15: =+W15*(1+X14) -> 1.023 | Y15: =+X15*(1+Y14) -> 1.046529 | Z15: 1.070599167 | AA15: 1.095222948 | AB15: 1.120413076 | AC15: 1.146182576 | AD15: 1.172544776 | AE15: 1.199513305 | AF15: 1.227102112 | AG15: 1.25532546
I16: CPI index re-referenced in 2012-13, shaded values have been hardcoded to lock in RAB value.
E21: Cost of debt - 10 year trailing average (Nominal)
V22: Estimate | W22: Estimate
E23: Cost of debt | L23: 0.06981666667 | M23: 0.07414 | N23: 0.0691525788 | O23: 0.07361870984 | P23: 0.07046784142 | Q23: 0.06308887941 | R23: 0.0526945046 | S23: 0.070525 | T23: 0.05360833333 | U23: 0.05270138413 | V23: 0.0490833 | W23: 0.0490833
E24: Re-financing weightings - average 10 yrs | L24: =1/10 -> 0.1 | M24: =1/10 -> 0.1 | N24: =1/10 -> 0.1 | O24: =1/10 -> 0.1 | P24: =1/10 -> 0.1 | Q24: 0.1 | R24: 0.1 | S24: 0.1 | T24: 0.1 | U24: 0.1 | V24: 0.1 | W24: 0.1 | X24: 0.1 | Y24: 0.1 | Z24: 0.1 | AA24: 0.1 | AB24: 0.1 | AC24: 0.1 | AD24: 0.1 | AE24: 0.1 | AF24: 0.1 | AG24: 0.1
E26: Cost of debt - 10 year trailing average | V26: =IF(U23<>"",SUMPRODUCT(L23:U23,L24:U24),"") -> 0.06498138982 | W26: =IF(V23<>"",SUMPRODUCT(M23:V23,M24:V24),"") -> 0.06290805315 | X26: =IF(W23<>"",SUMPRODUCT(N23:W23,N24:W24),"") -> 0.06040238315 | Y26: =IF(X23<>"",SUMPRODUCT(O23:X23,O24:X24),"") ->  | Z26: =IF(Y23<>"",SUMPRODUCT(P23:Y23,P24:Y24),"") -> 
E30: WACC assumptions (retained for historical purposes only) | U30: Regulatory Rate of Return (RRR) - Nominal
K32: 1st period | M32: 2nd period | O32: 3rd period | U32: Cost of Debt | X32: =+X26 -> 0.06040238315 | Y32: =+$X$32 -> 0.06040238315 | Z32: 0.06040238315 | AA32: 0.06040238315 | AB32: 0.06040238315 | AC32: 0.06040238315 | AD32: 0.06040238315 | AE32: 0.06040238315 | AF32: 0.06040238315 | AG32: 0.06040238315 | AI32: << Linked to Benchmark tax liability calculation (Rev&RAV_FO)
E33: Parameters
F34: Risk Free Rate (Real) | K34: =+HLOOKUP(Contents!$I$7&1,Determination_Lookup!$C$54:$BD$61,2,FALSE) -> 0.0267 | M34: =+HLOOKUP(Contents!$I$7&2,Determination_Lookup!$C$54:$BD$61,2,FALSE) -> 0.0323 | O34: =+HLOOKUP(Contents!$I$7&3,Determination_Lookup!$C$54:$BD$61,2,FALSE) -> 0.005959
F35: Debt Premium | K35: =+HLOOKUP(Contents!$I$7&1,Determination_Lookup!$C$54:$BD$61,3,FALSE) -> 0.0116 | M35: =+HLOOKUP(Contents!$I$7&2,Determination_Lookup!$C$54:$BD$61,3,FALSE) -> 0.0175 | O35: =+HLOOKUP(Contents!$I$7&3,Determination_Lookup!$C$54:$BD$61,3,FALSE) -> 0.0399
F36: Equity Premium | K36: =+HLOOKUP(Contents!$I$7&1,Determination_Lookup!$C$54:$BD$61,4,FALSE) -> 0.06 | M36: =+HLOOKUP(Contents!$I$7&2,Determination_Lookup!$C$54:$BD$61,4,FALSE) -> 0.06 | O36: =+HLOOKUP(Contents!$I$7&3,Determination_Lookup!$C$54:$BD$61,4,FALSE) -> 0.06 | U36: Regulatory Rate of Return (RRR) - Real
F37: Equity Beta | K37: =+HLOOKUP(Contents!$I$7&1,Determination_Lookup!$C$54:$BD$61,5,FALSE) -> 0.75 | M37: =+HLOOKUP(Contents!$I$7&2,Determination_Lookup!$C$54:$BD$61,5,FALSE) -> 0.65 | O37: =+HLOOKUP(Contents!$I$7&3,Determination_Lookup!$C$54:$BD$61,5,FALSE) -> 0.65
F38: Gearing (Debt/Assets) | K38: =+HLOOKUP(Contents!$I$7&1,Determination_Lookup!$C$54:$BD$61,6,FALSE) -> 0.6 | M38: =+HLOOKUP(Contents!$I$7&2,Determination_Lookup!$C$54:$BD$61,6,FALSE) -> 0.6 | O38: =+HLOOKUP(Contents!$I$7&3,Determination_Lookup!$C$54:$BD$61,6,FALSE) -> 0.6 | U38: Cost of Debt | X38: =(1+X32)/(1+X44)-1 -> 0.03656146936 | Y38: =+$X$38 -> 0.03656146936 | Z38: =+$X$38 -> 0.03656146936 | AA38: 0.03656146936 | AB38: 0.03656146936 | AC38: 0.03656146936 | AD38: 0.03656146936 | AE38: 0.03656146936 | AF38: 0.03656146936 | AG38: 0.03656146936
F39: Forecast Inflation | K39: =+HLOOKUP(Contents!$I$7&1,Determination_Lookup!$C$54:$BD$61,7,FALSE) -> 0.0255 | M39: =+HLOOKUP(Contents!$I$7&2,Determination_Lookup!$C$54:$BD$61,7,FALSE) -> 0.029 | O39: =+HLOOKUP(Contents!$I$7&3,Determination_Lookup!$C$54:$BD$61,7,FALSE) -> 0.0275
F40: Franking credit value | K40: =+HLOOKUP(Contents!$I$7&1,Determination_Lookup!$C$54:$BD$61,8,FALSE) -> 0.5 | M40: =+HLOOKUP(Contents!$I$7&2,Determination_Lookup!$C$54:$BD$61,8,FALSE) -> 0.5 | O40: =+HLOOKUP(Contents!$I$7&3,Determination_Lookup!$C$54:$BD$61,8,FALSE) -> 0.5 | U40: Return on Equity | X40: =IF(AG65<>0,(AG65/100),IF(AG63<>0,(AG63/100),(AG61/100))) -> 0.041 | Y40: =+$X$40 -> 0.041 | Z40: 0.041 | AA40: 0.041 | AB40: 0.041 | AC40: 0.041 | AD40: 0.041 | AE40: 0.041 | AF40: 0.041 | AG40: 0.041 | AI40: << Source: PREMO Assessment Matrix
E42: 'Vanilla' After Tax WACC (Real) | K42: =ROUND(((K34+K36*K37)*(1-K38))+((K34+K35)*K38),3) -> 0.052 | M42: =ROUND(((M34+M36*M37)*(1-M38))+((M34+M35)*M38),3) -> 0.058 | O42: =ROUND(((O34+O36*O37)*(1-O38))+((O34+O35)*O38),3) -> 0.045 | U42: RRR (real) | X42: =ROUND((X40*(1-X43)+X38*X43),3) -> 0.038 | Y42: 0.038 | Z42: 0.038 | AA42: 0.038 | AB42: 0.038 | AC42: 0.038 | AD42: 0.038 | AE42: 0.038 | AF42: 0.038 | AG42: 0.038
U43: Gearing | X43: 0.6 | Y43: =+X43 -> 0.6 | Z43: =+Y43 -> 0.6 | AA43: 0.6 | AB43: 0.6 | AC43: 0.6 | AD43: 0.6 | AE43: 0.6 | AF43: 0.6 | AG43: 0.6
U44: Forecast Inflation | X44: 0.023 | Y44: =+X44 -> 0.023 | Z44: 0.023 | AA44: 0.023 | AB44: 0.023 | AC44: 0.023 | AD44: 0.023 | AE44: 0.023 | AF44: 0.023 | AG44: 0.023
E46: Form of price control selected
E48: Price caps | I48: 1
U49: PREMO Graded Scoring System (for reference only) | AB49: PREMO Assessment Matrix (linked to Regulatory Rate of Return calculation above)
E50: Revenue cap / Hybrid Tariff Basket
V52: Water business | X52: ESC assessment | Z52: Difference | AD52: Water business self-assessment
V53: self-assessment | X53: of submission
AD54: Leading | AE54: Advanced | AF54: Standard | AG54: Basic
U55: Risk | V55: 3.5 | Z55: =IFERROR(IF(X55=0,"",X55-V55),"") ->  | AB55: ESC assessment of submission | AC55: Leading | AD55: 5.3
U56: Engagement | V56: 4 | Z56: =IFERROR(IF(X56=0,"",X56-V56),"") ->  | AC56: Advanced | AD56: 4.7 | AE56: 4.9
U57: Management | V57: 3 | Z57: =IFERROR(IF(X57=0,"",X57-V57),"") ->  | AC57: Standard | AD57: 4.1 | AE57: 4.3 | AF57: 4.5
U58: Outcomes | V58: 3 | Z58: =IFERROR(IF(X58=0,"",X58-V58),"") ->  | AC58: Basic | AF58: 3.9 | AG58: 4.1
U60: Total Score | V60: =SUM(V55:V58) -> 13.5 | X60: =SUM(X55:X58) -> 0 | Z60: =IFERROR(IF(X60=0,"",X60-V60),"") -> 
AB61: Water business self-assessment (Maximum allowable ROE) | AF61: Advanced | AG61: =+VLOOKUP(AF61,$AF$72:$AG$76,2,FALSE) -> 4.9
AB63: ROE Override (Must be less than Maximum allowable ROE) | AF63: 4.1 | AG63: =+IF(AF63<=AG61,AF63,"CHECK") -> 4.1
U64: Rating | V64: =IF(V60<4,"",IF(AND(V60>=4,V60<=7.25),"Basic",IF(AND(V60>=7.5,V60<=11.25),"Standard",IF(AND(V60>=11.5,V60<=15.25),"Advanced",IF(AND(V60>=15.5,V60<=16),"Leading"))))) -> Advanced | X64: =IF(X60<4,"",IF(AND(X60>=4,X60<=7.25),"Basic",IF(AND(X60>=7.5,X60<=11.25),"Standard",IF(AND(X60>=11.5,X60<=15.25),"Advanced",IF(AND(X60>=15.5,X60<=16),"Leading"))))) -> 
AB65: ESC assessment of submission | AG65: =IFERROR(IF(AF65=AF61,AG61,VLOOKUP(AF61&AF65,AF79:AG83,2,FALSE)),0) -> 0
AF67: Difference | AG67: =IFERROR(IF(AG65=0,"",AG65-AG61),"") -> 
U70: ESC USE ONLY
W71: [Select] | Y71: Rating | Z71: Aggregate score for overall PREMO rating | AF71: Business self assessment
W72: 1 | Y72: Leading | Z72: 15.5 to 16.0 | AF72: [Select]
W73: 1.25 | Y73: Advanced | Z73: 11.5 to 15.25 | AF73: Leading | AG73: =+AD55 -> 5.3
W74: 1.5 | Y74: Standard | Z74: 7.5 to 11.25 | AF74: Advanced | AG74: =+AE56 -> 4.9
W75: 1.75 | Y75: Basic | Z75: 4.0 to 7.25 | AF75: Standard | AG75: =+AF57 -> 4.5
W76: 2 | AF76: Basic | AG76: =+AG58 -> 4.1
W77: 2.25
W78: 2.5 | AF78: downgrading
W79: 2.75 | AF79: =AF54&AC58 -> StandardBasic | AG79: =+AF58 -> 3.9
W80: 3 | AF80: =+AE54&AC57 -> AdvancedStandard | AG80: =+AE57 -> 4.3
W81: 3.25 | AF81: =+AD54&AC56 -> LeadingAdvanced | AG81: =+AD56 -> 4.7
W82: 3.5 | AF82: =+AD54&AC57 -> LeadingStandard | AG82: =+AD57 -> 4.1
W83: 3.75 | AF83: =+AF61&"Basic" -> AdvancedBasic | AG83: CHECK
W84: 4

Sheet Opex_FO
B1: Operating Expenditure - Forecast
B2: =+Model_Name -> North East Water
B3: Go to Table of Contents
L4: FIRST REG PERIOD | P4: SECOND REG PERIOD | S4: THIRD REG PERIOD | X4: FOURTH REG PERIOD | AC4: FIFTH REG PERIOD
K5: 2006 | L5: 2007 | M5: 2008 | N5: 2009 | O5: 2010 | P5: 2011 | Q5: 2012 | R5: 2013 | S5: 2014 | T5: 2015 | U5: 2016 | V5: 2017 | W5: 2018 | X5: 2019 | Y5: 2020 | Z5: 2021 | AA5: 2022 | AB5: 2023 | AC5: 2024 | AD5: 2025 | AE5: 2026 | AF5: 2027 | AG5: 2028
B6: $m, 01/01/18 | K6: =+CONCATENATE(K5-1,"-",RIGHT(K5,2)) -> 2005-06 | L6: =+CONCATENATE(L5-1,"-",RIGHT(L5,2)) -> 2006-07 | M6: 2007-08 | N6: 2008-09 | O6: 2009-10 | P6: 2010-11 | Q6: 2011-12 | R6: 2012-13 | S6: 2013-14 | T6: 2014-15 | U6: 2015-16 | V6: 2016-17 | W6: 2017-18 | X6: 2018-19 | Y6: 2019-20 | Z6: 2020-21 | AA6: 2021-22 | AB6: 2022-23 | AC6: 2023-24 | AD6: 2024-25 | AE6: 2025-26 | AF6: 2026-27 | AG6: 2027-28
C9: Parameters | F9: 3rd period | H9: 4th period
D11: Cost efficiency improvement rate (% per annum) | F11: 0.01 | H11: =+SUM(X11:AB11)/5 -> 0.012 | X11: 0.012 | Y11: 0.012 | Z11: 0.012 | AA11: 0.012 | AB11: 0.012 | AC11: 0.012 | AD11: 0.012 | AE11: 0.012 | AF11: 0.012 | AG11: 0.012
D13: Customer growth forecast (% per annum) | F13: =AVERAGE(T13:W13) -> 0.01324870043 | H13: =+SUM(X13:AB13)/5 -> 0.012362 | T13: =IF(T15="","",T15/S15-1) -> 0.01716889303 | U13: =IF(U15="","",U15/T15-1) -> 0.009406686485 | V13: 0.0140592222 | W13: 0.01236 | X13: 0.01227 | Y13: 0.01237 | Z13: 0.0124 | AA13: 0.01237 | AB13: 0.0124 | AC13: 0.0124 | AD13: 0.0124 | AE13: 0.0124 | AF13: 0.0125 | AG13: 0.0124
E14: Net baseline opex growth | F14: =IFERROR(F13-F11,"-") -> 0.00324870043 | H14: =IFERROR(H13-H11,"-") -> 0.000362
D15: Water customers (No.) - Residential & Non-Residential - [BED 1] | S15: =+Determination_Lookup!BF3 -> 48285 | T15: =+Determination_Lookup!BG3 -> 49114 | U15: =+Determination_Lookup!BH3 -> 49576 | V15: 50273 | W15: =+V$15*(1+W$13) -> 50894.37428 | X15: =+W$15*(1+X$13) -> 51518.84825 | Y15: =+X$15*(1+Y$13) -> 52156.13641 | Z15: 52802.8725 | AA15: 53456.04403 | AB15: 54118.89898 | AC15: 54789.97332 | AD15: 55469.36899 | AE15: 56157.18917 | AF15: 56859.15403 | AG15: 57564.20754 | AI15: << Used as normalising metric for dashboard graphs
D17: Sewer customers (No.) - Residential & Non-Residential - [BED 2] | S17: =+Determination_Lookup!BJ3 -> 43074 | T17: =+Determination_Lookup!BK3 -> 44006 | U17: =+Determination_Lookup!BL3 -> 44780 | V17: 45517 | W17: =+V$17*(1+W$13) -> 46079.59012 | X17: =+W$17*(1+X$13) -> 46644.98669 | Y17: =+X$17*(1+Y$13) -> 47221.98518 | Z17: 47807.53779 | AA17: 48398.91703 | AB17: 48999.06361 | AC17: 49606.65199 | AD17: 50221.77448 | AE17: 50844.52448 | AF17: 51480.08104 | AG17: 52118.43404 | AI17: << Used as normalising metric for dashboard graphs
D19: Total metered volume of water delivered to customers (ML) - [BED 10] | S19: =+Determination_Lookup!BB3 -> 14264 | T19: =+Determination_Lookup!BC3 -> 13471 | U19: =+Determination_Lookup!BD3 -> 15685.405 | V19: 13845 | W19: 14371.311 | X19: 14124.227 | Y19: 14185.639 | Z19: 14247.33 | AA19: 14309.3 | AB19: 14371.552 | AC19: 14434.088 | AD19: 14496.909 | AE19: 14561.015 | AF19: 14623.405 | AG19: 14687.09 | AI19: << Used as normalising metric for dashboard graphs
D20: Residential, Non-Residential & Recycled (Residential & Non-Residential)
C24: Baseline Forecast
D26: Baseline year - total prescribed operating expenditure in 2016-17: | V26: =+Opex_Breakdown!V37 -> 42.87169
D28: Less non-controllable expenditure items incurred in 2016-17:
E29: External bulk water charges (excl. temporary purchases) | V29: =+Opex_Breakdown!V29 -> 0.791
E30: External temporary water purchases | V30: =+Opex_Breakdown!V30 -> 0 | X30: Comparison with approved 2016-17 total controllable opex
E31: Licence fees | V31: =+Opex_Breakdown!V31 -> 0.18869 | X31: per 2013 determination model
E32: Environment Contribution | V32: =+Opex_Breakdown!V32 -> 2.127
E33: Other non-controllable | V33: =+Opex_Breakdown!V33 -> 0
V34: =SUM(V29:V33) -> 3.10669 | Y34: 2016-17 | Z34: Difference | AA34: %
D36: Baseline year - total controllable operating expenditure in 2016-17: | V36: =+V26-V34 -> 39.765 | Y36: =+Determination_Lookup!AX3 -> 36.29400122 | Z36: =+V52-Y36 -> 1.654901777 | AA36: =+Z36/Y36 -> 0.04559711582
D38: Adjustments for non-recurring expenditure items incurred in 2016-17 and any efficiency savings to be realised from 2016-17: | X38: ($, 2017-18)
D40: 1 | E40: Filter Media Replacement Wodonga WTP - Opex (transferred from Capital program) | V40: 0.404
D41: 2 | E41: Decommissioning Expenses - Bakers Gully Bright (transferred from Capital program) | V41: 0.8995
D42: 3 | E42: Decommissioning Expenses - Yackandandah Commissioners Creek (transferred from Capex) | V42: 0.390597
D43: 4 | E43: Community Engagement including Deliberative forums for Price Submission | V43: 0.122
D44: 5
D45: 6
D46: 7
D47: 8
D48: 9
D49: 10
V50: =SUM(V40:V49) -> 1.816097
D52: Baseline controllable operating expenditure (2016-17) | V52: =+V36-V50 -> 37.948903
D54: Adjusted Baseline controllable operating expenditure (Forecast) | W54: =+V52*(1+$W$13-$F$11) -> 38.03846241 | X54: =+$W$54*(1+X$13-X$11) -> 38.0487328 | Y54: =+X$54*(1+Y$13-Y$11) -> 38.06281083 | Z54: 38.07803595 | AA54: 38.09212482 | AB54: 38.10736167 | AC54: 38.12260462 | AD54: 38.13785366 | AE54: 38.1531088 | AF54: 38.17218536 | AG54: 38.18745423
C58: Operating expenditure - reconciliation
D61: Adjusted Baseline controllable operating expenditure (Forecast) | X61: =+X54 -> 38.0487328 | Y61: 38.06281083 | Z61: 38.07803595 | AA61: 38.09212482 | AB61: 38.10736167 | AC61: 38.12260462 | AD61: 38.13785366 | AE61: 38.1531088 | AF61: 38.17218536 | AG61: 38.18745423
H62: Controllable
D63: Forecast variations to baseline operating expenditure (above or below baseline) | H63: only
D65: 1 | E65: Employees - Ops | H65: Water | X65: 0.1139868451 | Y65: 0.1580866499 | Z65: 0.2023151662 | AA65: 0.2470666181 | AB65: 0.2919512045 | AC65: 0.337167245 | AD65: 0.3827170668 | AE65: 0.4286030132 | AF65: 0.4741725318 | AG65: 0.5207375613
D66: 2 | E66: Direct Water | H66: Water | X66: -0.4773414198 | Y66: -0.3145808456 | Z66: -0.2709370625 | AA66: -0.2181673927 | AB66: -0.1448892719 | AC66: -0.1434221959 | AD66: -0.01288186709 | AE66: -0.01196061234 | AF66: 0.1800172567 | AG66: 0.1820624379
D67: 3 | E67: Direct Wastewater | H67: Sewerage | X67: -0.5661763841 | Y67: -0.3754373201 | Z67: -0.2497615925 | AA67: -0.1363394712 | AB67: -0.07674634464 | AC67: -0.001135507742 | AD67: -0.04828935521 | AE67: 0.02004834221 | AF67: -0.1261982072 | AG67: -0.04131218238
D68: 4 | E68: Asset decommissioning | H68: Water | X68: 0.1999949868 | Y68: 0.199994985 | Z68: 0.199994983 | AA68: 0.1999949811 | AB68: 0.1999949791 | AC68: 0.1999949771 | AD68: 0.1999949751 | AE68: 0.1999949731 | AF68: 0.1999949706 | AG68: 0.1999949686
D69: 5 | E69: Electricity | H69: Water | X69: 1.369538745 | Y69: 0.7641255448 | Z69: 0.304597195 | AA69: -0.6168170941 | AB69: -0.4963466209 | AC69: -1.10087676 | AD69: -1.13040751 | AE69: -1.198938873 | AF69: -1.200853843 | AG69: -1.202386584
D70: 6 | E70: Employees - Admin | H70: Water | X70: 0.3580141832 | Y70: 0.4394586459 | Z70: 0.5211451076 | AA70: 0.603792281 | AB70: 0.6866896197 | AC70: 0.7701987081 | AD70: 0.854323841 | AE70: 0.9390693434 | AF70: 1.02324568 | AG70: 1.10924454
D71: 7 | E71: Admin Other - Incorp Efficiency | H71: Water | X71: 1.544759986 | Y71: 1.517841562 | Z71: 0.01286994081 | AA71: 0.02638689377 | AB71: 0.02197843662 | AC71: 0.01738695688 | AD71: 0.01155186123 | AE71: 0.006866510232 | AF71: 0.007866510232 | AG71: 0.008866510232
D72: 8 | H72: [Service]
D73: 9 | H73: [Service]
D74: 10 | H74: [Service]
D75: 11 | H75: [Service]
D76: 12 | H76: [Service]
D77: 13 | H77: [Service]
D78: 14 | H78: [Service]
D79: 15 | H79: [Service]
D81: Total changes required to baseline operating expenditure | X81: =SUM(X65:X80) -> 2.542776943 | Y81: 2.389489222 | Z81: 0.7202237376 | AA81: 0.105916816 | AB81: 0.4826320025 | AC81: 0.07931342393 | AD81: 0.2570090117 | AE81: 0.3836826966 | AF81: 0.5582448997 | AG81: 0.7772072514
W82: % Change in baseline opex per annum | X82: =IFERROR(X81/X61,"-") -> 0.06682947778 | Y82: =IFERROR(Y81/Y61,"-") -> 0.0627775293 | Z82: 0.01891441403 | AA82: 0.002780543656 | AB82: 0.01266505949 | AC82: 0.002080482819 | AD82: 0.006738947974 | AE82: 0.01005639406 | AF82: 0.01462438932 | AG82: 0.02035242377
W83: % Change in baseline opex per reg period | AB83: =IFERROR(AVERAGE(X82:AB82),"-") -> 0.03279340485 | AG83: =IFERROR(AVERAGE(AC82:AG82),"-") -> 0.01077052759
D84: Total controllable operating expenditure | X84: =+X81+X61 -> 40.59150974 | Y84: 40.45230005 | Z84: 38.79825969 | AA84: 38.19804164 | AB84: 38.58999368 | AC84: 38.20191804 | AD84: 38.39486267 | AE84: 38.5367915 | AF84: 38.73043026 | AG84: 38.96466148
W85: Controllable Opex growth from baseline to 5th year | AB85: =IFERROR(AB84-V52,"-") -> 0.6410906771 | AC85: =IFERROR(AB84/V52-1,"-") -> 0.0168935233
D86: Non-controllable operating expenditure
D87: External bulk water charges (excl. temporary purchases) | X87: =+Opex_Breakdown!X29 -> 0.893 | Y87: =+Opex_Breakdown!Y29 -> 0.937 | Z87: =+Opex_Breakdown!Z29 -> 0.984 | AA87: =+Opex_Breakdown!AA29 -> 1.033 | AB87: =+Opex_Breakdown!AB29 -> 1.085 | AC87: =+Opex_Breakdown!AC29 -> 1.139 | AD87: =+Opex_Breakdown!AD29 -> 1.196 | AE87: =+Opex_Breakdown!AE29 -> 1.256 | AF87: =+Opex_Breakdown!AF29 -> 1.319 | AG87: =+Opex_Breakdown!AG29 -> 1.385
D88: External temporary water purchases | X88: =+Opex_Breakdown!X30 -> 0 | Y88: =+Opex_Breakdown!Y30 -> 0 | Z88: =+Opex_Breakdown!Z30 -> 0 | AA88: =+Opex_Breakdown!AA30 -> 0 | AB88: =+Opex_Breakdown!AB30 -> 0 | AC88: =+Opex_Breakdown!AC30 -> 0 | AD88: =+Opex_Breakdown!AD30 -> 0 | AE88: =+Opex_Breakdown!AE30 -> 0 | AF88: =+Opex_Breakdown!AF30 -> 0 | AG88: =+Opex_Breakdown!AG30 -> 0
D89: Licence fees | X89: =+Opex_Breakdown!X31 -> 0.186969 | Y89: =+Opex_Breakdown!Y31 -> 0.186969 | Z89: =+Opex_Breakdown!Z31 -> 0.186969 | AA89: =+Opex_Breakdown!AA31 -> 0.186969 | AB89: =+Opex_Breakdown!AB31 -> 0.186969 | AC89: =+Opex_Breakdown!AC31 -> 0.186969 | AD89: =+Opex_Breakdown!AD31 -> 0.186969 | AE89: =+Opex_Breakdown!AE31 -> 0.186969 | AF89: =+Opex_Breakdown!AF31 -> 0.186969 | AG89: =+Opex_Breakdown!AG31 -> 0.186969
D90: Environment Contribution | X90: =+Opex_Breakdown!X32 -> 2.467 | Y90: =+Opex_Breakdown!Y32 -> 2.411 | Z90: =+Opex_Breakdown!Z32 -> 2.357 | AA90: =+Opex_Breakdown!AA32 -> 2.304 | AB90: =+Opex_Breakdown!AB32 -> 2.252 | AC90: =+Opex_Breakdown!AC32 -> 2.54 | AD90: =+Opex_Breakdown!AD32 -> 2.484 | AE90: =+Opex_Breakdown!AE32 -> 2.428 | AF90: =+Opex_Breakdown!AF32 -> 2.373 | AG90: =+Opex_Breakdown!AG32 -> 2.32
D91: Other non-controllable | X91: =+Opex_Breakdown!X33 -> 0 | Y91: =+Opex_Breakdown!Y33 -> 0 | Z91: =+Opex_Breakdown!Z33 -> 0 | AA91: =+Opex_Breakdown!AA33 -> 0 | AB91: =+Opex_Breakdown!AB33 -> 0 | AC91: =+Opex_Breakdown!AC33 -> 0 | AD91: =+Opex_Breakdown!AD33 -> 0 | AE91: =+Opex_Breakdown!AE33 -> 0 | AF91: =+Opex_Breakdown!AF33 -> 0 | AG91: =+Opex_Breakdown!AG33 -> 0
D92: Total non-controllable operating expenditure | X92: =SUM(X87:X91) -> 3.546969 | Y92: 3.534969 | Z92: 3.527969 | AA92: 3.523969 | AB92: 3.523969 | AC92: 3.865969 | AD92: 3.866969 | AE92: 3.870969 | AF92: 3.878969 | AG92: 3.891969
W93: Non-controllable Opex growth from baseline to 5th year | AB93: =IFERROR(AB92-V34,"-") -> 0.417279 | AC93: =IFERROR(AB92/V34-1,"-") -> 0.1343162659
D95: Total prescribed operating expenditure | X95: =+X92+X84 -> 44.13847874 | Y95: 43.98726905 | Z95: 42.32622869 | AA95: 41.72201064 | AB95: 42.11396268 | AC95: 42.06788704 | AD95: 42.26183167 | AE95: 42.4077605 | AF95: 42.60939926 | AG95: =+AG92+AG84 -> 42.85663048
W96: Prescribed Opex growth from baseline to 5th year | AB96: =IFERROR(AB95-(V52+V34),"-") -> 1.058369677 | AC96: =IFERROR((AB95/(V52+V34))-1,"-") -> 0.02577894021
W98: To reconcile to 'Opex_Breakdown' tab row 37 >> | X98: =+Opex_Breakdown!X37 -> 44.137969 | Y98: =+Opex_Breakdown!Y37 -> 43.986969 | Z98: =+Opex_Breakdown!Z37 -> 42.324969 | AA98: =+Opex_Breakdown!AA37 -> 41.721969 | AB98: =+Opex_Breakdown!AB37 -> 42.113969 | AC98: =+Opex_Breakdown!AC37 -> 42.067969 | AD98: =+Opex_Breakdown!AD37 -> 42.261969 | AE98: =+Opex_Breakdown!AE37 -> 42.407969 | AF98: =+Opex_Breakdown!AF37 -> 42.608969 | AG98: =+Opex_Breakdown!AG37 -> 42.856969
W99: Difference | X99: =+X98-X95 -> -0.0005097390224 | Y99: -0.0003000489475 | Z99: -0.001259689012 | AA99: -4.164073084e-05 | AB99: 6.322862419e-06 | AC99: 8.195677646e-05 | AD99: 0.0001373272038 | AE99: 0.0002085008163 | AF99: -0.0004302566887 | AG99: 0.0003385174505
W100: Test | X100: =ROUND(X98,2)=ROUND(X95,2) -> TRUE | Y100: =ROUND(Y98,2)=ROUND(Y95,2) -> TRUE | Z100: =ROUND(Z98,1)=ROUND(Z95,1) -> TRUE | AA100: TRUE | AB100: TRUE | AC100: TRUE | AD100: TRUE | AE100: TRUE | AF100: TRUE | AG100: TRUE
X139: =+X$160 -> 2018-19 | Y139: 2019-20 | Z139: 2020-21 | AA139: 2021-22 | AB139: 2022-23 | AC139: 2023-24 | AD139: 2024-25 | AE139: 2025-26 | AF139: 2026-27 | AG139: 2027-28
W140: Total controllable opex | X140: =+X84 -> 40.59150974 | Y140: 40.45230005 | Z140: 38.79825969 | AA140: 38.19804164 | AB140: 38.58999368 | AC140: 38.20191804 | AD140: 38.39486267 | AE140: 38.5367915 | AF140: 38.73043026 | AG140: 38.96466148
W141: Change - $ | Y141: =+Y140-X140 -> -0.1392096901 | Z141: -1.65404036 | AA141: -0.6002180483 | AB141: 0.3919520364 | AC141: -0.3880756339 | AD141: 0.1929446296 | AE141: 0.1419288264 | AF141: 0.1936387575 | AG141: 0.2342312259
W142: Change - % | Y142: =IFERROR(Y141/X140,"") -> -0.003429527282 | Z142: -0.04088866042 | AA142: -0.01547023122 | AB142: 0.01026105056 | AC142: -0.01005637983 | AD142: 0.005050652937 | AE142: 0.00369655773 | AF142: 0.005024776323 | AG142: 0.006047731056
X144: =+X$160 -> 2018-19 | Y144: 2019-20 | Z144: 2020-21 | AA144: 2021-22 | AB144: 2022-23 | AC144: 2023-24 | AD144: 2024-25 | AE144: 2025-26 | AF144: 2026-27 | AG144: 2027-28
W145: Total non-controllable opex | X145: =+X92 -> 3.546969 | Y145: 3.534969 | Z145: 3.527969 | AA145: 3.523969 | AB145: 3.523969 | AC145: 3.865969 | AD145: 3.866969 | AE145: 3.870969 | AF145: 3.878969 | AG145: 3.891969
W146: Change - $ | Y146: =+Y145-X145 -> -0.012 | Z146: -0.007 | AA146: -0.004 | AB146: 0 | AC146: 0.342 | AD146: 0.001 | AE146: 0.004 | AF146: 0.008 | AG146: 0.013
W147: Change - % | Y147: =IFERROR(Y146/X145,"") -> -0.00338317025 | Z147: -0.001980215385 | AA147: -0.001133796811 | AB147: 0 | AC147: 0.0970496619 | AD147: 0.0002586673613 | AE147: 0.001034401879 | AF147: 0.002066665995 | AG147: 0.003351406005
X149: =+X$160 -> 2018-19 | Y149: 2019-20 | Z149: 2020-21 | AA149: 2021-22 | AB149: 2022-23 | AC149: 2023-24 | AD149: 2024-25 | AE149: 2025-26 | AF149: 2026-27 | AG149: 2027-28
W150: Total prescribed opex | X150: =+X140+X145 -> 44.13847874 | Y150: 43.98726905 | Z150: 42.32622869 | AA150: 41.72201064 | AB150: 42.11396268 | AC150: 42.06788704 | AD150: 42.26183167 | AE150: 42.4077605 | AF150: 42.60939926 | AG150: 42.85663048
W151: Change - $ | Y151: =+Y150-X150 -> -0.1512096901 | Z151: -1.66104036 | AA151: -0.6042180483 | AB151: 0.3919520364 | AC151: -0.04607563391 | AD151: 0.1939446296 | AE151: 0.1459288264 | AF151: 0.2016387575 | AG151: 0.2472312259
W152: Change - % | Y152: =IFERROR(Y151/X150,"") -> -0.00342580203 | Z152: -0.03776184328 | AA152: -0.01427526305 | AB152: 0.00939437075 | AC152: -0.001094070256 | AD152: 0.004610277416 | AE152: 0.003452969751 | AF152: 0.004754760806 | AG152: 0.005802269691
W155: Controllable vs. Non-controllable opex - % | X155: =+X$160 -> 2018-19 | Y155: 2019-20 | Z155: 2020-21 | AA155: 2021-22 | AB155: 2022-23 | AC155: 2023-24 | AD155: 2024-25 | AE155: 2025-26 | AF155: 2026-27 | AG155: 2027-28
W156: Controllable opex - % | X156: =+X84/X95 -> 0.9196399808 | Y156: 0.9196365431 | Z156: 0.916648161 | AA156: 0.9155369325 | AB156: 0.916323025 | AC156: 0.9081016597 | AD156: 0.9084997302 | AE156: 0.9087202683 | AF156: 0.9089644757 | AG156: 0.9091863043
W157: Non-controllable opex - % | X157: =+X92/X95 -> 0.08036001922 | Y157: 0.08036345689 | Z157: 0.08335183902 | AA157: 0.08446306748 | AB157: 0.08367697495 | AC157: 0.09189834032 | AD157: 0.09150026979 | AE157: 0.09127973169 | AF157: 0.09103552427 | AG157: 0.09081369571
X158: =SUM(X156:X157) -> 1 | Y158: 1 | Z158: 1 | AA158: 1 | AB158: 1 | AC158: 1 | AD158: 1 | AE158: 1 | AF158: 1 | AG158: 1
V160: =+V6 -> 2016-17 | W160: 2017-18 | X160: 2018-19 | Y160: 2019-20 | Z160: 2020-21 | AA160: 2021-22 | AB160: 2022-23 | AC160: 2023-24 | AD160: 2024-25 | AE160: 2025-26 | AF160: 2026-27 | AG160: 2027-28
U161: Third Reg period Opex | V161: =+V169-SUM(V162:V168) -> 39.765 | W161: =+W169-SUM(W162:W168) -> 37.75
U162: Adjusted baseline opex | X162: =+X61 -> 38.0487328 | Y162: 38.06281083 | Z162: 38.07803595 | AA162: 38.09212482 | AB162: 38.10736167 | AC162: 38.12260462 | AD162: 38.13785366 | AE162: 38.1531088 | AF162: 38.17218536 | AG162: 38.18745423
U163: Forecast variations to baseline operating expenditure | X163: =+X81 -> 2.542776943 | Y163: 2.389489222 | Z163: 0.7202237376 | AA163: 0.105916816 | AB163: 0.4826320025 | AC163: 0.07931342393 | AD163: 0.2570090117 | AE163: 0.3836826966 | AF163: 0.5582448997 | AG163: 0.7772072514
U164: Licence fees | V164: =+V193 -> 0.18869 | W164: =+W193 -> 0.186969 | X164: =+X89 -> 0.186969 | Y164: 0.186969 | Z164: 0.186969 | AA164: 0.186969 | AB164: 0.186969 | AC164: 0.186969 | AD164: 0.186969 | AE164: 0.186969 | AF164: 0.186969 | AG164: 0.186969
U165: Environment Contribution | V165: =+V194 -> 2.127 | W165: =+W194 -> 2.083 | X165: =+X90 -> 2.467 | Y165: 2.411 | Z165: 2.357 | AA165: 2.304 | AB165: 2.252 | AC165: 2.54 | AD165: 2.484 | AE165: 2.428 | AF165: 2.373 | AG165: 2.32
U166: External bulk water charges | V166: =+V191 -> 0.791 | W166: =+W191 -> 0.85 | X166: =+X87 -> 0.893 | Y166: 0.937 | Z166: 0.984 | AA166: 1.033 | AB166: 1.085 | AC166: 1.139 | AD166: 1.196 | AE166: 1.256 | AF166: 1.319 | AG166: 1.385
U167: External temporary water purchases | V167: =+V192 -> 0 | W167: =+W192 -> 0 | X167: =+X88 -> 0 | Y167: 0 | Z167: 0 | AA167: 0 | AB167: 0 | AC167: 0 | AD167: 0 | AE167: 0 | AF167: 0 | AG167: 0
U168: Other non-controllable | V168: =+V195 -> 0 | W168: =+W195 -> 0 | X168: =+X91 -> 0 | Y168: 0 | Z168: 0 | AA168: 0 | AB168: 0 | AC168: 0 | AD168: 0 | AE168: 0 | AF168: 0 | AG168: 0
U169: Total prescribed opex | V169: =+Opex_Breakdown!V37 -> 42.87169 | W169: =+Opex_Breakdown!W37 -> 40.869969 | X169: =SUM(X162:X168) -> 44.13847874 | Y169: 43.98726905 | Z169: 42.32622869 | AA169: 41.72201064 | AB169: 42.11396268 | AC169: 42.06788704 | AD169: 42.26183167 | AE169: 42.4077605 | AF169: 42.60939926 | AG169: 42.85663048
X171: =+X$160 -> 2018-19 | Y171: 2019-20 | Z171: 2020-21 | AA171: 2021-22 | AB171: 2022-23 | AC171: 2023-24 | AD171: 2024-25 | AE171: 2025-26 | AF171: 2026-27 | AG171: 2027-28
W172: Adjusted baseline opex | X172: =+X162/X$169 -> 0.8620309055 | Y172: 0.8653142523 | Z172: 0.8996321461 | AA172: 0.9129983009 | AB172: 0.9048628828 | AC172: 0.9062162923 | AD172: 0.9024183797 | AE172: 0.8996728041 | AF172: 0.8958630261 | AG172: 0.8910512516
W173: Forecast variations to baseline operating expenditure | X173: =+X163/X$169 -> 0.05760907525 | Y173: 0.05432229083 | Z173: 0.01701601489 | AA173: 0.002538631634 | AB173: 0.01146014224 | AC173: 0.001885367426 | AD173: 0.006081350511 | AE173: 0.009047464239 | AF173: 0.01310144967 | AG173: 0.01813505268
W174: Licence fees | X174: =+X164/X$169 -> 0.004235963842 | Y174: 0.004250525301 | Z174: 0.004417331895 | AA174: 0.004481303684 | AB174: 0.004439596469 | AC174: 0.004444459019 | AD174: 0.004424062862 | AE174: 0.004408839274 | AF174: 0.0043879755 | AG174: 0.004362662157
W175: Environment Contribution | X175: =+X165/X$169 -> 0.05589227519 | Y175: 0.05481131364 | Z175: 0.05568651101 | AA175: 0.05522265022 | AB175: 0.05347395156 | AC175: 0.06037859704 | AD175: 0.05877643968 | AE175: 0.05725367177 | AF175: 0.05569193749 | AG175: 0.05413398053
W176: External bulk water charges (excl. temporary purchases) | X176: =+X166/X$169 -> 0.0202317802 | Y176: 0.02130161795 | Z176: 0.02324799611 | AA176: 0.02475911357 | AB176: 0.02576342693 | AC176: 0.02707528426 | AD176: 0.02829976725 | AE176: 0.02961722065 | AF176: 0.03095561127 | AG176: 0.03231705303
W177: External temporary water purchases | X177: =+X167/X$169 -> 0 | Y177: 0 | Z177: 0 | AA177: 0 | AB177: 0 | AC177: 0 | AD177: 0 | AE177: 0 | AF177: 0 | AG177: 0
W178: Other non-controllable | X178: =+X168/X$169 -> 0 | Y178: 0 | Z178: 0 | AA178: 0 | AB178: 0 | AC178: 0 | AD178: 0 | AE178: 0 | AF178: 0 | AG178: 0
W179: Total prescribed opex | X179: =+X169/X$169 -> 1 | Y179: 1 | Z179: 1 | AA179: 1 | AB179: 1 | AC179: 1 | AD179: 1 | AE179: 1 | AF179: 1 | AG179: 1
X181: =+X$160 -> 2018-19 | Y181: 2019-20 | Z181: 2020-21 | AA181: 2021-22 | AB181: 2022-23 | AC181: 2023-24 | AD181: 2024-25 | AE181: 2025-26 | AF181: 2026-27 | AG181: 2027-28
W182: Water | X182: =+SUMIF($H$65:$H$80,$W182,X$65:X$80) -> 3.108953327 | Y182: 2.764926542 | Z182: 0.9699853301 | AA182: 0.2422562872 | AB182: 0.5593783472 | AC182: 0.08044893167 | AD182: 0.3052983669 | AE182: 0.3636343544 | AF182: 0.6844431069 | AG182: 0.8185194338
W183: Sewerage | X183: -0.5661763841 | Y183: -0.3754373201 | Z183: -0.2497615925 | AA183: -0.1363394712 | AB183: -0.07674634464 | AC183: -0.001135507742 | AD183: -0.04828935521 | AE183: 0.02004834221 | AF183: -0.1261982072 | AG183: -0.04131218238
W184: Recycled Water | X184: 0 | Y184: 0 | Z184: 0 | AA184: 0 | AB184: 0 | AC184: 0 | AD184: 0 | AE184: 0 | AF184: 0 | AG184: 0
W185: Rural water | X185: 0 | Y185: 0 | Z185: 0 | AA185: 0 | AB185: 0 | AC185: 0 | AD185: 0 | AE185: 0 | AF185: 0 | AG185: 0
W186: Bulk Water | X186: 0 | Y186: 0 | Z186: 0 | AA186: 0 | AB186: 0 | AC186: 0 | AD186: 0 | AE186: 0 | AF186: 0 | AG186: 0
W187: Forecast variations to baseline operating expenditure | X187: =SUM(X182:X186) -> 2.542776943 | Y187: 2.389489222 | Z187: 0.7202237376 | AA187: 0.105916816 | AB187: 0.4826320025 | AC187: 0.07931342393 | AD187: 0.2570090117 | AE187: 0.3836826966 | AF187: 0.5582448997 | AG187: 0.7772072514
V190: =+V6 -> 2016-17 | W190: 2017-18 | X190: 2018-19 | Y190: 2019-20 | Z190: 2020-21 | AA190: 2021-22 | AB190: 2022-23 | AC190: 2023-24 | AD190: 2024-25 | AE190: 2025-26 | AF190: 2026-27 | AG190: 2027-28
U191: External bulk water charges (excl. temporary purchases) | V191: =+Opex_Breakdown!V29 -> 0.791 | W191: =+Opex_Breakdown!W29 -> 0.85 | X191: =+X87 -> 0.893 | Y191: 0.937 | Z191: 0.984 | AA191: 1.033 | AB191: 1.085 | AC191: 1.139 | AD191: 1.196 | AE191: 1.256 | AF191: 1.319 | AG191: 1.385
U192: External temporary water purchases | V192: =+Opex_Breakdown!V30 -> 0 | W192: =+Opex_Breakdown!W30 -> 0 | X192: =+X88 -> 0 | Y192: 0 | Z192: 0 | AA192: 0 | AB192: 0 | AC192: 0 | AD192: 0 | AE192: 0 | AF192: 0 | AG192: 0
U193: Licence fees | V193: =+Opex_Breakdown!V31 -> 0.18869 | W193: =+Opex_Breakdown!W31 -> 0.186969 | X193: =+X89 -> 0.186969 | Y193: 0.186969 | Z193: 0.186969 | AA193: 0.186969 | AB193: 0.186969 | AC193: 0.186969 | AD193: 0.186969 | AE193: 0.186969 | AF193: 0.186969 | AG193: 0.186969
U194: Environment Contribution | V194: =+Opex_Breakdown!V32 -> 2.127 | W194: =+Opex_Breakdown!W32 -> 2.083 | X194: =+X90 -> 2.467 | Y194: 2.411 | Z194: 2.357 | AA194: 2.304 | AB194: 2.252 | AC194: 2.54 | AD194: 2.484 | AE194: 2.428 | AF194: 2.373 | AG194: 2.32
U195: Other non-controllable | V195: =+Opex_Breakdown!V33 -> 0 | W195: =+Opex_Breakdown!W33 -> 0 | X195: =+X91 -> 0 | Y195: 0 | Z195: 0 | AA195: 0 | AB195: 0 | AC195: 0 | AD195: 0 | AE195: 0 | AF195: 0 | AG195: 0
U196: Total Non-controllable operating expenditure | V196: =+Opex_Breakdown!V34 -> 3.10669 | W196: =+Opex_Breakdown!W34 -> 3.119969 | X196: =SUM(X191:X195) -> 3.546969 | Y196: 3.534969 | Z196: 3.527969 | AA196: 3.523969 | AB196: 3.523969 | AC196: 3.865969 | AD196: 3.866969 | AE196: 3.870969 | AF196: 3.878969 | AG196: 3.891969
V198: ERROR CHECK | X198: =+X169=X95 -> TRUE | Y198: TRUE | Z198: TRUE | AA198: TRUE | AB198: TRUE | AC198: TRUE | AD198: TRUE | AE198: TRUE | AF198: TRUE | AG198: TRUE
X199: =+X187=X163 -> TRUE | Y199: TRUE | Z199: TRUE | AA199: TRUE | AB199: TRUE | AC199: TRUE | AD199: TRUE | AE199: TRUE | AF199: TRUE | AG199: TRUE
X200: =+X150=X169 -> TRUE | Y200: TRUE | Z200: TRUE | AA200: TRUE | AB200: TRUE | AC200: TRUE | AD200: TRUE | AE200: TRUE | AF200: TRUE | AG200: TRUE
X201: =+X196=X145 -> TRUE | Y201: TRUE | Z201: TRUE | AA201: TRUE | AB201: TRUE | AC201: TRUE | AD201: TRUE | AE201: TRUE | AF201: TRUE | AG201: TRUE

Sheet Opex_Breakdown
A1: 80 | B1: Operating Expenditure - Breakdown
B2: =+Contents!H7 -> North East Water
B3: Go to Table of Contents
L4: FIRST REG PERIOD | P4: SECOND REG PERIOD | U4: THIRD REG PERIOD | Z4: FOURTH REG PERIOD | AC4: FIFTH REG PERIOD
K6: 2006 | L6: 2007 | M6: 2008 | N6: 2009 | O6: 2010 | P6: 2011 | Q6: 2012 | R6: 2013 | S6: 2014 | T6: 2015 | U6: 2016 | V6: 2017 | W6: 2018 | X6: 2019 | Y6: 2020 | Z6: 2021 | AA6: 2022 | AB6: 2023 | AC6: 2024 | AD6: 2025 | AE6: 2026 | AF6: 2027 | AG6: 2028
B7: $m, 01/01/18 | K7: =+CONCATENATE(K6-1,"-",RIGHT(K6,2)) -> 2005-06 | L7: =+CONCATENATE(L6-1,"-",RIGHT(L6,2)) -> 2006-07 | M7: 2007-08 | N7: 2008-09 | O7: 2009-10 | P7: 2010-11 | Q7: 2011-12 | R7: 2012-13 | S7: 2013-14 | T7: 2014-15 | U7: 2015-16 | V7: 2016-17 | W7: 2017-18 | X7: =+CONCATENATE(X6-1,"-",RIGHT(X6,2)) -> 2018-19 | Y7: =+CONCATENATE(Y6-1,"-",RIGHT(Y6,2)) -> 2019-20 | Z7: =+CONCATENATE(Z6-1,"-",RIGHT(Z6,2)) -> 2020-21 | AA7: =+CONCATENATE(AA6-1,"-",RIGHT(AA6,2)) -> 2021-22 | AB7: =+CONCATENATE(AB6-1,"-",RIGHT(AB6,2)) -> 2022-23 | AC7: =+CONCATENATE(AC6-1,"-",RIGHT(AC6,2)) -> 2023-24 | AD7: 2024-25 | AE7: 2025-26 | AF7: 2026-27 | AG7: 2027-28
D10: Operating Expenditure Summary
E12: =C48 -> Water | K12: =+K57-K50-K54 -> 0 | L12: =+L57-L50-L54 -> 0 | M12: 0 | N12: 0 | O12: 0 | P12: 0 | Q12: =+Q57-Q50-Q54 -> 0 | R12: 19.82015 | S12: 19.931 | T12: 19.86 | U12: 20.03102 | V12: 23.815 | W12: 21.356 | X12: 24.197 | Y12: 24.058 | Z12: 22.403 | AA12: 21.804 | AB12: 22.196 | AC12: =+AC57-AC50-AC54 -> 21.808 | AD12: 22.001 | AE12: 22.143 | AF12: 22.336 | AG12: 22.571
E13: =C59 -> Sewerage | K13: =K68-K61-K65 -> 0 | L13: =L68-L61-L65 -> 0 | M13: 0 | N13: 0 | O13: 0 | P13: 0 | Q13: 0 | R13: 12.26191 | S13: 13.107 | T13: 13.499 | U13: 14.986 | V13: 15.95 | W13: 16.394 | X13: 16.394 | Y13: 16.394 | Z13: 16.394 | AA13: 16.394 | AB13: 16.394 | AC13: =AC68-AC61-AC65 -> 16.394 | AD13: 16.394 | AE13: 16.394 | AF13: 16.394 | AG13: 16.394
E14: =C70 -> Recycled Water | K14: =K79-K72-K76 -> 0 | L14: =L79-L72-L76 -> 0 | M14: 0 | N14: 0 | O14: 0 | P14: 0 | Q14: 0 | R14: 0 | S14: 0 | T14: 0 | U14: 0 | V14: 0 | W14: 0 | X14: 0 | Y14: 0 | Z14: 0 | AA14: 0 | AB14: 0 | AC14: =AC79-AC72-AC76 -> 0 | AD14: 0 | AE14: 0 | AF14: 0 | AG14: 0
E15: =C81 -> Rural Water | K15: =K90-K83-K87 -> 0 | L15: =L90-L83-L87 -> 0 | M15: 0 | N15: 0 | O15: 0 | P15: 0 | Q15: 0 | R15: 0 | S15: 0 | T15: 0 | U15: 0 | V15: 0 | W15: 0 | X15: 0 | Y15: 0 | Z15: 0 | AA15: 0 | AB15: 0 | AC15: =AC90-AC83-AC87 -> 0 | AD15: 0 | AE15: 0 | AF15: 0 | AG15: 0
E16: Bulk Water | K16: =K100-K97 -> 0 | L16: =L100-L97 -> 0 | M16: 0 | N16: 0 | O16: 0 | P16: 0 | Q16: 0 | R16: 0 | S16: 0 | T16: 0 | U16: 0 | V16: 0 | W16: 0 | X16: 0 | Y16: 0 | Z16: 0 | AA16: 0 | AB16: 0 | AC16: =AC100-AC97 -> 0 | AD16: 0 | AE16: 0 | AF16: 0 | AG16: 0
E17: Total controllable operating expenditure | K17: =SUM(K12:K16) -> 0 | L17: 0 | M17: 0 | N17: 0 | O17: 0 | P17: 0 | Q17: 0 | R17: 32.08206 | S17: 33.038 | T17: 33.359 | U17: 35.01702 | V17: 39.765 | W17: 37.75 | X17: 40.591 | Y17: 40.452 | Z17: 38.797 | AA17: 38.198 | AB17: 38.59 | AC17: 38.202 | AD17: 38.395 | AE17: 38.537 | AF17: 38.73 | AG17: 38.965
V18: Controllable Opex for 3rd Reg Period | W18: =SUM(S17:W17) -> 178.92902 | AA18: Controllable Opex for 4th Reg Period | AB18: =SUM(X17:AB17) -> 196.628
AA19: Controllable Opex growth from 3rd to 4th Reg Period | AB19: =IFERROR(AB18-W18,"-") -> 17.69898 | AC19: =IFERROR(AB18/W18-1,"-") -> 0.09891620711
E20: Operations & Maintenance | K20: =K49+K60+K71+K82+K93 -> 0 | L20: 0 | M20: 0 | N20: 0 | O20: 0 | P20: 0 | Q20: 0 | R20: 8.75835 | S20: 9.111 | T20: 8.757 | U20: 9.4757 | V20: 11.432 | W20: 9.764 | X20: 11.017 | Y20: 10.868 | Z20: 10.583 | AA20: 9.842 | AB20: 10.109 | AC20: 9.595 | AD20: 9.66 | AE20: 9.673 | AF20: 9.866 | AG20: 10.101
E21: Treatment | K21: =K51+K62+K73+K84+K94 -> 0 | L21: 0 | M21: 0 | N21: 0 | O21: 0 | P21: 0 | Q21: 0 | R21: 8.23378 | S21: 8.227 | T21: 8.663 | U21: 9.403 | V21: 10.329 | W21: 9.76 | X21: 9.76 | Y21: 9.76 | Z21: 9.76 | AA21: 9.76 | AB21: 9.76 | AC21: 9.76 | AD21: 9.76 | AE21: 9.76 | AF21: 9.76 | AG21: 9.76
E22: Customer Service and billing | K22: =K52+K63+K74+K85+K95 -> 0 | L22: 0 | M22: 0 | N22: 0 | O22: 0 | P22: 0 | Q22: 0 | R22: 3.40945 | S22: 3.127 | T22: 2.813 | U22: 3.03 | V22: 2.966 | W22: 3.17 | X22: 3.17 | Y22: 3.17 | Z22: 3.17 | AA22: 3.17 | AB22: 3.17 | AC22: 3.17 | AD22: 3.17 | AE22: 3.17 | AF22: 3.17 | AG22: 3.17
E23: GSL Payments | K23: =K53+K64+K75+K86+K96 -> 0 | L23: 0 | M23: 0 | N23: 0 | O23: 0 | P23: 0 | Q23: 0 | R23: 0 | S23: 0 | T23: 0 | U23: 0 | V23: 0 | W23: 0 | X23: 0 | Y23: 0 | Z23: 0 | AA23: 0 | AB23: 0 | AC23: 0 | AD23: 0 | AE23: 0 | AF23: 0 | AG23: 0
E24: Corporate | K24: =K55+K66+K77+K88+K98 -> 0 | L24: 0 | M24: 0 | N24: 0 | O24: 0 | P24: 0 | Q24: 0 | R24: 11.68048 | S24: 12.573 | T24: 13.126 | U24: 13.10832 | V24: 15.038 | W24: 15.056 | X24: 16.644 | Y24: 16.654 | Z24: 15.284 | AA24: 15.426 | AB24: 15.551 | AC24: 15.677 | AD24: 15.805 | AE24: 15.934 | AF24: 15.934 | AG24: 15.934
E25: Other operating expenditure | K25: =K56+K67+K78+K89+K99 -> 0 | L25: 0 | M25: 0 | N25: 0 | O25: 0 | P25: 0 | Q25: 0 | R25: 0 | S25: 0 | T25: 0 | U25: 0 | V25: 0 | W25: 0 | X25: 0 | Y25: 0 | Z25: 0 | AA25: 0 | AB25: 0 | AC25: 0 | AD25: 0 | AE25: 0 | AF25: 0 | AG25: 0
E26: Total controllable operating expenditure | K26: =SUM(K20:K25) -> 0 | L26: =SUM(L20:L25) -> 0 | M26: 0 | N26: 0 | O26: 0 | P26: 0 | Q26: 0 | R26: 32.08206 | S26: 33.038 | T26: 33.359 | U26: 35.01702 | V26: 39.765 | W26: 37.75 | X26: 40.591 | Y26: 40.452 | Z26: 38.797 | AA26: 38.198 | AB26: 38.59 | AC26: 38.202 | AD26: 38.395 | AE26: 38.537 | AF26: 38.73 | AG26: 38.965
E29: External bulk water charges (excl. temporary purchases) | K29: =K50+K61+K72+K83 -> 0 | L29: 0 | M29: 0 | N29: 0 | O29: 0 | P29: 0 | Q29: 0 | R29: 0.7079 | S29: 0.7046 | T29: 0.759 | U29: 0.779 | V29: 0.791 | W29: 0.85 | X29: =X50+X61+X72+X83 -> 0.893 | Y29: =Y50+Y61+Y72+Y83 -> 0.937 | Z29: 0.984 | AA29: 1.033 | AB29: 1.085 | AC29: 1.139 | AD29: 1.196 | AE29: 1.256 | AF29: 1.319 | AG29: 1.385
E30: External temporary water purchases | K30: =+K102 -> 0 | L30: 0 | M30: 0 | N30: 0 | O30: 0 | P30: 0 | Q30: 0 | R30: 0 | S30: 0 | T30: 0 | U30: 0 | V30: 0 | W30: 0 | X30: 0 | Y30: 0 | Z30: 0 | AA30: 0 | AB30: 0 | AC30: 0 | AD30: 0 | AE30: 0 | AF30: 0 | AG30: 0
E31: Licence fees | K31: =+K109 -> 0 | L31: 0 | M31: 0 | N31: 0 | O31: 0 | P31: 0 | Q31: 0 | R31: 0.1614932633 | S31: 0.17697 | T31: 0.16767 | U31: 0.1985 | V31: 0.18869 | W31: 0.186969 | X31: 0.186969 | Y31: 0.186969 | Z31: 0.186969 | AA31: 0.186969 | AB31: 0.186969 | AC31: 0.186969 | AD31: 0.186969 | AE31: 0.186969 | AF31: 0.186969 | AG31: 0.186969
E32: Environment Contribution | K32: =K111 -> 0 | L32: 0 | M32: 0 | N32: 0 | O32: 0 | P32: 0 | Q32: 0 | R32: 1.747 | S32: 2.247 | T32: 2.183 | U32: 2.16 | V32: 2.127 | W32: 2.083 | X32: 2.467 | Y32: 2.411 | Z32: 2.357 | AA32: 2.304 | AB32: 2.252 | AC32: 2.54 | AD32: 2.484 | AE32: 2.428 | AF32: 2.373 | AG32: 2.32
E33: Other non-controllable | K33: =+K124 -> 0 | L33: 0 | M33: 0 | N33: 0 | O33: 0 | P33: 0 | Q33: 0 | R33: 0 | S33: 0 | T33: 0 | U33: 0 | V33: 0 | W33: 0 | X33: 0 | Y33: 0 | Z33: 0 | AA33: 0 | AB33: 0 | AC33: 0 | AD33: 0 | AE33: 0 | AF33: 0 | AG33: =+AG124 -> 0
E34: Total non-controllable operating expenditure | K34: =SUM(K29:K33) -> 0 | L34: =SUM(L29:L33) -> 0 | M34: 0 | N34: 0 | O34: 0 | P34: 0 | Q34: 0 | R34: 2.616393263 | S34: 3.12857 | T34: 3.10967 | U34: 3.1375 | V34: 3.10669 | W34: 3.119969 | X34: 3.546969 | Y34: 3.534969 | Z34: 3.527969 | AA34: 3.523969 | AB34: 3.523969 | AC34: 3.865969 | AD34: 3.866969 | AE34: 3.870969 | AF34: 3.878969 | AG34: 3.891969
V35: Non-controllable Opex for 3rd Reg Period | W35: =SUM(S34:W34) -> 15.602399 | AA35: Non-controllable Opex for 4th Reg Period | AB35: =SUM(X34:AB34) -> 17.657845
AA36: Non-controllable Opex growth from 3rd to 4th Reg Period | AB36: =IFERROR(AB35-W35,"-") -> 2.055446 | AC36: =IFERROR(AB35/W35-1,"-") -> 0.1317390999
E37: Total prescribed operating expenditure | K37: =+K34+K17 -> 0 | L37: 0 | M37: 0 | N37: 0 | O37: 0 | P37: 0 | Q37: 0 | R37: 34.69845326 | S37: 36.16657 | T37: 36.46867 | U37: 38.15452 | V37: 42.87169 | W37: 40.869969 | X37: 44.137969 | Y37: 43.986969 | Z37: 42.324969 | AA37: 41.721969 | AB37: 42.113969 | AC37: 42.067969 | AD37: 42.261969 | AE37: 42.407969 | AF37: 42.608969 | AG37: 42.856969
V38: Prescribed Opex for 3rd Reg Period | W38: =SUM(S37:W37) -> 194.531419 | AA38: Prescribed Opex for 4th Reg Period | AB38: =SUM(X37:AB37) -> 214.285845
AA39: Prescribed Opex growth from 3rd to 4th Reg Period | AB39: =IFERROR(AB38-W38,"-") -> 19.754426 | AC39: =IFERROR(AB38/W38-1,"-") -> 0.1015487683
W40: To reconcile to 'Opex_FO' tab row 123>> | X40: =+Opex_FO!X95 -> 44.13847874 | Y40: =+Opex_FO!Y95 -> 43.98726905 | Z40: =+Opex_FO!Z95 -> 42.32622869 | AA40: =+Opex_FO!AA95 -> 41.72201064 | AB40: =+Opex_FO!AB95 -> 42.11396268 | AC40: =+Opex_FO!AC95 -> 42.06788704 | AD40: =+Opex_FO!AD95 -> 42.26183167 | AE40: =+Opex_FO!AE95 -> 42.4077605 | AF40: =+Opex_FO!AF95 -> 42.60939926 | AG40: =+Opex_FO!AG95 -> 42.85663048
W41: Difference | X41: =+X40-X37 -> 0.0005097390224 | Y41: 0.0003000489475 | Z41: 0.001259689012 | AA41: 4.164073084e-05 | AB41: -6.322862419e-06 | AC41: -8.195677646e-05 | AD41: -0.0001373272038 | AE41: -0.0002085008163 | AF41: 0.0004302566887 | AG41: -0.0003385174505
W42: Test | X42: =ROUND(X40,2)=ROUND(X37,2) -> TRUE | Y42: =ROUND(Y40,2)=ROUND(Y37,2) -> TRUE | Z42: =ROUND(Z40,1)=ROUND(Z37,1) -> TRUE | AA42: TRUE | AB42: TRUE | AC42: TRUE | AD42: TRUE | AE42: TRUE | AF42: TRUE | AG42: TRUE
B46: Total operating expenditure
C48: Water
D49: Operations & Maintenance | R49: 6.576 | S49: 6.293 | T49: 6.312 | U49: 6.4327 | V49: 8.36 | W49: 6.44 | X49: 7.693 | Y49: 7.544 | Z49: 7.259 | AA49: 6.518 | AB49: 6.785 | AC49: 6.271 | AD49: 6.336 | AE49: 6.349 | AF49: 6.542 | AG49: 6.777
D50: External bulk charges (excl. temporary purchases) | R50: =+R131 -> 0.7079 | S50: =+S131 -> 0.7046 | T50: =+T131 -> 0.759 | U50: 0.779 | V50: 0.791 | W50: 0.85 | X50: 0.893 | Y50: 0.937 | Z50: 0.984 | AA50: 1.033 | AB50: 1.085 | AC50: 1.139 | AD50: 1.196 | AE50: 1.256 | AF50: 1.319 | AG50: 1.385 | AH50: see reconciliation below
D51: Treatment | R51: 4.19878 | S51: 4.317 | T51: 4.095 | U51: 4.183 | V51: 4.83 | W51: 4.31 | X51: 4.31 | Y51: 4.31 | Z51: 4.31 | AA51: 4.31 | AB51: 4.31 | AC51: 4.31 | AD51: 4.31 | AE51: 4.31 | AF51: 4.31 | AG51: 4.31
D52: Customer Service and billing | R52: 2.11045 | S52: 1.87 | T52: 1.655 | U52: 1.676 | V52: 1.765 | W52: 1.73 | X52: 1.73 | Y52: 1.73 | Z52: 1.73 | AA52: 1.73 | AB52: 1.73 | AC52: 1.73 | AD52: 1.73 | AE52: 1.73 | AF52: 1.73 | AG52: 1.73
D53: GSL Payments | X53: 0 | Y53: 0 | Z53: 0 | AA53: 0 | AB53: 0 | AC53: 0 | AD53: 0 | AE53: 0 | AF53: 0 | AG53: 0
D54: Licence Fees | R54: 0.0542 | S54: 0.0582 | T54: 0.04298 | U54: 0.0393 | V54: 0.0451 | W54: 0.044 | X54: 0.044 | Y54: 0.044 | Z54: 0.044 | AA54: 0.044 | AB54: 0.044 | AC54: 0.044 | AD54: 0.044 | AE54: 0.044 | AF54: 0.044 | AG54: 0.044
D55: Corporate | R55: 6.93492 | S55: 7.451 | T55: 7.798 | U55: 7.73932 | V55: 8.86 | W55: 8.876 | X55: 10.464 | Y55: 10.474 | Z55: 9.104 | AA55: 9.246 | AB55: 9.371 | AC55: 9.497 | AD55: 9.625 | AE55: 9.754 | AF55: 9.754 | AG55: 9.754
D56: Other operating expenditure
C57: =+CONCATENATE("Total ",C48) -> Total Water | K57: =+SUM(K49:K56) -> 0 | L57: =+SUM(L49:L56) -> 0 | M57: 0 | N57: 0 | O57: 0 | P57: 0 | Q57: 0 | R57: 20.58225 | S57: 20.6938 | T57: 20.66198 | U57: 20.84932 | V57: 24.6511 | W57: 22.25 | X57: 25.134 | Y57: 25.039 | Z57: 23.431 | AA57: 22.881 | AB57: 23.325 | AC57: =+SUM(AC49:AC56) -> 22.991 | AD57: 23.241 | AE57: 23.443 | AF57: 23.699 | AG57: 24
C59: Sewerage
D60: =+D49 -> Operations & Maintenance | R60: 2.18235 | S60: 2.818 | T60: 2.445 | U60: 3.043 | V60: 3.072 | W60: 3.324 | X60: 3.324 | Y60: 3.324 | Z60: 3.324 | AA60: 3.324 | AB60: 3.324 | AC60: 3.324 | AD60: 3.324 | AE60: 3.324 | AF60: 3.324 | AG60: 3.324
D61: =+D50 -> External bulk charges (excl. temporary purchases) | R61: =+R132 -> 0 | S61: =+S132 -> 0 | T61: =+T132 -> 0 | U61: 0 | V61: 0 | W61: 0 | X61: 0 | Y61: 0 | Z61: 0 | AA61: 0 | AB61: 0 | AC61: 0 | AD61: 0 | AE61: 0 | AF61: 0 | AG61: 0 | AH61: see reconciliation below
D62: Treatment | R62: 4.035 | S62: 3.91 | T62: 4.568 | U62: 5.22 | V62: 5.499 | W62: 5.45 | X62: 5.45 | Y62: 5.45 | Z62: 5.45 | AA62: 5.45 | AB62: 5.45 | AC62: 5.45 | AD62: 5.45 | AE62: 5.45 | AF62: 5.45 | AG62: 5.45
D63: Customer Service and billing | R63: 1.299 | S63: 1.257 | T63: 1.158 | U63: 1.354 | V63: 1.201 | W63: 1.44 | X63: 1.44 | Y63: 1.44 | Z63: 1.44 | AA63: 1.44 | AB63: 1.44 | AC63: 1.44 | AD63: 1.44 | AE63: 1.44 | AF63: 1.44 | AG63: 1.44
D64: GSL Payments | X64: 0 | Y64: 0 | Z64: 0 | AA64: 0 | AB64: 0 | AC64: 0 | AD64: 0 | AE64: 0 | AF64: 0 | AG64: 0
D65: Licence Fees | R65: 0.10729 | S65: 0.118 | T65: 0.1237 | U65: 0.1624 | V65: 0.144 | W65: 0.141 | X65: 0.141 | Y65: 0.141 | Z65: 0.141 | AA65: 0.141 | AB65: 0.141 | AC65: 0.141 | AD65: 0.141 | AE65: 0.141 | AF65: 0.141 | AG65: 0.141
D66: Corporate | R66: 4.74556 | S66: 5.122 | T66: 5.328 | U66: 5.369 | V66: 6.178 | W66: 6.18 | X66: 6.18 | Y66: 6.18 | Z66: 6.18 | AA66: 6.18 | AB66: 6.18 | AC66: 6.18 | AD66: 6.18 | AE66: 6.18 | AF66: 6.18 | AG66: 6.18
D67: Other operating expenditure
C68: =+CONCATENATE("Total ",C59) -> Total Sewerage | K68: =+SUM(K60:K67) -> 0 | L68: 0 | M68: 0 | N68: 0 | O68: 0 | P68: 0 | Q68: 0 | R68: 12.3692 | S68: 13.225 | T68: 13.6227 | U68: 15.1484 | V68: 16.094 | W68: 16.535 | X68: 16.535 | Y68: 16.535 | Z68: 16.535 | AA68: 16.535 | AB68: 16.535 | AC68: =+SUM(AC60:AC67) -> 16.535 | AD68: 16.535 | AE68: 16.535 | AF68: 16.535 | AG68: 16.535
C70: Recycled Water
D71: =+D60 -> Operations & Maintenance
D72: =+D61 -> External bulk charges (excl. temporary purchases) | R72: =+R133 -> 0 | S72: =+S133 -> 0 | T72: =+T133 -> 0 | U72: 0 | V72: 0 | W72: 0 | X72: 0 | Y72: 0 | Z72: 0 | AA72: 0 | AB72: 0 | AC72: 0 | AD72: 0 | AE72: 0 | AF72: 0 | AG72: 0 | AH72: see reconciliation below
D73: Treatment
D74: Customer Service and billing
D75: GSL Payments
D76: Licence Fees
D77: Corporate
D78: Other operating expenditure
C79: =+CONCATENATE("Total ",C70) -> Total Recycled Water | K79: =+SUM(K71:K78) -> 0 | L79: =+SUM(L71:L78) -> 0 | M79: =+SUM(M71:M78) -> 0 | N79: =+SUM(N71:N78) -> 0 | O79: 0 | P79: 0 | Q79: 0 | R79: 0 | S79: 0 | T79: 0 | U79: 0 | V79: 0 | W79: 0 | X79: =+SUM(X71:X78) -> 0 | Y79: =+SUM(Y71:Y78) -> 0 | Z79: =+SUM(Z71:Z78) -> 0 | AA79: =+SUM(AA71:AA78) -> 0 | AB79: =+SUM(AB71:AB78) -> 0 | AC79: =+SUM(AC71:AC78) -> 0 | AD79: 0 | AE79: 0 | AF79: 0 | AG79: 0
C81: Rural Water
D82: =+D60 -> Operations & Maintenance
D83: =+D61 -> External bulk charges (excl. temporary purchases) | R83: =+R134 -> 0 | S83: =+S134 -> 0 | T83: =+T134 -> 0 | U83: 0 | V83: 0 | W83: 0 | X83: 0 | Y83: 0 | Z83: 0 | AA83: 0 | AB83: 0 | AC83: 0 | AD83: 0 | AE83: 0 | AF83: 0 | AG83: 0 | AH83: see reconciliation below
D84: Treatment
D85: Customer Service and billing
D86: GSL Payments
D87: Licence Fees
D88: Corporate
D89: Other operating expenditure
C90: =+CONCATENATE("Total ",C81) -> Total Rural Water | K90: =+SUM(K82:K89) -> 0 | L90: 0 | M90: 0 | N90: 0 | O90: 0 | P90: 0 | Q90: 0 | R90: 0 | S90: 0 | T90: 0 | U90: 0 | V90: 0 | W90: 0 | X90: =+SUM(X82:X89) -> 0 | Y90: =+SUM(Y82:Y89) -> 0 | Z90: =+SUM(Z82:Z89) -> 0 | AA90: =+SUM(AA82:AA89) -> 0 | AB90: =+SUM(AB82:AB89) -> 0 | AC90: =+SUM(AC82:AC89) -> 0 | AD90: 0 | AE90: 0 | AF90: 0 | AG90: 0
C92: Bulk Water
D93: Operations & Maintenance
D94: Treatment
D95: Customer Service and billing
D96: GSL Payments
D97: Licence Fees
D98: Corporate
D99: Other operating expenditure
C100: Total Bulk water | K100: =+SUM(K93:K99) -> 0 | L100: 0 | M100: 0 | N100: 0 | O100: 0 | P100: 0 | Q100: 0 | R100: 0 | S100: 0 | T100: 0 | U100: 0 | V100: 0 | W100: 0 | X100: 0 | Y100: 0 | Z100: 0 | AA100: 0 | AB100: 0 | AC100: =+SUM(AC93:AC99) -> 0 | AD100: 0 | AE100: 0 | AF100: 0 | AG100: 0
C102: External temporary water purchases
C105: Licence fees
D106: Essential Services Commission | R106: 0.05088088088 | S106: 0.05719 | T106: 0.03565 | U106: 0.0258 | V106: 0.03469 | W106: 0.033969 | X106: 0.033969 | Y106: 0.033969 | Z106: 0.033969 | AA106: 0.033969 | AB106: 0.033969 | AC106: 0.033969 | AD106: 0.033969 | AE106: 0.033969 | AF106: 0.033969 | AG106: 0.033969
D107: Department of Human Services | R107: 0.02323 | S107: 0.02374 | T107: 0.02202 | U107: 0.0238 | V107: 0.024 | W107: 0.0229 | X107: 0.0229 | Y107: 0.0229 | Z107: 0.0229 | AA107: 0.0229 | AB107: 0.0229 | AC107: 0.0229 | AD107: 0.0229 | AE107: 0.0229 | AF107: 0.0229 | AG107: 0.0229
D108: Environment Protection Authority | R108: 0.08738238238 | S108: 0.09604 | T108: 0.11 | U108: 0.1489 | V108: 0.13 | W108: 0.1301 | X108: 0.1301 | Y108: 0.1301 | Z108: 0.1301 | AA108: 0.1301 | AB108: 0.1301 | AC108: 0.1301 | AD108: 0.1301 | AE108: 0.1301 | AF108: 0.1301 | AG108: 0.1301
C109: =+CONCATENATE("Total ",C105) -> Total Licence fees | K109: =+SUM(K106:K108) -> 0 | L109: =+SUM(L106:L108) -> 0 | M109: 0 | N109: 0 | O109: 0 | P109: 0 | Q109: 0 | R109: 0.1614932633 | S109: 0.17697 | T109: 0.16767 | U109: 0.1985 | V109: 0.18869 | W109: 0.186969 | X109: =+SUM(X106:X108) -> 0.186969 | Y109: =+SUM(Y106:Y108) -> 0.186969 | Z109: =+SUM(Z106:Z108) -> 0.186969 | AA109: =+SUM(AA106:AA108) -> 0.186969 | AB109: =+SUM(AB106:AB108) -> 0.186969 | AC109: =+SUM(AC106:AC108) -> 0.186969 | AD109: 0.186969 | AE109: 0.186969 | AF109: 0.186969 | AG109: 0.186969
C111: Environment Contribution | R111: 1.747 | S111: 2.247 | T111: 2.183 | U111: 2.16 | V111: 2.127 | W111: 2.083 | X111: 2.467 | Y111: 2.411 | Z111: 2.357 | AA111: 2.304 | AB111: 2.252 | AC111: 2.54 | AD111: 2.484 | AE111: 2.428 | AF111: 2.373 | AG111: 2.32
C113: Other non-controllable
D114: [Non-controllable 1]
D115: [Non-controllable 2]
D116: [Non-controllable 3]
D117: [Non-controllable 4]
D118: [Non-controllable 5]
D119: [Non-controllable 6]
D120: [Non-controllable 7]
D121: [Non-controllable 8]
D122: [Non-controllable 9]
D123: [Non-controllable 10]
K124: =SUM(K114:K123) -> 0 | L124: 0 | M124: 0 | N124: 0 | O124: 0 | P124: 0 | Q124: 0 | R124: 0 | S124: 0 | T124: 0 | U124: 0 | V124: 0 | W124: 0 | X124: 0 | Y124: 0 | Z124: 0 | AA124: 0 | AB124: 0 | AC124: 0 | AD124: 0 | AE124: 0 | AF124: 0 | AG124: 0
C127: External bulk charges (excl. temporary purchases)
C128: Reconciliation
C130: Service | R130: =+R7 -> 2012-13 | S130: 2013-14 | T130: 2014-15 | U130: 2015-16 | V130: 2016-17 | W130: 2017-18 | X130: 2018-19 | Y130: 2019-20 | Z130: 2020-21 | AA130: 2021-22 | AB130: 2022-23 | AC130: 2023-24 | AD130: 2024-25 | AE130: 2025-26 | AF130: 2026-27 | AG130: 2027-28
D131: Water | R131: =+SUMIF($I$138:$I$179,$D$131,R$138:R$179) -> 0.7079 | S131: 0.7046 | T131: 0.759 | U131: 0.779 | V131: 0.791 | W131: 0.85 | X131: 0.893 | Y131: 0.937 | Z131: 0.984 | AA131: 1.033 | AB131: 1.085 | AC131: 1.139 | AD131: 1.196 | AE131: 1.256 | AF131: 1.319 | AG131: 1.385
D132: Sewerage | R132: =+SUMIF($I$138:$I$179,$D$132,R$138:R$179) -> 0 | S132: 0 | T132: 0 | U132: 0 | V132: 0 | W132: 0 | X132: 0 | Y132: 0 | Z132: 0 | AA132: 0 | AB132: 0 | AC132: 0 | AD132: 0 | AE132: 0 | AF132: 0 | AG132: 0
D133: Recycled Water | R133: =+SUMIF($I$138:$I$179,$D$133,R$138:R$179) -> 0 | S133: 0 | T133: 0 | U133: 0 | V133: 0 | W133: 0 | X133: 0 | Y133: 0 | Z133: 0 | AA133: 0 | AB133: 0 | AC133: 0 | AD133: 0 | AE133: 0 | AF133: 0 | AG133: 0
D134: Rural Water | R134: =+SUMIF($I$138:$I$179,$D$134,R$138:R$179) -> 0 | S134: 0 | T134: 0 | U134: 0 | V134: 0 | W134: 0 | X134: 0 | Y134: 0 | Z134: 0 | AA134: 0 | AB134: 0 | AC134: 0 | AD134: 0 | AE134: 0 | AF134: 0 | AG134: 0
C135: Total External Bulk Charges | R135: =SUM(R131:R134) -> 0.7079 | S135: =SUM(S131:S134) -> 0.7046 | T135: =SUM(T131:T134) -> 0.759 | U135: 0.779 | V135: 0.791 | W135: 0.85 | X135: 0.893 | Y135: 0.937 | Z135: 0.984 | AA135: 1.033 | AB135: 1.085 | AC135: 1.139 | AD135: 1.196 | AE135: 1.256 | AF135: 1.319 | AG135: 1.385
C137: Description | H137: Source | I137: Service | J137: Price
B138: 1 | C138: Bulk Charges | H138: Goulburn-Murray Water | I138: Water | J138: Fixed | R138: 0.7079 | S138: 0.7046 | T138: 0.759 | U138: 0.779 | V138: 0.791 | W138: 0.85 | X138: 0.893 | Y138: 0.937 | Z138: 0.984 | AA138: 1.033 | AB138: 1.085 | AC138: 1.139 | AD138: 1.196 | AE138: 1.256 | AF138: 1.319 | AG138: 1.385 | AJ138: ESC USE ONLY
B139: 2 | H139: [Source] | I139: [Service] | J139: [Price]
B140: 3 | H140: [Source] | I140: [Service] | J140: [Price] | AJ140: [Service]
B141: 4 | H141: [Source] | I141: [Service] | J141: [Price] | AJ141: Water
B142: 5 | H142: [Source] | I142: [Service] | J142: [Price] | AJ142: Sewerage
B143: 6 | H143: [Source] | I143: [Service] | J143: [Price] | AJ143: Recycled Water
B144: 7 | H144: [Source] | I144: [Service] | J144: [Price] | AJ144: Rural Water
B145: 8 | H145: [Source] | I145: [Service] | J145: [Price]
B146: 9 | H146: [Source] | I146: [Service] | J146: [Price] | AJ146: [Source]
B147: 10 | H147: [Source] | I147: [Service] | J147: [Price] | AJ147: Melbourne Water
B148: 11 | H148: [Source] | I148: [Service] | J148: [Price] | AJ148: Goulburn-Murray Water
B149: 12 | H149: [Source] | I149: [Service] | J149: [Price] | AJ149: Other Sources
B150: 13 | H150: [Source] | I150: [Service] | J150: [Price]
B151: 14 | H151: [Source] | I151: [Service] | J151: [Price]
B152: 15 | H152: [Source] | I152: [Service] | J152: [Price]
B153: 16 | H153: [Source] | I153: [Service] | J153: [Price]
B154: 17 | H154: [Source] | I154: [Service] | J154: [Price]
B155: 18 | H155: [Source] | I155: [Service] | J155: [Price]
B156: 19 | H156: [Source] | I156: [Service] | J156: [Price]
B157: 20 | H157: [Source] | I157: [Service] | J157: [Price]
B158: 21 | H158: [Source] | I158: [Service] | J158: [Price]
B159: 22 | H159: [Source] | I159: [Service] | J159: [Price]
B160: 23 | H160: [Source] | I160: [Service] | J160: [Price]
B161: 24 | H161: [Source] | I161: [Service] | J161: [Price]
B162: 25 | H162: [Source] | I162: [Service] | J162: [Price]
B163: 26 | H163: [Source] | I163: [Service] | J163: [Price]
B164: 27 | H164: [Source] | I164: [Service] | J164: [Price]
B165: 28 | H165: [Source] | I165: [Service] | J165: [Price]
B166: 29 | H166: [Source] | I166: [Service] | J166: [Price]
B167: 30 | H167: [Source] | I167: [Service] | J167: [Price]
B168: 31 | H168: [Source] | I168: [Service] | J168: [Price]
B169: 32 | H169: [Source] | I169: [Service] | J169: [Price]
B170: 33 | H170: [Source] | I170: [Service] | J170: [Price]
B171: 34 | H171: [Source] | I171: [Service] | J171: [Price]
B172: 35 | H172: [Source] | I172: [Service] | J172: [Price]
B173: 36 | H173: [Source] | I173: [Service] | J173: [Price]
B174: 37 | H174: [Source] | I174: [Service] | J174: [Price]
B175: 38 | H175: [Source] | I175: [Service] | J175: [Price]
B176: 39 | H176: [Source] | I176: [Service] | J176: [Price]
B177: 40 | H177: [Source] | I177: [Service] | J177: [Price]

Sheet Capex_FO input
B1: Capital Expenditure - Forecast Input
B2: =+Contents!H7 -> North East Water
B3: Go to Table of Contents
C7: Input Summary | F7: FOURTH REG PERIOD | K7: FIFTH REG PERIOD
D9: =+O39 -> 2018-19 | E9: 2019-20 | F9: 2020-21 | G9: 2021-22 | H9: 2022-23 | I9: 2023-24 | J9: 2024-25 | K9: 2025-26 | L9: 2026-27 | M9: 2027-28 | P9: 4th Reg Period | S9: 5th Reg Period
C10: By Cost Driver | P10: Total | Q10: % of Total | S10: Total | T10: % of Total
C11: Net capital expenditure - Renewals | D11: =+SUMIF($F$42:$F$1019,"Renewals",AV$42:AV$1019) -> 7.186028 | E11: 5.1225 | F11: 4.4945 | G11: 5.873972 | H11: 8.3495 | I11: 5.3035 | J11: 4.724 | K11: 4.5775 | L11: 6.844 | M11: 5.978 | P11: =SUM(D11:H11) -> 31.0265 | Q11: =IFERROR(P11/$P$16,"-") -> 0.2990909703 | S11: =SUM(I11:M11) -> 27.427 | T11: =IFERROR(S11/$S$16,"-") -> 0.3341309618
C12: Net capital expenditure - Growth | D12: =+SUMIF($F$42:$F$1019,"Growth",AV$42:AV$1019) -> 1.619800673 | E12: 5.141223558 | F12: 9.453921126 | G12: 5.487713742 | H12: 1.3787716 | I12: 0.03281471321 | J12: 0.9554529158 | K12: 1.461085857 | L12: 2.298962997 | M12: 7.964333607 | P12: =SUM(D12:H12) -> 23.0814307 | Q12: =IFERROR(P12/$P$16,"-") -> 0.2225016519 | S12: =SUM(I12:M12) -> 12.71265009 | T12: =IFERROR(S12/$S$16,"-") -> 0.1548725709
C13: Net capital expenditure - Improvements / Compliance | D13: =+SUMIF($F$42:$F$1019,"Improvements / Compliance",AV$42:AV$1019) -> 6.22833 | E13: 9.62602 | F13: 7.676981 | G13: 12.296531 | H13: 4.919335 | I13: 8.998981 | J13: 7.1897 | K13: 3.3942 | L13: 8.395 | M13: 4.279 | P13: 40.747197 | Q13: 0.3927970828 | S13: 32.256881 | T13: 0.3929712573
C14: Government Contributions | D14: =+Z41 -> 0 | E14: =+AA41 -> 0 | F14: 0 | G14: 0 | H14: 0 | I14: 0 | J14: 0 | K14: 0 | L14: 0 | M14: 0 | P14: 0 | Q14: 0 | S14: 0 | T14: 0
C15: Customer Contributions | D15: =+AK41 -> 1.714959327 | E15: =+AL41 -> 1.745026442 | F15: 1.775628874 | G15: 1.806776258 | H15: 1.8384784 | I15: 1.870745287 | J15: 1.903587084 | K15: 1.937014143 | L15: 1.971037003 | M15: 2.005666393 | P15: 8.880869302 | Q15: 0.08561029496 | S15: 9.68804991 | T15: 0.11802521
C16: Total prescribed capex | D16: =SUM(D11:D15) -> 16.749118 | E16: 21.63477 | F16: 23.401031 | G16: 25.464993 | H16: 16.486085 | I16: 16.206041 | J16: 14.77274 | K16: 11.3698 | L16: 19.509 | M16: 20.227 | P16: 103.735997 | Q16: 1 | S16: 82.084581 | T16: 1
C18: By Capital Type
C19: Top 10 Major Projects | D19: =+SUMIF($H$42:$H$1019,$C$19,O$42:O$1019) -> 3.42794 | E19: 8.60172 | F19: 10.34989 | G19: 12.3683 | H19: 1.21265 | I19: 6.09746 | J19: 5.17634 | K19: 3.3067 | L19: 0.3 | M19: 0.3 | P19: =SUM(D19:H19) -> 35.9605 | Q19: =IFERROR(P19/$P$23,"-") -> 0.3466540163 | S19: =SUM(I19:M19) -> 15.1805 | T19: =IFERROR(S19/$S$23,"-") -> 0.1849372905
C20: Significant projects | D20: =+SUMIF($H$42:$H$1019,$C$20,O$42:O$1019) -> 0.3 | E20: 0.15 | F20: 1 | G20: 0 | H20: 0.05 | I20: 0 | J20: 0 | K20: 0 | L20: 4 | M20: 5.2 | P20: =SUM(D20:H20) -> 1.5 | Q20: =IFERROR(P20/$P$23,"-") -> 0.01445978294 | S20: =SUM(I20:M20) -> 9.2 | T20: =IFERROR(S20/$S$23,"-") -> 0.1120795147
C21: Capital Programs / Allocation | D21: =+SUMIF($H$42:$H$1019,$C$21,O$42:O$1019) -> 13.021178 | E21: 12.88305 | F21: 12.051141 | G21: 13.096693 | H21: 15.223435 | I21: 10.108581 | J21: 9.5964 | K21: 8.0631 | L21: 15.009 | M21: 14.727 | P21: 66.275497 | Q21: 0.6388862007 | S21: 57.504081 | T21: 0.7005466837
C22: Other Capital expenditure | D22: =+SUMIF($H$42:$H$1019,$C$22,O$42:O$1019) -> 0 | E22: 0 | F22: 0 | G22: 0 | H22: 0 | I22: 0 | J22: 0 | K22: 0 | L22: 0.2 | M22: 0 | P22: 0 | Q22: 0 | S22: 0.2 | T22: 0.002436511188
C23: Total prescribed capex | D23: =SUM(D19:D22) -> 16.749118 | E23: =SUM(E19:E22) -> 21.63477 | F23: 23.401031 | G23: 25.464993 | H23: 16.486085 | I23: 16.206041 | J23: 14.77274 | K23: 11.3698 | L23: 19.509 | M23: 20.227 | P23: 103.735997 | Q23: 1 | S23: 82.084581 | T23: 1
C25: Difference | D25: =+D23-D16 -> 0 | E25: =+E23-E16 -> 0 | F25: 0 | G25: 0 | H25: 0 | I25: 0 | J25: 0 | K25: 0 | L25: 0 | M25: 0
C26: Test | D26: =+D23=D16 -> TRUE | E26: TRUE | F26: TRUE | G26: TRUE | H26: TRUE | I26: TRUE | J26: TRUE | K26: TRUE | L26: TRUE | M26: TRUE
C29: Total prescribed capex | D29: =+D23 -> 16.749118 | E29: =+E23 -> 21.63477 | F29: 23.401031 | G29: 25.464993 | H29: 16.486085 | I29: 16.206041 | J29: 14.77274 | K29: 11.3698 | L29: 19.509 | M29: 20.227
C32: Regulatory Depreciation | D32: =+BG41 -> 0.3142788208 | E32: =+BH41 -> 0.9908285792 | F32: 1.658466704 | G32: 2.861664862 | H32: 4.241793021 | I32: 4.934752289 | J32: 5.450625307 | K32: 6.197738849 | L32: 6.912522703 | M32: 7.448472703
B35: $m, 01/01/18
O36: Gross capital expenditure | Z36: Government contributions | AK36: Customer contributions | AV36: Net capital expenditure | BG36: Regulatory Depreciation | BR36: Accumulated capex | CC36: Gross capital expenditure | CN36: Tax Depreciation
O37: $m, 01/01/18 | Z37: $m, 01/01/18 | AK37: $m, 01/01/18 | AV37: $m, 01/01/18 | BG37: $m, 01/01/18 | BR37: $m, 01/01/18 | CC37: Nominal,$ | CN37: Nominal,$
O39: 2018-19 | P39: 2019-20 | Q39: 2020-21 | R39: 2021-22 | S39: 2022-23 | T39: 2023-24 | U39: 2024-25 | V39: 2025-26 | W39: 2026-27 | X39: 2027-28 | Z39: 2018-19 | AA39: 2019-20 | AB39: 2020-21 | AC39: 2021-22 | AD39: 2022-23 | AE39: 2023-24 | AF39: 2024-25 | AG39: 2025-26 | AH39: 2026-27 | AI39: 2027-28 | AK39: 2018-19 | AL39: 2019-20 | AM39: 2020-21 | AN39: 2021-22 | AO39: 2022-23 | AP39: 2023-24 | AQ39: 2024-25 | AR39: 2025-26 | AS39: 2026-27 | AT39: 2027-28 | AV39: 2018-19 | AW39: 2019-20 | AX39: 2020-21 | AY39: 2021-22 | AZ39: 2022-23 | BA39: 2023-24 | BB39: 2024-25 | BC39: 2025-26 | BD39: 2026-27 | BE39: 2027-28 | BG39: 2018-19 | BH39: 2019-20 | BI39: 2020-21 | BJ39: 2021-22 | BK39: 2022-23 | BL39: 2023-24 | BM39: 2024-25 | BN39: 2025-26 | BO39: 2026-27 | BP39: 2027-28 | BR39: 2018-19 | BS39: 2019-20 | BT39: 2020-21 | BU39: 2021-22 | BV39: 2022-23 | BW39: 2023-24 | BX39: 2024-25 | BY39: 2025-26 | BZ39: 2026-27 | CA39: 2027-28 | CC39: 2018-19 | CD39: 2019-20 | CE39: 2020-21 | CF39: 2021-22 | CG39: 2022-23 | CH39: 2023-24 | CI39: 2024-25 | CJ39: 2025-26 | CK39: 2026-27 | CL39: 2027-28 | CN39: 2018-19 | CO39: 2019-20 | CP39: 2020-21 | CQ39: 2021-22 | CR39: 2022-23 | CS39: 2023-24 | CT39: 2024-25 | CU39: 2025-26 | CV39: 2026-27 | CW39: 2027-28
BG40: 1 | BH40: 2 | BI40: 3 | BJ40: 4 | BK40: 5 | BL40: 6 | BM40: 7 | BN40: 8 | BO40: 9 | BP40: 10 | CN40: 1 | CO40: 2 | CP40: 3 | CQ40: 4 | CR40: 5 | CS40: 6 | CT40: 7 | CU40: 8 | CV40: 9 | CW40: 10
C41: Project/program Name | E41: Service | F41: Major cost driver | G41: Asset category | H41: Capital type | J41: Depreciation Method | K41: Year asset operational | L41: Asset life (Regulatory) | M41: Asset life (Tax) | O41: =SUM(O42:O1019) -> 16.749118 | P41: 21.63477 | Q41: 23.401031 | R41: 25.464993 | S41: 16.486085 | T41: 16.206041 | U41: 14.77274 | V41: 11.3698 | W41: 19.509 | X41: 20.227 | Z41: =SUM(Z42:Z1019) -> 0 | AA41: 0 | AB41: 0 | AC41: 0 | AD41: 0 | AE41: 0 | AF41: 0 | AG41: 0 | AH41: 0 | AI41: 0 | AK41: =SUM(AK42:AK1019) -> 1.714959327 | AL41: 1.745026442 | AM41: 1.775628874 | AN41: 1.806776258 | AO41: 1.8384784 | AP41: 1.870745287 | AQ41: 1.903587084 | AR41: 1.937014143 | AS41: 1.971037003 | AT41: 2.005666393 | AV41: =SUM(AV42:AV1019) -> 15.03415867 | AW41: 19.88974356 | AX41: 21.62540213 | AY41: 23.65821674 | AZ41: 14.6476066 | BA41: 14.33529571 | BB41: 12.86915292 | BC41: 9.432785857 | BD41: 17.537963 | BE41: 18.22133361 | BG41: =SUM(BG42:BG1019) -> 0.3142788208 | BH41: 0.9908285792 | BI41: 1.658466704 | BJ41: 2.861664862 | BK41: 4.241793021 | BL41: 4.934752289 | BM41: 5.450625307 | BN41: 6.197738849 | BO41: 6.912522703 | BP41: 7.448472703 | BR41: =SUM(BR42:BR1019) -> 9.078568673 | BS41: 15.64797356 | BT41: 13.14037113 | BU41: 28.73869574 | BV41: 23.9235216 | BW41: 8.608332713 | BX41: 14.95291292 | BY41: 17.40198586 | BZ41: 16.587963 | CA41: 19.17133361 | CC41: =SUM(CC42:CC1019) -> 17.13434771 | CD41: 22.64141421 | CE41: 25.0531243 | CF41: 27.8898447 | CG41: 18.4712252 | CH41: 18.57508183 | CI41: 17.32169911 | CJ41: 13.63822638 | CK41: 23.93953509 | CL41: 25.39146808 | CN41: =SUM(CN42:CN1019) -> 0.4191873828 | CO41: 1.35759935 | CP41: 2.428647015 | CQ41: 3.711659749 | CR41: 4.861334695 | CS41: 5.671151534 | CT41: 6.391103902 | CU41: 7.021557408 | CV41: 7.729520701 | CW41: 8.419764976
C42: Wodonga WWTP Capacity & Emissions Reduction | E42: Sewerage | F42: Growth | G42: Treatment | H42: Top 10 Major Projects | J42: Straight line | K42: 2021-22 | L42: 20 | M42: 20 | O42: 0.585 | P42: 4.329 | Q42: 6.201 | R42: 0.585 | S42: 0 | T42: 0 | U42: 0 | V42: 0 | W42: 0 | X42: 0 | AV42: =+O42-Z42-AK42 -> 0.585 | AW42: =+P42-AA42-AL42 -> 4.329 | AX42: 6.201 | AY42: 0.585 | AZ42: 0 | BA42: 0 | BB42: 0 | BC42: 0 | BD42: 0 | BE42: 0 | BG42: =IF($L42=0,0, IF($L42<=0.5,BR42, IF($J42="straight line", IF((LEFT(BG$39,4)*1)-INT($L42)<LEFT($BG$39,4)*1,0,((OFFSET(BR42,0,-INT($L42+0.5),1,1))/$L42)*(IF($L42-INT($L42)>0.5,$L42-0.5-INT($L42),IF($L42-INT($L42)<=0.5,$L42-0.5-INT($L42)+1,0)))) +BR42/$L42*0.5, IF($J42="Declining Balance",-$BG$38,0)))) -> 0 | BH42: =IF($L42=0,0, IF($L42<=0.5,BS42, IF(AND($J42="straight line",$L42<1.51),(BR42-((BR42/$L42)*0.5))+BS42/$L42*0.5, IF($J42="straight line", IF((LEFT(BH$39,4)*1)-INT($L42)<LEFT($BG$39,4)*1,0,((OFFSET(BS42,0,-INT($L42+0.5),1,1))/$L42)*(IF($L42-INT($L42)>0.5,$L42-0.5-INT($L42),IF($L42-INT($L42)<=0.5,$L42-0.5-INT($L42)+1,0)))) +BS42/$L42*0.5 +SUM(OFFSET(BS42,0,MAX(-INT($L42+(0.5-(10^-12))),-BH$40)+1,1,MIN(INT($L42+(0.5-(10^-12))),BH$40)-1))*1/$L42, IF($J42="Declining Balance",-$BG$38,0))))) -> 0 | BI42: =IF($L42=0,0, IF($L42<=0.5,BT42, IF(AND($J42="straight line",$L42<1.51),(BS42-((BS42/$L42)*0.5))+BT42/$L42*0.5, IF($J42="straight line", IF((LEFT(BI$39,4)*1)-INT($L42)<LEFT($BG$39,4)*1,0,((OFFSET(BT42,0,-INT($L42+0.5),1,1))/$L42)*(IF($L42-INT($L42)>0.5,$L42-0.5-INT($L42),IF($L42-INT($L42)<=0.5,$L42-0.5-INT($L42)+1,0)))) +BT42/$L42*0.5 +SUM(OFFSET(BT42,0,MAX(-INT($L42+(0.5-(10^-12))),-BI$40)+1,1,MIN(INT($L42+(0.5-(10^-12))),BI$40)-1))*1/$L42, IF($J42="Declining Balance",-$BG$38,0))))) -> 0 | BJ42: 0.2925 | BK42: 0.585 | BL42: 0.585 | BM42: 0.585 | BN42: 0.585 | BO42: 0.585 | BP42: 0.585 | BR42: =+IF($K42="Ongoing",AV42,IF(RIGHT($K42,2)=RIGHT(BR$39,2),SUM($AV42:AV42),0)+IF(RIGHT(BR$39,2)>RIGHT($K42,2),AV42,0)) -> 0 | BS42: =+IF($K42="Ongoing",AW42,IF(RIGHT($K42,2)=RIGHT(BS$39,2),SUM($AV42:AW42),0)+IF(RIGHT(BS$39,2)>RIGHT($K42,2),AW42,0)) -> 0 | BT42: =+IF($K42="Ongoing",AX42,IF(RIGHT($K42,2)=RIGHT(BT$39,2),SUM($AV42:AX42),0)+IF(RIGHT(BT$39,2)>RIGHT($K42,2),AX42,0)) -> 0 | BU42: =+IF($K42="Ongoing",AY42,IF(RIGHT($K42,2)=RIGHT(BU$39,2),SUM($AV42:AY42),0)+IF(RIGHT(BU$39,2)>RIGHT($K42,2),AY42,0)) -> 11.7 | BV42: =+IF($K42="Ongoing",AZ42,IF(RIGHT($K42,2)=RIGHT(BV$39,2),SUM($AV42:AZ42),0)+IF(RIGHT(BV$39,2)>RIGHT($K42,2),AZ42,0)) -> 0 | BW42: =+IF($K42="Ongoing",BA42,IF(RIGHT($K42,2)=RIGHT(BW$39,2),SUM($AV42:BA42),0)+IF(RIGHT(BW$39,2)>RIGHT($K42,2),BA42,0)) -> 0 | BX42: =+IF($K42="Ongoing",BB42,IF(RIGHT($K42,2)=RIGHT(BX$39,2),SUM($AV42:BB42),0)+IF(RIGHT(BX$39,2)>RIGHT($K42,2),BB42,0)) -> 0 | BY42: =+IF($K42="Ongoing",BC42,IF(RIGHT($K42,2)=RIGHT(BY$39,2),SUM($AV42:BC42),0)+IF(RIGHT(BY$39,2)>RIGHT($K42,2),BC42,0)) -> 0 | BZ42: =+IF($K42="Ongoing",BD42,IF(RIGHT($K42,2)=RIGHT(BZ$39,2),SUM($AV42:BD42),0)+IF(RIGHT(BZ$39,2)>RIGHT($K42,2),BD42,0)) -> 0 | CA42: =+IF($K42="Ongoing",BE42,IF(RIGHT($K42,2)=RIGHT(CA$39,2),SUM($AV42:BE42),0)+IF(RIGHT(CA$39,2)>RIGHT($K42,2),BE42,0)) -> 0 | CC42: =+O42*KeyAssumptionsPriceControl_FO!X$15 -> 0.598455 | CD42: =+P42*KeyAssumptionsPriceControl_FO!Y$15 -> 4.530424041 | CE42: =+Q42*KeyAssumptionsPriceControl_FO!Z$15 -> 6.638785435 | CF42: =+R42*KeyAssumptionsPriceControl_FO!AA$15 -> 0.6407054245 | CG42: =+S42*KeyAssumptionsPriceControl_FO!AB$15 -> 0 | CH42: =+T42*KeyAssumptionsPriceControl_FO!AC$15 -> 0 | CI42: =+U42*KeyAssumptionsPriceControl_FO!AD$15 -> 0 | CJ42: =+V42*KeyAssumptionsPriceControl_FO!AE$15 -> 0 | CK42: =+W42*KeyAssumptionsPriceControl_FO!AF$15 -> 0 | CL42: =+X42*KeyAssumptionsPriceControl_FO!AG$15 -> 0 | CN42: =IF($M42=0,0, IF($M42<=0.5,CC42, IF($J42="straight line", IF((LEFT(CN$39,4)*1)-INT($M42)<LEFT($CN$39,4)*1,0,((OFFSET(CC42,0,-INT($M42+0.5),1,1))/$M42)*(IF($M42-INT($M42)>0.5,$M42-0.5-INT($M42),IF($M42-INT($M42)<=0.5,$M42-0.5-INT($M42)+1,0)))) +CC42/$M42*0.5, IF($J42="Declining Balance",-$CN$38,0)))) -> 0.014961375 | CO42: =IF($M42=0,0, IF($M42<=0.5,CD42, IF(AND($J42="straight line",$M42<1.51),(CC42-((CC42/$M42)*0.5))+CD42/$M42*0.5, IF($J42="straight line", IF((LEFT(CO$39,4)*1)-INT($M42)<LEFT($CN$39,4)*1,0,((OFFSET(CD42,0,-INT($M42+0.5),1,1))/$M42)*(IF($M42-INT($M42)>0.5,$M42-0.5-INT($M42),IF($M42-INT($M42)<=0.5,$M42-0.5-INT($M42)+1,0)))) +CD42/$M42*0.5 +SUM(OFFSET(CD42,0,MAX(-INT($M42+(0.5-(10^-12))),-CO$40)+1,1,MIN(INT($M42+(0.5-(10^-12))),CO$40)-1))*1/$M42, IF($J42="Declining Balance",-$CN$38,0))))) -> 0.143183351 | CP42: =IF($M42=0,0, IF($M42<=0.5,CE42, IF(AND($J42="straight line",$M42<1.51),(CD42-((CD42/$M42)*0.5))+CE42/$M42*0.5, IF($J42="straight line", IF((LEFT(CP$39,4)*1)-INT($M42)<LEFT($CN$39,4)*1,0,((OFFSET(CE42,0,-INT($M42+0.5),1,1))/$M42)*(IF($M42-INT($M42)>0.5,$M42-0.5-INT($M42),IF($M42-INT($M42)<=0.5,$M42-0.5-INT($M42)+1,0)))) +CE42/$M42*0.5 +SUM(OFFSET(CE42,0,MAX(-INT($M42+(0.5-(10^-12))),-CP$40)+1,1,MIN(INT($M42+(0.5-(10^-12))),CP$40)-1))*1/$M42, IF($J42="Declining Balance",-$CN$38,0))))) -> 0.4224135879 | CQ42: 0.6044008594 | CR42: 0.620418495 | CS42: 0.620418495 | CT42: 0.620418495 | CU42: 0.620418495 | CV42: 0.620418495 | CW42: 0.620418495
C43: Wodonga WWTP Major Upgrade | E43: Sewerage | F43: Improvements / Compliance | G43: Treatment | H43: Top 10 Major Projects | J43: Straight line | K43: 2024-25 | L43: 25 | M43: 25 | O43: 0 | P43: 0 | Q43: 0.0805 | R43: 0.0805 | S43: 0.4025 | T43: 5.635 | U43: 1.8515 | V43: 0 | W43: 0 | X43: 0 | AV43: =+O43-Z43-AK43 -> 0 | AW43: 0 | AX43: 0.0805 | AY43: 0.0805 | AZ43: 0.4025 | BA43: 5.635 | BB43: 1.8515 | BC43: 0 | BD43: 0 | BE43: 0 | BG43: =IF($L43=0,0, IF($L43<=0.5,BR43, IF($J43="straight line", IF((LEFT(BG$39,4)*1)-INT($L43)<LEFT($BG$39,4)*1,0,((OFFSET(BR43,0,-INT($L43+0.5),1,1))/$L43)*(IF($L43-INT($L43)>0.5,$L43-0.5-INT($L43),IF($L43-INT($L43)<=0.5,$L43-0.5-INT($L43)+1,0)))) +BR43/$L43*0.5, IF($J43="Declining Balance",-$BG$38,0)))) -> 0 | BH43: =IF($L43=0,0, IF($L43<=0.5,BS43, IF(AND($J43="straight line",$L43<1.51),(BR43-((BR43/$L43)*0.5))+BS43/$L43*0.5, IF($J43="straight line", IF((LEFT(BH$39,4)*1)-INT($L43)<LEFT($BG$39,4)*1,0,((OFFSET(BS43,0,-INT($L43+0.5),1,1))/$L43)*(IF($L43-INT($L43)>0.5,$L43-0.5-INT($L43),IF($L43-INT($L43)<=0.5,$L43-0.5-INT($L43)+1,0)))) +BS43/$L43*0.5 +SUM(OFFSET(BS43,0,MAX(-INT($L43+(0.5-(10^-12))),-BH$40)+1,1,MIN(INT($L43+(0.5-(10^-12))),BH$40)-1))*1/$L43, IF($J43="Declining Balance",-$BG$38,0))))) -> 0 | BI43: 0 | BJ43: 0 | BK43: 0 | BL43: 0 | BM43: 0.161 | BN43: 0.322 | BO43: 0.322 | BP43: 0.322 | BR43: =+IF($K43="Ongoing",AV43,IF(RIGHT($K43,2)=RIGHT(BR$39,2),SUM($AV43:AV43),0)+IF(RIGHT(BR$39,2)>RIGHT($K43,2),AV43,0)) -> 0 | BS43: =+IF($K43="Ongoing",AW43,IF(RIGHT($K43,2)=RIGHT(BS$39,2),SUM($AV43:AW43),0)+IF(RIGHT(BS$39,2)>RIGHT($K43,2),AW43,0)) -> 0 | BT43: =+IF($K43="Ongoing",AX43,IF(RIGHT($K43,2)=RIGHT(BT$39,2),SUM($AV43:AX43),0)+IF(RIGHT(BT$39,2)>RIGHT($K43,2),AX43,0)) -> 0 | BU43: =+IF($K43="Ongoing",AY43,IF(RIGHT($K43,2)=RIGHT(BU$39,2),SUM($AV43:AY43),0)+IF(RIGHT(BU$39,2)>RIGHT($K43,2),AY43,0)) -> 0 | BV43: =+IF($K43="Ongoing",AZ43,IF(RIGHT($K43,2)=RIGHT(BV$39,2),SUM($AV43:AZ43),0)+IF(RIGHT(BV$39,2)>RIGHT($K43,2),AZ43,0)) -> 0 | BW43: =+IF($K43="Ongoing",BA43,IF(RIGHT($K43,2)=RIGHT(BW$39,2),SUM($AV43:BA43),0)+IF(RIGHT(BW$39,2)>RIGHT($K43,2),BA43,0)) -> 0 | BX43: =+IF($K43="Ongoing",BB43,IF(RIGHT($K43,2)=RIGHT(BX$39,2),SUM($AV43:BB43),0)+IF(RIGHT(BX$39,2)>RIGHT($K43,2),BB43,0)) -> 8.05 | BY43: =+IF($K43="Ongoing",BC43,IF(RIGHT($K43,2)=RIGHT(BY$39,2),SUM($AV43:BC43),0)+IF(RIGHT(BY$39,2)>RIGHT($K43,2),BC43,0)) -> 0 | BZ43: =+IF($K43="Ongoing",BD43,IF(RIGHT($K43,2)=RIGHT(BZ$39,2),SUM($AV43:BD43),0)+IF(RIGHT(BZ$39,2)>RIGHT($K43,2),BD43,0)) -> 0 | CA43: =+IF($K43="Ongoing",BE43,IF(RIGHT($K43,2)=RIGHT(CA$39,2),SUM($AV43:BE43),0)+IF(RIGHT(CA$39,2)>RIGHT($K43,2),BE43,0)) -> 0 | CC43: =+O43*KeyAssumptionsPriceControl_FO!X$15 -> 0 | CD43: =+P43*KeyAssumptionsPriceControl_FO!Y$15 -> 0 | CE43: =+Q43*KeyAssumptionsPriceControl_FO!Z$15 -> 0.08618323294 | CF43: =+R43*KeyAssumptionsPriceControl_FO!AA$15 -> 0.0881654473 | CG43: =+S43*KeyAssumptionsPriceControl_FO!AB$15 -> 0.4509662629 | CH43: =+T43*KeyAssumptionsPriceControl_FO!AC$15 -> 6.458738818 | CI43: =+U43*KeyAssumptionsPriceControl_FO!AD$15 -> 2.170966652 | CJ43: =+V43*KeyAssumptionsPriceControl_FO!AE$15 -> 0 | CK43: =+W43*KeyAssumptionsPriceControl_FO!AF$15 -> 0 | CL43: =+X43*KeyAssumptionsPriceControl_FO!AG$15 -> 0 | CN43: =IF($M43=0,0, IF($M43<=0.5,CC43, IF($J43="straight line", IF((LEFT(CN$39,4)*1)-INT($M43)<LEFT($CN$39,4)*1,0,((OFFSET(CC43,0,-INT($M43+0.5),1,1))/$M43)*(IF($M43-INT($M43)>0.5,$M43-0.5-INT($M43),IF($M43-INT($M43)<=0.5,$M43-0.5-INT($M43)+1,0)))) +CC43/$M43*0.5, IF($J43="Declining Balance",-$CN$38,0)))) -> 0 | CO43: =IF($M43=0,0, IF($M43<=0.5,CD43, IF(AND($J43="straight line",$M43<1.51),(CC43-((CC43/$M43)*0.5))+CD43/$M43*0.5, IF($J43="straight line", IF((LEFT(CO$39,4)*1)-INT($M43)<LEFT($CN$39,4)*1,0,((OFFSET(CD43,0,-INT($M43+0.5),1,1))/$M43)*(IF($M43-INT($M43)>0.5,$M43-0.5-INT($M43),IF($M43-INT($M43)<=0.5,$M43-0.5-INT($M43)+1,0)))) +CD43/$M43*0.5 +SUM(OFFSET(CD43,0,MAX(-INT($M43+(0.5-(10^-12))),-CO$40)+1,1,MIN(INT($M43+(0.5-(10^-12))),CO$40)-1))*1/$M43, IF($J43="Declining Balance",-$CN$38,0))))) -> 0 | CP43: 0.001723664659 | CQ43: 0.005210638264 | CR43: 0.01599327247 | CS43: 0.1541873741 | CT43: 0.3267814835 | CU43: 0.3702008165 | CV43: 0.3702008165 | CW43: 0.3702008165
C44: Beechworth Wastewater System Upgrade | E44: Sewerage | F44: Improvements / Compliance | G44: Pipelines/network | H44: Top 10 Major Projects | J44: Straight line | K44: 2019-20 | L44: 80 | M44: 80 | O44: 2.4116 | P44: 3.6174 | Q44: 0 | R44: 0 | S44: 0 | T44: 0 | U44: 0 | V44: 0 | W44: 0 | X44: 0 | AV44: 2.4116 | AW44: 3.6174 | AX44: 0 | AY44: 0 | AZ44: 0 | BA44: 0 | BB44: 0 | BC44: 0 | BD44: 0 | BE44: 0 | BG44: 0 | BH44: 0.03768125 | BI44: 0.0753625 | BJ44: 0.0753625 | BK44: 0.0753625 | BL44: 0.0753625 | BM44: 0.0753625 | BN44: 0.0753625 | BO44: 0.0753625 | BP44: 0.0753625 | BR44: =+IF($K44="Ongoing",AV44,IF(RIGHT($K44,2)=RIGHT(BR$39,2),SUM($AV44:AV44),0)+IF(RIGHT(BR$39,2)>RIGHT($K44,2),AV44,0)) -> 0 | BS44: =+IF($K44="Ongoing",AW44,IF(RIGHT($K44,2)=RIGHT(BS$39,2),SUM($AV44:AW44),0)+IF(RIGHT(BS$39,2)>RIGHT($K44,2),AW44,0)) -> 6.029 | BT44: =+IF($K44="Ongoing",AX44,IF(RIGHT($K44,2)=RIGHT(BT$39,2),SUM($AV44:AX44),0)+IF(RIGHT(BT$39,2)>RIGHT($K44,2),AX44,0)) -> 0 | BU44: =+IF($K44="Ongoing",AY44,IF(RIGHT($K44,2)=RIGHT(BU$39,2),SUM($AV44:AY44),0)+IF(RIGHT(BU$39,2)>RIGHT($K44,2),AY44,0)) -> 0 | BV44: =+IF($K44="Ongoing",AZ44,IF(RIGHT($K44,2)=RIGHT(BV$39,2),SUM($AV44:AZ44),0)+IF(RIGHT(BV$39,2)>RIGHT($K44,2),AZ44,0)) -> 0 | BW44: =+IF($K44="Ongoing",BA44,IF(RIGHT($K44,2)=RIGHT(BW$39,2),SUM($AV44:BA44),0)+IF(RIGHT(BW$39,2)>RIGHT($K44,2),BA44,0)) -> 0 | BX44: =+IF($K44="Ongoing",BB44,IF(RIGHT($K44,2)=RIGHT(BX$39,2),SUM($AV44:BB44),0)+IF(RIGHT(BX$39,2)>RIGHT($K44,2),BB44,0)) -> 0 | BY44: =+IF($K44="Ongoing",BC44,IF(RIGHT($K44,2)=RIGHT(BY$39,2),SUM($AV44:BC44),0)+IF(RIGHT(BY$39,2)>RIGHT($K44,2),BC44,0)) -> 0 | BZ44: =+IF($K44="Ongoing",BD44,IF(RIGHT($K44,2)=RIGHT(BZ$39,2),SUM($AV44:BD44),0)+IF(RIGHT(BZ$39,2)>RIGHT($K44,2),BD44,0)) -> 0 | CA44: =+IF($K44="Ongoing",BE44,IF(RIGHT($K44,2)=RIGHT(CA$39,2),SUM($AV44:BE44),0)+IF(RIGHT(CA$39,2)>RIGHT($K44,2),BE44,0)) -> 0 | CC44: =+O44*KeyAssumptionsPriceControl_FO!X$15 -> 2.4670668 | CD44: =+P44*KeyAssumptionsPriceControl_FO!Y$15 -> 3.785714005 | CE44: =+Q44*KeyAssumptionsPriceControl_FO!Z$15 -> 0 | CF44: =+R44*KeyAssumptionsPriceControl_FO!AA$15 -> 0 | CG44: =+S44*KeyAssumptionsPriceControl_FO!AB$15 -> 0 | CH44: =+T44*KeyAssumptionsPriceControl_FO!AC$15 -> 0 | CI44: =+U44*KeyAssumptionsPriceControl_FO!AD$15 -> 0 | CJ44: =+V44*KeyAssumptionsPriceControl_FO!AE$15 -> 0 | CK44: =+W44*KeyAssumptionsPriceControl_FO!AF$15 -> 0 | CL44: =+X44*KeyAssumptionsPriceControl_FO!AG$15 -> 0 | CN44: 0.0154191675 | CO44: 0.05449904753 | CP44: 0.07815976006 | CQ44: 0.07815976006 | CR44: 0.07815976006 | CS44: 0.07815976006 | CT44: 0.07815976006 | CU44: 0.07815976006 | CV44: 0.07815976006 | CW44: 0.07815976006
C45: Wodonga Sewerage Transfer Capacity | E45: Sewerage | F45: Growth | G45: Pipelines/network | H45: Top 10 Major Projects | J45: Straight line | K45: 2022-23 | L45: 80 | M45: 80 | O45: 0 | P45: 0.05399 | Q45: 0.32394 | R45: 4.75112 | S45: 0.26995 | T45: 0 | U45: 0 | V45: 0 | W45: 0 | X45: 0 | AV45: 0 | AW45: 0.05399 | AX45: 0.32394 | AY45: 4.75112 | AZ45: 0.26995 | BA45: 0 | BB45: 0 | BC45: 0 | BD45: 0 | BE45: 0 | BG45: 0 | BH45: 0 | BI45: 0 | BJ45: 0 | BK45: 0.03374375 | BL45: 0.0674875 | BM45: 0.0674875 | BN45: 0.0674875 | BO45: 0.0674875 | BP45: 0.0674875 | BR45: =+IF($K45="Ongoing",AV45,IF(RIGHT($K45,2)=RIGHT(BR$39,2),SUM($AV45:AV45),0)+IF(RIGHT(BR$39,2)>RIGHT($K45,2),AV45,0)) -> 0 | BS45: =+IF($K45="Ongoing",AW45,IF(RIGHT($K45,2)=RIGHT(BS$39,2),SUM($AV45:AW45),0)+IF(RIGHT(BS$39,2)>RIGHT($K45,2),AW45,0)) -> 0 | BT45: =+IF($K45="Ongoing",AX45,IF(RIGHT($K45,2)=RIGHT(BT$39,2),SUM($AV45:AX45),0)+IF(RIGHT(BT$39,2)>RIGHT($K45,2),AX45,0)) -> 0 | BU45: =+IF($K45="Ongoing",AY45,IF(RIGHT($K45,2)=RIGHT(BU$39,2),SUM($AV45:AY45),0)+IF(RIGHT(BU$39,2)>RIGHT($K45,2),AY45,0)) -> 0 | BV45: =+IF($K45="Ongoing",AZ45,IF(RIGHT($K45,2)=RIGHT(BV$39,2),SUM($AV45:AZ45),0)+IF(RIGHT(BV$39,2)>RIGHT($K45,2),AZ45,0)) -> 5.399 | BW45: =+IF($K45="Ongoing",BA45,IF(RIGHT($K45,2)=RIGHT(BW$39,2),SUM($AV45:BA45),0)+IF(RIGHT(BW$39,2)>RIGHT($K45,2),BA45,0)) -> 0 | BX45: =+IF($K45="Ongoing",BB45,IF(RIGHT($K45,2)=RIGHT(BX$39,2),SUM($AV45:BB45),0)+IF(RIGHT(BX$39,2)>RIGHT($K45,2),BB45,0)) -> 0 | BY45: =+IF($K45="Ongoing",BC45,IF(RIGHT($K45,2)=RIGHT(BY$39,2),SUM($AV45:BC45),0)+IF(RIGHT(BY$39,2)>RIGHT($K45,2),BC45,0)) -> 0 | BZ45: =+IF($K45="Ongoing",BD45,IF(RIGHT($K45,2)=RIGHT(BZ$39,2),SUM($AV45:BD45),0)+IF(RIGHT(BZ$39,2)>RIGHT($K45,2),BD45,0)) -> 0 | CA45: =+IF($K45="Ongoing",BE45,IF(RIGHT($K45,2)=RIGHT(CA$39,2),SUM($AV45:BE45),0)+IF(RIGHT(CA$39,2)>RIGHT($K45,2),BE45,0)) -> 0 | CC45: =+O45*KeyAssumptionsPriceControl_FO!X$15 -> 0 | CD45: =+P45*KeyAssumptionsPriceControl_FO!Y$15 -> 0.05650210071 | CE45: =+Q45*KeyAssumptionsPriceControl_FO!Z$15 -> 0.3468098942 | CF45: =+R45*KeyAssumptionsPriceControl_FO!AA$15 -> 5.203535652 | CG45: =+S45*KeyAssumptionsPriceControl_FO!AB$15 -> 0.3024555098 | CH45: =+T45*KeyAssumptionsPriceControl_FO!AC$15 -> 0 | CI45: =+U45*KeyAssumptionsPriceControl_FO!AD$15 -> 0 | CJ45: =+V45*KeyAssumptionsPriceControl_FO!AE$15 -> 0 | CK45: =+W45*KeyAssumptionsPriceControl_FO!AF$15 -> 0 | CL45: =+X45*KeyAssumptionsPriceControl_FO!AG$15 -> 0 | CN45: 0 | CO45: 0.0003531381294 | CP45: 0.002873838097 | CQ45: 0.03756349776 | CR45: 0.07197594252 | CS45: 0.07386628946 | CT45: 0.07386628946 | CU45: 0.07386628946 | CV45: 0.07386628946 | CW45: 0.07386628946
C46: Wodonga WWTP Solar Power | E46: Sewerage | F46: Improvements / Compliance | G46: Treatment | H46: Top 10 Major Projects | J46: Straight line | K46: 2022-23 | L46: 25 | M46: 25 | O46: 0.09608 | P46: 0.14412 | Q46: 1.05688 | R46: 3.26672 | S46: 0.2402 | T46: 0 | U46: 0 | V46: 0 | W46: 0 | X46: 0 | AV46: 0.09608 | AW46: 0.14412 | AX46: 1.05688 | AY46: 3.26672 | AZ46: 0.2402 | BA46: 0 | BB46: 0 | BC46: 0 | BD46: 0 | BE46: 0 | BG46: 0 | BH46: 0 | BI46: 0 | BJ46: 0 | BK46: 0.09608 | BL46: 0.19216 | BM46: 0.19216 | BN46: 0.19216 | BO46: 0.19216 | BP46: 0.19216 | BR46: =+IF($K46="Ongoing",AV46,IF(RIGHT($K46,2)=RIGHT(BR$39,2),SUM($AV46:AV46),0)+IF(RIGHT(BR$39,2)>RIGHT($K46,2),AV46,0)) -> 0 | BS46: =+IF($K46="Ongoing",AW46,IF(RIGHT($K46,2)=RIGHT(BS$39,2),SUM($AV46:AW46),0)+IF(RIGHT(BS$39,2)>RIGHT($K46,2),AW46,0)) -> 0 | BT46: =+IF($K46="Ongoing",AX46,IF(RIGHT($K46,2)=RIGHT(BT$39,2),SUM($AV46:AX46),0)+IF(RIGHT(BT$39,2)>RIGHT($K46,2),AX46,0)) -> 0 | BU46: =+IF($K46="Ongoing",AY46,IF(RIGHT($K46,2)=RIGHT(BU$39,2),SUM($AV46:AY46),0)+IF(RIGHT(BU$39,2)>RIGHT($K46,2),AY46,0)) -> 0 | BV46: =+IF($K46="Ongoing",AZ46,IF(RIGHT($K46,2)=RIGHT(BV$39,2),SUM($AV46:AZ46),0)+IF(RIGHT(BV$39,2)>RIGHT($K46,2),AZ46,0)) -> 4.804 | BW46: =+IF($K46="Ongoing",BA46,IF(RIGHT($K46,2)=RIGHT(BW$39,2),SUM($AV46:BA46),0)+IF(RIGHT(BW$39,2)>RIGHT($K46,2),BA46,0)) -> 0 | BX46: =+IF($K46="Ongoing",BB46,IF(RIGHT($K46,2)=RIGHT(BX$39,2),SUM($AV46:BB46),0)+IF(RIGHT(BX$39,2)>RIGHT($K46,2),BB46,0)) -> 0 | BY46: =+IF($K46="Ongoing",BC46,IF(RIGHT($K46,2)=RIGHT(BY$39,2),SUM($AV46:BC46),0)+IF(RIGHT(BY$39,2)>RIGHT($K46,2),BC46,0)) -> 0 | BZ46: =+IF($K46="Ongoing",BD46,IF(RIGHT($K46,2)=RIGHT(BZ$39,2),SUM($AV46:BD46),0)+IF(RIGHT(BZ$39,2)>RIGHT($K46,2),BD46,0)) -> 0 | CA46: =+IF($K46="Ongoing",BE46,IF(RIGHT($K46,2)=RIGHT(CA$39,2),SUM($AV46:BE46),0)+IF(RIGHT(CA$39,2)>RIGHT($K46,2),BE46,0)) -> 0 | CC46: =+O46*KeyAssumptionsPriceControl_FO!X$15 -> 0.09828984 | CD46: =+P46*KeyAssumptionsPriceControl_FO!Y$15 -> 0.1508257595 | CE46: =+Q46*KeyAssumptionsPriceControl_FO!Z$15 -> 1.131494848 | CF46: =+R46*KeyAssumptionsPriceControl_FO!AA$15 -> 3.577786708 | CG46: =+S46*KeyAssumptionsPriceControl_FO!AB$15 -> 0.2691232208 | CH46: =+T46*KeyAssumptionsPriceControl_FO!AC$15 -> 0 | CI46: =+U46*KeyAssumptionsPriceControl_FO!AD$15 -> 0 | CJ46: =+V46*KeyAssumptionsPriceControl_FO!AE$15 -> 0 | CK46: =+W46*KeyAssumptionsPriceControl_FO!AF$15 -> 0 | CL46: =+X46*KeyAssumptionsPriceControl_FO!AG$15 -> 0 | CN46: 0.0019657968 | CO46: 0.00694810879 | CP46: 0.03259452093 | CQ46: 0.126780152 | CR46: 0.2037183506 | CS46: 0.209100815 | CT46: 0.209100815 | CU46: 0.209100815 | CV46: 0.209100815 | CW46: 0.209100815
C47: Region Wide Digital Business Sustainability | E47: Water | F47: Improvements / Compliance | G47: Corporate | H47: Top 10 Major Projects | J47: Straight line | K47: 2021-22 | L47: 10 | M47: 10 | O47: 0.03526 | P47: 0.03526 | Q47: 0.07052 | R47: 3.38496 | S47: 0 | T47: 0 | U47: 0 | V47: 0 | W47: 0 | X47: 0 | AV47: 0.03526 | AW47: 0.03526 | AX47: 0.07052 | AY47: 3.38496 | AZ47: 0 | BA47: 0 | BB47: 0 | BC47: 0 | BD47: 0 | BE47: 0 | BG47: 0 | BH47: 0 | BI47: 0 | BJ47: 0.1763 | BK47: 0.3526 | BL47: 0.3526 | BM47: 0.3526 | BN47: 0.3526 | BO47: 0.3526 | BP47: 0.3526 | BR47: =+IF($K47="Ongoing",AV47,IF(RIGHT($K47,2)=RIGHT(BR$39,2),SUM($AV47:AV47),0)+IF(RIGHT(BR$39,2)>RIGHT($K47,2),AV47,0)) -> 0 | BS47: =+IF($K47="Ongoing",AW47,IF(RIGHT($K47,2)=RIGHT(BS$39,2),SUM($AV47:AW47),0)+IF(RIGHT(BS$39,2)>RIGHT($K47,2),AW47,0)) -> 0 | BT47: =+IF($K47="Ongoing",AX47,IF(RIGHT($K47,2)=RIGHT(BT$39,2),SUM($AV47:AX47),0)+IF(RIGHT(BT$39,2)>RIGHT($K47,2),AX47,0)) -> 0 | BU47: =+IF($K47="Ongoing",AY47,IF(RIGHT($K47,2)=RIGHT(BU$39,2),SUM($AV47:AY47),0)+IF(RIGHT(BU$39,2)>RIGHT($K47,2),AY47,0)) -> 3.526 | BV47: =+IF($K47="Ongoing",AZ47,IF(RIGHT($K47,2)=RIGHT(BV$39,2),SUM($AV47:AZ47),0)+IF(RIGHT(BV$39,2)>RIGHT($K47,2),AZ47,0)) -> 0 | BW47: =+IF($K47="Ongoing",BA47,IF(RIGHT($K47,2)=RIGHT(BW$39,2),SUM($AV47:BA47),0)+IF(RIGHT(BW$39,2)>RIGHT($K47,2),BA47,0)) -> 0 | BX47: =+IF($K47="Ongoing",BB47,IF(RIGHT($K47,2)=RIGHT(BX$39,2),SUM($AV47:BB47),0)+IF(RIGHT(BX$39,2)>RIGHT($K47,2),BB47,0)) -> 0 | BY47: =+IF($K47="Ongoing",BC47,IF(RIGHT($K47,2)=RIGHT(BY$39,2),SUM($AV47:BC47),0)+IF(RIGHT(BY$39,2)>RIGHT($K47,2),BC47,0)) -> 0 | BZ47: =+IF($K47="Ongoing",BD47,IF(RIGHT($K47,2)=RIGHT(BZ$39,2),SUM($AV47:BD47),0)+IF(RIGHT(BZ$39,2)>RIGHT($K47,2),BD47,0)) -> 0 | CA47: =+IF($K47="Ongoing",BE47,IF(RIGHT($K47,2)=RIGHT(CA$39,2),SUM($AV47:BE47),0)+IF(RIGHT(CA$39,2)>RIGHT($K47,2),BE47,0)) -> 0 | CC47: =+O47*KeyAssumptionsPriceControl_FO!X$15 -> 0.03607098 | CD47: =+P47*KeyAssumptionsPriceControl_FO!Y$15 -> 0.03690061254 | CE47: =+Q47*KeyAssumptionsPriceControl_FO!Z$15 -> 0.07549865326 | CF47: =+R47*KeyAssumptionsPriceControl_FO!AA$15 -> 3.70728587 | CG47: =+S47*KeyAssumptionsPriceControl_FO!AB$15 -> 0 | CH47: =+T47*KeyAssumptionsPriceControl_FO!AC$15 -> 0 | CI47: =+U47*KeyAssumptionsPriceControl_FO!AD$15 -> 0 | CJ47: =+V47*KeyAssumptionsPriceControl_FO!AE$15 -> 0 | CK47: =+W47*KeyAssumptionsPriceControl_FO!AF$15 -> 0 | CL47: =+X47*KeyAssumptionsPriceControl_FO!AG$15 -> 0 | CN47: 0.001803549 | CO47: 0.005452128627 | CP47: 0.01107209192 | CQ47: 0.2002113181 | CR47: 0.3855756115 | CS47: 0.3855756115 | CT47: 0.3855756115 | CU47: 0.3855756115 | CV47: 0.3855756115 | CW47: 0.3855756115
C48: Benalla WWTP Upgrade | E48: Sewerage | F48: Growth | G48: Treatment | H48: Top 10 Major Projects | J48: Straight line | K48: 2025-26 | L48: 30 | M48: 30 | O48: 0 | P48: 0 | Q48: 0 | R48: 0 | S48: 0 | T48: 0.03386 | U48: 0.47404 | V48: 2.8781 | W48: 0 | X48: 0 | AV48: 0 | AW48: 0 | AX48: 0 | AY48: 0 | AZ48: 0 | BA48: 0.03386 | BB48: 0.47404 | BC48: 2.8781 | BD48: 0 | BE48: 0 | BG48: 0 | BH48: 0 | BI48: 0 | BJ48: 0 | BK48: 0 | BL48: 0 | BM48: 0 | BN48: 0.05643333333 | BO48: 0.1128666667 | BP48: 0.1128666667 | BR48: =+IF($K48="Ongoing",AV48,IF(RIGHT($K48,2)=RIGHT(BR$39,2),SUM($AV48:AV48),0)+IF(RIGHT(BR$39,2)>RIGHT($K48,2),AV48,0)) -> 0 | BS48: =+IF($K48="Ongoing",AW48,IF(RIGHT($K48,2)=RIGHT(BS$39,2),SUM($AV48:AW48),0)+IF(RIGHT(BS$39,2)>RIGHT($K48,2),AW48,0)) -> 0 | BT48: =+IF($K48="Ongoing",AX48,IF(RIGHT($K48,2)=RIGHT(BT$39,2),SUM($AV48:AX48),0)+IF(RIGHT(BT$39,2)>RIGHT($K48,2),AX48,0)) -> 0 | BU48: =+IF($K48="Ongoing",AY48,IF(RIGHT($K48,2)=RIGHT(BU$39,2),SUM($AV48:AY48),0)+IF(RIGHT(BU$39,2)>RIGHT($K48,2),AY48,0)) -> 0 | BV48: =+IF($K48="Ongoing",AZ48,IF(RIGHT($K48,2)=RIGHT(BV$39,2),SUM($AV48:AZ48),0)+IF(RIGHT(BV$39,2)>RIGHT($K48,2),AZ48,0)) -> 0 | BW48: =+IF($K48="Ongoing",BA48,IF(RIGHT($K48,2)=RIGHT(BW$39,2),SUM($AV48:BA48),0)+IF(RIGHT(BW$39,2)>RIGHT($K48,2),BA48,0)) -> 0 | BX48: =+IF($K48="Ongoing",BB48,IF(RIGHT($K48,2)=RIGHT(BX$39,2),SUM($AV48:BB48),0)+IF(RIGHT(BX$39,2)>RIGHT($K48,2),BB48,0)) -> 0 | BY48: =+IF($K48="Ongoing",BC48,IF(RIGHT($K48,2)=RIGHT(BY$39,2),SUM($AV48:BC48),0)+IF(RIGHT(BY$39,2)>RIGHT($K48,2),BC48,0)) -> 3.386 | BZ48: =+IF($K48="Ongoing",BD48,IF(RIGHT($K48,2)=RIGHT(BZ$39,2),SUM($AV48:BD48),0)+IF(RIGHT(BZ$39,2)>RIGHT($K48,2),BD48,0)) -> 0 | CA48: =+IF($K48="Ongoing",BE48,IF(RIGHT($K48,2)=RIGHT(CA$39,2),SUM($AV48:BE48),0)+IF(RIGHT(CA$39,2)>RIGHT($K48,2),BE48,0)) -> 0 | CC48: =+O48*KeyAssumptionsPriceControl_FO!X$15 -> 0 | CD48: =+P48*KeyAssumptionsPriceControl_FO!Y$15 -> 0 | CE48: =+Q48*KeyAssumptionsPriceControl_FO!Z$15 -> 0 | CF48: =+R48*KeyAssumptionsPriceControl_FO!AA$15 -> 0 | CG48: =+S48*KeyAssumptionsPriceControl_FO!AB$15 -> 0 | CH48: =+T48*KeyAssumptionsPriceControl_FO!AC$15 -> 0.03880974204 | CI48: =+U48*KeyAssumptionsPriceControl_FO!AD$15 -> 0.5558331254 | CJ48: =+V48*KeyAssumptionsPriceControl_FO!AE$15 -> 3.452319244 | CK48: =+W48*KeyAssumptionsPriceControl_FO!AF$15 -> 0 | CL48: =+X48*KeyAssumptionsPriceControl_FO!AG$15 -> 0 | CN48: 0 | CO48: 0 | CP48: 0 | CQ48: 0 | CR48: 0 | CS48: 0.0006468290339 | CT48: 0.01055754349 | CU48: 0.07736008299 | CV48: 0.1348987371 | CW48: 0.1348987371
C49: Region Wide ICT Infrastructure | E49: Water | F49: Improvements / Compliance | G49: Corporate | H49: Top 10 Major Projects | J49: Straight line | K49: 2025-26 | L49: 10 | M49: 10 | O49: 0.3 | P49: 0.3 | Q49: 0.3 | R49: 0.3 | S49: 0.3 | T49: 0.3 | U49: 0.536 | V49: 0.3 | W49: 0.3 | X49: 0.3 | AV49: 0.3 | AW49: 0.3 | AX49: 0.3 | AY49: 0.3 | AZ49: 0.3 | BA49: 0.3 | BB49: 0.536 | BC49: 0.3 | BD49: 0.3 | BE49: 0.3 | BG49: 0 | BH49: 0 | BI49: 0 | BJ49: 0 | BK49: 0 | BL49: 0 | BM49: 0 | BN49: 0.1318 | BO49: 0.2786 | BP49: 0.3086 | BR49: =+IF($K49="Ongoing",AV49,IF(RIGHT($K49,2)=RIGHT(BR$39,2),SUM($AV49:AV49),0)+IF(RIGHT(BR$39,2)>RIGHT($K49,2),AV49,0)) -> 0 | BS49: =+IF($K49="Ongoing",AW49,IF(RIGHT($K49,2)=RIGHT(BS$39,2),SUM($AV49:AW49),0)+IF(RIGHT(BS$39,2)>RIGHT($K49,2),AW49,0)) -> 0 | BT49: =+IF($K49="Ongoing",AX49,IF(RIGHT($K49,2)=RIGHT(BT$39,2),SUM($AV49:AX49),0)+IF(RIGHT(BT$39,2)>RIGHT($K49,2),AX49,0)) -> 0 | BU49: =+IF($K49="Ongoing",AY49,IF(RIGHT($K49,2)=RIGHT(BU$39,2),SUM($AV49:AY49),0)+IF(RIGHT(BU$39,2)>RIGHT($K49,2),AY49,0)) -> 0 | BV49: =+IF($K49="Ongoing",AZ49,IF(RIGHT($K49,2)=RIGHT(BV$39,2),SUM($AV49:AZ49),0)+IF(RIGHT(BV$39,2)>RIGHT($K49,2),AZ49,0)) -> 0 | BW49: =+IF($K49="Ongoing",BA49,IF(RIGHT($K49,2)=RIGHT(BW$39,2),SUM($AV49:BA49),0)+IF(RIGHT(BW$39,2)>RIGHT($K49,2),BA49,0)) -> 0 | BX49: =+IF($K49="Ongoing",BB49,IF(RIGHT($K49,2)=RIGHT(BX$39,2),SUM($AV49:BB49),0)+IF(RIGHT(BX$39,2)>RIGHT($K49,2),BB49,0)) -> 0 | BY49: =+IF($K49="Ongoing",BC49,IF(RIGHT($K49,2)=RIGHT(BY$39,2),SUM($AV49:BC49),0)+IF(RIGHT(BY$39,2)>RIGHT($K49,2),BC49,0)) -> 2.636 | BZ49: =+IF($K49="Ongoing",BD49,IF(RIGHT($K49,2)=RIGHT(BZ$39,2),SUM($AV49:BD49),0)+IF(RIGHT(BZ$39,2)>RIGHT($K49,2),BD49,0)) -> 0.3 | CA49: =+IF($K49="Ongoing",BE49,IF(RIGHT($K49,2)=RIGHT(CA$39,2),SUM($AV49:BE49),0)+IF(RIGHT(CA$39,2)>RIGHT($K49,2),BE49,0)) -> 0.3 | CC49: =+O49*KeyAssumptionsPriceControl_FO!X$15 -> 0.3069 | CD49: =+P49*KeyAssumptionsPriceControl_FO!Y$15 -> 0.3139587 | CE49: =+Q49*KeyAssumptionsPriceControl_FO!Z$15 -> 0.3211797501 | CF49: =+R49*KeyAssumptionsPriceControl_FO!AA$15 -> 0.3285668844 | CG49: =+S49*KeyAssumptionsPriceControl_FO!AB$15 -> 0.3361239227 | CH49: =+T49*KeyAssumptionsPriceControl_FO!AC$15 -> 0.3438547729 | CI49: =+U49*KeyAssumptionsPriceControl_FO!AD$15 -> 0.6284839997 | CJ49: =+V49*KeyAssumptionsPriceControl_FO!AE$15 -> 0.3598539916 | CK49: =+W49*KeyAssumptionsPriceControl_FO!AF$15 -> 0.3681306335 | CL49: =+X49*KeyAssumptionsPriceControl_FO!AG$15 -> 0.376597638 | CN49: 0.015345 | CO49: 0.046387935 | CP49: 0.0781448575 | CQ49: 0.1106321892 | CR49: 0.1438667296 | CS49: 0.1778656644 | CT49: 0.226482603 | CU49: 0.2758995026 | CV49: 0.3122987338 | CW49: 0.3495351474
C50: Wangaratta Water Distribution | E50: Water | F50: Improvements / Compliance | G50: Pipelines/network | H50: Top 10 Major Projects | J50: Straight line | K50: 2025-26 | L50: 80 | M50: 80 | O50: 0 | P50: 0 | Q50: 0 | R50: 0 | S50: 0 | T50: 0.1286 | U50: 2.3148 | V50: 0.1286 | W50: 0 | X50: 0 | AV50: 0 | AW50: 0 | AX50: 0 | AY50: 0 | AZ50: 0 | BA50: 0.1286 | BB50: 2.3148 | BC50: 0.1286 | BD50: 0 | BE50: 0 | BG50: 0 | BH50: 0 | BI50: 0 | BJ50: 0 | BK50: 0 | BL50: 0 | BM50: 0 | BN50: 0.016075 | BO50: 0.03215 | BP50: 0.03215 | BR50: =+IF($K50="Ongoing",AV50,IF(RIGHT($K50,2)=RIGHT(BR$39,2),SUM($AV50:AV50),0)+IF(RIGHT(BR$39,2)>RIGHT($K50,2),AV50,0)) -> 0 | BS50: =+IF($K50="Ongoing",AW50,IF(RIGHT($K50,2)=RIGHT(BS$39,2),SUM($AV50:AW50),0)+IF(RIGHT(BS$39,2)>RIGHT($K50,2),AW50,0)) -> 0 | BT50: =+IF($K50="Ongoing",AX50,IF(RIGHT($K50,2)=RIGHT(BT$39,2),SUM($AV50:AX50),0)+IF(RIGHT(BT$39,2)>RIGHT($K50,2),AX50,0)) -> 0 | BU50: =+IF($K50="Ongoing",AY50,IF(RIGHT($K50,2)=RIGHT(BU$39,2),SUM($AV50:AY50),0)+IF(RIGHT(BU$39,2)>RIGHT($K50,2),AY50,0)) -> 0 | BV50: =+IF($K50="Ongoing",AZ50,IF(RIGHT($K50,2)=RIGHT(BV$39,2),SUM($AV50:AZ50),0)+IF(RIGHT(BV$39,2)>RIGHT($K50,2),AZ50,0)) -> 0 | BW50: =+IF($K50="Ongoing",BA50,IF(RIGHT($K50,2)=RIGHT(BW$39,2),SUM($AV50:BA50),0)+IF(RIGHT(BW$39,2)>RIGHT($K50,2),BA50,0)) -> 0 | BX50: =+IF($K50="Ongoing",BB50,IF(RIGHT($K50,2)=RIGHT(BX$39,2),SUM($AV50:BB50),0)+IF(RIGHT(BX$39,2)>RIGHT($K50,2),BB50,0)) -> 0 | BY50: =+IF($K50="Ongoing",BC50,IF(RIGHT($K50,2)=RIGHT(BY$39,2),SUM($AV50:BC50),0)+IF(RIGHT(BY$39,2)>RIGHT($K50,2),BC50,0)) -> 2.572 | BZ50: =+IF($K50="Ongoing",BD50,IF(RIGHT($K50,2)=RIGHT(BZ$39,2),SUM($AV50:BD50),0)+IF(RIGHT(BZ$39,2)>RIGHT($K50,2),BD50,0)) -> 0 | CA50: =+IF($K50="Ongoing",BE50,IF(RIGHT($K50,2)=RIGHT(CA$39,2),SUM($AV50:BE50),0)+IF(RIGHT(CA$39,2)>RIGHT($K50,2),BE50,0)) -> 0 | CC50: =+O50*KeyAssumptionsPriceControl_FO!X$15 -> 0 | CD50: =+P50*KeyAssumptionsPriceControl_FO!Y$15 -> 0 | CE50: =+Q50*KeyAssumptionsPriceControl_FO!Z$15 -> 0 | CF50: =+R50*KeyAssumptionsPriceControl_FO!AA$15 -> 0 | CG50: =+S50*KeyAssumptionsPriceControl_FO!AB$15 -> 0 | CH50: =+T50*KeyAssumptionsPriceControl_FO!AC$15 -> 0.1473990793 | CI50: =+U50*KeyAssumptionsPriceControl_FO!AD$15 -> 2.714206647 | CJ50: =+V50*KeyAssumptionsPriceControl_FO!AE$15 -> 0.1542574111 | CK50: =+W50*KeyAssumptionsPriceControl_FO!AF$15 -> 0 | CL50: =+X50*KeyAssumptionsPriceControl_FO!AG$15 -> 0 | CN50: 0 | CO50: 0 | CP50: 0 | CQ50: 0 | CR50: 0 | CS50: 0.0009212442458 | CT50: 0.01880628003 | CU50: 0.03673418039 | CV50: 0.03769828921 | CW50: 0.03769828921
C51: Benalla Water Distribution Upgrade | E51: Water | F51: Growth | G51: Pipelines/network | H51: Top 10 Major Projects | J51: Straight line | K51: 2020-21 | L51: 80 | M51: 80 | O51: 0 | P51: 0.12195 | Q51: 2.31705 | R51: 0 | S51: 0 | T51: 0 | U51: 0 | V51: 0 | W51: 0 | X51: 0 | AV51: 0 | AW51: 0.12195 | AX51: 2.31705 | AY51: 0 | AZ51: 0 | BA51: 0 | BB51: 0 | BC51: 0 | BD51: 0 | BE51: 0 | BG51: 0 | BH51: 0 | BI51: 0.01524375 | BJ51: 0.0304875 | BK51: 0.0304875 | BL51: 0.0304875 | BM51: 0.0304875 | BN51: 0.0304875 | BO51: 0.0304875 | BP51: 0.0304875 | BR51: =+IF($K51="Ongoing",AV51,IF(RIGHT($K51,2)=RIGHT(BR$39,2),SUM($AV51:AV51),0)+IF(RIGHT(BR$39,2)>RIGHT($K51,2),AV51,0)) -> 0 | BS51: =+IF($K51="Ongoing",AW51,IF(RIGHT($K51,2)=RIGHT(BS$39,2),SUM($AV51:AW51),0)+IF(RIGHT(BS$39,2)>RIGHT($K51,2),AW51,0)) -> 0 | BT51: =+IF($K51="Ongoing",AX51,IF(RIGHT($K51,2)=RIGHT(BT$39,2),SUM($AV51:AX51),0)+IF(RIGHT(BT$39,2)>RIGHT($K51,2),AX51,0)) -> 2.439 | BU51: =+IF($K51="Ongoing",AY51,IF(RIGHT($K51,2)=RIGHT(BU$39,2),SUM($AV51:AY51),0)+IF(RIGHT(BU$39,2)>RIGHT($K51,2),AY51,0)) -> 0 | BV51: =+IF($K51="Ongoing",AZ51,IF(RIGHT($K51,2)=RIGHT(BV$39,2),SUM($AV51:AZ51),0)+IF(RIGHT(BV$39,2)>RIGHT($K51,2),AZ51,0)) -> 0 | BW51: =+IF($K51="Ongoing",BA51,IF(RIGHT($K51,2)=RIGHT(BW$39,2),SUM($AV51:BA51),0)+IF(RIGHT(BW$39,2)>RIGHT($K51,2),BA51,0)) -> 0 | BX51: =+IF($K51="Ongoing",BB51,IF(RIGHT($K51,2)=RIGHT(BX$39,2),SUM($AV51:BB51),0)+IF(RIGHT(BX$39,2)>RIGHT($K51,2),BB51,0)) -> 0 | BY51: =+IF($K51="Ongoing",BC51,IF(RIGHT($K51,2)=RIGHT(BY$39,2),SUM($AV51:BC51),0)+IF(RIGHT(BY$39,2)>RIGHT($K51,2),BC51,0)) -> 0 | BZ51: =+IF($K51="Ongoing",BD51,IF(RIGHT($K51,2)=RIGHT(BZ$39,2),SUM($AV51:BD51),0)+IF(RIGHT(BZ$39,2)>RIGHT($K51,2),BD51,0)) -> 0 | CA51: =+IF($K51="Ongoing",BE51,IF(RIGHT($K51,2)=RIGHT(CA$39,2),SUM($AV51:BE51),0)+IF(RIGHT(CA$39,2)>RIGHT($K51,2),BE51,0)) -> 0 | CC51: =+O51*KeyAssumptionsPriceControl_FO!X$15 -> 0 | CD51: =+P51*KeyAssumptionsPriceControl_FO!Y$15 -> 0.1276242115 | CE51: =+Q51*KeyAssumptionsPriceControl_FO!Z$15 -> 2.4806318 | CF51: =+R51*KeyAssumptionsPriceControl_FO!AA$15 -> 0 | CG51: =+S51*KeyAssumptionsPriceControl_FO!AB$15 -> 0 | CH51: =+T51*KeyAssumptionsPriceControl_FO!AC$15 -> 0 | CI51: =+U51*KeyAssumptionsPriceControl_FO!AD$15 -> 0 | CJ51: =+V51*KeyAssumptionsPriceControl_FO!AE$15 -> 0 | CK51: =+W51*KeyAssumptionsPriceControl_FO!AF$15 -> 0 | CL51: =+X51*KeyAssumptionsPriceControl_FO!AG$15 -> 0 | CN51: 0 | CO51: 0.0007976513222 | CP51: 0.01709925139 | CQ51: 0.03260320014 | CR51: 0.03260320014 | CS51: 0.03260320014 | CT51: 0.03260320014 | CU51: 0.03260320014 | CV51: 0.03260320014 | CW51: 0.03260320014
C53: Region Wide Below Ground Asset Renewals Wastewater | E53: Sewerage | F53: Renewals | G53: Pipelines/network | H53: Capital Programs / Allocation | J53: Straight line | K53: Ongoing | L53: 80 | M53: 80 | O53: 0.904875 | P53: 1.279875 | Q53: 1.054875 | R53: 0.904875 | S53: 3.379875 | T53: 0.904875 | U53: 0.904875 | V53: 0.904875 | W53: 1.38 | X53: 1.38 | AV53: 0.904875 | AW53: 1.279875 | AX53: 1.054875 | AY53: 0.904875 | AZ53: 3.379875 | BA53: 0.904875 | BB53: 0.904875 | BC53: 0.904875 | BD53: 1.38 | BE53: 1.38 | BG53: 0.00565546875 | BH53: 0.01931015625 | BI53: 0.03390234375 | BJ53: 0.04615078125 | BK53: 0.07293046875 | BL53: 0.09971015625 | BM53: 0.1110210937 | BN53: 0.1223320313 | BO53: 0.1366125 | BP53: 0.1538625 | BR53: =+IF($K53="Ongoing",AV53,IF(RIGHT($K53,2)=RIGHT(BR$39,2),SUM($AV53:AV53),0)+IF(RIGHT(BR$39,2)>RIGHT($K53,2),AV53,0)) -> 0.904875 | BS53: =+IF($K53="Ongoing",AW53,IF(RIGHT($K53,2)=RIGHT(BS$39,2),SUM($AV53:AW53),0)+IF(RIGHT(BS$39,2)>RIGHT($K53,2),AW53,0)) -> 1.279875 | BT53: =+IF($K53="Ongoing",AX53,IF(RIGHT($K53,2)=RIGHT(BT$39,2),SUM($AV53:AX53),0)+IF(RIGHT(BT$39,2)>RIGHT($K53,2),AX53,0)) -> 1.054875 | BU53: =+IF($K53="Ongoing",AY53,IF(RIGHT($K53,2)=RIGHT(BU$39,2),SUM($AV53:AY53),0)+IF(RIGHT(BU$39,2)>RIGHT($K53,2),AY53,0)) -> 0.904875 | BV53: =+IF($K53="Ongoing",AZ53,IF(RIGHT($K53,2)=RIGHT(BV$39,2),SUM($AV53:AZ53),0)+IF(RIGHT(BV$39,2)>RIGHT($K53,2),AZ53,0)) -> 3.379875 | BW53: =+IF($K53="Ongoing",BA53,IF(RIGHT($K53,2)=RIGHT(BW$39,2),SUM($AV53:BA53),0)+IF(RIGHT(BW$39,2)>RIGHT($K53,2),BA53,0)) -> 0.904875 | BX53: =+IF($K53="Ongoing",BB53,IF(RIGHT($K53,2)=RIGHT(BX$39,2),SUM($AV53:BB53),0)+IF(RIGHT(BX$39,2)>RIGHT($K53,2),BB53,0)) -> 0.904875 | BY53: =+IF($K53="Ongoing",BC53,IF(RIGHT($K53,2)=RIGHT(BY$39,2),SUM($AV53:BC53),0)+IF(RIGHT(BY$39,2)>RIGHT($K53,2),BC53,0)) -> 0.904875 | BZ53: =+IF($K53="Ongoing",BD53,IF(RIGHT($K53,2)=RIGHT(BZ$39,2),SUM($AV53:BD53),0)+IF(RIGHT(BZ$39,2)>RIGHT($K53,2),BD53,0)) -> 1.38 | CA53: =+IF($K53="Ongoing",BE53,IF(RIGHT($K53,2)=RIGHT(CA$39,2),SUM($AV53:BE53),0)+IF(RIGHT(CA$39,2)>RIGHT($K53,2),BE53,0)) -> 1.38 | CC53: =+O53*KeyAssumptionsPriceControl_FO!X$15 -> 0.925687125 | CD53: =+P53*KeyAssumptionsPriceControl_FO!Y$15 -> 1.339426304 | CE53: =+Q53*KeyAssumptionsPriceControl_FO!Z$15 -> 1.129348296 | CF53: =+R53*KeyAssumptionsPriceControl_FO!AA$15 -> 0.9910398649 | CG53: =+S53*KeyAssumptionsPriceControl_FO!AB$15 -> 3.786856144 | CH53: =+T53*KeyAssumptionsPriceControl_FO!AC$15 -> 1.037151959 | CI53: =+U53*KeyAssumptionsPriceControl_FO!AD$15 -> 1.061006454 | CJ53: =+V53*KeyAssumptionsPriceControl_FO!AE$15 -> 1.085409602 | CK53: =+W53*KeyAssumptionsPriceControl_FO!AF$15 -> 1.693400914 | CL53: =+X53*KeyAssumptionsPriceControl_FO!AG$15 -> 1.732349135 | CN53: 0.005785544531 | CO53: 0.01994250346 | CP53: 0.03537234471 | CQ53: 0.04862477072 | CR53: 0.07848662078 | CS53: 0.1086366714 | CT53: 0.1217501615 | CU53: 0.1351652618 | CV53: 0.1525328276 | CW53: 0.1739437654
C54: Region Wide Below Ground Asset Renewals Water | E54: Water | F54: Renewals | G54: Pipelines/network | H54: Capital Programs / Allocation | J54: Straight line | K54: Ongoing | L54: 80 | M54: 80 | O54: 2.023403 | P54: 0.986875 | Q54: 1.786875 | R54: 1.750347 | S54: 0.886875 | T54: 0.886875 | U54: 0.886875 | V54: 0.886875 | W54: 1.365 | X54: 1.665 | AV54: 2.023403 | AW54: 0.986875 | AX54: 1.786875 | AY54: 1.750347 | AZ54: 0.886875 | BA54: 0.886875 | BB54: 0.886875 | BC54: 0.886875 | BD54: 1.365 | BE54: 1.665 | BG54: 0.01264626875 | BH54: 0.03146050625 | BI54: 0.04879644375 | BJ54: 0.07090408125 | BK54: 0.08738671875 | BL54: 0.09847265625 | BM54: 0.1095585937 | BN54: 0.1206445312 | BO54: 0.13471875 | BP54: 0.15365625 | BR54: =+IF($K54="Ongoing",AV54,IF(RIGHT($K54,2)=RIGHT(BR$39,2),SUM($AV54:AV54),0)+IF(RIGHT(BR$39,2)>RIGHT($K54,2),AV54,0)) -> 2.023403 | BS54: =+IF($K54="Ongoing",AW54,IF(RIGHT($K54,2)=RIGHT(BS$39,2),SUM($AV54:AW54),0)+IF(RIGHT(BS$39,2)>RIGHT($K54,2),AW54,0)) -> 0.986875 | BT54: =+IF($K54="Ongoing",AX54,IF(RIGHT($K54,2)=RIGHT(BT$39,2),SUM($AV54:AX54),0)+IF(RIGHT(BT$39,2)>RIGHT($K54,2),AX54,0)) -> 1.786875 | BU54: =+IF($K54="Ongoing",AY54,IF(RIGHT($K54,2)=RIGHT(BU$39,2),SUM($AV54:AY54),0)+IF(RIGHT(BU$39,2)>RIGHT($K54,2),AY54,0)) -> 1.750347 | BV54: =+IF($K54="Ongoing",AZ54,IF(RIGHT($K54,2)=RIGHT(BV$39,2),SUM($AV54:AZ54),0)+IF(RIGHT(BV$39,2)>RIGHT($K54,2),AZ54,0)) -> 0.886875 | BW54: =+IF($K54="Ongoing",BA54,IF(RIGHT($K54,2)=RIGHT(BW$39,2),SUM($AV54:BA54),0)+IF(RIGHT(BW$39,2)>RIGHT($K54,2),BA54,0)) -> 0.886875 | BX54: =+IF($K54="Ongoing",BB54,IF(RIGHT($K54,2)=RIGHT(BX$39,2),SUM($AV54:BB54),0)+IF(RIGHT(BX$39,2)>RIGHT($K54,2),BB54,0)) -> 0.886875 | BY54: =+IF($K54="Ongoing",BC54,IF(RIGHT($K54,2)=RIGHT(BY$39,2),SUM($AV54:BC54),0)+IF(RIGHT(BY$39,2)>RIGHT($K54,2),BC54,0)) -> 0.886875 | BZ54: =+IF($K54="Ongoing",BD54,IF(RIGHT($K54,2)=RIGHT(BZ$39,2),SUM($AV54:BD54),0)+IF(RIGHT(BZ$39,2)>RIGHT($K54,2),BD54,0)) -> 1.365 | CA54: =+IF($K54="Ongoing",BE54,IF(RIGHT($K54,2)=RIGHT(CA$39,2),SUM($AV54:BE54),0)+IF(RIGHT(CA$39,2)>RIGHT($K54,2),BE54,0)) -> 1.665 | CC54: =+O54*KeyAssumptionsPriceControl_FO!X$15 -> 2.069941269 | CD54: =+P54*KeyAssumptionsPriceControl_FO!Y$15 -> 1.032793307 | CE54: =+Q54*KeyAssumptionsPriceControl_FO!Z$15 -> 1.913026887 | CF54: =+R54*KeyAssumptionsPriceControl_FO!AA$15 -> 1.917020201 | CG54: =+S54*KeyAssumptionsPriceControl_FO!AB$15 -> 0.9936663465 | CH54: =+T54*KeyAssumptionsPriceControl_FO!AC$15 -> 1.016520672 | CI54: =+U54*KeyAssumptionsPriceControl_FO!AD$15 -> 1.039900648 | CJ54: =+V54*KeyAssumptionsPriceControl_FO!AE$15 -> 1.063818363 | CK54: =+W54*KeyAssumptionsPriceControl_FO!AF$15 -> 1.674994382 | CL54: =+X54*KeyAssumptionsPriceControl_FO!AG$15 -> 2.090116891 | CN54: 0.01293713293 | CO54: 0.03232922403 | CP54: 0.05074060024 | CQ54: 0.07467839454 | CR54: 0.09287018546 | CS54: 0.1054338543 | CT54: 0.1182864876 | CU54: 0.1314347314 | CV54: 0.1485523111 | CW54: 0.1720842565
C55: Region Wide Above Ground Asset Renewals Water | E55: Water | F55: Renewals | G55: Treatment | H55: Capital Programs / Allocation | J55: Straight line | K55: Ongoing | L55: 15 | M55: 15 | O55: 1.708875 | P55: 0.845875 | Q55: 0.138875 | R55: 1.367875 | S55: 1.935875 | T55: 1.194875 | U55: 1.188875 | V55: 0.947875 | W55: 1.265 | X55: 1.177 | AV55: 1.708875 | AW55: 0.845875 | AX55: 0.138875 | AY55: 1.367875 | AZ55: 1.935875 | BA55: 1.194875 | BB55: 1.188875 | BC55: 0.947875 | BD55: 1.265 | BE55: 1.177 | BG55: 0.0569625 | BH55: 0.1421208333 | BI55: 0.1749458333 | BJ55: 0.2251708333 | BK55: 0.3352958333 | BL55: 0.4396541667 | BM55: 0.5191125 | BN55: 0.5903375 | BO55: 0.6641 | BP55: 0.7455 | BR55: =+IF($K55="Ongoing",AV55,IF(RIGHT($K55,2)=RIGHT(BR$39,2),SUM($AV55:AV55),0)+IF(RIGHT(BR$39,2)>RIGHT($K55,2),AV55,0)) -> 1.708875 | BS55: =+IF($K55="Ongoing",AW55,IF(RIGHT($K55,2)=RIGHT(BS$39,2),SUM($AV55:AW55),0)+IF(RIGHT(BS$39,2)>RIGHT($K55,2),AW55,0)) -> 0.845875 | BT55: =+IF($K55="Ongoing",AX55,IF(RIGHT($K55,2)=RIGHT(BT$39,2),SUM($AV55:AX55),0)+IF(RIGHT(BT$39,2)>RIGHT($K55,2),AX55,0)) -> 0.138875 | BU55: =+IF($K55="Ongoing",AY55,IF(RIGHT($K55,2)=RIGHT(BU$39,2),SUM($AV55:AY55),0)+IF(RIGHT(BU$39,2)>RIGHT($K55,2),AY55,0)) -> 1.367875 | BV55: =+IF($K55="Ongoing",AZ55,IF(RIGHT($K55,2)=RIGHT(BV$39,2),SUM($AV55:AZ55),0)+IF(RIGHT(BV$39,2)>RIGHT($K55,2),AZ55,0)) -> 1.935875 | BW55: =+IF($K55="Ongoing",BA55,IF(RIGHT($K55,2)=RIGHT(BW$39,2),SUM($AV55:BA55),0)+IF(RIGHT(BW$39,2)>RIGHT($K55,2),BA55,0)) -> 1.194875 | BX55: =+IF($K55="Ongoing",BB55,IF(RIGHT($K55,2)=RIGHT(BX$39,2),SUM($AV55:BB55),0)+IF(RIGHT(BX$39,2)>RIGHT($K55,2),BB55,0)) -> 1.188875 | BY55: =+IF($K55="Ongoing",BC55,IF(RIGHT($K55,2)=RIGHT(BY$39,2),SUM($AV55:BC55),0)+IF(RIGHT(BY$39,2)>RIGHT($K55,2),BC55,0)) -> 0.947875 | BZ55: =+IF($K55="Ongoing",BD55,IF(RIGHT($K55,2)=RIGHT(BZ$39,2),SUM($AV55:BD55),0)+IF(RIGHT(BZ$39,2)>RIGHT($K55,2),BD55,0)) -> 1.265 | CA55: =+IF($K55="Ongoing",BE55,IF(RIGHT($K55,2)=RIGHT(CA$39,2),SUM($AV55:BE55),0)+IF(RIGHT(CA$39,2)>RIGHT($K55,2),BE55,0)) -> 1.177 | CC55: =+O55*KeyAssumptionsPriceControl_FO!X$15 -> 1.748179125 | CD55: =+P55*KeyAssumptionsPriceControl_FO!Y$15 -> 0.8852327179 | CE55: =+Q55*KeyAssumptionsPriceControl_FO!Z$15 -> 0.1486794593 | CF55: =+R55*KeyAssumptionsPriceControl_FO!AA$15 -> 1.49812809 | CG55: =+S55*KeyAssumptionsPriceControl_FO!AB$15 -> 2.168979663 | CH55: =+T55*KeyAssumptionsPriceControl_FO!AC$15 -> 1.369544906 | CI55: =+U55*KeyAssumptionsPriceControl_FO!AD$15 -> 1.39400917 | CJ55: =+V55*KeyAssumptionsPriceControl_FO!AE$15 -> 1.136988674 | CK55: =+W55*KeyAssumptionsPriceControl_FO!AF$15 -> 1.552284171 | CL55: =+X55*KeyAssumptionsPriceControl_FO!AG$15 -> 1.477518067 | CN55: 0.0582726375 | CO55: 0.1460530323 | CP55: 0.1805167715 | CQ55: 0.2354103565 | CR55: 0.3576472816 | CS55: 0.4755981005 | CT55: 0.5677165697 | CU55: 0.6520831645 | CV55: 0.7417255927 | CW55: 0.8427190006
C56: Region Wide Above Ground Asset Renewals Wastewater | E56: Sewerage | F56: Renewals | G56: Treatment | H56: Capital Programs / Allocation | J56: Straight line | K56: Ongoing | L56: 15 | M56: 15 | O56: 1.583875 | P56: 0.959875 | Q56: 0.508875 | R56: 0.865875 | S56: 1.145875 | T56: 1.116875 | U56: 0.793375 | V56: 0.757875 | W56: 1.804 | X56: 0.791 | AV56: 1.583875 | AW56: 0.959875 | AX56: 0.508875 | AY56: 0.865875 | AZ56: 1.145875 | BA56: 1.116875 | BB56: 0.793375 | BC56: 0.757875 | BD56: 1.804 | BE56: 0.791 | BG56: 0.05279583333 | BH56: 0.1375875 | BI56: 0.1865458333 | BJ56: 0.2323708333 | BK56: 0.2994291667 | BL56: 0.3748541667 | BM56: 0.4385291667 | BN56: 0.4902375 | BO56: 0.5756333333 | BP56: 0.6621333333 | BR56: =+IF($K56="Ongoing",AV56,IF(RIGHT($K56,2)=RIGHT(BR$39,2),SUM($AV56:AV56),0)+IF(RIGHT(BR$39,2)>RIGHT($K56,2),AV56,0)) -> 1.583875 | BS56: =+IF($K56="Ongoing",AW56,IF(RIGHT($K56,2)=RIGHT(BS$39,2),SUM($AV56:AW56),0)+IF(RIGHT(BS$39,2)>RIGHT($K56,2),AW56,0)) -> 0.959875 | BT56: =+IF($K56="Ongoing",AX56,IF(RIGHT($K56,2)=RIGHT(BT$39,2),SUM($AV56:AX56),0)+IF(RIGHT(BT$39,2)>RIGHT($K56,2),AX56,0)) -> 0.508875 | BU56: =+IF($K56="Ongoing",AY56,IF(RIGHT($K56,2)=RIGHT(BU$39,2),SUM($AV56:AY56),0)+IF(RIGHT(BU$39,2)>RIGHT($K56,2),AY56,0)) -> 0.865875 | BV56: =+IF($K56="Ongoing",AZ56,IF(RIGHT($K56,2)=RIGHT(BV$39,2),SUM($AV56:AZ56),0)+IF(RIGHT(BV$39,2)>RIGHT($K56,2),AZ56,0)) -> 1.145875 | BW56: =+IF($K56="Ongoing",BA56,IF(RIGHT($K56,2)=RIGHT(BW$39,2),SUM($AV56:BA56),0)+IF(RIGHT(BW$39,2)>RIGHT($K56,2),BA56,0)) -> 1.116875 | BX56: =+IF($K56="Ongoing",BB56,IF(RIGHT($K56,2)=RIGHT(BX$39,2),SUM($AV56:BB56),0)+IF(RIGHT(BX$39,2)>RIGHT($K56,2),BB56,0)) -> 0.793375 | BY56: =+IF($K56="Ongoing",BC56,IF(RIGHT($K56,2)=RIGHT(BY$39,2),SUM($AV56:BC56),0)+IF(RIGHT(BY$39,2)>RIGHT($K56,2),BC56,0)) -> 0.757875 | BZ56: =+IF($K56="Ongoing",BD56,IF(RIGHT($K56,2)=RIGHT(BZ$39,2),SUM($AV56:BD56),0)+IF(RIGHT(BZ$39,2)>RIGHT($K56,2),BD56,0)) -> 1.804 | CA56: =+IF($K56="Ongoing",BE56,IF(RIGHT($K56,2)=RIGHT(CA$39,2),SUM($AV56:BE56),0)+IF(RIGHT(CA$39,2)>RIGHT($K56,2),BE56,0)) -> 0.791 | CC56: =+O56*KeyAssumptionsPriceControl_FO!X$15 -> 1.620304125 | CD56: =+P56*KeyAssumptionsPriceControl_FO!Y$15 -> 1.004537024 | CE56: =+Q56*KeyAssumptionsPriceControl_FO!Z$15 -> 0.5448011511 | CF56: =+R56*KeyAssumptionsPriceControl_FO!AA$15 -> 0.94832617 | CG56: =+S56*KeyAssumptionsPriceControl_FO!AB$15 -> 1.283853333 | CH56: =+T56*KeyAssumptionsPriceControl_FO!AC$15 -> 1.280142665 | CI56: =+U56*KeyAssumptionsPriceControl_FO!AD$15 -> 0.9302677114 | CJ56: =+V56*KeyAssumptionsPriceControl_FO!AE$15 -> 0.9090811464 | CK56: =+W56*KeyAssumptionsPriceControl_FO!AF$15 -> 2.213692209 | CL56: =+X56*KeyAssumptionsPriceControl_FO!AG$15 -> 0.9929624389 | CN56: 0.0540101375 | CO56: 0.1415048425 | CP56: 0.1931494483 | CQ56: 0.242920359 | CR56: 0.3173263424 | CS56: 0.4027928757 | CT56: 0.4764732216 | CU56: 0.5377848502 | CV56: 0.6418772954 | CW56: 0.7487657836
C57: Region Wide Fleet | E57: Water | F57: Renewals | G57: Corporate | H57: Capital Programs / Allocation | J57: Straight line | K57: Ongoing | L57: 5 | M57: 5 | O57: 0.965 | P57: 1.05 | Q57: 1.005 | R57: 0.985 | S57: 1.001 | T57: 1.2 | U57: 0.95 | V57: 1.08 | W57: 1.03 | X57: 0.965 | AV57: 0.965 | AW57: 1.05 | AX57: 1.005 | AY57: 0.985 | AZ57: 1.001 | BA57: 1.2 | BB57: 0.95 | BC57: 1.08 | BD57: 1.03 | BE57: 0.965 | BG57: 0.0965 | BH57: 0.298 | BI57: 0.5035 | BJ57: 0.7025 | BK57: 0.9011 | BL57: 1.0247 | BM57: 1.0382 | BN57: 1.0357 | BO57: 1.0477 | BP57: 1.0486 | BR57: =+IF($K57="Ongoing",AV57,IF(RIGHT($K57,2)=RIGHT(BR$39,2),SUM($AV57:AV57),0)+IF(RIGHT(BR$39,2)>RIGHT($K57,2),AV57,0)) -> 0.965 | BS57: =+IF($K57="Ongoing",AW57,IF(RIGHT($K57,2)=RIGHT(BS$39,2),SUM($AV57:AW57),0)+IF(RIGHT(BS$39,2)>RIGHT($K57,2),AW57,0)) -> 1.05 | BT57: =+IF($K57="Ongoing",AX57,IF(RIGHT($K57,2)=RIGHT(BT$39,2),SUM($AV57:AX57),0)+IF(RIGHT(BT$39,2)>RIGHT($K57,2),AX57,0)) -> 1.005 | BU57: =+IF($K57="Ongoing",AY57,IF(RIGHT($K57,2)=RIGHT(BU$39,2),SUM($AV57:AY57),0)+IF(RIGHT(BU$39,2)>RIGHT($K57,2),AY57,0)) -> 0.985 | BV57: =+IF($K57="Ongoing",AZ57,IF(RIGHT($K57,2)=RIGHT(BV$39,2),SUM($AV57:AZ57),0)+IF(RIGHT(BV$39,2)>RIGHT($K57,2),AZ57,0)) -> 1.001 | BW57: =+IF($K57="Ongoing",BA57,IF(RIGHT($K57,2)=RIGHT(BW$39,2),SUM($AV57:BA57),0)+IF(RIGHT(BW$39,2)>RIGHT($K57,2),BA57,0)) -> 1.2 | BX57: =+IF($K57="Ongoing",BB57,IF(RIGHT($K57,2)=RIGHT(BX$39,2),SUM($AV57:BB57),0)+IF(RIGHT(BX$39,2)>RIGHT($K57,2),BB57,0)) -> 0.95 | BY57: =+IF($K57="Ongoing",BC57,IF(RIGHT($K57,2)=RIGHT(BY$39,2),SUM($AV57:BC57),0)+IF(RIGHT(BY$39,2)>RIGHT($K57,2),BC57,0)) -> 1.08 | BZ57: =+IF($K57="Ongoing",BD57,IF(RIGHT($K57,2)=RIGHT(BZ$39,2),SUM($AV57:BD57),0)+IF(RIGHT(BZ$39,2)>RIGHT($K57,2),BD57,0)) -> 1.03 | CA57: =+IF($K57="Ongoing",BE57,IF(RIGHT($K57,2)=RIGHT(CA$39,2),SUM($AV57:BE57),0)+IF(RIGHT(CA$39,2)>RIGHT($K57,2),BE57,0)) -> 0.965 | CC57: =+O57*KeyAssumptionsPriceControl_FO!X$15 -> 0.987195 | CD57: =+P57*KeyAssumptionsPriceControl_FO!Y$15 -> 1.09885545 | CE57: =+Q57*KeyAssumptionsPriceControl_FO!Z$15 -> 1.075952163 | CF57: =+R57*KeyAssumptionsPriceControl_FO!AA$15 -> 1.078794604 | CG57: =+S57*KeyAssumptionsPriceControl_FO!AB$15 -> 1.121533489 | CH57: =+T57*KeyAssumptionsPriceControl_FO!AC$15 -> 1.375419092 | CI57: =+U57*KeyAssumptionsPriceControl_FO!AD$15 -> 1.113917537 | CJ57: =+V57*KeyAssumptionsPriceControl_FO!AE$15 -> 1.29547437 | CK57: =+W57*KeyAssumptionsPriceControl_FO!AF$15 -> 1.263915175 | CL57: =+X57*KeyAssumptionsPriceControl_FO!AG$15 -> 1.211389069 | CN57: 0.0987195 | CO57: 0.307324545 | CP57: 0.5248053063 | CQ57: 0.7402799829 | CR57: 0.9603127922 | CS57: 1.11128855 | CT57: 1.151617168 | CU57: 1.175075597 | CV57: 1.215539875 | CW57: 1.24303749
C58: Region Wide Emissions Reduction | E58: Sewerage | F58: Improvements / Compliance | G58: Corporate | H58: Capital Programs / Allocation | J58: Straight line | K58: Ongoing | L58: 20 | M58: 20 | O58: 1 | P58: 1 | Q58: 0.5 | R58: 0.5 | S58: 0.5 | T58: 0.5 | U58: 0.5 | V58: 0.5 | W58: 0 | X58: 0 | AV58: 1 | AW58: 1 | AX58: 0.5 | AY58: 0.5 | AZ58: 0.5 | BA58: 0.5 | BB58: 0.5 | BC58: 0.5 | BD58: 0 | BE58: 0 | BG58: 0.025 | BH58: 0.075 | BI58: 0.1125 | BJ58: 0.1375 | BK58: 0.1625 | BL58: 0.1875 | BM58: 0.2125 | BN58: 0.2375 | BO58: 0.25 | BP58: 0.25 | BR58: =+IF($K58="Ongoing",AV58,IF(RIGHT($K58,2)=RIGHT(BR$39,2),SUM($AV58:AV58),0)+IF(RIGHT(BR$39,2)>RIGHT($K58,2),AV58,0)) -> 1 | BS58: =+IF($K58="Ongoing",AW58,IF(RIGHT($K58,2)=RIGHT(BS$39,2),SUM($AV58:AW58),0)+IF(RIGHT(BS$39,2)>RIGHT($K58,2),AW58,0)) -> 1 | BT58: =+IF($K58="Ongoing",AX58,IF(RIGHT($K58,2)=RIGHT(BT$39,2),SUM($AV58:AX58),0)+IF(RIGHT(BT$39,2)>RIGHT($K58,2),AX58,0)) -> 0.5 | BU58: =+IF($K58="Ongoing",AY58,IF(RIGHT($K58,2)=RIGHT(BU$39,2),SUM($AV58:AY58),0)+IF(RIGHT(BU$39,2)>RIGHT($K58,2),AY58,0)) -> 0.5 | BV58: =+IF($K58="Ongoing",AZ58,IF(RIGHT($K58,2)=RIGHT(BV$39,2),SUM($AV58:AZ58),0)+IF(RIGHT(BV$39,2)>RIGHT($K58,2),AZ58,0)) -> 0.5 | BW58: =+IF($K58="Ongoing",BA58,IF(RIGHT($K58,2)=RIGHT(BW$39,2),SUM($AV58:BA58),0)+IF(RIGHT(BW$39,2)>RIGHT($K58,2),BA58,0)) -> 0.5 | BX58: =+IF($K58="Ongoing",BB58,IF(RIGHT($K58,2)=RIGHT(BX$39,2),SUM($AV58:BB58),0)+IF(RIGHT(BX$39,2)>RIGHT($K58,2),BB58,0)) -> 0.5 | BY58: =+IF($K58="Ongoing",BC58,IF(RIGHT($K58,2)=RIGHT(BY$39,2),SUM($AV58:BC58),0)+IF(RIGHT(BY$39,2)>RIGHT($K58,2),BC58,0)) -> 0.5 | BZ58: =+IF($K58="Ongoing",BD58,IF(RIGHT($K58,2)=RIGHT(BZ$39,2),SUM($AV58:BD58),0)+IF(RIGHT(BZ$39,2)>RIGHT($K58,2),BD58,0)) -> 0 | CA58: =+IF($K58="Ongoing",BE58,IF(RIGHT($K58,2)=RIGHT(CA$39,2),SUM($AV58:BE58),0)+IF(RIGHT(CA$39,2)>RIGHT($K58,2),BE58,0)) -> 0 | CC58: =+O58*KeyAssumptionsPriceControl_FO!X$15 -> 1.023 | CD58: =+P58*KeyAssumptionsPriceControl_FO!Y$15 -> 1.046529 | CE58: =+Q58*KeyAssumptionsPriceControl_FO!Z$15 -> 0.5352995835 | CF58: =+R58*KeyAssumptionsPriceControl_FO!AA$15 -> 0.5476114739 | CG58: =+S58*KeyAssumptionsPriceControl_FO!AB$15 -> 0.5602065378 | CH58: =+T58*KeyAssumptionsPriceControl_FO!AC$15 -> 0.5730912882 | CI58: =+U58*KeyAssumptionsPriceControl_FO!AD$15 -> 0.5862723878 | CJ58: =+V58*KeyAssumptionsPriceControl_FO!AE$15 -> 0.5997566527 | CK58: =+W58*KeyAssumptionsPriceControl_FO!AF$15 -> 0 | CL58: =+X58*KeyAssumptionsPriceControl_FO!AG$15 -> 0 | CN58: 0.025575 | CO58: 0.077313225 | CP58: 0.1168589396 | CQ58: 0.143931716 | CR58: 0.1716271663 | CS58: 0.199959612 | CT58: 0.2289437039 | CU58: 0.2585944299 | CV58: 0.2735883462 | CW58: 0.2735883462
C59: Region Wide Scada System Upgrades | E59: Water | F59: Improvements / Compliance | G59: Corporate | H59: Capital Programs / Allocation | J59: Straight line | K59: Ongoing | L59: 10 | M59: 10 | O59: 0.375 | P59: 0.375 | Q59: 0.375 | R59: 0.375 | S59: 0.375 | T59: 0.375 | U59: 0.375 | V59: 0.375 | W59: 0 | X59: 0 | AV59: 0.375 | AW59: 0.375 | AX59: 0.375 | AY59: 0.375 | AZ59: 0.375 | BA59: 0.375 | BB59: 0.375 | BC59: 0.375 | BD59: 0 | BE59: 0 | BG59: 0.01875 | BH59: 0.05625 | BI59: 0.09375 | BJ59: 0.13125 | BK59: 0.16875 | BL59: 0.20625 | BM59: 0.24375 | BN59: 0.28125 | BO59: 0.3 | BP59: 0.3 | BR59: =+IF($K59="Ongoing",AV59,IF(RIGHT($K59,2)=RIGHT(BR$39,2),SUM($AV59:AV59),0)+IF(RIGHT(BR$39,2)>RIGHT($K59,2),AV59,0)) -> 0.375 | BS59: =+IF($K59="Ongoing",AW59,IF(RIGHT($K59,2)=RIGHT(BS$39,2),SUM($AV59:AW59),0)+IF(RIGHT(BS$39,2)>RIGHT($K59,2),AW59,0)) -> 0.375 | BT59: =+IF($K59="Ongoing",AX59,IF(RIGHT($K59,2)=RIGHT(BT$39,2),SUM($AV59:AX59),0)+IF(RIGHT(BT$39,2)>RIGHT($K59,2),AX59,0)) -> 0.375 | BU59: =+IF($K59="Ongoing",AY59,IF(RIGHT($K59,2)=RIGHT(BU$39,2),SUM($AV59:AY59),0)+IF(RIGHT(BU$39,2)>RIGHT($K59,2),AY59,0)) -> 0.375 | BV59: =+IF($K59="Ongoing",AZ59,IF(RIGHT($K59,2)=RIGHT(BV$39,2),SUM($AV59:AZ59),0)+IF(RIGHT(BV$39,2)>RIGHT($K59,2),AZ59,0)) -> 0.375 | BW59: =+IF($K59="Ongoing",BA59,IF(RIGHT($K59,2)=RIGHT(BW$39,2),SUM($AV59:BA59),0)+IF(RIGHT(BW$39,2)>RIGHT($K59,2),BA59,0)) -> 0.375 | BX59: =+IF($K59="Ongoing",BB59,IF(RIGHT($K59,2)=RIGHT(BX$39,2),SUM($AV59:BB59),0)+IF(RIGHT(BX$39,2)>RIGHT($K59,2),BB59,0)) -> 0.375 | BY59: =+IF($K59="Ongoing",BC59,IF(RIGHT($K59,2)=RIGHT(BY$39,2),SUM($AV59:BC59),0)+IF(RIGHT(BY$39,2)>RIGHT($K59,2),BC59,0)) -> 0.375 | BZ59: =+IF($K59="Ongoing",BD59,IF(RIGHT($K59,2)=RIGHT(BZ$39,2),SUM($AV59:BD59),0)+IF(RIGHT(BZ$39,2)>RIGHT($K59,2),BD59,0)) -> 0 | CA59: =+IF($K59="Ongoing",BE59,IF(RIGHT($K59,2)=RIGHT(CA$39,2),SUM($AV59:BE59),0)+IF(RIGHT(CA$39,2)>RIGHT($K59,2),BE59,0)) -> 0 | CC59: =+O59*KeyAssumptionsPriceControl_FO!X$15 -> 0.383625 | CD59: =+P59*KeyAssumptionsPriceControl_FO!Y$15 -> 0.392448375 | CE59: =+Q59*KeyAssumptionsPriceControl_FO!Z$15 -> 0.4014746876 | CF59: =+R59*KeyAssumptionsPriceControl_FO!AA$15 -> 0.4107086054 | CG59: =+S59*KeyAssumptionsPriceControl_FO!AB$15 -> 0.4201549034 | CH59: =+T59*KeyAssumptionsPriceControl_FO!AC$15 -> 0.4298184661 | CI59: =+U59*KeyAssumptionsPriceControl_FO!AD$15 -> 0.4397042909 | CJ59: =+V59*KeyAssumptionsPriceControl_FO!AE$15 -> 0.4498174896 | CK59: =+W59*KeyAssumptionsPriceControl_FO!AF$15 -> 0 | CL59: =+X59*KeyAssumptionsPriceControl_FO!AG$15 -> 0 | CN59: 0.01918125 | CO59: 0.05798491875 | CP59: 0.09768107188 | CQ59: 0.1382902365 | CR59: 0.179833412 | CS59: 0.2223320805 | CT59: 0.2658082183 | CU59: 0.3102843073 | CV59: 0.3327751818 | CW59: 0.3327751818
C60: Region Wide Bulk Water Purchases | E60: Water | F60: Growth | G60: Corporate | H60: Capital Programs / Allocation | J60: Straight line | K60: Ongoing | L60: 0 | M60: 0 | O60: 0.32 | P60: 0.32 | Q60: 0.32 | R60: 0.32 | S60: 0.32 | T60: 0.32 | U60: 0.32 | V60: 0.32 | W60: 0.32 | X60: 0.32 | AV60: 0.32 | AW60: 0.32 | AX60: 0.32 | AY60: 0.32 | AZ60: 0.32 | BA60: 0.32 | BB60: 0.32 | BC60: 0.32 | BD60: 0.32 | BE60: 0.32 | BG60: 0 | BH60: 0 | BI60: 0 | BJ60: 0 | BK60: 0 | BL60: 0 | BM60: 0 | BN60: 0 | BO60: 0 | BP60: 0 | BR60: =+IF($K60="Ongoing",AV60,IF(RIGHT($K60,2)=RIGHT(BR$39,2),SUM($AV60:AV60),0)+IF(RIGHT(BR$39,2)>RIGHT($K60,2),AV60,0)) -> 0.32 | BS60: =+IF($K60="Ongoing",AW60,IF(RIGHT($K60,2)=RIGHT(BS$39,2),SUM($AV60:AW60),0)+IF(RIGHT(BS$39,2)>RIGHT($K60,2),AW60,0)) -> 0.32 | BT60: =+IF($K60="Ongoing",AX60,IF(RIGHT($K60,2)=RIGHT(BT$39,2),SUM($AV60:AX60),0)+IF(RIGHT(BT$39,2)>RIGHT($K60,2),AX60,0)) -> 0.32 | BU60: =+IF($K60="Ongoing",AY60,IF(RIGHT($K60,2)=RIGHT(BU$39,2),SUM($AV60:AY60),0)+IF(RIGHT(BU$39,2)>RIGHT($K60,2),AY60,0)) -> 0.32 | BV60: =+IF($K60="Ongoing",AZ60,IF(RIGHT($K60,2)=RIGHT(BV$39,2),SUM($AV60:AZ60),0)+IF(RIGHT(BV$39,2)>RIGHT($K60,2),AZ60,0)) -> 0.32 | BW60: =+IF($K60="Ongoing",BA60,IF(RIGHT($K60,2)=RIGHT(BW$39,2),SUM($AV60:BA60),0)+IF(RIGHT(BW$39,2)>RIGHT($K60,2),BA60,0)) -> 0.32 | BX60: =+IF($K60="Ongoing",BB60,IF(RIGHT($K60,2)=RIGHT(BX$39,2),SUM($AV60:BB60),0)+IF(RIGHT(BX$39,2)>RIGHT($K60,2),BB60,0)) -> 0.32 | BY60: =+IF($K60="Ongoing",BC60,IF(RIGHT($K60,2)=RIGHT(BY$39,2),SUM($AV60:BC60),0)+IF(RIGHT(BY$39,2)>RIGHT($K60,2),BC60,0)) -> 0.32 | BZ60: =+IF($K60="Ongoing",BD60,IF(RIGHT($K60,2)=RIGHT(BZ$39,2),SUM($AV60:BD60),0)+IF(RIGHT(BZ$39,2)>RIGHT($K60,2),BD60,0)) -> 0.32 | CA60: =+IF($K60="Ongoing",BE60,IF(RIGHT($K60,2)=RIGHT(CA$39,2),SUM($AV60:BE60),0)+IF(RIGHT(CA$39,2)>RIGHT($K60,2),BE60,0)) -> 0.32 | CC60: =+O60*KeyAssumptionsPriceControl_FO!X$15 -> 0.32736 | CD60: =+P60*KeyAssumptionsPriceControl_FO!Y$15 -> 0.33488928 | CE60: =+Q60*KeyAssumptionsPriceControl_FO!Z$15 -> 0.3425917334 | CF60: =+R60*KeyAssumptionsPriceControl_FO!AA$15 -> 0.3504713433 | CG60: =+S60*KeyAssumptionsPriceControl_FO!AB$15 -> 0.3585321842 | CH60: =+T60*KeyAssumptionsPriceControl_FO!AC$15 -> 0.3667784244 | CI60: =+U60*KeyAssumptionsPriceControl_FO!AD$15 -> 0.3752143282 | CJ60: =+V60*KeyAssumptionsPriceControl_FO!AE$15 -> 0.3838442578 | CK60: =+W60*KeyAssumptionsPriceControl_FO!AF$15 -> 0.3926726757 | CL60: =+X60*KeyAssumptionsPriceControl_FO!AG$15 -> 0.4017041472 | CN60: 0 | CO60: 0 | CP60: 0 | CQ60: 0 | CR60: 0 | CS60: 0 | CT60: 0 | CU60: 0 | CV60: 0 | CW60: 0
C61: Region Wide Secondary Level Climate Change Adaption | E61: Sewerage | F61: Improvements / Compliance | G61: Corporate | H61: Capital Programs / Allocation | J61: Straight line | K61: Ongoing | L61: 20 | M61: 20 | O61: 0.2725 | P61: 0.2725 | Q61: 0.2725 | R61: 0.2725 | S61: 0.2725 | T61: 0.2725 | U61: 0.2725 | V61: 0.2725 | W61: 0 | X61: 0 | AV61: 0.2725 | AW61: 0.2725 | AX61: 0.2725 | AY61: 0.2725 | AZ61: 0.2725 | BA61: 0.2725 | BB61: 0.2725 | BC61: 0.2725 | BD61: 0 | BE61: 0 | BG61: 0.0068125 | BH61: 0.0204375 | BI61: 0.0340625 | BJ61: 0.0476875 | BK61: 0.0613125 | BL61: 0.0749375 | BM61: 0.0885625 | BN61: 0.1021875 | BO61: 0.109 | BP61: 0.109 | BR61: =+IF($K61="Ongoing",AV61,IF(RIGHT($K61,2)=RIGHT(BR$39,2),SUM($AV61:AV61),0)+IF(RIGHT(BR$39,2)>RIGHT($K61,2),AV61,0)) -> 0.2725 | BS61: =+IF($K61="Ongoing",AW61,IF(RIGHT($K61,2)=RIGHT(BS$39,2),SUM($AV61:AW61),0)+IF(RIGHT(BS$39,2)>RIGHT($K61,2),AW61,0)) -> 0.2725 | BT61: =+IF($K61="Ongoing",AX61,IF(RIGHT($K61,2)=RIGHT(BT$39,2),SUM($AV61:AX61),0)+IF(RIGHT(BT$39,2)>RIGHT($K61,2),AX61,0)) -> 0.2725 | BU61: =+IF($K61="Ongoing",AY61,IF(RIGHT($K61,2)=RIGHT(BU$39,2),SUM($AV61:AY61),0)+IF(RIGHT(BU$39,2)>RIGHT($K61,2),AY61,0)) -> 0.2725 | BV61: =+IF($K61="Ongoing",AZ61,IF(RIGHT($K61,2)=RIGHT(BV$39,2),SUM($AV61:AZ61),0)+IF(RIGHT(BV$39,2)>RIGHT($K61,2),AZ61,0)) -> 0.2725 | BW61: =+IF($K61="Ongoing",BA61,IF(RIGHT($K61,2)=RIGHT(BW$39,2),SUM($AV61:BA61),0)+IF(RIGHT(BW$39,2)>RIGHT($K61,2),BA61,0)) -> 0.2725 | BX61: =+IF($K61="Ongoing",BB61,IF(RIGHT($K61,2)=RIGHT(BX$39,2),SUM($AV61:BB61),0)+IF(RIGHT(BX$39,2)>RIGHT($K61,2),BB61,0)) -> 0.2725 | BY61: =+IF($K61="Ongoing",BC61,IF(RIGHT($K61,2)=RIGHT(BY$39,2),SUM($AV61:BC61),0)+IF(RIGHT(BY$39,2)>RIGHT($K61,2),BC61,0)) -> 0.2725 | BZ61: =+IF($K61="Ongoing",BD61,IF(RIGHT($K61,2)=RIGHT(BZ$39,2),SUM($AV61:BD61),0)+IF(RIGHT(BZ$39,2)>RIGHT($K61,2),BD61,0)) -> 0 | CA61: =+IF($K61="Ongoing",BE61,IF(RIGHT($K61,2)=RIGHT(CA$39,2),SUM($AV61:BE61),0)+IF(RIGHT(CA$39,2)>RIGHT($K61,2),BE61,0)) -> 0 | CC61: =+O61*KeyAssumptionsPriceControl_FO!X$15 -> 0.2787675 | CD61: =+P61*KeyAssumptionsPriceControl_FO!Y$15 -> 0.2851791525 | CE61: =+Q61*KeyAssumptionsPriceControl_FO!Z$15 -> 0.291738273 | CF61: =+R61*KeyAssumptionsPriceControl_FO!AA$15 -> 0.2984482533 | CG61: =+S61*KeyAssumptionsPriceControl_FO!AB$15 -> 0.3053125631 | CH61: =+T61*KeyAssumptionsPriceControl_FO!AC$15 -> 0.3123347521 | CI61: =+U61*KeyAssumptionsPriceControl_FO!AD$15 -> 0.3195184514 | CJ61: =+V61*KeyAssumptionsPriceControl_FO!AE$15 -> 0.3268673757 | CK61: =+W61*KeyAssumptionsPriceControl_FO!AF$15 -> 0 | CL61: =+X61*KeyAssumptionsPriceControl_FO!AG$15 -> 0 | CN61: 0.0069691875 | CO61: 0.02106785381 | CP61: 0.03549078945 | CQ61: 0.05024545261 | CR61: 0.06533947302 | CS61: 0.0807806559 | CT61: 0.09657698598 | CU61: 0.1127366317 | CV61: 0.1209083161 | CW61: 0.1209083161
C62: Region Wide Minor Works, Plant & Equipment | E62: Water | F62: Improvements / Compliance | G62: Corporate | H62: Capital Programs / Allocation | J62: Straight line | K62: Ongoing | L62: 10 | M62: 10 | O62: 0.25 | P62: 0.25 | Q62: 0.25 | R62: 0.25 | S62: 0.25 | T62: 0.25 | U62: 0.25 | V62: 0.25 | W62: 0.25 | X62: 0.25 | AV62: 0.25 | AW62: 0.25 | AX62: 0.25 | AY62: 0.25 | AZ62: 0.25 | BA62: 0.25 | BB62: 0.25 | BC62: 0.25 | BD62: 0.25 | BE62: 0.25 | BG62: 0.0125 | BH62: 0.0375 | BI62: 0.0625 | BJ62: 0.0875 | BK62: 0.1125 | BL62: 0.1375 | BM62: 0.1625 | BN62: 0.1875 | BO62: 0.2125 | BP62: 0.2375 | BR62: =+IF($K62="Ongoing",AV62,IF(RIGHT($K62,2)=RIGHT(BR$39,2),SUM($AV62:AV62),0)+IF(RIGHT(BR$39,2)>RIGHT($K62,2),AV62,0)) -> 0.25 | BS62: =+IF($K62="Ongoing",AW62,IF(RIGHT($K62,2)=RIGHT(BS$39,2),SUM($AV62:AW62),0)+IF(RIGHT(BS$39,2)>RIGHT($K62,2),AW62,0)) -> 0.25 | BT62: =+IF($K62="Ongoing",AX62,IF(RIGHT($K62,2)=RIGHT(BT$39,2),SUM($AV62:AX62),0)+IF(RIGHT(BT$39,2)>RIGHT($K62,2),AX62,0)) -> 0.25 | BU62: =+IF($K62="Ongoing",AY62,IF(RIGHT($K62,2)=RIGHT(BU$39,2),SUM($AV62:AY62),0)+IF(RIGHT(BU$39,2)>RIGHT($K62,2),AY62,0)) -> 0.25 | BV62: =+IF($K62="Ongoing",AZ62,IF(RIGHT($K62,2)=RIGHT(BV$39,2),SUM($AV62:AZ62),0)+IF(RIGHT(BV$39,2)>RIGHT($K62,2),AZ62,0)) -> 0.25 | BW62: =+IF($K62="Ongoing",BA62,IF(RIGHT($K62,2)=RIGHT(BW$39,2),SUM($AV62:BA62),0)+IF(RIGHT(BW$39,2)>RIGHT($K62,2),BA62,0)) -> 0.25 | BX62: =+IF($K62="Ongoing",BB62,IF(RIGHT($K62,2)=RIGHT(BX$39,2),SUM($AV62:BB62),0)+IF(RIGHT(BX$39,2)>RIGHT($K62,2),BB62,0)) -> 0.25 | BY62: =+IF($K62="Ongoing",BC62,IF(RIGHT($K62,2)=RIGHT(BY$39,2),SUM($AV62:BC62),0)+IF(RIGHT(BY$39,2)>RIGHT($K62,2),BC62,0)) -> 0.25 | BZ62: =+IF($K62="Ongoing",BD62,IF(RIGHT($K62,2)=RIGHT(BZ$39,2),SUM($AV62:BD62),0)+IF(RIGHT(BZ$39,2)>RIGHT($K62,2),BD62,0)) -> 0.25 | CA62: =+IF($K62="Ongoing",BE62,IF(RIGHT($K62,2)=RIGHT(CA$39,2),SUM($AV62:BE62),0)+IF(RIGHT(CA$39,2)>RIGHT($K62,2),BE62,0)) -> 0.25 | CC62: =+O62*KeyAssumptionsPriceControl_FO!X$15 -> 0.25575 | CD62: =+P62*KeyAssumptionsPriceControl_FO!Y$15 -> 0.26163225 | CE62: =+Q62*KeyAssumptionsPriceControl_FO!Z$15 -> 0.2676497917 | CF62: =+R62*KeyAssumptionsPriceControl_FO!AA$15 -> 0.273805737 | CG62: =+S62*KeyAssumptionsPriceControl_FO!AB$15 -> 0.2801032689 | CH62: =+T62*KeyAssumptionsPriceControl_FO!AC$15 -> 0.2865456441 | CI62: =+U62*KeyAssumptionsPriceControl_FO!AD$15 -> 0.2931361939 | CJ62: =+V62*KeyAssumptionsPriceControl_FO!AE$15 -> 0.2998783264 | CK62: =+W62*KeyAssumptionsPriceControl_FO!AF$15 -> 0.3067755279 | CL62: =+X62*KeyAssumptionsPriceControl_FO!AG$15 -> 0.313831365 | CN62: 0.0127875 | CO62: 0.0386566125 | CP62: 0.06512071459 | CQ62: 0.09219349102 | CR62: 0.1198889413 | CS62: 0.148221387 | CT62: 0.1772054789 | CU62: 0.2068562049 | CV62: 0.2371888976 | CW62: 0.2682192422
C63: Wangaratta Depot Relocation | E63: Water | F63: Improvements / Compliance | G63: Corporate | H63: Capital Programs / Allocation | J63: Straight line | K63: 2020-21 | L63: 25 | M63: 25 | O63: 0.0075 | P63: 0.2325 | Q63: 1.26 | R63: 0 | S63: 0 | T63: 0 | U63: 0 | V63: 0 | W63: 0 | X63: 0 | AV63: 0.0075 | AW63: 0.2325 | AX63: 1.26 | AY63: 0 | AZ63: 0 | BA63: 0 | BB63: 0 | BC63: 0 | BD63: 0 | BE63: 0 | BG63: 0 | BH63: 0 | BI63: 0.03 | BJ63: 0.06 | BK63: 0.06 | BL63: 0.06 | BM63: 0.06 | BN63: 0.06 | BO63: 0.06 | BP63: 0.06 | BR63: =+IF($K63="Ongoing",AV63,IF(RIGHT($K63,2)=RIGHT(BR$39,2),SUM($AV63:AV63),0)+IF(RIGHT(BR$39,2)>RIGHT($K63,2),AV63,0)) -> 0 | BS63: =+IF($K63="Ongoing",AW63,IF(RIGHT($K63,2)=RIGHT(BS$39,2),SUM($AV63:AW63),0)+IF(RIGHT(BS$39,2)>RIGHT($K63,2),AW63,0)) -> 0 | BT63: =+IF($K63="Ongoing",AX63,IF(RIGHT($K63,2)=RIGHT(BT$39,2),SUM($AV63:AX63),0)+IF(RIGHT(BT$39,2)>RIGHT($K63,2),AX63,0)) -> 1.5 | BU63: =+IF($K63="Ongoing",AY63,IF(RIGHT($K63,2)=RIGHT(BU$39,2),SUM($AV63:AY63),0)+IF(RIGHT(BU$39,2)>RIGHT($K63,2),AY63,0)) -> 0 | BV63: =+IF($K63="Ongoing",AZ63,IF(RIGHT($K63,2)=RIGHT(BV$39,2),SUM($AV63:AZ63),0)+IF(RIGHT(BV$39,2)>RIGHT($K63,2),AZ63,0)) -> 0 | BW63: =+IF($K63="Ongoing",BA63,IF(RIGHT($K63,2)=RIGHT(BW$39,2),SUM($AV63:BA63),0)+IF(RIGHT(BW$39,2)>RIGHT($K63,2),BA63,0)) -> 0 | BX63: =+IF($K63="Ongoing",BB63,IF(RIGHT($K63,2)=RIGHT(BX$39,2),SUM($AV63:BB63),0)+IF(RIGHT(BX$39,2)>RIGHT($K63,2),BB63,0)) -> 0 | BY63: =+IF($K63="Ongoing",BC63,IF(RIGHT($K63,2)=RIGHT(BY$39,2),SUM($AV63:BC63),0)+IF(RIGHT(BY$39,2)>RIGHT($K63,2),BC63,0)) -> 0 | BZ63: =+IF($K63="Ongoing",BD63,IF(RIGHT($K63,2)=RIGHT(BZ$39,2),SUM($AV63:BD63),0)+IF(RIGHT(BZ$39,2)>RIGHT($K63,2),BD63,0)) -> 0 | CA63: =+IF($K63="Ongoing",BE63,IF(RIGHT($K63,2)=RIGHT(CA$39,2),SUM($AV63:BE63),0)+IF(RIGHT(CA$39,2)>RIGHT($K63,2),BE63,0)) -> 0 | CC63: =+O63*KeyAssumptionsPriceControl_FO!X$15 -> 0.0076725 | CD63: =+P63*KeyAssumptionsPriceControl_FO!Y$15 -> 0.2433179925 | CE63: =+Q63*KeyAssumptionsPriceControl_FO!Z$15 -> 1.34895495 | CF63: =+R63*KeyAssumptionsPriceControl_FO!AA$15 -> 0 | CG63: =+S63*KeyAssumptionsPriceControl_FO!AB$15 -> 0 | CH63: =+T63*KeyAssumptionsPriceControl_FO!AC$15 -> 0 | CI63: =+U63*KeyAssumptionsPriceControl_FO!AD$15 -> 0 | CJ63: =+V63*KeyAssumptionsPriceControl_FO!AE$15 -> 0 | CK63: =+W63*KeyAssumptionsPriceControl_FO!AF$15 -> 0 | CL63: =+X63*KeyAssumptionsPriceControl_FO!AG$15 -> 0 | CN63: 0.00015345 | CO63: 0.00517325985 | CP63: 0.03701871871 | CQ63: 0.06399781772 | CR63: 0.06399781772 | CS63: 0.06399781772 | CT63: 0.06399781772 | CU63: 0.06399781772 | CV63: 0.06399781772 | CW63: 0.06399781772
C64: Region Wide Strategic Land Acquisitions | E64: Sewerage | F64: Growth | G64: Corporate | H64: Significant projects | J64: Straight line | K64: Ongoing | L64: 0 | M64: 0 | O64: 0.3 | P64: 0.15 | Q64: 1 | R64: 0 | S64: 0.05 | T64: 0 | U64: 0 | V64: 0 | W64: 0 | X64: 5.2 | AV64: 0.3 | AW64: 0.15 | AX64: 1 | AY64: 0 | AZ64: 0.05 | BA64: 0 | BB64: 0 | BC64: 0 | BD64: 0 | BE64: 5.2 | BG64: 0 | BH64: 0 | BI64: 0 | BJ64: 0 | BK64: 0 | BL64: 0 | BM64: 0 | BN64: 0 | BO64: 0 | BP64: 0 | BR64: =+IF($K64="Ongoing",AV64,IF(RIGHT($K64,2)=RIGHT(BR$39,2),SUM($AV64:AV64),0)+IF(RIGHT(BR$39,2)>RIGHT($K64,2),AV64,0)) -> 0.3 | BS64: =+IF($K64="Ongoing",AW64,IF(RIGHT($K64,2)=RIGHT(BS$39,2),SUM($AV64:AW64),0)+IF(RIGHT(BS$39,2)>RIGHT($K64,2),AW64,0)) -> 0.15 | BT64: =+IF($K64="Ongoing",AX64,IF(RIGHT($K64,2)=RIGHT(BT$39,2),SUM($AV64:AX64),0)+IF(RIGHT(BT$39,2)>RIGHT($K64,2),AX64,0)) -> 1 | BU64: =+IF($K64="Ongoing",AY64,IF(RIGHT($K64,2)=RIGHT(BU$39,2),SUM($AV64:AY64),0)+IF(RIGHT(BU$39,2)>RIGHT($K64,2),AY64,0)) -> 0 | BV64: =+IF($K64="Ongoing",AZ64,IF(RIGHT($K64,2)=RIGHT(BV$39,2),SUM($AV64:AZ64),0)+IF(RIGHT(BV$39,2)>RIGHT($K64,2),AZ64,0)) -> 0.05 | BW64: =+IF($K64="Ongoing",BA64,IF(RIGHT($K64,2)=RIGHT(BW$39,2),SUM($AV64:BA64),0)+IF(RIGHT(BW$39,2)>RIGHT($K64,2),BA64,0)) -> 0 | BX64: =+IF($K64="Ongoing",BB64,IF(RIGHT($K64,2)=RIGHT(BX$39,2),SUM($AV64:BB64),0)+IF(RIGHT(BX$39,2)>RIGHT($K64,2),BB64,0)) -> 0 | BY64: =+IF($K64="Ongoing",BC64,IF(RIGHT($K64,2)=RIGHT(BY$39,2),SUM($AV64:BC64),0)+IF(RIGHT(BY$39,2)>RIGHT($K64,2),BC64,0)) -> 0 | BZ64: =+IF($K64="Ongoing",BD64,IF(RIGHT($K64,2)=RIGHT(BZ$39,2),SUM($AV64:BD64),0)+IF(RIGHT(BZ$39,2)>RIGHT($K64,2),BD64,0)) -> 0 | CA64: =+IF($K64="Ongoing",BE64,IF(RIGHT($K64,2)=RIGHT(CA$39,2),SUM($AV64:BE64),0)+IF(RIGHT(CA$39,2)>RIGHT($K64,2),BE64,0)) -> 5.2 | CC64: =+O64*KeyAssumptionsPriceControl_FO!X$15 -> 0.3069 | CD64: =+P64*KeyAssumptionsPriceControl_FO!Y$15 -> 0.15697935 | CE64: =+Q64*KeyAssumptionsPriceControl_FO!Z$15 -> 1.070599167 | CF64: =+R64*KeyAssumptionsPriceControl_FO!AA$15 -> 0 | CG64: =+S64*KeyAssumptionsPriceControl_FO!AB$15 -> 0.05602065378 | CH64: =+T64*KeyAssumptionsPriceControl_FO!AC$15 -> 0 | CI64: =+U64*KeyAssumptionsPriceControl_FO!AD$15 -> 0 | CJ64: =+V64*KeyAssumptionsPriceControl_FO!AE$15 -> 0 | CK64: =+W64*KeyAssumptionsPriceControl_FO!AF$15 -> 0 | CL64: =+X64*KeyAssumptionsPriceControl_FO!AG$15 -> 6.527692392 | CN64: 0 | CO64: 0 | CP64: 0 | CQ64: 0 | CR64: 0 | CS64: 0 | CT64: 0 | CU64: 0 | CV64: 0 | CW64: 0
C65: Region Wide Securing the Integrity of Our Services | E65: Water | F65: Improvements / Compliance | G65: Corporate | H65: Capital Programs / Allocation | J65: Straight line | K65: Ongoing | L65: 10 | M65: 10 | O65: 0.175 | P65: 0.175 | Q65: 0.175 | R65: 0.175 | S65: 0.175 | T65: 0.175 | U65: 0.175 | V65: 0.175 | W65: 0.175 | X65: 0.175 | AV65: 0.175 | AW65: 0.175 | AX65: 0.175 | AY65: 0.175 | AZ65: 0.175 | BA65: 0.175 | BB65: 0.175 | BC65: 0.175 | BD65: 0.175 | BE65: 0.175 | BG65: 0.00875 | BH65: 0.02625 | BI65: 0.04375 | BJ65: 0.06125 | BK65: 0.07875 | BL65: 0.09625 | BM65: 0.11375 | BN65: 0.13125 | BO65: 0.14875 | BP65: 0.16625 | BR65: =+IF($K65="Ongoing",AV65,IF(RIGHT($K65,2)=RIGHT(BR$39,2),SUM($AV65:AV65),0)+IF(RIGHT(BR$39,2)>RIGHT($K65,2),AV65,0)) -> 0.175 | BS65: =+IF($K65="Ongoing",AW65,IF(RIGHT($K65,2)=RIGHT(BS$39,2),SUM($AV65:AW65),0)+IF(RIGHT(BS$39,2)>RIGHT($K65,2),AW65,0)) -> 0.175 | BT65: =+IF($K65="Ongoing",AX65,IF(RIGHT($K65,2)=RIGHT(BT$39,2),SUM($AV65:AX65),0)+IF(RIGHT(BT$39,2)>RIGHT($K65,2),AX65,0)) -> 0.175 | BU65: =+IF($K65="Ongoing",AY65,IF(RIGHT($K65,2)=RIGHT(BU$39,2),SUM($AV65:AY65),0)+IF(RIGHT(BU$39,2)>RIGHT($K65,2),AY65,0)) -> 0.175 | BV65: =+IF($K65="Ongoing",AZ65,IF(RIGHT($K65,2)=RIGHT(BV$39,2),SUM($AV65:AZ65),0)+IF(RIGHT(BV$39,2)>RIGHT($K65,2),AZ65,0)) -> 0.175 | BW65: =+IF($K65="Ongoing",BA65,IF(RIGHT($K65,2)=RIGHT(BW$39,2),SUM($AV65:BA65),0)+IF(RIGHT(BW$39,2)>RIGHT($K65,2),BA65,0)) -> 0.175 | BX65: =+IF($K65="Ongoing",BB65,IF(RIGHT($K65,2)=RIGHT(BX$39,2),SUM($AV65:BB65),0)+IF(RIGHT(BX$39,2)>RIGHT($K65,2),BB65,0)) -> 0.175 | BY65: =+IF($K65="Ongoing",BC65,IF(RIGHT($K65,2)=RIGHT(BY$39,2),SUM($AV65:BC65),0)+IF(RIGHT(BY$39,2)>RIGHT($K65,2),BC65,0)) -> 0.175 | BZ65: =+IF($K65="Ongoing",BD65,IF(RIGHT($K65,2)=RIGHT(BZ$39,2),SUM($AV65:BD65),0)+IF(RIGHT(BZ$39,2)>RIGHT($K65,2),BD65,0)) -> 0.175 | CA65: =+IF($K65="Ongoing",BE65,IF(RIGHT($K65,2)=RIGHT(CA$39,2),SUM($AV65:BE65),0)+IF(RIGHT(CA$39,2)>RIGHT($K65,2),BE65,0)) -> 0.175 | CC65: =+O65*KeyAssumptionsPriceControl_FO!X$15 -> 0.179025 | CD65: =+P65*KeyAssumptionsPriceControl_FO!Y$15 -> 0.183142575 | CE65: =+Q65*KeyAssumptionsPriceControl_FO!Z$15 -> 0.1873548542 | CF65: =+R65*KeyAssumptionsPriceControl_FO!AA$15 -> 0.1916640159 | CG65: =+S65*KeyAssumptionsPriceControl_FO!AB$15 -> 0.1960722882 | CH65: =+T65*KeyAssumptionsPriceControl_FO!AC$15 -> 0.2005819509 | CI65: =+U65*KeyAssumptionsPriceControl_FO!AD$15 -> 0.2051953357 | CJ65: =+V65*KeyAssumptionsPriceControl_FO!AE$15 -> 0.2099148285 | CK65: =+W65*KeyAssumptionsPriceControl_FO!AF$15 -> 0.2147428695 | CL65: =+X65*KeyAssumptionsPriceControl_FO!AG$15 -> 0.2196819555 | CN65: 0.00895125 | CO65: 0.02705962875 | CP65: 0.04558450021 | CQ65: 0.06453544372 | CR65: 0.08392225892 | CS65: 0.1037549709 | CT65: 0.1240438352 | CU65: 0.1447993434 | CV65: 0.1660322283 | CW65: 0.1877534696
C66: Region Wide Water Distribution Improvements | E66: Water | F66: Growth | G66: Pipelines/network | H66: Capital Programs / Allocation | J66: Straight line | K66: Ongoing | L66: 80 | M66: 80 | O66: 0.1 | P66: 0.1 | Q66: 0.1 | R66: 0.35 | S66: 0.4 | T66: 0.1 | U66: 0.1 | V66: 0.1 | W66: 0 | X66: 0 | AV66: 0.1 | AW66: 0.1 | AX66: 0.1 | AY66: 0.35 | AZ66: 0.4 | BA66: 0.1 | BB66: 0.1 | BC66: 0.1 | BD66: 0 | BE66: 0 | BG66: 0.000625 | BH66: 0.001875 | BI66: 0.003125 | BJ66: 0.0059375 | BK66: 0.010625 | BL66: 0.01375 | BM66: 0.015 | BN66: 0.01625 | BO66: 0.016875 | BP66: 0.016875 | BR66: =+IF($K66="Ongoing",AV66,IF(RIGHT($K66,2)=RIGHT(BR$39,2),SUM($AV66:AV66),0)+IF(RIGHT(BR$39,2)>RIGHT($K66,2),AV66,0)) -> 0.1 | BS66: =+IF($K66="Ongoing",AW66,IF(RIGHT($K66,2)=RIGHT(BS$39,2),SUM($AV66:AW66),0)+IF(RIGHT(BS$39,2)>RIGHT($K66,2),AW66,0)) -> 0.1 | BT66: =+IF($K66="Ongoing",AX66,IF(RIGHT($K66,2)=RIGHT(BT$39,2),SUM($AV66:AX66),0)+IF(RIGHT(BT$39,2)>RIGHT($K66,2),AX66,0)) -> 0.1 | BU66: =+IF($K66="Ongoing",AY66,IF(RIGHT($K66,2)=RIGHT(BU$39,2),SUM($AV66:AY66),0)+IF(RIGHT(BU$39,2)>RIGHT($K66,2),AY66,0)) -> 0.35 | BV66: =+IF($K66="Ongoing",AZ66,IF(RIGHT($K66,2)=RIGHT(BV$39,2),SUM($AV66:AZ66),0)+IF(RIGHT(BV$39,2)>RIGHT($K66,2),AZ66,0)) -> 0.4 | BW66: =+IF($K66="Ongoing",BA66,IF(RIGHT($K66,2)=RIGHT(BW$39,2),SUM($AV66:BA66),0)+IF(RIGHT(BW$39,2)>RIGHT($K66,2),BA66,0)) -> 0.1 | BX66: =+IF($K66="Ongoing",BB66,IF(RIGHT($K66,2)=RIGHT(BX$39,2),SUM($AV66:BB66),0)+IF(RIGHT(BX$39,2)>RIGHT($K66,2),BB66,0)) -> 0.1 | BY66: =+IF($K66="Ongoing",BC66,IF(RIGHT($K66,2)=RIGHT(BY$39,2),SUM($AV66:BC66),0)+IF(RIGHT(BY$39,2)>RIGHT($K66,2),BC66,0)) -> 0.1 | BZ66: =+IF($K66="Ongoing",BD66,IF(RIGHT($K66,2)=RIGHT(BZ$39,2),SUM($AV66:BD66),0)+IF(RIGHT(BZ$39,2)>RIGHT($K66,2),BD66,0)) -> 0 | CA66: =+IF($K66="Ongoing",BE66,IF(RIGHT($K66,2)=RIGHT(CA$39,2),SUM($AV66:BE66),0)+IF(RIGHT(CA$39,2)>RIGHT($K66,2),BE66,0)) -> 0 | CC66: =+O66*KeyAssumptionsPriceControl_FO!X$15 -> 0.1023 | CD66: =+P66*KeyAssumptionsPriceControl_FO!Y$15 -> 0.1046529 | CE66: =+Q66*KeyAssumptionsPriceControl_FO!Z$15 -> 0.1070599167 | CF66: =+R66*KeyAssumptionsPriceControl_FO!AA$15 -> 0.3833280317 | CG66: =+S66*KeyAssumptionsPriceControl_FO!AB$15 -> 0.4481652303 | CH66: =+T66*KeyAssumptionsPriceControl_FO!AC$15 -> 0.1146182576 | CI66: =+U66*KeyAssumptionsPriceControl_FO!AD$15 -> 0.1172544776 | CJ66: =+V66*KeyAssumptionsPriceControl_FO!AE$15 -> 0.1199513305 | CK66: =+W66*KeyAssumptionsPriceControl_FO!AF$15 -> 0 | CL66: =+X66*KeyAssumptionsPriceControl_FO!AG$15 -> 0 | CN66: 0.000639375 | CO66: 0.001932830625 | CP66: 0.003256035729 | CQ66: 0.006320960407 | CR66: 0.01151779329 | CS66: 0.01503519009 | CT66: 0.01648439469 | CU66: 0.01796693099 | CV66: 0.01871662681 | CW66: 0.01871662681
C67: Wangaratta Ground Water System Expansion | E67: Water | F67: Improvements / Compliance | G67: Treatment | H67: Capital Programs / Allocation | J67: Straight line | K67: 2023-24 | L67: 25 | M67: 25 | O67: 0 | P67: 0 | Q67: 0.013281 | R67: 0.013281 | S67: 0.597635 | T67: 0.703881 | U67: 0 | V67: 0 | W67: 0 | X67: 0 | AV67: 0 | AW67: 0 | AX67: 0.013281 | AY67: 0.013281 | AZ67: 0.597635 | BA67: 0.703881 | BB67: 0 | BC67: 0 | BD67: 0 | BE67: 0 | BG67: 0 | BH67: 0 | BI67: 0 | BJ67: 0 | BK67: 0 | BL67: 0.02656156 | BM67: 0.05312312 | BN67: 0.05312312 | BO67: 0.05312312 | BP67: 0.05312312 | BR67: =+IF($K67="Ongoing",AV67,IF(RIGHT($K67,2)=RIGHT(BR$39,2),SUM($AV67:AV67),0)+IF(RIGHT(BR$39,2)>RIGHT($K67,2),AV67,0)) -> 0 | BS67: =+IF($K67="Ongoing",AW67,IF(RIGHT($K67,2)=RIGHT(BS$39,2),SUM($AV67:AW67),0)+IF(RIGHT(BS$39,2)>RIGHT($K67,2),AW67,0)) -> 0 | BT67: =+IF($K67="Ongoing",AX67,IF(RIGHT($K67,2)=RIGHT(BT$39,2),SUM($AV67:AX67),0)+IF(RIGHT(BT$39,2)>RIGHT($K67,2),AX67,0)) -> 0 | BU67: =+IF($K67="Ongoing",AY67,IF(RIGHT($K67,2)=RIGHT(BU$39,2),SUM($AV67:AY67),0)+IF(RIGHT(BU$39,2)>RIGHT($K67,2),AY67,0)) -> 0 | BV67: =+IF($K67="Ongoing",AZ67,IF(RIGHT($K67,2)=RIGHT(BV$39,2),SUM($AV67:AZ67),0)+IF(RIGHT(BV$39,2)>RIGHT($K67,2),AZ67,0)) -> 0 | BW67: =+IF($K67="Ongoing",BA67,IF(RIGHT($K67,2)=RIGHT(BW$39,2),SUM($AV67:BA67),0)+IF(RIGHT(BW$39,2)>RIGHT($K67,2),BA67,0)) -> 1.328078 | BX67: =+IF($K67="Ongoing",BB67,IF(RIGHT($K67,2)=RIGHT(BX$39,2),SUM($AV67:BB67),0)+IF(RIGHT(BX$39,2)>RIGHT($K67,2),BB67,0)) -> 0 | BY67: =+IF($K67="Ongoing",BC67,IF(RIGHT($K67,2)=RIGHT(BY$39,2),SUM($AV67:BC67),0)+IF(RIGHT(BY$39,2)>RIGHT($K67,2),BC67,0)) -> 0 | BZ67: =+IF($K67="Ongoing",BD67,IF(RIGHT($K67,2)=RIGHT(BZ$39,2),SUM($AV67:BD67),0)+IF(RIGHT(BZ$39,2)>RIGHT($K67,2),BD67,0)) -> 0 | CA67: =+IF($K67="Ongoing",BE67,IF(RIGHT($K67,2)=RIGHT(CA$39,2),SUM($AV67:BE67),0)+IF(RIGHT(CA$39,2)>RIGHT($K67,2),BE67,0)) -> 0 | CC67: =+O67*KeyAssumptionsPriceControl_FO!X$15 -> 0 | CD67: =+P67*KeyAssumptionsPriceControl_FO!Y$15 -> 0 | CE67: =+Q67*KeyAssumptionsPriceControl_FO!Z$15 -> 0.01421862754 | CF67: =+R67*KeyAssumptionsPriceControl_FO!AA$15 -> 0.01454565597 | CG67: =+S67*KeyAssumptionsPriceControl_FO!AB$15 -> 0.6695980685 | CH67: =+T67*KeyAssumptionsPriceControl_FO!AC$15 -> 0.806776138 | CI67: =+U67*KeyAssumptionsPriceControl_FO!AD$15 -> 0 | CJ67: =+V67*KeyAssumptionsPriceControl_FO!AE$15 -> 0 | CK67: =+W67*KeyAssumptionsPriceControl_FO!AF$15 -> 0 | CL67: =+X67*KeyAssumptionsPriceControl_FO!AG$15 -> 0 | CN67: 0 | CO67: 0 | CP67: 0.0002843725507 | CQ67: 0.0008596582209 | CR67: 0.01454253271 | CS67: 0.04407001684 | CT67: 0.0602055396 | CU67: 0.0602055396 | CV67: 0.0602055396 | CW67: 0.0602055396
C68: Wastewater Distribution Improvements | E68: Water | F68: Growth | G68: Pipelines/network | H68: Capital Programs / Allocation | J68: Straight line | K68: 2025-26 | L68: 80 | M68: 80 | O68: 0.1 | P68: 0.7 | Q68: 0.1 | R68: 0.1 | S68: 0 | T68: 0.1 | U68: 0.1 | V68: 0.1 | W68: 0.1 | X68: 0.1 | AV68: 0.1 | AW68: 0.7 | AX68: 0.1 | AY68: 0.1 | AZ68: 0 | BA68: 0.1 | BB68: 0.1 | BC68: 0.1 | BD68: 0.1 | BE68: 0.1 | BG68: 0 | BH68: 0 | BI68: 0 | BJ68: 0 | BK68: 0 | BL68: 0 | BM68: 0 | BN68: 0.008125 | BO68: 0.016875 | BP68: 0.018125 | BR68: =+IF($K68="Ongoing",AV68,IF(RIGHT($K68,2)=RIGHT(BR$39,2),SUM($AV68:AV68),0)+IF(RIGHT(BR$39,2)>RIGHT($K68,2),AV68,0)) -> 0 | BS68: =+IF($K68="Ongoing",AW68,IF(RIGHT($K68,2)=RIGHT(BS$39,2),SUM($AV68:AW68),0)+IF(RIGHT(BS$39,2)>RIGHT($K68,2),AW68,0)) -> 0 | BT68: =+IF($K68="Ongoing",AX68,IF(RIGHT($K68,2)=RIGHT(BT$39,2),SUM($AV68:AX68),0)+IF(RIGHT(BT$39,2)>RIGHT($K68,2),AX68,0)) -> 0 | BU68: =+IF($K68="Ongoing",AY68,IF(RIGHT($K68,2)=RIGHT(BU$39,2),SUM($AV68:AY68),0)+IF(RIGHT(BU$39,2)>RIGHT($K68,2),AY68,0)) -> 0 | BV68: =+IF($K68="Ongoing",AZ68,IF(RIGHT($K68,2)=RIGHT(BV$39,2),SUM($AV68:AZ68),0)+IF(RIGHT(BV$39,2)>RIGHT($K68,2),AZ68,0)) -> 0 | BW68: =+IF($K68="Ongoing",BA68,IF(RIGHT($K68,2)=RIGHT(BW$39,2),SUM($AV68:BA68),0)+IF(RIGHT(BW$39,2)>RIGHT($K68,2),BA68,0)) -> 0 | BX68: =+IF($K68="Ongoing",BB68,IF(RIGHT($K68,2)=RIGHT(BX$39,2),SUM($AV68:BB68),0)+IF(RIGHT(BX$39,2)>RIGHT($K68,2),BB68,0)) -> 0 | BY68: =+IF($K68="Ongoing",BC68,IF(RIGHT($K68,2)=RIGHT(BY$39,2),SUM($AV68:BC68),0)+IF(RIGHT(BY$39,2)>RIGHT($K68,2),BC68,0)) -> 1.3 | BZ68: =+IF($K68="Ongoing",BD68,IF(RIGHT($K68,2)=RIGHT(BZ$39,2),SUM($AV68:BD68),0)+IF(RIGHT(BZ$39,2)>RIGHT($K68,2),BD68,0)) -> 0.1 | CA68: =+IF($K68="Ongoing",BE68,IF(RIGHT($K68,2)=RIGHT(CA$39,2),SUM($AV68:BE68),0)+IF(RIGHT(CA$39,2)>RIGHT($K68,2),BE68,0)) -> 0.1 | CC68: =+O68*KeyAssumptionsPriceControl_FO!X$15 -> 0.1023 | CD68: =+P68*KeyAssumptionsPriceControl_FO!Y$15 -> 0.7325703 | CE68: =+Q68*KeyAssumptionsPriceControl_FO!Z$15 -> 0.1070599167 | CF68: =+R68*KeyAssumptionsPriceControl_FO!AA$15 -> 0.1095222948 | CG68: =+S68*KeyAssumptionsPriceControl_FO!AB$15 -> 0 | CH68: =+T68*KeyAssumptionsPriceControl_FO!AC$15 -> 0.1146182576 | CI68: =+U68*KeyAssumptionsPriceControl_FO!AD$15 -> 0.1172544776 | CJ68: =+V68*KeyAssumptionsPriceControl_FO!AE$15 -> 0.1199513305 | CK68: =+W68*KeyAssumptionsPriceControl_FO!AF$15 -> 0.1227102112 | CL68: =+X68*KeyAssumptionsPriceControl_FO!AG$15 -> 0.125532546 | CN68: 0.000639375 | CO68: 0.005857314375 | CP68: 0.01110500323 | CQ68: 0.01245864205 | CR68: 0.01314315639 | CS68: 0.0138595205 | CT68: 0.0153087251 | CU68: 0.0167912614 | CV68: 0.01830789604 | CW68: 0.01985941327
C69: Corryong Reuse Expansion | E69: Sewerage | F69: Improvements / Compliance | G69: Treatment | H69: Capital Programs / Allocation | J69: Straight line | K69: 2021-22 | L69: 25 | M69: 25 | O69: 0 | P69: 0.024 | Q69: 1.08 | R69: 0.096 | S69: 0 | T69: 0 | U69: 0 | V69: 0 | W69: 0 | X69: 0 | AV69: 0 | AW69: 0.024 | AX69: 1.08 | AY69: 0.096 | AZ69: 0 | BA69: 0 | BB69: 0 | BC69: 0 | BD69: 0 | BE69: 0 | BG69: 0 | BH69: 0 | BI69: 0 | BJ69: 0.024 | BK69: 0.048 | BL69: 0.048 | BM69: 0.048 | BN69: 0.048 | BO69: 0.048 | BP69: 0.048 | BR69: =+IF($K69="Ongoing",AV69,IF(RIGHT($K69,2)=RIGHT(BR$39,2),SUM($AV69:AV69),0)+IF(RIGHT(BR$39,2)>RIGHT($K69,2),AV69,0)) -> 0 | BS69: =+IF($K69="Ongoing",AW69,IF(RIGHT($K69,2)=RIGHT(BS$39,2),SUM($AV69:AW69),0)+IF(RIGHT(BS$39,2)>RIGHT($K69,2),AW69,0)) -> 0 | BT69: =+IF($K69="Ongoing",AX69,IF(RIGHT($K69,2)=RIGHT(BT$39,2),SUM($AV69:AX69),0)+IF(RIGHT(BT$39,2)>RIGHT($K69,2),AX69,0)) -> 0 | BU69: =+IF($K69="Ongoing",AY69,IF(RIGHT($K69,2)=RIGHT(BU$39,2),SUM($AV69:AY69),0)+IF(RIGHT(BU$39,2)>RIGHT($K69,2),AY69,0)) -> 1.2 | BV69: =+IF($K69="Ongoing",AZ69,IF(RIGHT($K69,2)=RIGHT(BV$39,2),SUM($AV69:AZ69),0)+IF(RIGHT(BV$39,2)>RIGHT($K69,2),AZ69,0)) -> 0 | BW69: =+IF($K69="Ongoing",BA69,IF(RIGHT($K69,2)=RIGHT(BW$39,2),SUM($AV69:BA69),0)+IF(RIGHT(BW$39,2)>RIGHT($K69,2),BA69,0)) -> 0 | BX69: =+IF($K69="Ongoing",BB69,IF(RIGHT($K69,2)=RIGHT(BX$39,2),SUM($AV69:BB69),0)+IF(RIGHT(BX$39,2)>RIGHT($K69,2),BB69,0)) -> 0 | BY69: =+IF($K69="Ongoing",BC69,IF(RIGHT($K69,2)=RIGHT(BY$39,2),SUM($AV69:BC69),0)+IF(RIGHT(BY$39,2)>RIGHT($K69,2),BC69,0)) -> 0 | BZ69: =+IF($K69="Ongoing",BD69,IF(RIGHT($K69,2)=RIGHT(BZ$39,2),SUM($AV69:BD69),0)+IF(RIGHT(BZ$39,2)>RIGHT($K69,2),BD69,0)) -> 0 | CA69: =+IF($K69="Ongoing",BE69,IF(RIGHT($K69,2)=RIGHT(CA$39,2),SUM($AV69:BE69),0)+IF(RIGHT(CA$39,2)>RIGHT($K69,2),BE69,0)) -> 0 | CC69: =+O69*KeyAssumptionsPriceControl_FO!X$15 -> 0 | CD69: =+P69*KeyAssumptionsPriceControl_FO!Y$15 -> 0.025116696 | CE69: =+Q69*KeyAssumptionsPriceControl_FO!Z$15 -> 1.1562471 | CF69: =+R69*KeyAssumptionsPriceControl_FO!AA$15 -> 0.105141403 | CG69: =+S69*KeyAssumptionsPriceControl_FO!AB$15 -> 0 | CH69: =+T69*KeyAssumptionsPriceControl_FO!AC$15 -> 0 | CI69: =+U69*KeyAssumptionsPriceControl_FO!AD$15 -> 0 | CJ69: =+V69*KeyAssumptionsPriceControl_FO!AE$15 -> 0 | CK69: =+W69*KeyAssumptionsPriceControl_FO!AF$15 -> 0 | CL69: =+X69*KeyAssumptionsPriceControl_FO!AG$15 -> 0 | CN69: 0 | CO69: 0.00050233392 | CP69: 0.02412960985 | CQ69: 0.04935737991 | CR69: 0.05146020797 | CS69: 0.05146020797 | CT69: 0.05146020797 | CU69: 0.05146020797 | CV69: 0.05146020797 | CW69: 0.05146020797
C70: Region Wide Wastewater Trunk Mains Construction | E70: Sewerage | F70: Growth | G70: Pipelines/network | H70: Capital Programs / Allocation | J70: Straight line | K70: 2022-23 | L70: 80 | M70: 80 | O70: 0 | P70: 0 | Q70: 0 | R70: 0 | S70: 1.12 | T70: 0 | U70: 0 | V70: 0 | W70: 0 | X70: 0 | AV70: 0 | AW70: 0 | AX70: 0 | AY70: 0 | AZ70: 1.12 | BA70: 0 | BB70: 0 | BC70: 0 | BD70: 0 | BE70: 0 | BG70: 0 | BH70: 0 | BI70: 0 | BJ70: 0 | BK70: 0.007 | BL70: 0.014 | BM70: 0.014 | BN70: 0.014 | BO70: 0.014 | BP70: 0.014 | BR70: =+IF($K70="Ongoing",AV70,IF(RIGHT($K70,2)=RIGHT(BR$39,2),SUM($AV70:AV70),0)+IF(RIGHT(BR$39,2)>RIGHT($K70,2),AV70,0)) -> 0 | BS70: =+IF($K70="Ongoing",AW70,IF(RIGHT($K70,2)=RIGHT(BS$39,2),SUM($AV70:AW70),0)+IF(RIGHT(BS$39,2)>RIGHT($K70,2),AW70,0)) -> 0 | BT70: =+IF($K70="Ongoing",AX70,IF(RIGHT($K70,2)=RIGHT(BT$39,2),SUM($AV70:AX70),0)+IF(RIGHT(BT$39,2)>RIGHT($K70,2),AX70,0)) -> 0 | BU70: =+IF($K70="Ongoing",AY70,IF(RIGHT($K70,2)=RIGHT(BU$39,2),SUM($AV70:AY70),0)+IF(RIGHT(BU$39,2)>RIGHT($K70,2),AY70,0)) -> 0 | BV70: =+IF($K70="Ongoing",AZ70,IF(RIGHT($K70,2)=RIGHT(BV$39,2),SUM($AV70:AZ70),0)+IF(RIGHT(BV$39,2)>RIGHT($K70,2),AZ70,0)) -> 1.12 | BW70: =+IF($K70="Ongoing",BA70,IF(RIGHT($K70,2)=RIGHT(BW$39,2),SUM($AV70:BA70),0)+IF(RIGHT(BW$39,2)>RIGHT($K70,2),BA70,0)) -> 0 | BX70: =+IF($K70="Ongoing",BB70,IF(RIGHT($K70,2)=RIGHT(BX$39,2),SUM($AV70:BB70),0)+IF(RIGHT(BX$39,2)>RIGHT($K70,2),BB70,0)) -> 0 | BY70: =+IF($K70="Ongoing",BC70,IF(RIGHT($K70,2)=RIGHT(BY$39,2),SUM($AV70:BC70),0)+IF(RIGHT(BY$39,2)>RIGHT($K70,2),BC70,0)) -> 0 | BZ70: =+IF($K70="Ongoing",BD70,IF(RIGHT($K70,2)=RIGHT(BZ$39,2),SUM($AV70:BD70),0)+IF(RIGHT(BZ$39,2)>RIGHT($K70,2),BD70,0)) -> 0 | CA70: =+IF($K70="Ongoing",BE70,IF(RIGHT($K70,2)=RIGHT(CA$39,2),SUM($AV70:BE70),0)+IF(RIGHT(CA$39,2)>RIGHT($K70,2),BE70,0)) -> 0 | CC70: =+O70*KeyAssumptionsPriceControl_FO!X$15 -> 0 | CD70: =+P70*KeyAssumptionsPriceControl_FO!Y$15 -> 0 | CE70: =+Q70*KeyAssumptionsPriceControl_FO!Z$15 -> 0 | CF70: =+R70*KeyAssumptionsPriceControl_FO!AA$15 -> 0 | CG70: =+S70*KeyAssumptionsPriceControl_FO!AB$15 -> 1.254862645 | CH70: =+T70*KeyAssumptionsPriceControl_FO!AC$15 -> 0 | CI70: =+U70*KeyAssumptionsPriceControl_FO!AD$15 -> 0 | CJ70: =+V70*KeyAssumptionsPriceControl_FO!AE$15 -> 0 | CK70: =+W70*KeyAssumptionsPriceControl_FO!AF$15 -> 0 | CL70: =+X70*KeyAssumptionsPriceControl_FO!AG$15 -> 0 | CN70: 0 | CO70: 0 | CP70: 0 | CQ70: 0 | CR70: 0.007842891529 | CS70: 0.01568578306 | CT70: 0.01568578306 | CU70: 0.01568578306 | CV70: 0.01568578306 | CW70: 0.01568578306
C71: Tallangatta WWTP Upgrade | E71: Sewerage | F71: Improvements / Compliance | G71: Treatment | H71: Capital Programs / Allocation | J71: Straight line | K71: 2019-20 | L71: 30 | M71: 30 | O71: 0.03018 | P71: 0.97582 | Q71: 0 | R71: 0 | S71: 0 | T71: 0 | U71: 0 | V71: 0 | W71: 0 | X71: 0 | AV71: 0.03018 | AW71: 0.97582 | AX71: 0 | AY71: 0 | AZ71: 0 | BA71: 0 | BB71: 0 | BC71: 0 | BD71: 0 | BE71: 0 | BG71: 0 | BH71: 0.01676666667 | BI71: 0.03353333333 | BJ71: 0.03353333333 | BK71: 0.03353333333 | BL71: 0.03353333333 | BM71: 0.03353333333 | BN71: 0.03353333333 | BO71: 0.03353333333 | BP71: 0.03353333333 | BR71: =+IF($K71="Ongoing",AV71,IF(RIGHT($K71,2)=RIGHT(BR$39,2),SUM($AV71:AV71),0)+IF(RIGHT(BR$39,2)>RIGHT($K71,2),AV71,0)) -> 0 | BS71: =+IF($K71="Ongoing",AW71,IF(RIGHT($K71,2)=RIGHT(BS$39,2),SUM($AV71:AW71),0)+IF(RIGHT(BS$39,2)>RIGHT($K71,2),AW71,0)) -> 1.006 | BT71: =+IF($K71="Ongoing",AX71,IF(RIGHT($K71,2)=RIGHT(BT$39,2),SUM($AV71:AX71),0)+IF(RIGHT(BT$39,2)>RIGHT($K71,2),AX71,0)) -> 0 | BU71: =+IF($K71="Ongoing",AY71,IF(RIGHT($K71,2)=RIGHT(BU$39,2),SUM($AV71:AY71),0)+IF(RIGHT(BU$39,2)>RIGHT($K71,2),AY71,0)) -> 0 | BV71: =+IF($K71="Ongoing",AZ71,IF(RIGHT($K71,2)=RIGHT(BV$39,2),SUM($AV71:AZ71),0)+IF(RIGHT(BV$39,2)>RIGHT($K71,2),AZ71,0)) -> 0 | BW71: =+IF($K71="Ongoing",BA71,IF(RIGHT($K71,2)=RIGHT(BW$39,2),SUM($AV71:BA71),0)+IF(RIGHT(BW$39,2)>RIGHT($K71,2),BA71,0)) -> 0 | BX71: =+IF($K71="Ongoing",BB71,IF(RIGHT($K71,2)=RIGHT(BX$39,2),SUM($AV71:BB71),0)+IF(RIGHT(BX$39,2)>RIGHT($K71,2),BB71,0)) -> 0 | BY71: =+IF($K71="Ongoing",BC71,IF(RIGHT($K71,2)=RIGHT(BY$39,2),SUM($AV71:BC71),0)+IF(RIGHT(BY$39,2)>RIGHT($K71,2),BC71,0)) -> 0 | BZ71: =+IF($K71="Ongoing",BD71,IF(RIGHT($K71,2)=RIGHT(BZ$39,2),SUM($AV71:BD71),0)+IF(RIGHT(BZ$39,2)>RIGHT($K71,2),BD71,0)) -> 0 | CA71: =+IF($K71="Ongoing",BE71,IF(RIGHT($K71,2)=RIGHT(CA$39,2),SUM($AV71:BE71),0)+IF(RIGHT(CA$39,2)>RIGHT($K71,2),BE71,0)) -> 0 | CC71: =+O71*KeyAssumptionsPriceControl_FO!X$15 -> 0.03087414 | CD71: =+P71*KeyAssumptionsPriceControl_FO!Y$15 -> 1.021223929 | CE71: =+Q71*KeyAssumptionsPriceControl_FO!Z$15 -> 0 | CF71: =+R71*KeyAssumptionsPriceControl_FO!AA$15 -> 0 | CG71: =+S71*KeyAssumptionsPriceControl_FO!AB$15 -> 0 | CH71: =+T71*KeyAssumptionsPriceControl_FO!AC$15 -> 0 | CI71: =+U71*KeyAssumptionsPriceControl_FO!AD$15 -> 0 | CJ71: =+V71*KeyAssumptionsPriceControl_FO!AE$15 -> 0 | CK71: =+W71*KeyAssumptionsPriceControl_FO!AF$15 -> 0 | CL71: =+X71*KeyAssumptionsPriceControl_FO!AG$15 -> 0 | CN71: 0.000514569 | CO71: 0.01804953681 | CP71: 0.03506993563 | CQ71: 0.03506993563 | CR71: 0.03506993563 | CS71: 0.03506993563 | CT71: 0.03506993563 | CU71: 0.03506993563 | CV71: 0.03506993563 | CW71: 0.03506993563
C72: Wodonga Creek Pump Station Upgrade | E72: Water | F72: Improvements / Compliance | G72: Pipelines/network | H72: Capital Programs / Allocation | J72: Straight line | K72: 2020-21 | L72: 15 | M72: 15 | O72: 0.02 | P72: 0.93 | Q72: 0.05 | R72: 0 | S72: 0 | T72: 0 | U72: 0 | V72: 0 | W72: 0 | X72: 0 | AV72: 0.02 | AW72: 0.93 | AX72: 0.05 | AY72: 0 | AZ72: 0 | BA72: 0 | BB72: 0 | BC72: 0 | BD72: 0 | BE72: 0 | BG72: 0 | BH72: 0 | BI72: 0.03333333333 | BJ72: 0.06666666667 | BK72: 0.06666666667 | BL72: 0.06666666667 | BM72: 0.06666666667 | BN72: 0.06666666667 | BO72: 0.06666666667 | BP72: 0.06666666667 | BR72: =+IF($K72="Ongoing",AV72,IF(RIGHT($K72,2)=RIGHT(BR$39,2),SUM($AV72:AV72),0)+IF(RIGHT(BR$39,2)>RIGHT($K72,2),AV72,0)) -> 0 | BS72: =+IF($K72="Ongoing",AW72,IF(RIGHT($K72,2)=RIGHT(BS$39,2),SUM($AV72:AW72),0)+IF(RIGHT(BS$39,2)>RIGHT($K72,2),AW72,0)) -> 0 | BT72: =+IF($K72="Ongoing",AX72,IF(RIGHT($K72,2)=RIGHT(BT$39,2),SUM($AV72:AX72),0)+IF(RIGHT(BT$39,2)>RIGHT($K72,2),AX72,0)) -> 1 | BU72: =+IF($K72="Ongoing",AY72,IF(RIGHT($K72,2)=RIGHT(BU$39,2),SUM($AV72:AY72),0)+IF(RIGHT(BU$39,2)>RIGHT($K72,2),AY72,0)) -> 0 | BV72: =+IF($K72="Ongoing",AZ72,IF(RIGHT($K72,2)=RIGHT(BV$39,2),SUM($AV72:AZ72),0)+IF(RIGHT(BV$39,2)>RIGHT($K72,2),AZ72,0)) -> 0 | BW72: =+IF($K72="Ongoing",BA72,IF(RIGHT($K72,2)=RIGHT(BW$39,2),SUM($AV72:BA72),0)+IF(RIGHT(BW$39,2)>RIGHT($K72,2),BA72,0)) -> 0 | BX72: =+IF($K72="Ongoing",BB72,IF(RIGHT($K72,2)=RIGHT(BX$39,2),SUM($AV72:BB72),0)+IF(RIGHT(BX$39,2)>RIGHT($K72,2),BB72,0)) -> 0 | BY72: =+IF($K72="Ongoing",BC72,IF(RIGHT($K72,2)=RIGHT(BY$39,2),SUM($AV72:BC72),0)+IF(RIGHT(BY$39,2)>RIGHT($K72,2),BC72,0)) -> 0 | BZ72: =+IF($K72="Ongoing",BD72,IF(RIGHT($K72,2)=RIGHT(BZ$39,2),SUM($AV72:BD72),0)+IF(RIGHT(BZ$39,2)>RIGHT($K72,2),BD72,0)) -> 0 | CA72: =+IF($K72="Ongoing",BE72,IF(RIGHT($K72,2)=RIGHT(CA$39,2),SUM($AV72:BE72),0)+IF(RIGHT(CA$39,2)>RIGHT($K72,2),BE72,0)) -> 0 | CC72: =+O72*KeyAssumptionsPriceControl_FO!X$15 -> 0.02046 | CD72: =+P72*KeyAssumptionsPriceControl_FO!Y$15 -> 0.97327197 | CE72: =+Q72*KeyAssumptionsPriceControl_FO!Z$15 -> 0.05352995835 | CF72: =+R72*KeyAssumptionsPriceControl_FO!AA$15 -> 0 | CG72: =+S72*KeyAssumptionsPriceControl_FO!AB$15 -> 0 | CH72: =+T72*KeyAssumptionsPriceControl_FO!AC$15 -> 0 | CI72: =+U72*KeyAssumptionsPriceControl_FO!AD$15 -> 0 | CJ72: =+V72*KeyAssumptionsPriceControl_FO!AE$15 -> 0 | CK72: =+W72*KeyAssumptionsPriceControl_FO!AF$15 -> 0 | CL72: =+X72*KeyAssumptionsPriceControl_FO!AG$15 -> 0 | CN72: 0.000682 | CO72: 0.033806399 | CP72: 0.06803312994 | CQ72: 0.06981746189 | CR72: 0.06981746189 | CS72: 0.06981746189 | CT72: 0.06981746189 | CU72: 0.06981746189 | CV72: 0.06981746189 | CW72: 0.06981746189
C73: Rutherglen Reuse Expansion | E73: Sewerage | F73: Improvements / Compliance | G73: Treatment | H73: Capital Programs / Allocation | J73: Straight line | K73: 2022-23 | L73: 25 | M73: 80 | O73: 0 | P73: 0 | Q73: 0.02 | R73: 1 | S73: 0.18 | T73: 0 | U73: 0 | V73: 0 | W73: 0 | X73: 0 | AV73: 0 | AW73: 0 | AX73: 0.02 | AY73: 1 | AZ73: 0.18 | BA73: 0 | BB73: 0 | BC73: 0 | BD73: 0 | BE73: 0 | BG73: 0 | BH73: 0 | BI73: 0 | BJ73: 0 | BK73: 0.024 | BL73: 0.048 | BM73: 0.048 | BN73: 0.048 | BO73: 0.048 | BP73: 0.048 | BR73: =+IF($K73="Ongoing",AV73,IF(RIGHT($K73,2)=RIGHT(BR$39,2),SUM($AV73:AV73),0)+IF(RIGHT(BR$39,2)>RIGHT($K73,2),AV73,0)) -> 0 | BS73: =+IF($K73="Ongoing",AW73,IF(RIGHT($K73,2)=RIGHT(BS$39,2),SUM($AV73:AW73),0)+IF(RIGHT(BS$39,2)>RIGHT($K73,2),AW73,0)) -> 0 | BT73: =+IF($K73="Ongoing",AX73,IF(RIGHT($K73,2)=RIGHT(BT$39,2),SUM($AV73:AX73),0)+IF(RIGHT(BT$39,2)>RIGHT($K73,2),AX73,0)) -> 0 | BU73: =+IF($K73="Ongoing",AY73,IF(RIGHT($K73,2)=RIGHT(BU$39,2),SUM($AV73:AY73),0)+IF(RIGHT(BU$39,2)>RIGHT($K73,2),AY73,0)) -> 0 | BV73: =+IF($K73="Ongoing",AZ73,IF(RIGHT($K73,2)=RIGHT(BV$39,2),SUM($AV73:AZ73),0)+IF(RIGHT(BV$39,2)>RIGHT($K73,2),AZ73,0)) -> 1.2 | BW73: =+IF($K73="Ongoing",BA73,IF(RIGHT($K73,2)=RIGHT(BW$39,2),SUM($AV73:BA73),0)+IF(RIGHT(BW$39,2)>RIGHT($K73,2),BA73,0)) -> 0 | BX73: =+IF($K73="Ongoing",BB73,IF(RIGHT($K73,2)=RIGHT(BX$39,2),SUM($AV73:BB73),0)+IF(RIGHT(BX$39,2)>RIGHT($K73,2),BB73,0)) -> 0 | BY73: =+IF($K73="Ongoing",BC73,IF(RIGHT($K73,2)=RIGHT(BY$39,2),SUM($AV73:BC73),0)+IF(RIGHT(BY$39,2)>RIGHT($K73,2),BC73,0)) -> 0 | BZ73: =+IF($K73="Ongoing",BD73,IF(RIGHT($K73,2)=RIGHT(BZ$39,2),SUM($AV73:BD73),0)+IF(RIGHT(BZ$39,2)>RIGHT($K73,2),BD73,0)) -> 0 | CA73: =+IF($K73="Ongoing",BE73,IF(RIGHT($K73,2)=RIGHT(CA$39,2),SUM($AV73:BE73),0)+IF(RIGHT(CA$39,2)>RIGHT($K73,2),BE73,0)) -> 0 | CC73: =+O73*KeyAssumptionsPriceControl_FO!X$15 -> 0 | CD73: =+P73*KeyAssumptionsPriceControl_FO!Y$15 -> 0 | CE73: =+Q73*KeyAssumptionsPriceControl_FO!Z$15 -> 0.02141198334 | CF73: =+R73*KeyAssumptionsPriceControl_FO!AA$15 -> 1.095222948 | CG73: =+S73*KeyAssumptionsPriceControl_FO!AB$15 -> 0.2016743536 | CH73: =+T73*KeyAssumptionsPriceControl_FO!AC$15 -> 0 | CI73: =+U73*KeyAssumptionsPriceControl_FO!AD$15 -> 0 | CJ73: =+V73*KeyAssumptionsPriceControl_FO!AE$15 -> 0 | CK73: =+W73*KeyAssumptionsPriceControl_FO!AF$15 -> 0 | CL73: =+X73*KeyAssumptionsPriceControl_FO!AG$15 -> 0 | CN73: 0 | CO73: 0 | CP73: 0.0001338248959 | CQ73: 0.007112793216 | CR73: 0.01521840135 | CS73: 0.01647886606 | CT73: 0.01647886606 | CU73: 0.01647886606 | CV73: 0.01647886606 | CW73: 0.01647886606
C74: Benalla Sewer Trunk Main - Stage 2 | E74: Sewerage | F74: Growth | G74: Pipelines/network | H74: Capital Programs / Allocation | J74: Straight line | K74: 2024-25 | L74: 80 | M74: 80 | O74: 0 | P74: 0 | Q74: 0 | R74: 0 | S74: 0 | T74: 0.045 | U74: 0.955 | V74: 0 | W74: 0 | X74: 0 | AV74: 0 | AW74: 0 | AX74: 0 | AY74: 0 | AZ74: 0 | BA74: 0.045 | BB74: 0.955 | BC74: 0 | BD74: 0 | BE74: 0 | BG74: 0 | BH74: 0 | BI74: 0 | BJ74: 0 | BK74: 0 | BL74: 0 | BM74: 0.00625 | BN74: 0.0125 | BO74: 0.0125 | BP74: 0.0125 | BR74: =+IF($K74="Ongoing",AV74,IF(RIGHT($K74,2)=RIGHT(BR$39,2),SUM($AV74:AV74),0)+IF(RIGHT(BR$39,2)>RIGHT($K74,2),AV74,0)) -> 0 | BS74: =+IF($K74="Ongoing",AW74,IF(RIGHT($K74,2)=RIGHT(BS$39,2),SUM($AV74:AW74),0)+IF(RIGHT(BS$39,2)>RIGHT($K74,2),AW74,0)) -> 0 | BT74: =+IF($K74="Ongoing",AX74,IF(RIGHT($K74,2)=RIGHT(BT$39,2),SUM($AV74:AX74),0)+IF(RIGHT(BT$39,2)>RIGHT($K74,2),AX74,0)) -> 0 | BU74: =+IF($K74="Ongoing",AY74,IF(RIGHT($K74,2)=RIGHT(BU$39,2),SUM($AV74:AY74),0)+IF(RIGHT(BU$39,2)>RIGHT($K74,2),AY74,0)) -> 0 | BV74: =+IF($K74="Ongoing",AZ74,IF(RIGHT($K74,2)=RIGHT(BV$39,2),SUM($AV74:AZ74),0)+IF(RIGHT(BV$39,2)>RIGHT($K74,2),AZ74,0)) -> 0 | BW74: =+IF($K74="Ongoing",BA74,IF(RIGHT($K74,2)=RIGHT(BW$39,2),SUM($AV74:BA74),0)+IF(RIGHT(BW$39,2)>RIGHT($K74,2),BA74,0)) -> 0 | BX74: =+IF($K74="Ongoing",BB74,IF(RIGHT($K74,2)=RIGHT(BX$39,2),SUM($AV74:BB74),0)+IF(RIGHT(BX$39,2)>RIGHT($K74,2),BB74,0)) -> 1 | BY74: =+IF($K74="Ongoing",BC74,IF(RIGHT($K74,2)=RIGHT(BY$39,2),SUM($AV74:BC74),0)+IF(RIGHT(BY$39,2)>RIGHT($K74,2),BC74,0)) -> 0 | BZ74: =+IF($K74="Ongoing",BD74,IF(RIGHT($K74,2)=RIGHT(BZ$39,2),SUM($AV74:BD74),0)+IF(RIGHT(BZ$39,2)>RIGHT($K74,2),BD74,0)) -> 0 | CA74: =+IF($K74="Ongoing",BE74,IF(RIGHT($K74,2)=RIGHT(CA$39,2),SUM($AV74:BE74),0)+IF(RIGHT(CA$39,2)>RIGHT($K74,2),BE74,0)) -> 0 | CC74: =+O74*KeyAssumptionsPriceControl_FO!X$15 -> 0 | CD74: =+P74*KeyAssumptionsPriceControl_FO!Y$15 -> 0 | CE74: =+Q74*KeyAssumptionsPriceControl_FO!Z$15 -> 0 | CF74: =+R74*KeyAssumptionsPriceControl_FO!AA$15 -> 0 | CG74: =+S74*KeyAssumptionsPriceControl_FO!AB$15 -> 0 | CH74: =+T74*KeyAssumptionsPriceControl_FO!AC$15 -> 0.05157821594 | CI74: =+U74*KeyAssumptionsPriceControl_FO!AD$15 -> 1.119780261 | CJ74: =+V74*KeyAssumptionsPriceControl_FO!AE$15 -> 0 | CK74: =+W74*KeyAssumptionsPriceControl_FO!AF$15 -> 0 | CL74: =+X74*KeyAssumptionsPriceControl_FO!AG$15 -> 0 | CN74: 0 | CO74: 0 | CP74: 0 | CQ74: 0 | CR74: 0 | CS74: 0.0003223638496 | CT74: 0.007643354329 | CU74: 0.01464198096 | CV74: 0.01464198096 | CW74: 0.01464198096
C75: Yackandandah Ground Water Resource Augmentation | E75: Water | F75: Growth | G75: Pipelines/network | H75: Capital Programs / Allocation | J75: Straight line | K75: 2024-25 | L75: 80 | M75: 80 | O75: 0 | P75: 0 | Q75: 0 | R75: 0 | S75: 0 | T75: 0.09 | U75: 0.91 | V75: 0 | W75: 0 | X75: 0 | AV75: 0 | AW75: 0 | AX75: 0 | AY75: 0 | AZ75: 0 | BA75: 0.09 | BB75: 0.91 | BC75: 0 | BD75: 0 | BE75: 0 | BG75: 0 | BH75: 0 | BI75: 0 | BJ75: 0 | BK75: 0 | BL75: 0 | BM75: 0.00625 | BN75: 0.0125 | BO75: 0.0125 | BP75: 0.0125 | BR75: =+IF($K75="Ongoing",AV75,IF(RIGHT($K75,2)=RIGHT(BR$39,2),SUM($AV75:AV75),0)+IF(RIGHT(BR$39,2)>RIGHT($K75,2),AV75,0)) -> 0 | BS75: =+IF($K75="Ongoing",AW75,IF(RIGHT($K75,2)=RIGHT(BS$39,2),SUM($AV75:AW75),0)+IF(RIGHT(BS$39,2)>RIGHT($K75,2),AW75,0)) -> 0 | BT75: =+IF($K75="Ongoing",AX75,IF(RIGHT($K75,2)=RIGHT(BT$39,2),SUM($AV75:AX75),0)+IF(RIGHT(BT$39,2)>RIGHT($K75,2),AX75,0)) -> 0 | BU75: =+IF($K75="Ongoing",AY75,IF(RIGHT($K75,2)=RIGHT(BU$39,2),SUM($AV75:AY75),0)+IF(RIGHT(BU$39,2)>RIGHT($K75,2),AY75,0)) -> 0 | BV75: =+IF($K75="Ongoing",AZ75,IF(RIGHT($K75,2)=RIGHT(BV$39,2),SUM($AV75:AZ75),0)+IF(RIGHT(BV$39,2)>RIGHT($K75,2),AZ75,0)) -> 0 | BW75: =+IF($K75="Ongoing",BA75,IF(RIGHT($K75,2)=RIGHT(BW$39,2),SUM($AV75:BA75),0)+IF(RIGHT(BW$39,2)>RIGHT($K75,2),BA75,0)) -> 0 | BX75: =+IF($K75="Ongoing",BB75,IF(RIGHT($K75,2)=RIGHT(BX$39,2),SUM($AV75:BB75),0)+IF(RIGHT(BX$39,2)>RIGHT($K75,2),BB75,0)) -> 1 | BY75: =+IF($K75="Ongoing",BC75,IF(RIGHT($K75,2)=RIGHT(BY$39,2),SUM($AV75:BC75),0)+IF(RIGHT(BY$39,2)>RIGHT($K75,2),BC75,0)) -> 0 | BZ75: =+IF($K75="Ongoing",BD75,IF(RIGHT($K75,2)=RIGHT(BZ$39,2),SUM($AV75:BD75),0)+IF(RIGHT(BZ$39,2)>RIGHT($K75,2),BD75,0)) -> 0 | CA75: =+IF($K75="Ongoing",BE75,IF(RIGHT($K75,2)=RIGHT(CA$39,2),SUM($AV75:BE75),0)+IF(RIGHT(CA$39,2)>RIGHT($K75,2),BE75,0)) -> 0 | CC75: =+O75*KeyAssumptionsPriceControl_FO!X$15 -> 0 | CD75: =+P75*KeyAssumptionsPriceControl_FO!Y$15 -> 0 | CE75: =+Q75*KeyAssumptionsPriceControl_FO!Z$15 -> 0 | CF75: =+R75*KeyAssumptionsPriceControl_FO!AA$15 -> 0 | CG75: =+S75*KeyAssumptionsPriceControl_FO!AB$15 -> 0 | CH75: =+T75*KeyAssumptionsPriceControl_FO!AC$15 -> 0.1031564319 | CI75: =+U75*KeyAssumptionsPriceControl_FO!AD$15 -> 1.067015746 | CJ75: =+V75*KeyAssumptionsPriceControl_FO!AE$15 -> 0 | CK75: =+W75*KeyAssumptionsPriceControl_FO!AF$15 -> 0 | CL75: =+X75*KeyAssumptionsPriceControl_FO!AG$15 -> 0 | CN75: 0 | CO75: 0 | CP75: 0 | CQ75: 0 | CR75: 0 | CS75: 0.0006447276992 | CT75: 0.00795830381 | CU75: 0.01462715222 | CV75: 0.01462715222 | CW75: 0.01462715222
C76: Wangaratta Nth West Wastewater Expansion | E76: Sewerage | F76: Growth | G76: Pipelines/network | H76: Capital Programs / Allocation | J76: Straight line | K76: 2023-24 | L76: 80 | M76: 80 | O76: 0 | P76: 0 | Q76: 0 | R76: 0 | S76: 0.045 | T76: 0.955 | U76: 0 | V76: 0 | W76: 0 | X76: 0 | AV76: 0 | AW76: 0 | AX76: 0 | AY76: 0 | AZ76: 0.045 | BA76: 0.955 | BB76: 0 | BC76: 0 | BD76: 0 | BE76: 0 | BG76: 0 | BH76: 0 | BI76: 0 | BJ76: 0 | BK76: 0 | BL76: 0.00625 | BM76: 0.0125 | BN76: 0.0125 | BO76: 0.0125 | BP76: 0.0125 | BR76: =+IF($K76="Ongoing",AV76,IF(RIGHT($K76,2)=RIGHT(BR$39,2),SUM($AV76:AV76),0)+IF(RIGHT(BR$39,2)>RIGHT($K76,2),AV76,0)) -> 0 | BS76: =+IF($K76="Ongoing",AW76,IF(RIGHT($K76,2)=RIGHT(BS$39,2),SUM($AV76:AW76),0)+IF(RIGHT(BS$39,2)>RIGHT($K76,2),AW76,0)) -> 0 | BT76: =+IF($K76="Ongoing",AX76,IF(RIGHT($K76,2)=RIGHT(BT$39,2),SUM($AV76:AX76),0)+IF(RIGHT(BT$39,2)>RIGHT($K76,2),AX76,0)) -> 0 | BU76: =+IF($K76="Ongoing",AY76,IF(RIGHT($K76,2)=RIGHT(BU$39,2),SUM($AV76:AY76),0)+IF(RIGHT(BU$39,2)>RIGHT($K76,2),AY76,0)) -> 0 | BV76: =+IF($K76="Ongoing",AZ76,IF(RIGHT($K76,2)=RIGHT(BV$39,2),SUM($AV76:AZ76),0)+IF(RIGHT(BV$39,2)>RIGHT($K76,2),AZ76,0)) -> 0 | BW76: =+IF($K76="Ongoing",BA76,IF(RIGHT($K76,2)=RIGHT(BW$39,2),SUM($AV76:BA76),0)+IF(RIGHT(BW$39,2)>RIGHT($K76,2),BA76,0)) -> 1 | BX76: =+IF($K76="Ongoing",BB76,IF(RIGHT($K76,2)=RIGHT(BX$39,2),SUM($AV76:BB76),0)+IF(RIGHT(BX$39,2)>RIGHT($K76,2),BB76,0)) -> 0 | BY76: =+IF($K76="Ongoing",BC76,IF(RIGHT($K76,2)=RIGHT(BY$39,2),SUM($AV76:BC76),0)+IF(RIGHT(BY$39,2)>RIGHT($K76,2),BC76,0)) -> 0 | BZ76: =+IF($K76="Ongoing",BD76,IF(RIGHT($K76,2)=RIGHT(BZ$39,2),SUM($AV76:BD76),0)+IF(RIGHT(BZ$39,2)>RIGHT($K76,2),BD76,0)) -> 0 | CA76: =+IF($K76="Ongoing",BE76,IF(RIGHT($K76,2)=RIGHT(CA$39,2),SUM($AV76:BE76),0)+IF(RIGHT(CA$39,2)>RIGHT($K76,2),BE76,0)) -> 0 | CC76: =+O76*KeyAssumptionsPriceControl_FO!X$15 -> 0 | CD76: =+P76*KeyAssumptionsPriceControl_FO!Y$15 -> 0 | CE76: =+Q76*KeyAssumptionsPriceControl_FO!Z$15 -> 0 | CF76: =+R76*KeyAssumptionsPriceControl_FO!AA$15 -> 0 | CG76: =+S76*KeyAssumptionsPriceControl_FO!AB$15 -> 0.0504185884 | CH76: =+T76*KeyAssumptionsPriceControl_FO!AC$15 -> 1.09460436 | CI76: =+U76*KeyAssumptionsPriceControl_FO!AD$15 -> 0 | CJ76: =+V76*KeyAssumptionsPriceControl_FO!AE$15 -> 0 | CK76: =+W76*KeyAssumptionsPriceControl_FO!AF$15 -> 0 | CL76: =+X76*KeyAssumptionsPriceControl_FO!AG$15 -> 0 | CN76: 0 | CO76: 0 | CP76: 0 | CQ76: 0 | CR76: 0.0003151161775 | CS76: 0.007471509608 | CT76: 0.01431278686 | CU76: 0.01431278686 | CV76: 0.01431278686 | CW76: 0.01431278686
C77: Region Wide Water Trunk Mains Construction | E77: Water | F77: Growth | G77: Pipelines/network | H77: Capital Programs / Allocation | J77: Straight line | K77: 2022-23 | L77: 80 | M77: 80 | O77: 0 | P77: 0 | Q77: 0 | R77: 0 | S77: 1.007 | T77: 0 | U77: 0 | V77: 0 | W77: 0 | X77: 0 | AV77: 0 | AW77: 0 | AX77: 0 | AY77: 0 | AZ77: 1.007 | BA77: 0 | BB77: 0 | BC77: 0 | BD77: 0 | BE77: 0 | BG77: 0 | BH77: 0 | BI77: 0 | BJ77: 0 | BK77: 0.00629375 | BL77: 0.0125875 | BM77: 0.0125875 | BN77: 0.0125875 | BO77: 0.0125875 | BP77: 0.0125875 | BR77: =+IF($K77="Ongoing",AV77,IF(RIGHT($K77,2)=RIGHT(BR$39,2),SUM($AV77:AV77),0)+IF(RIGHT(BR$39,2)>RIGHT($K77,2),AV77,0)) -> 0 | BS77: =+IF($K77="Ongoing",AW77,IF(RIGHT($K77,2)=RIGHT(BS$39,2),SUM($AV77:AW77),0)+IF(RIGHT(BS$39,2)>RIGHT($K77,2),AW77,0)) -> 0 | BT77: =+IF($K77="Ongoing",AX77,IF(RIGHT($K77,2)=RIGHT(BT$39,2),SUM($AV77:AX77),0)+IF(RIGHT(BT$39,2)>RIGHT($K77,2),AX77,0)) -> 0 | BU77: =+IF($K77="Ongoing",AY77,IF(RIGHT($K77,2)=RIGHT(BU$39,2),SUM($AV77:AY77),0)+IF(RIGHT(BU$39,2)>RIGHT($K77,2),AY77,0)) -> 0 | BV77: =+IF($K77="Ongoing",AZ77,IF(RIGHT($K77,2)=RIGHT(BV$39,2),SUM($AV77:AZ77),0)+IF(RIGHT(BV$39,2)>RIGHT($K77,2),AZ77,0)) -> 1.007 | BW77: =+IF($K77="Ongoing",BA77,IF(RIGHT($K77,2)=RIGHT(BW$39,2),SUM($AV77:BA77),0)+IF(RIGHT(BW$39,2)>RIGHT($K77,2),BA77,0)) -> 0 | BX77: =+IF($K77="Ongoing",BB77,IF(RIGHT($K77,2)=RIGHT(BX$39,2),SUM($AV77:BB77),0)+IF(RIGHT(BX$39,2)>RIGHT($K77,2),BB77,0)) -> 0 | BY77: =+IF($K77="Ongoing",BC77,IF(RIGHT($K77,2)=RIGHT(BY$39,2),SUM($AV77:BC77),0)+IF(RIGHT(BY$39,2)>RIGHT($K77,2),BC77,0)) -> 0 | BZ77: =+IF($K77="Ongoing",BD77,IF(RIGHT($K77,2)=RIGHT(BZ$39,2),SUM($AV77:BD77),0)+IF(RIGHT(BZ$39,2)>RIGHT($K77,2),BD77,0)) -> 0 | CA77: =+IF($K77="Ongoing",BE77,IF(RIGHT($K77,2)=RIGHT(CA$39,2),SUM($AV77:BE77),0)+IF(RIGHT(CA$39,2)>RIGHT($K77,2),BE77,0)) -> 0 | CC77: =+O77*KeyAssumptionsPriceControl_FO!X$15 -> 0 | CD77: =+P77*KeyAssumptionsPriceControl_FO!Y$15 -> 0 | CE77: =+Q77*KeyAssumptionsPriceControl_FO!Z$15 -> 0 | CF77: =+R77*KeyAssumptionsPriceControl_FO!AA$15 -> 0 | CG77: =+S77*KeyAssumptionsPriceControl_FO!AB$15 -> 1.128255967 | CH77: =+T77*KeyAssumptionsPriceControl_FO!AC$15 -> 0 | CI77: =+U77*KeyAssumptionsPriceControl_FO!AD$15 -> 0 | CJ77: =+V77*KeyAssumptionsPriceControl_FO!AE$15 -> 0 | CK77: =+W77*KeyAssumptionsPriceControl_FO!AF$15 -> 0 | CL77: =+X77*KeyAssumptionsPriceControl_FO!AG$15 -> 0 | CN77: 0 | CO77: 0 | CP77: 0 | CQ77: 0 | CR77: 0.007051599795 | CS77: 0.01410319959 | CT77: 0.01410319959 | CU77: 0.01410319959 | CV77: 0.01410319959 | CW77: 0.01410319959
C78: Region Wide GIS System Replacement | E78: Water | F78: Improvements / Compliance | G78: Corporate | H78: Capital Programs / Allocation | J78: Straight line | K78: 2025-26 | L78: 10 | M78: 10 | O78: 0 | P78: 0 | Q78: 0 | R78: 0 | S78: 0.008 | T78: 0.024 | U78: 0.728 | V78: 0.04 | W78: 0 | X78: 0 | AV78: 0 | AW78: 0 | AX78: 0 | AY78: 0 | AZ78: 0.008 | BA78: 0.024 | BB78: 0.728 | BC78: 0.04 | BD78: 0 | BE78: 0 | BG78: 0 | BH78: 0 | BI78: 0 | BJ78: 0 | BK78: 0 | BL78: 0 | BM78: 0 | BN78: 0.04 | BO78: 0.08 | BP78: 0.08 | BR78: =+IF($K78="Ongoing",AV78,IF(RIGHT($K78,2)=RIGHT(BR$39,2),SUM($AV78:AV78),0)+IF(RIGHT(BR$39,2)>RIGHT($K78,2),AV78,0)) -> 0 | BS78: =+IF($K78="Ongoing",AW78,IF(RIGHT($K78,2)=RIGHT(BS$39,2),SUM($AV78:AW78),0)+IF(RIGHT(BS$39,2)>RIGHT($K78,2),AW78,0)) -> 0 | BT78: =+IF($K78="Ongoing",AX78,IF(RIGHT($K78,2)=RIGHT(BT$39,2),SUM($AV78:AX78),0)+IF(RIGHT(BT$39,2)>RIGHT($K78,2),AX78,0)) -> 0 | BU78: =+IF($K78="Ongoing",AY78,IF(RIGHT($K78,2)=RIGHT(BU$39,2),SUM($AV78:AY78),0)+IF(RIGHT(BU$39,2)>RIGHT($K78,2),AY78,0)) -> 0 | BV78: =+IF($K78="Ongoing",AZ78,IF(RIGHT($K78,2)=RIGHT(BV$39,2),SUM($AV78:AZ78),0)+IF(RIGHT(BV$39,2)>RIGHT($K78,2),AZ78,0)) -> 0 | BW78: =+IF($K78="Ongoing",BA78,IF(RIGHT($K78,2)=RIGHT(BW$39,2),SUM($AV78:BA78),0)+IF(RIGHT(BW$39,2)>RIGHT($K78,2),BA78,0)) -> 0 | BX78: =+IF($K78="Ongoing",BB78,IF(RIGHT($K78,2)=RIGHT(BX$39,2),SUM($AV78:BB78),0)+IF(RIGHT(BX$39,2)>RIGHT($K78,2),BB78,0)) -> 0 | BY78: =+IF($K78="Ongoing",BC78,IF(RIGHT($K78,2)=RIGHT(BY$39,2),SUM($AV78:BC78),0)+IF(RIGHT(BY$39,2)>RIGHT($K78,2),BC78,0)) -> 0.8 | BZ78: =+IF($K78="Ongoing",BD78,IF(RIGHT($K78,2)=RIGHT(BZ$39,2),SUM($AV78:BD78),0)+IF(RIGHT(BZ$39,2)>RIGHT($K78,2),BD78,0)) -> 0 | CA78: =+IF($K78="Ongoing",BE78,IF(RIGHT($K78,2)=RIGHT(CA$39,2),SUM($AV78:BE78),0)+IF(RIGHT(CA$39,2)>RIGHT($K78,2),BE78,0)) -> 0 | CC78: =+O78*KeyAssumptionsPriceControl_FO!X$15 -> 0 | CD78: =+P78*KeyAssumptionsPriceControl_FO!Y$15 -> 0 | CE78: =+Q78*KeyAssumptionsPriceControl_FO!Z$15 -> 0 | CF78: =+R78*KeyAssumptionsPriceControl_FO!AA$15 -> 0 | CG78: =+S78*KeyAssumptionsPriceControl_FO!AB$15 -> 0.008963304605 | CH78: =+T78*KeyAssumptionsPriceControl_FO!AC$15 -> 0.02750838183 | CI78: =+U78*KeyAssumptionsPriceControl_FO!AD$15 -> 0.8536125967 | CJ78: =+V78*KeyAssumptionsPriceControl_FO!AE$15 -> 0.04798053222 | CK78: =+W78*KeyAssumptionsPriceControl_FO!AF$15 -> 0 | CL78: =+X78*KeyAssumptionsPriceControl_FO!AG$15 -> 0 | CN78: 0 | CO78: 0 | CP78: 0 | CQ78: 0 | CR78: 0.0004481652303 | CS78: 0.002271749552 | CT78: 0.04632779848 | CU78: 0.09140745492 | CV78: 0.09380648153 | CW78: 0.09380648153
C79: Chiltern Reuse Expansion | E79: Sewerage | F79: Improvements / Compliance | G79: Treatment | H79: Capital Programs / Allocation | J79: Straight line | K79: 2022-23 | L79: 25 | M79: 25 | O79: 0 | P79: 0 | Q79: 0 | R79: 0.015 | S79: 0.735 | T79: 0 | U79: 0 | V79: 0 | W79: 0 | X79: 0 | AV79: 0 | AW79: 0 | AX79: 0 | AY79: 0.015 | AZ79: 0.735 | BA79: 0 | BB79: 0 | BC79: 0 | BD79: 0 | BE79: 0 | BG79: 0 | BH79: 0 | BI79: 0 | BJ79: 0 | BK79: 0.015 | BL79: 0.03 | BM79: 0.03 | BN79: 0.03 | BO79: 0.03 | BP79: 0.03 | BR79: =+IF($K79="Ongoing",AV79,IF(RIGHT($K79,2)=RIGHT(BR$39,2),SUM($AV79:AV79),0)+IF(RIGHT(BR$39,2)>RIGHT($K79,2),AV79,0)) -> 0 | BS79: =+IF($K79="Ongoing",AW79,IF(RIGHT($K79,2)=RIGHT(BS$39,2),SUM($AV79:AW79),0)+IF(RIGHT(BS$39,2)>RIGHT($K79,2),AW79,0)) -> 0 | BT79: =+IF($K79="Ongoing",AX79,IF(RIGHT($K79,2)=RIGHT(BT$39,2),SUM($AV79:AX79),0)+IF(RIGHT(BT$39,2)>RIGHT($K79,2),AX79,0)) -> 0 | BU79: =+IF($K79="Ongoing",AY79,IF(RIGHT($K79,2)=RIGHT(BU$39,2),SUM($AV79:AY79),0)+IF(RIGHT(BU$39,2)>RIGHT($K79,2),AY79,0)) -> 0 | BV79: =+IF($K79="Ongoing",AZ79,IF(RIGHT($K79,2)=RIGHT(BV$39,2),SUM($AV79:AZ79),0)+IF(RIGHT(BV$39,2)>RIGHT($K79,2),AZ79,0)) -> 0.75 | BW79: =+IF($K79="Ongoing",BA79,IF(RIGHT($K79,2)=RIGHT(BW$39,2),SUM($AV79:BA79),0)+IF(RIGHT(BW$39,2)>RIGHT($K79,2),BA79,0)) -> 0 | BX79: =+IF($K79="Ongoing",BB79,IF(RIGHT($K79,2)=RIGHT(BX$39,2),SUM($AV79:BB79),0)+IF(RIGHT(BX$39,2)>RIGHT($K79,2),BB79,0)) -> 0 | BY79: =+IF($K79="Ongoing",BC79,IF(RIGHT($K79,2)=RIGHT(BY$39,2),SUM($AV79:BC79),0)+IF(RIGHT(BY$39,2)>RIGHT($K79,2),BC79,0)) -> 0 | BZ79: =+IF($K79="Ongoing",BD79,IF(RIGHT($K79,2)=RIGHT(BZ$39,2),SUM($AV79:BD79),0)+IF(RIGHT(BZ$39,2)>RIGHT($K79,2),BD79,0)) -> 0 | CA79: =+IF($K79="Ongoing",BE79,IF(RIGHT($K79,2)=RIGHT(CA$39,2),SUM($AV79:BE79),0)+IF(RIGHT(CA$39,2)>RIGHT($K79,2),BE79,0)) -> 0 | CC79: =+O79*KeyAssumptionsPriceControl_FO!X$15 -> 0 | CD79: =+P79*KeyAssumptionsPriceControl_FO!Y$15 -> 0 | CE79: =+Q79*KeyAssumptionsPriceControl_FO!Z$15 -> 0 | CF79: =+R79*KeyAssumptionsPriceControl_FO!AA$15 -> 0.01642834422 | CG79: =+S79*KeyAssumptionsPriceControl_FO!AB$15 -> 0.8235036106 | CH79: =+T79*KeyAssumptionsPriceControl_FO!AC$15 -> 0 | CI79: =+U79*KeyAssumptionsPriceControl_FO!AD$15 -> 0 | CJ79: =+V79*KeyAssumptionsPriceControl_FO!AE$15 -> 0 | CK79: =+W79*KeyAssumptionsPriceControl_FO!AF$15 -> 0 | CL79: =+X79*KeyAssumptionsPriceControl_FO!AG$15 -> 0 | CN79: 0 | CO79: 0 | CP79: 0 | CQ79: 0.0003285668844 | CR79: 0.01712720598 | CS79: 0.03359727819 | CT79: 0.03359727819 | CU79: 0.03359727819 | CV79: 0.03359727819 | CW79: 0.03359727819
C80: Region Wide Water & Wastewater Optimisation | E80: Water | F80: Improvements / Compliance | G80: Corporate | H80: Capital Programs / Allocation | J80: Straight line | K80: 2025-26 | L80: 25 | M80: 25 | O80: 0.16 | P80: 0.11 | Q80: 0.06 | R80: 0.12 | S80: 0.11 | T80: 0.06 | U80: 0.06 | V80: 0.06 | W80: 0.14 | X80: 0.06 | AV80: 0.16 | AW80: 0.11 | AX80: 0.06 | AY80: 0.12 | AZ80: 0.11 | BA80: 0.06 | BB80: 0.06 | BC80: 0.06 | BD80: 0.14 | BE80: 0.06 | BG80: 0 | BH80: 0 | BI80: 0 | BJ80: 0 | BK80: 0 | BL80: 0 | BM80: 0 | BN80: 0.0148 | BO80: 0.0324 | BP80: 0.0364 | BR80: =+IF($K80="Ongoing",AV80,IF(RIGHT($K80,2)=RIGHT(BR$39,2),SUM($AV80:AV80),0)+IF(RIGHT(BR$39,2)>RIGHT($K80,2),AV80,0)) -> 0 | BS80: =+IF($K80="Ongoing",AW80,IF(RIGHT($K80,2)=RIGHT(BS$39,2),SUM($AV80:AW80),0)+IF(RIGHT(BS$39,2)>RIGHT($K80,2),AW80,0)) -> 0 | BT80: =+IF($K80="Ongoing",AX80,IF(RIGHT($K80,2)=RIGHT(BT$39,2),SUM($AV80:AX80),0)+IF(RIGHT(BT$39,2)>RIGHT($K80,2),AX80,0)) -> 0 | BU80: =+IF($K80="Ongoing",AY80,IF(RIGHT($K80,2)=RIGHT(BU$39,2),SUM($AV80:AY80),0)+IF(RIGHT(BU$39,2)>RIGHT($K80,2),AY80,0)) -> 0 | BV80: =+IF($K80="Ongoing",AZ80,IF(RIGHT($K80,2)=RIGHT(BV$39,2),SUM($AV80:AZ80),0)+IF(RIGHT(BV$39,2)>RIGHT($K80,2),AZ80,0)) -> 0 | BW80: =+IF($K80="Ongoing",BA80,IF(RIGHT($K80,2)=RIGHT(BW$39,2),SUM($AV80:BA80),0)+IF(RIGHT(BW$39,2)>RIGHT($K80,2),BA80,0)) -> 0 | BX80: =+IF($K80="Ongoing",BB80,IF(RIGHT($K80,2)=RIGHT(BX$39,2),SUM($AV80:BB80),0)+IF(RIGHT(BX$39,2)>RIGHT($K80,2),BB80,0)) -> 0 | BY80: =+IF($K80="Ongoing",BC80,IF(RIGHT($K80,2)=RIGHT(BY$39,2),SUM($AV80:BC80),0)+IF(RIGHT(BY$39,2)>RIGHT($K80,2),BC80,0)) -> 0.74 | BZ80: =+IF($K80="Ongoing",BD80,IF(RIGHT($K80,2)=RIGHT(BZ$39,2),SUM($AV80:BD80),0)+IF(RIGHT(BZ$39,2)>RIGHT($K80,2),BD80,0)) -> 0.14 | CA80: =+IF($K80="Ongoing",BE80,IF(RIGHT($K80,2)=RIGHT(CA$39,2),SUM($AV80:BE80),0)+IF(RIGHT(CA$39,2)>RIGHT($K80,2),BE80,0)) -> 0.06 | CC80: =+O80*KeyAssumptionsPriceControl_FO!X$15 -> 0.16368 | CD80: =+P80*KeyAssumptionsPriceControl_FO!Y$15 -> 0.11511819 | CE80: =+Q80*KeyAssumptionsPriceControl_FO!Z$15 -> 0.06423595002 | CF80: =+R80*KeyAssumptionsPriceControl_FO!AA$15 -> 0.1314267537 | CG80: =+S80*KeyAssumptionsPriceControl_FO!AB$15 -> 0.1232454383 | CH80: =+T80*KeyAssumptionsPriceControl_FO!AC$15 -> 0.06877095458 | CI80: =+U80*KeyAssumptionsPriceControl_FO!AD$15 -> 0.07035268654 | CJ80: =+V80*KeyAssumptionsPriceControl_FO!AE$15 -> 0.07197079833 | CK80: =+W80*KeyAssumptionsPriceControl_FO!AF$15 -> 0.1717942956 | CL80: =+X80*KeyAssumptionsPriceControl_FO!AG$15 -> 0.0753195276 | CN80: 0.0032736 | CO80: 0.0088495638 | CP80: 0.0124366466 | CQ80: 0.01634990068 | CR80: 0.02144334452 | CS80: 0.02528367237 | CT80: 0.0280661452 | CU80: 0.03091261489 | CV80: 0.03578791677 | CW80: 0.04073019324
C81: Yarrawonga WTP Upgrade | E81: Water | F81: Improvements / Compliance | G81: Treatment | H81: Capital Programs / Allocation | J81: Straight line | K81: 2021-22 | L81: 25 | M81: 25 | O81: 0.00735 | P81: 0.0441 | Q81: 0.5145 | R81: 0.16905 | S81: 0 | T81: 0 | U81: 0 | V81: 0 | W81: 0 | X81: 0 | AV81: 0.00735 | AW81: 0.0441 | AX81: 0.5145 | AY81: 0.16905 | AZ81: 0 | BA81: 0 | BB81: 0 | BC81: 0 | BD81: 0 | BE81: 0 | BG81: 0 | BH81: 0 | BI81: 0 | BJ81: 0.0147 | BK81: 0.0294 | BL81: 0.0294 | BM81: 0.0294 | BN81: 0.0294 | BO81: 0.0294 | BP81: 0.0294 | BR81: =+IF($K81="Ongoing",AV81,IF(RIGHT($K81,2)=RIGHT(BR$39,2),SUM($AV81:AV81),0)+IF(RIGHT(BR$39,2)>RIGHT($K81,2),AV81,0)) -> 0 | BS81: =+IF($K81="Ongoing",AW81,IF(RIGHT($K81,2)=RIGHT(BS$39,2),SUM($AV81:AW81),0)+IF(RIGHT(BS$39,2)>RIGHT($K81,2),AW81,0)) -> 0 | BT81: =+IF($K81="Ongoing",AX81,IF(RIGHT($K81,2)=RIGHT(BT$39,2),SUM($AV81:AX81),0)+IF(RIGHT(BT$39,2)>RIGHT($K81,2),AX81,0)) -> 0 | BU81: =+IF($K81="Ongoing",AY81,IF(RIGHT($K81,2)=RIGHT(BU$39,2),SUM($AV81:AY81),0)+IF(RIGHT(BU$39,2)>RIGHT($K81,2),AY81,0)) -> 0.735 | BV81: =+IF($K81="Ongoing",AZ81,IF(RIGHT($K81,2)=RIGHT(BV$39,2),SUM($AV81:AZ81),0)+IF(RIGHT(BV$39,2)>RIGHT($K81,2),AZ81,0)) -> 0 | BW81: =+IF($K81="Ongoing",BA81,IF(RIGHT($K81,2)=RIGHT(BW$39,2),SUM($AV81:BA81),0)+IF(RIGHT(BW$39,2)>RIGHT($K81,2),BA81,0)) -> 0 | BX81: =+IF($K81="Ongoing",BB81,IF(RIGHT($K81,2)=RIGHT(BX$39,2),SUM($AV81:BB81),0)+IF(RIGHT(BX$39,2)>RIGHT($K81,2),BB81,0)) -> 0 | BY81: =+IF($K81="Ongoing",BC81,IF(RIGHT($K81,2)=RIGHT(BY$39,2),SUM($AV81:BC81),0)+IF(RIGHT(BY$39,2)>RIGHT($K81,2),BC81,0)) -> 0 | BZ81: =+IF($K81="Ongoing",BD81,IF(RIGHT($K81,2)=RIGHT(BZ$39,2),SUM($AV81:BD81),0)+IF(RIGHT(BZ$39,2)>RIGHT($K81,2),BD81,0)) -> 0 | CA81: =+IF($K81="Ongoing",BE81,IF(RIGHT($K81,2)=RIGHT(CA$39,2),SUM($AV81:BE81),0)+IF(RIGHT(CA$39,2)>RIGHT($K81,2),BE81,0)) -> 0 | CC81: =+O81*KeyAssumptionsPriceControl_FO!X$15 -> 0.00751905 | CD81: =+P81*KeyAssumptionsPriceControl_FO!Y$15 -> 0.0461519289 | CE81: =+Q81*KeyAssumptionsPriceControl_FO!Z$15 -> 0.5508232714 | CF81: =+R81*KeyAssumptionsPriceControl_FO!AA$15 -> 0.1851474393 | CG81: =+S81*KeyAssumptionsPriceControl_FO!AB$15 -> 0 | CH81: =+T81*KeyAssumptionsPriceControl_FO!AC$15 -> 0 | CI81: =+U81*KeyAssumptionsPriceControl_FO!AD$15 -> 0 | CJ81: =+V81*KeyAssumptionsPriceControl_FO!AE$15 -> 0 | CK81: =+W81*KeyAssumptionsPriceControl_FO!AF$15 -> 0 | CL81: =+X81*KeyAssumptionsPriceControl_FO!AG$15 -> 0 | CN81: 0.000150381 | CO81: 0.001223800578 | CP81: 0.01316330458 | CQ81: 0.0278827188 | CR81: 0.03158566759 | CS81: 0.03158566759 | CT81: 0.03158566759 | CU81: 0.03158566759 | CV81: 0.03158566759 | CW81: 0.03158566759
C82: Porepunkah Security of Supply | E82: Water | F82: Improvements / Compliance | G82: Pipelines/network | H82: Capital Programs / Allocation | J82: Straight line | K82: 2022-23 | L82: 80 | M82: 80 | O82: 0 | P82: 0 | Q82: 0 | R82: 0.0315 | S82: 0.6685 | T82: 0 | U82: 0 | V82: 0 | W82: 0 | X82: 0 | AV82: 0 | AW82: =+P82-AA82-AL82 -> 0 | AX82: 0 | AY82: 0.0315 | AZ82: 0.6685 | BA82: 0 | BB82: 0 | BC82: 0 | BD82: 0 | BE82: 0 | BG82: 0 | BH82: 0 | BI82: 0 | BJ82: 0 | BK82: 0.004375 | BL82: 0.00875 | BM82: 0.00875 | BN82: 0.00875 | BO82: 0.00875 | BP82: 0.00875 | BR82: =+IF($K82="Ongoing",AV82,IF(RIGHT($K82,2)=RIGHT(BR$39,2),SUM($AV82:AV82),0)+IF(RIGHT(BR$39,2)>RIGHT($K82,2),AV82,0)) -> 0 | BS82: =+IF($K82="Ongoing",AW82,IF(RIGHT($K82,2)=RIGHT(BS$39,2),SUM($AV82:AW82),0)+IF(RIGHT(BS$39,2)>RIGHT($K82,2),AW82,0)) -> 0 | BT82: =+IF($K82="Ongoing",AX82,IF(RIGHT($K82,2)=RIGHT(BT$39,2),SUM($AV82:AX82),0)+IF(RIGHT(BT$39,2)>RIGHT($K82,2),AX82,0)) -> 0 | BU82: =+IF($K82="Ongoing",AY82,IF(RIGHT($K82,2)=RIGHT(BU$39,2),SUM($AV82:AY82),0)+IF(RIGHT(BU$39,2)>RIGHT($K82,2),AY82,0)) -> 0 | BV82: =+IF($K82="Ongoing",AZ82,IF(RIGHT($K82,2)=RIGHT(BV$39,2),SUM($AV82:AZ82),0)+IF(RIGHT(BV$39,2)>RIGHT($K82,2),AZ82,0)) -> 0.7 | BW82: =+IF($K82="Ongoing",BA82,IF(RIGHT($K82,2)=RIGHT(BW$39,2),SUM($AV82:BA82),0)+IF(RIGHT(BW$39,2)>RIGHT($K82,2),BA82,0)) -> 0 | BX82: =+IF($K82="Ongoing",BB82,IF(RIGHT($K82,2)=RIGHT(BX$39,2),SUM($AV82:BB82),0)+IF(RIGHT(BX$39,2)>RIGHT($K82,2),BB82,0)) -> 0 | BY82: =+IF($K82="Ongoing",BC82,IF(RIGHT($K82,2)=RIGHT(BY$39,2),SUM($AV82:BC82),0)+IF(RIGHT(BY$39,2)>RIGHT($K82,2),BC82,0)) -> 0 | BZ82: =+IF($K82="Ongoing",BD82,IF(RIGHT($K82,2)=RIGHT(BZ$39,2),SUM($AV82:BD82),0)+IF(RIGHT(BZ$39,2)>RIGHT($K82,2),BD82,0)) -> 0 | CA82: =+IF($K82="Ongoing",BE82,IF(RIGHT($K82,2)=RIGHT(CA$39,2),SUM($AV82:BE82),0)+IF(RIGHT(CA$39,2)>RIGHT($K82,2),BE82,0)) -> 0 | CC82: =+O82*KeyAssumptionsPriceControl_FO!X$15 -> 0 | CD82: =+P82*KeyAssumptionsPriceControl_FO!Y$15 -> 0 | CE82: =+Q82*KeyAssumptionsPriceControl_FO!Z$15 -> 0 | CF82: =+R82*KeyAssumptionsPriceControl_FO!AA$15 -> 0.03449952286 | CG82: =+S82*KeyAssumptionsPriceControl_FO!AB$15 -> 0.7489961411 | CH82: =+T82*KeyAssumptionsPriceControl_FO!AC$15 -> 0 | CI82: =+U82*KeyAssumptionsPriceControl_FO!AD$15 -> 0 | CJ82: =+V82*KeyAssumptionsPriceControl_FO!AE$15 -> 0 | CK82: =+W82*KeyAssumptionsPriceControl_FO!AF$15 -> 0 | CL82: =+X82*KeyAssumptionsPriceControl_FO!AG$15 -> 0 | CN82: 0 | CO82: 0 | CP82: 0 | CQ82: 0.0002156220179 | CR82: 0.005112469917 | CS82: 0.009793695799 | CT82: 0.009793695799 | CU82: 0.009793695799 | CV82: 0.009793695799 | CW82: 0.009793695799
C83: Region Wide Health & Safety Improvements | E83: Water | F83: Improvements / Compliance | G83: Corporate | H83: Capital Programs / Allocation | J83: Straight line | K83: Ongoing | L83: 10 | M83: 10 | O83: 0.08 | P83: 0.08 | Q83: 0.08 | R83: 0.08 | S83: 0.08 | T83: 0.08 | U83: 0.08 | V83: 0.08 | W83: 0.08 | X83: 0.08 | AV83: =+O83-Z83-AK83 -> 0.08 | AW83: 0.08 | AX83: 0.08 | AY83: 0.08 | AZ83: 0.08 | BA83: 0.08 | BB83: 0.08 | BC83: 0.08 | BD83: 0.08 | BE83: 0.08 | BG83: 0.004 | BH83: 0.012 | BI83: 0.02 | BJ83: 0.028 | BK83: 0.036 | BL83: 0.044 | BM83: 0.052 | BN83: 0.06 | BO83: 0.068 | BP83: 0.076 | BR83: =+IF($K83="Ongoing",AV83,IF(RIGHT($K83,2)=RIGHT(BR$39,2),SUM($AV83:AV83),0)+IF(RIGHT(BR$39,2)>RIGHT($K83,2),AV83,0)) -> 0.08 | BS83: =+IF($K83="Ongoing",AW83,IF(RIGHT($K83,2)=RIGHT(BS$39,2),SUM($AV83:AW83),0)+IF(RIGHT(BS$39,2)>RIGHT($K83,2),AW83,0)) -> 0.08 | BT83: =+IF($K83="Ongoing",AX83,IF(RIGHT($K83,2)=RIGHT(BT$39,2),SUM($AV83:AX83),0)+IF(RIGHT(BT$39,2)>RIGHT($K83,2),AX83,0)) -> 0.08 | BU83: =+IF($K83="Ongoing",AY83,IF(RIGHT($K83,2)=RIGHT(BU$39,2),SUM($AV83:AY83),0)+IF(RIGHT(BU$39,2)>RIGHT($K83,2),AY83,0)) -> 0.08 | BV83: =+IF($K83="Ongoing",AZ83,IF(RIGHT($K83,2)=RIGHT(BV$39,2),SUM($AV83:AZ83),0)+IF(RIGHT(BV$39,2)>RIGHT($K83,2),AZ83,0)) -> 0.08 | BW83: =+IF($K83="Ongoing",BA83,IF(RIGHT($K83,2)=RIGHT(BW$39,2),SUM($AV83:BA83),0)+IF(RIGHT(BW$39,2)>RIGHT($K83,2),BA83,0)) -> 0.08 | BX83: =+IF($K83="Ongoing",BB83,IF(RIGHT($K83,2)=RIGHT(BX$39,2),SUM($AV83:BB83),0)+IF(RIGHT(BX$39,2)>RIGHT($K83,2),BB83,0)) -> 0.08 | BY83: =+IF($K83="Ongoing",BC83,IF(RIGHT($K83,2)=RIGHT(BY$39,2),SUM($AV83:BC83),0)+IF(RIGHT(BY$39,2)>RIGHT($K83,2),BC83,0)) -> 0.08 | BZ83: =+IF($K83="Ongoing",BD83,IF(RIGHT($K83,2)=RIGHT(BZ$39,2),SUM($AV83:BD83),0)+IF(RIGHT(BZ$39,2)>RIGHT($K83,2),BD83,0)) -> 0.08 | CA83: =+IF($K83="Ongoing",BE83,IF(RIGHT($K83,2)=RIGHT(CA$39,2),SUM($AV83:BE83),0)+IF(RIGHT(CA$39,2)>RIGHT($K83,2),BE83,0)) -> 0.08 | CC83: =+O83*KeyAssumptionsPriceControl_FO!X$15 -> 0.08184 | CD83: =+P83*KeyAssumptionsPriceControl_FO!Y$15 -> 0.08372232 | CE83: =+Q83*KeyAssumptionsPriceControl_FO!Z$15 -> 0.08564793336 | CF83: =+R83*KeyAssumptionsPriceControl_FO!AA$15 -> 0.08761783583 | CG83: =+S83*KeyAssumptionsPriceControl_FO!AB$15 -> 0.08963304605 | CH83: =+T83*KeyAssumptionsPriceControl_FO!AC$15 -> 0.09169460611 | CI83: =+U83*KeyAssumptionsPriceControl_FO!AD$15 -> 0.09380358205 | CJ83: =+V83*KeyAssumptionsPriceControl_FO!AE$15 -> 0.09596106444 | CK83: =+W83*KeyAssumptionsPriceControl_FO!AF$15 -> 0.09816816892 | CL83: =+X83*KeyAssumptionsPriceControl_FO!AG$15 -> 0.1004260368 | CN83: 0.004092 | CO83: 0.012370116 | CP83: 0.02083862867 | CQ83: 0.02950191713 | CR83: 0.03836446122 | CS83: 0.04743084383 | CT83: 0.05670575324 | CU83: 0.06619398556 | CV83: 0.07590044723 | CW83: 0.08583015752
C84: Wangaratta WTP Minor Upgrade | E84: Water | F84: Improvements / Compliance | G84: Treatment | H84: Capital Programs / Allocation | J84: Straight line | K84: 2018-19 | L84: 25 | M84: 25 | O84: 0.6 | P84: 0 | Q84: 0 | R84: 0 | S84: 0 | T84: 0 | U84: 0 | V84: 0 | W84: 0 | X84: 0 | AV84: 0.6 | AW84: 0 | AX84: 0 | AY84: 0 | AZ84: 0 | BA84: 0 | BB84: 0 | BC84: 0 | BD84: 0 | BE84: 0 | BG84: 0.012 | BH84: 0.024 | BI84: 0.024 | BJ84: 0.024 | BK84: 0.024 | BL84: 0.024 | BM84: 0.024 | BN84: 0.024 | BO84: =IF($L84=0,0, IF($L84<=0.5,BZ84, IF(AND($J84="straight line",$L84<1.51),(BY84-((BY84/$L84)*0.5))+BZ84/$L84*0.5, IF($J84="straight line", IF((LEFT(BO$39,4)*1)-INT($L84)<LEFT($BG$39,4)*1,0,((OFFSET(BZ84,0,-INT($L84+0.5),1,1))/$L84)*(IF($L84-INT($L84)>0.5,$L84-0.5-INT($L84),IF($L84-INT($L84)<=0.5,$L84-0.5-INT($L84)+1,0)))) +BZ84/$L84*0.5 +SUM(OFFSET(BZ84,0,MAX(-INT($L84+(0.5-(10^-12))),-BO$40)+1,1,MIN(INT($L84+(0.5-(10^-12))),BO$40)-1))*1/$L84, IF($J84="Declining Balance",-$BG$38,0))))) -> 0.024 | BP84: 0.024 | BR84: =+IF($K84="Ongoing",AV84,IF(RIGHT($K84,2)=RIGHT(BR$39,2),SUM($AV84:AV84),0)+IF(RIGHT(BR$39,2)>RIGHT($K84,2),AV84,0)) -> 0.6 | BS84: =+IF($K84="Ongoing",AW84,IF(RIGHT($K84,2)=RIGHT(BS$39,2),SUM($AV84:AW84),0)+IF(RIGHT(BS$39,2)>RIGHT($K84,2),AW84,0)) -> 0 | BT84: =+IF($K84="Ongoing",AX84,IF(RIGHT($K84,2)=RIGHT(BT$39,2),SUM($AV84:AX84),0)+IF(RIGHT(BT$39,2)>RIGHT($K84,2),AX84,0)) -> 0 | BU84: =+IF($K84="Ongoing",AY84,IF(RIGHT($K84,2)=RIGHT(BU$39,2),SUM($AV84:AY84),0)+IF(RIGHT(BU$39,2)>RIGHT($K84,2),AY84,0)) -> 0 | BV84: =+IF($K84="Ongoing",AZ84,IF(RIGHT($K84,2)=RIGHT(BV$39,2),SUM($AV84:AZ84),0)+IF(RIGHT(BV$39,2)>RIGHT($K84,2),AZ84,0)) -> 0 | BW84: =+IF($K84="Ongoing",BA84,IF(RIGHT($K84,2)=RIGHT(BW$39,2),SUM($AV84:BA84),0)+IF(RIGHT(BW$39,2)>RIGHT($K84,2),BA84,0)) -> 0 | BX84: =+IF($K84="Ongoing",BB84,IF(RIGHT($K84,2)=RIGHT(BX$39,2),SUM($AV84:BB84),0)+IF(RIGHT(BX$39,2)>RIGHT($K84,2),BB84,0)) -> 0 | BY84: =+IF($K84="Ongoing",BC84,IF(RIGHT($K84,2)=RIGHT(BY$39,2),SUM($AV84:BC84),0)+IF(RIGHT(BY$39,2)>RIGHT($K84,2),BC84,0)) -> 0 | BZ84: =+IF($K84="Ongoing",BD84,IF(RIGHT($K84,2)=RIGHT(BZ$39,2),SUM($AV84:BD84),0)+IF(RIGHT(BZ$39,2)>RIGHT($K84,2),BD84,0)) -> 0 | CA84: =+IF($K84="Ongoing",BE84,IF(RIGHT($K84,2)=RIGHT(CA$39,2),SUM($AV84:BE84),0)+IF(RIGHT(CA$39,2)>RIGHT($K84,2),BE84,0)) -> 0 | CC84: =+O84*KeyAssumptionsPriceControl_FO!X$15 -> 0.6138 | CD84: =+P84*KeyAssumptionsPriceControl_FO!Y$15 -> 0 | CE84: =+Q84*KeyAssumptionsPriceControl_FO!Z$15 -> 0 | CF84: =+R84*KeyAssumptionsPriceControl_FO!AA$15 -> 0 | CG84: =+S84*KeyAssumptionsPriceControl_FO!AB$15 -> 0 | CH84: =+T84*KeyAssumptionsPriceControl_FO!AC$15 -> 0 | CI84: =+U84*KeyAssumptionsPriceControl_FO!AD$15 -> 0 | CJ84: =+V84*KeyAssumptionsPriceControl_FO!AE$15 -> 0 | CK84: =+W84*KeyAssumptionsPriceControl_FO!AF$15 -> 0 | CL84: =+X84*KeyAssumptionsPriceControl_FO!AG$15 -> 0 | CN84: 0.012276 | CO84: 0.024552 | CP84: 0.024552 | CQ84: 0.024552 | CR84: 0.024552 | CS84: 0.024552 | CT84: 0.024552 | CU84: 0.024552 | CV84: =IF($M84=0,0, IF($M84<=0.5,CK84, IF(AND($J84="straight line",$M84<1.51),(CJ84-((CJ84/$M84)*0.5))+CK84/$M84*0.5, IF($J84="straight line", IF((LEFT(CV$39,4)*1)-INT($M84)<LEFT($CN$39,4)*1,0,((OFFSET(CK84,0,-INT($M84+0.5),1,1))/$M84)*(IF($M84-INT($M84)>0.5,$M84-0.5-INT($M84),IF($M84-INT($M84)<=0.5,$M84-0.5-INT($M84)+1,0)))) +CK84/$M84*0.5 +SUM(OFFSET(CK84,0,MAX(-INT($M84+(0.5-(10^-12))),-CV$40)+1,1,MIN(INT($M84+(0.5-(10^-12))),CV$40)-1))*1/$M84, IF($J84="Declining Balance",-$CN$38,0))))) -> 0.024552 | CW84: 0.024552
C85: Region Wide Customer Online Applications | E85: Water | F85: Improvements / Compliance | G85: Corporate | H85: Capital Programs / Allocation | J85: Straight line | K85: 2025-26 | L85: 10 | M85: 10 | O85: 0 | P85: 0 | Q85: 0 | R85: 0 | S85: 0 | T85: 0.005 | U85: 0.015 | V85: 0.48 | W85: 0 | X85: 0 | AV85: 0 | AW85: 0 | AX85: 0 | AY85: 0 | AZ85: 0 | BA85: 0.005 | BB85: 0.015 | BC85: 0.48 | BD85: 0 | BE85: 0 | BG85: 0 | BH85: =IF($L85=0,0, IF($L85<=0.5,BS85, IF(AND($J85="straight line",$L85<1.51),(BR85-((BR85/$L85)*0.5))+BS85/$L85*0.5, IF($J85="straight line", IF((LEFT(BH$39,4)*1)-INT($L85)<LEFT($BG$39,4)*1,0,((OFFSET(BS85,0,-INT($L85+0.5),1,1))/$L85)*(IF($L85-INT($L85)>0.5,$L85-0.5-INT($L85),IF($L85-INT($L85)<=0.5,$L85-0.5-INT($L85)+1,0)))) +BS85/$L85*0.5 +SUM(OFFSET(BS85,0,MAX(-INT($L85+(0.5-(10^-12))),-BH$40)+1,1,MIN(INT($L85+(0.5-(10^-12))),BH$40)-1))*1/$L85, IF($J85="Declining Balance",-$BG$38,0))))) -> 0 | BI85: 0 | BJ85: 0 | BK85: 0 | BL85: 0 | BM85: 0 | BN85: 0.025 | BO85: 0.05 | BP85: 0.05 | BR85: =+IF($K85="Ongoing",AV85,IF(RIGHT($K85,2)=RIGHT(BR$39,2),SUM($AV85:AV85),0)+IF(RIGHT(BR$39,2)>RIGHT($K85,2),AV85,0)) -> 0 | BS85: =+IF($K85="Ongoing",AW85,IF(RIGHT($K85,2)=RIGHT(BS$39,2),SUM($AV85:AW85),0)+IF(RIGHT(BS$39,2)>RIGHT($K85,2),AW85,0)) -> 0 | BT85: =+IF($K85="Ongoing",AX85,IF(RIGHT($K85,2)=RIGHT(BT$39,2),SUM($AV85:AX85),0)+IF(RIGHT(BT$39,2)>RIGHT($K85,2),AX85,0)) -> 0 | BU85: =+IF($K85="Ongoing",AY85,IF(RIGHT($K85,2)=RIGHT(BU$39,2),SUM($AV85:AY85),0)+IF(RIGHT(BU$39,2)>RIGHT($K85,2),AY85,0)) -> 0 | BV85: =+IF($K85="Ongoing",AZ85,IF(RIGHT($K85,2)=RIGHT(BV$39,2),SUM($AV85:AZ85),0)+IF(RIGHT(BV$39,2)>RIGHT($K85,2),AZ85,0)) -> 0 | BW85: =+IF($K85="Ongoing",BA85,IF(RIGHT($K85,2)=RIGHT(BW$39,2),SUM($AV85:BA85),0)+IF(RIGHT(BW$39,2)>RIGHT($K85,2),BA85,0)) -> 0 | BX85: =+IF($K85="Ongoing",BB85,IF(RIGHT($K85,2)=RIGHT(BX$39,2),SUM($AV85:BB85),0)+IF(RIGHT(BX$39,2)>RIGHT($K85,2),BB85,0)) -> 0 | BY85: =+IF($K85="Ongoing",BC85,IF(RIGHT($K85,2)=RIGHT(BY$39,2),SUM($AV85:BC85),0)+IF(RIGHT(BY$39,2)>RIGHT($K85,2),BC85,0)) -> 0.5 | BZ85: =+IF($K85="Ongoing",BD85,IF(RIGHT($K85,2)=RIGHT(BZ$39,2),SUM($AV85:BD85),0)+IF(RIGHT(BZ$39,2)>RIGHT($K85,2),BD85,0)) -> 0 | CA85: =+IF($K85="Ongoing",BE85,IF(RIGHT($K85,2)=RIGHT(CA$39,2),SUM($AV85:BE85),0)+IF(RIGHT(CA$39,2)>RIGHT($K85,2),BE85,0)) -> 0 | CC85: =+O85*KeyAssumptionsPriceControl_FO!X$15 -> 0 | CD85: =+P85*KeyAssumptionsPriceControl_FO!Y$15 -> 0 | CE85: =+Q85*KeyAssumptionsPriceControl_FO!Z$15 -> 0 | CF85: =+R85*KeyAssumptionsPriceControl_FO!AA$15 -> 0 | CG85: =+S85*KeyAssumptionsPriceControl_FO!AB$15 -> 0 | CH85: =+T85*KeyAssumptionsPriceControl_FO!AC$15 -> 0.005730912882 | CI85: =+U85*KeyAssumptionsPriceControl_FO!AD$15 -> 0.01758817163 | CJ85: =+V85*KeyAssumptionsPriceControl_FO!AE$15 -> 0.5757663866 | CK85: =+W85*KeyAssumptionsPriceControl_FO!AF$15 -> 0 | CL85: =+X85*KeyAssumptionsPriceControl_FO!AG$15 -> 0 | CN85: 0 | CO85: =IF($M85=0,0, IF($M85<=0.5,CD85, IF(AND($J85="straight line",$M85<1.51),(CC85-((CC85/$M85)*0.5))+CD85/$M85*0.5, IF($J85="straight line", IF((LEFT(CO$39,4)*1)-INT($M85)<LEFT($CN$39,4)*1,0,((OFFSET(CD85,0,-INT($M85+0.5),1,1))/$M85)*(IF($M85-INT($M85)>0.5,$M85-0.5-INT($M85),IF($M85-INT($M85)<=0.5,$M85-0.5-INT($M85)+1,0)))) +CD85/$M85*0.5 +SUM(OFFSET(CD85,0,MAX(-INT($M85+(0.5-(10^-12))),-CO$40)+1,1,MIN(INT($M85+(0.5-(10^-12))),CO$40)-1))*1/$M85, IF($J85="Declining Balance",-$CN$38,0))))) -> 0 | CP85: 0 | CQ85: 0 | CR85: 0 | CS85: 0.0002865456441 | CT85: 0.00145249987 | CU85: 0.03112022778 | CV85: 0.05990854711 | CW85: 0.05990854711
C86: Region Wide Partnerships in Education | E86: Water | F86: Improvements / Compliance | G86: Corporate | H86: Capital Programs / Allocation | J86: Straight line | K86: 2023-24 | L86: 0 | M86: 0 | O86: 0 | P86: 0 | Q86: 0 | R86: 0.005 | S86: 0.015 | T86: 0.48 | U86: 0 | V86: 0 | W86: 0 | X86: 0 | AV86: 0 | AW86: 0 | AX86: 0 | AY86: 0.005 | AZ86: 0.015 | BA86: 0.48 | BB86: 0 | BC86: 0 | BD86: 0 | BE86: 0 | BG86: 0 | BH86: 0 | BI86: 0 | BJ86: 0 | BK86: 0 | BL86: 0 | BM86: 0 | BN86: 0 | BO86: 0 | BP86: 0 | BR86: =+IF($K86="Ongoing",AV86,IF(RIGHT($K86,2)=RIGHT(BR$39,2),SUM($AV86:AV86),0)+IF(RIGHT(BR$39,2)>RIGHT($K86,2),AV86,0)) -> 0 | BS86: =+IF($K86="Ongoing",AW86,IF(RIGHT($K86,2)=RIGHT(BS$39,2),SUM($AV86:AW86),0)+IF(RIGHT(BS$39,2)>RIGHT($K86,2),AW86,0)) -> 0 | BT86: =+IF($K86="Ongoing",AX86,IF(RIGHT($K86,2)=RIGHT(BT$39,2),SUM($AV86:AX86),0)+IF(RIGHT(BT$39,2)>RIGHT($K86,2),AX86,0)) -> 0 | BU86: =+IF($K86="Ongoing",AY86,IF(RIGHT($K86,2)=RIGHT(BU$39,2),SUM($AV86:AY86),0)+IF(RIGHT(BU$39,2)>RIGHT($K86,2),AY86,0)) -> 0 | BV86: =+IF($K86="Ongoing",AZ86,IF(RIGHT($K86,2)=RIGHT(BV$39,2),SUM($AV86:AZ86),0)+IF(RIGHT(BV$39,2)>RIGHT($K86,2),AZ86,0)) -> 0 | BW86: =+IF($K86="Ongoing",BA86,IF(RIGHT($K86,2)=RIGHT(BW$39,2),SUM($AV86:BA86),0)+IF(RIGHT(BW$39,2)>RIGHT($K86,2),BA86,0)) -> 0.5 | BX86: =+IF($K86="Ongoing",BB86,IF(RIGHT($K86,2)=RIGHT(BX$39,2),SUM($AV86:BB86),0)+IF(RIGHT(BX$39,2)>RIGHT($K86,2),BB86,0)) -> 0 | BY86: =+IF($K86="Ongoing",BC86,IF(RIGHT($K86,2)=RIGHT(BY$39,2),SUM($AV86:BC86),0)+IF(RIGHT(BY$39,2)>RIGHT($K86,2),BC86,0)) -> 0 | BZ86: =+IF($K86="Ongoing",BD86,IF(RIGHT($K86,2)=RIGHT(BZ$39,2),SUM($AV86:BD86),0)+IF(RIGHT(BZ$39,2)>RIGHT($K86,2),BD86,0)) -> 0 | CA86: =+IF($K86="Ongoing",BE86,IF(RIGHT($K86,2)=RIGHT(CA$39,2),SUM($AV86:BE86),0)+IF(RIGHT(CA$39,2)>RIGHT($K86,2),BE86,0)) -> 0 | CC86: =+O86*KeyAssumptionsPriceControl_FO!X$15 -> 0 | CD86: =+P86*KeyAssumptionsPriceControl_FO!Y$15 -> 0 | CE86: =+Q86*KeyAssumptionsPriceControl_FO!Z$15 -> 0 | CF86: =+R86*KeyAssumptionsPriceControl_FO!AA$15 -> 0.005476114739 | CG86: =+S86*KeyAssumptionsPriceControl_FO!AB$15 -> 0.01680619613 | CH86: =+T86*KeyAssumptionsPriceControl_FO!AC$15 -> 0.5501676367 | CI86: =+U86*KeyAssumptionsPriceControl_FO!AD$15 -> 0 | CJ86: =+V86*KeyAssumptionsPriceControl_FO!AE$15 -> 0 | CK86: =+W86*KeyAssumptionsPriceControl_FO!AF$15 -> 0 | CL86: =+X86*KeyAssumptionsPriceControl_FO!AG$15 -> 0 | CN86: 0 | CO86: 0 | CP86: 0 | CQ86: 0 | CR86: 0 | CS86: 0 | CT86: 0 | CU86: 0 | CV86: 0 | CW86: 0
C87: Corryong Water Distribution Optimisation | E87: Water | F87: Improvements / Compliance | G87: Pipelines/network | H87: Capital Programs / Allocation | J87: Straight line | K87: 2020-21 | L87: 80 | M87: 80 | O87: 0.0084 | P87: 0.3906 | Q87: 0.021 | R87: 0 | S87: 0 | T87: 0 | U87: 0 | V87: 0 | W87: 0 | X87: 0 | AV87: 0.0084 | AW87: 0.3906 | AX87: 0.021 | AY87: 0 | AZ87: 0 | BA87: 0 | BB87: 0 | BC87: 0 | BD87: 0 | BE87: 0 | BG87: 0 | BH87: 0 | BI87: 0.002625 | BJ87: 0.00525 | BK87: 0.00525 | BL87: 0.00525 | BM87: 0.00525 | BN87: 0.00525 | BO87: 0.00525 | BP87: 0.00525 | BR87: =+IF($K87="Ongoing",AV87,IF(RIGHT($K87,2)=RIGHT(BR$39,2),SUM($AV87:AV87),0)+IF(RIGHT(BR$39,2)>RIGHT($K87,2),AV87,0)) -> 0 | BS87: =+IF($K87="Ongoing",AW87,IF(RIGHT($K87,2)=RIGHT(BS$39,2),SUM($AV87:AW87),0)+IF(RIGHT(BS$39,2)>RIGHT($K87,2),AW87,0)) -> 0 | BT87: =+IF($K87="Ongoing",AX87,IF(RIGHT($K87,2)=RIGHT(BT$39,2),SUM($AV87:AX87),0)+IF(RIGHT(BT$39,2)>RIGHT($K87,2),AX87,0)) -> 0.42 | BU87: =+IF($K87="Ongoing",AY87,IF(RIGHT($K87,2)=RIGHT(BU$39,2),SUM($AV87:AY87),0)+IF(RIGHT(BU$39,2)>RIGHT($K87,2),AY87,0)) -> 0 | BV87: =+IF($K87="Ongoing",AZ87,IF(RIGHT($K87,2)=RIGHT(BV$39,2),SUM($AV87:AZ87),0)+IF(RIGHT(BV$39,2)>RIGHT($K87,2),AZ87,0)) -> 0 | BW87: =+IF($K87="Ongoing",BA87,IF(RIGHT($K87,2)=RIGHT(BW$39,2),SUM($AV87:BA87),0)+IF(RIGHT(BW$39,2)>RIGHT($K87,2),BA87,0)) -> 0 | BX87: =+IF($K87="Ongoing",BB87,IF(RIGHT($K87,2)=RIGHT(BX$39,2),SUM($AV87:BB87),0)+IF(RIGHT(BX$39,2)>RIGHT($K87,2),BB87,0)) -> 0 | BY87: =+IF($K87="Ongoing",BC87,IF(RIGHT($K87,2)=RIGHT(BY$39,2),SUM($AV87:BC87),0)+IF(RIGHT(BY$39,2)>RIGHT($K87,2),BC87,0)) -> 0 | BZ87: =+IF($K87="Ongoing",BD87,IF(RIGHT($K87,2)=RIGHT(BZ$39,2),SUM($AV87:BD87),0)+IF(RIGHT(BZ$39,2)>RIGHT($K87,2),BD87,0)) -> 0 | CA87: =+IF($K87="Ongoing",BE87,IF(RIGHT($K87,2)=RIGHT(CA$39,2),SUM($AV87:BE87),0)+IF(RIGHT(CA$39,2)>RIGHT($K87,2),BE87,0)) -> 0 | CC87: =+O87*KeyAssumptionsPriceControl_FO!X$15 -> 0.0085932 | CD87: =+P87*KeyAssumptionsPriceControl_FO!Y$15 -> 0.4087742274 | CE87: =+Q87*KeyAssumptionsPriceControl_FO!Z$15 -> 0.02248258251 | CF87: =+R87*KeyAssumptionsPriceControl_FO!AA$15 -> 0 | CG87: =+S87*KeyAssumptionsPriceControl_FO!AB$15 -> 0 | CH87: =+T87*KeyAssumptionsPriceControl_FO!AC$15 -> 0 | CI87: =+U87*KeyAssumptionsPriceControl_FO!AD$15 -> 0 | CJ87: =+V87*KeyAssumptionsPriceControl_FO!AE$15 -> 0 | CK87: =+W87*KeyAssumptionsPriceControl_FO!AF$15 -> 0 | CL87: =+X87*KeyAssumptionsPriceControl_FO!AG$15 -> 0 | CN87: 5.37075e-05 | CO87: 0.002662253921 | CP87: 0.005357608983 | CQ87: 0.005498125124 | CR87: 0.005498125124 | CS87: 0.005498125124 | CT87: 0.005498125124 | CU87: 0.005498125124 | CV87: 0.005498125124 | CW87: 0.005498125124
C88: Region Wide Installation of WWTP Inlet Screens | E88: Sewerage | F88: Improvements / Compliance | G88: Treatment | H88: Capital Programs / Allocation | J88: Straight line | K88: 2020-21 | L88: 20 | M88: 20 | O88: 0 | P88: 0.2 | Q88: 0.2 | R88: 0 | S88: 0 | T88: 0 | U88: 0 | V88: 0 | W88: 0 | X88: 0 | AV88: 0 | AW88: 0.2 | AX88: 0.2 | AY88: 0 | AZ88: 0 | BA88: 0 | BB88: 0 | BC88: 0 | BD88: 0 | BE88: 0 | BG88: 0 | BH88: 0 | BI88: 0.01 | BJ88: 0.02 | BK88: 0.02 | BL88: 0.02 | BM88: 0.02 | BN88: 0.02 | BO88: 0.02 | BP88: 0.02 | BR88: =+IF($K88="Ongoing",AV88,IF(RIGHT($K88,2)=RIGHT(BR$39,2),SUM($AV88:AV88),0)+IF(RIGHT(BR$39,2)>RIGHT($K88,2),AV88,0)) -> 0 | BS88: =+IF($K88="Ongoing",AW88,IF(RIGHT($K88,2)=RIGHT(BS$39,2),SUM($AV88:AW88),0)+IF(RIGHT(BS$39,2)>RIGHT($K88,2),AW88,0)) -> 0 | BT88: =+IF($K88="Ongoing",AX88,IF(RIGHT($K88,2)=RIGHT(BT$39,2),SUM($AV88:AX88),0)+IF(RIGHT(BT$39,2)>RIGHT($K88,2),AX88,0)) -> 0.4 | BU88: =+IF($K88="Ongoing",AY88,IF(RIGHT($K88,2)=RIGHT(BU$39,2),SUM($AV88:AY88),0)+IF(RIGHT(BU$39,2)>RIGHT($K88,2),AY88,0)) -> 0 | BV88: =+IF($K88="Ongoing",AZ88,IF(RIGHT($K88,2)=RIGHT(BV$39,2),SUM($AV88:AZ88),0)+IF(RIGHT(BV$39,2)>RIGHT($K88,2),AZ88,0)) -> 0 | BW88: =+IF($K88="Ongoing",BA88,IF(RIGHT($K88,2)=RIGHT(BW$39,2),SUM($AV88:BA88),0)+IF(RIGHT(BW$39,2)>RIGHT($K88,2),BA88,0)) -> 0 | BX88: =+IF($K88="Ongoing",BB88,IF(RIGHT($K88,2)=RIGHT(BX$39,2),SUM($AV88:BB88),0)+IF(RIGHT(BX$39,2)>RIGHT($K88,2),BB88,0)) -> 0 | BY88: =+IF($K88="Ongoing",BC88,IF(RIGHT($K88,2)=RIGHT(BY$39,2),SUM($AV88:BC88),0)+IF(RIGHT(BY$39,2)>RIGHT($K88,2),BC88,0)) -> 0 | BZ88: =+IF($K88="Ongoing",BD88,IF(RIGHT($K88,2)=RIGHT(BZ$39,2),SUM($AV88:BD88),0)+IF(RIGHT(BZ$39,2)>RIGHT($K88,2),BD88,0)) -> 0 | CA88: =+IF($K88="Ongoing",BE88,IF(RIGHT($K88,2)=RIGHT(CA$39,2),SUM($AV88:BE88),0)+IF(RIGHT(CA$39,2)>RIGHT($K88,2),BE88,0)) -> 0 | CC88: =+O88*KeyAssumptionsPriceControl_FO!X$15 -> 0 | CD88: =+P88*KeyAssumptionsPriceControl_FO!Y$15 -> 0.2093058 | CE88: =+Q88*KeyAssumptionsPriceControl_FO!Z$15 -> 0.2141198334 | CF88: =+R88*KeyAssumptionsPriceControl_FO!AA$15 -> 0 | CG88: =+S88*KeyAssumptionsPriceControl_FO!AB$15 -> 0 | CH88: =+T88*KeyAssumptionsPriceControl_FO!AC$15 -> 0 | CI88: =+U88*KeyAssumptionsPriceControl_FO!AD$15 -> 0 | CJ88: =+V88*KeyAssumptionsPriceControl_FO!AE$15 -> 0 | CK88: =+W88*KeyAssumptionsPriceControl_FO!AF$15 -> 0 | CL88: =+X88*KeyAssumptionsPriceControl_FO!AG$15 -> 0 | CN88: 0 | CO88: 0.005232645 | CP88: 0.01581828583 | CQ88: 0.02117128167 | CR88: 0.02117128167 | CS88: 0.02117128167 | CT88: 0.02117128167 | CU88: 0.02117128167 | CV88: 0.02117128167 | CW88: 0.02117128167
C89: Mount Beauty Raw Water Security | E89: Water | F89: Improvements / Compliance | G89: Pipelines/network | H89: Capital Programs / Allocation | J89: Straight line | K89: 2025-26 | L89: 80 | M89: 80 | O89: 0 | P89: 0 | Q89: 0 | R89: 0 | S89: 0 | T89: 0 | U89: 0 | V89: 0.38 | W89: 0 | X89: 0 | AV89: 0 | AW89: 0 | AX89: 0 | AY89: 0 | AZ89: 0 | BA89: 0 | BB89: 0 | BC89: 0.38 | BD89: 0 | BE89: 0 | BG89: 0 | BH89: 0 | BI89: 0 | BJ89: 0 | BK89: 0 | BL89: 0 | BM89: 0 | BN89: 0.002375 | BO89: 0.00475 | BP89: 0.00475 | BR89: =+IF($K89="Ongoing",AV89,IF(RIGHT($K89,2)=RIGHT(BR$39,2),SUM($AV89:AV89),0)+IF(RIGHT(BR$39,2)>RIGHT($K89,2),AV89,0)) -> 0 | BS89: =+IF($K89="Ongoing",AW89,IF(RIGHT($K89,2)=RIGHT(BS$39,2),SUM($AV89:AW89),0)+IF(RIGHT(BS$39,2)>RIGHT($K89,2),AW89,0)) -> 0 | BT89: =+IF($K89="Ongoing",AX89,IF(RIGHT($K89,2)=RIGHT(BT$39,2),SUM($AV89:AX89),0)+IF(RIGHT(BT$39,2)>RIGHT($K89,2),AX89,0)) -> 0 | BU89: =+IF($K89="Ongoing",AY89,IF(RIGHT($K89,2)=RIGHT(BU$39,2),SUM($AV89:AY89),0)+IF(RIGHT(BU$39,2)>RIGHT($K89,2),AY89,0)) -> 0 | BV89: =+IF($K89="Ongoing",AZ89,IF(RIGHT($K89,2)=RIGHT(BV$39,2),SUM($AV89:AZ89),0)+IF(RIGHT(BV$39,2)>RIGHT($K89,2),AZ89,0)) -> 0 | BW89: =+IF($K89="Ongoing",BA89,IF(RIGHT($K89,2)=RIGHT(BW$39,2),SUM($AV89:BA89),0)+IF(RIGHT(BW$39,2)>RIGHT($K89,2),BA89,0)) -> 0 | BX89: =+IF($K89="Ongoing",BB89,IF(RIGHT($K89,2)=RIGHT(BX$39,2),SUM($AV89:BB89),0)+IF(RIGHT(BX$39,2)>RIGHT($K89,2),BB89,0)) -> 0 | BY89: =+IF($K89="Ongoing",BC89,IF(RIGHT($K89,2)=RIGHT(BY$39,2),SUM($AV89:BC89),0)+IF(RIGHT(BY$39,2)>RIGHT($K89,2),BC89,0)) -> 0.38 | BZ89: =+IF($K89="Ongoing",BD89,IF(RIGHT($K89,2)=RIGHT(BZ$39,2),SUM($AV89:BD89),0)+IF(RIGHT(BZ$39,2)>RIGHT($K89,2),BD89,0)) -> 0 | CA89: =+IF($K89="Ongoing",BE89,IF(RIGHT($K89,2)=RIGHT(CA$39,2),SUM($AV89:BE89),0)+IF(RIGHT(CA$39,2)>RIGHT($K89,2),BE89,0)) -> 0 | CC89: =+O89*KeyAssumptionsPriceControl_FO!X$15 -> 0 | CD89: =+P89*KeyAssumptionsPriceControl_FO!Y$15 -> 0 | CE89: =+Q89*KeyAssumptionsPriceControl_FO!Z$15 -> 0 | CF89: =+R89*KeyAssumptionsPriceControl_FO!AA$15 -> 0 | CG89: =+S89*KeyAssumptionsPriceControl_FO!AB$15 -> 0 | CH89: =+T89*KeyAssumptionsPriceControl_FO!AC$15 -> 0 | CI89: =+U89*KeyAssumptionsPriceControl_FO!AD$15 -> 0 | CJ89: =+V89*KeyAssumptionsPriceControl_FO!AE$15 -> 0.4558150561 | CK89: =+W89*KeyAssumptionsPriceControl_FO!AF$15 -> 0 | CL89: =+X89*KeyAssumptionsPriceControl_FO!AG$15 -> 0 | CN89: 0 | CO89: 0 | CP89: 0 | CQ89: 0 | CR89: 0 | CS89: 0 | CT89: 0 | CU89: 0.002848844101 | CV89: 0.005697688201 | CW89: 0.005697688201
C90: Beechworth Dingle Road Facility Upgrade | E90: Water | F90: Improvements / Compliance | G90: Corporate | H90: Capital Programs / Allocation | J90: Straight line | K90: 2025-26 | L90: 25 | M90: 25 | O90: 0 | P90: 0 | Q90: 0 | R90: 0 | S90: 0 | T90: 0 | U90: 0.0219 | V90: 0.3431 | W90: 0 | X90: 0 | AV90: 0 | AW90: 0 | AX90: 0 | AY90: 0 | AZ90: 0 | BA90: 0 | BB90: 0.0219 | BC90: 0.3431 | BD90: 0 | BE90: 0 | BG90: 0 | BH90: 0 | BI90: 0 | BJ90: 0 | BK90: 0 | BL90: 0 | BM90: 0 | BN90: 0.0073 | BO90: 0.0146 | BP90: 0.0146 | BR90: =+IF($K90="Ongoing",AV90,IF(RIGHT($K90,2)=RIGHT(BR$39,2),SUM($AV90:AV90),0)+IF(RIGHT(BR$39,2)>RIGHT($K90,2),AV90,0)) -> 0 | BS90: =+IF($K90="Ongoing",AW90,IF(RIGHT($K90,2)=RIGHT(BS$39,2),SUM($AV90:AW90),0)+IF(RIGHT(BS$39,2)>RIGHT($K90,2),AW90,0)) -> 0 | BT90: =+IF($K90="Ongoing",AX90,IF(RIGHT($K90,2)=RIGHT(BT$39,2),SUM($AV90:AX90),0)+IF(RIGHT(BT$39,2)>RIGHT($K90,2),AX90,0)) -> 0 | BU90: =+IF($K90="Ongoing",AY90,IF(RIGHT($K90,2)=RIGHT(BU$39,2),SUM($AV90:AY90),0)+IF(RIGHT(BU$39,2)>RIGHT($K90,2),AY90,0)) -> 0 | BV90: =+IF($K90="Ongoing",AZ90,IF(RIGHT($K90,2)=RIGHT(BV$39,2),SUM($AV90:AZ90),0)+IF(RIGHT(BV$39,2)>RIGHT($K90,2),AZ90,0)) -> 0 | BW90: =+IF($K90="Ongoing",BA90,IF(RIGHT($K90,2)=RIGHT(BW$39,2),SUM($AV90:BA90),0)+IF(RIGHT(BW$39,2)>RIGHT($K90,2),BA90,0)) -> 0 | BX90: =+IF($K90="Ongoing",BB90,IF(RIGHT($K90,2)=RIGHT(BX$39,2),SUM($AV90:BB90),0)+IF(RIGHT(BX$39,2)>RIGHT($K90,2),BB90,0)) -> 0 | BY90: =+IF($K90="Ongoing",BC90,IF(RIGHT($K90,2)=RIGHT(BY$39,2),SUM($AV90:BC90),0)+IF(RIGHT(BY$39,2)>RIGHT($K90,2),BC90,0)) -> 0.365 | BZ90: =+IF($K90="Ongoing",BD90,IF(RIGHT($K90,2)=RIGHT(BZ$39,2),SUM($AV90:BD90),0)+IF(RIGHT(BZ$39,2)>RIGHT($K90,2),BD90,0)) -> 0 | CA90: =+IF($K90="Ongoing",BE90,IF(RIGHT($K90,2)=RIGHT(CA$39,2),SUM($AV90:BE90),0)+IF(RIGHT(CA$39,2)>RIGHT($K90,2),BE90,0)) -> 0 | CC90: =+O90*KeyAssumptionsPriceControl_FO!X$15 -> 0 | CD90: =+P90*KeyAssumptionsPriceControl_FO!Y$15 -> 0 | CE90: =+Q90*KeyAssumptionsPriceControl_FO!Z$15 -> 0 | CF90: =+R90*KeyAssumptionsPriceControl_FO!AA$15 -> 0 | CG90: =+S90*KeyAssumptionsPriceControl_FO!AB$15 -> 0 | CH90: =+T90*KeyAssumptionsPriceControl_FO!AC$15 -> 0 | CI90: =+U90*KeyAssumptionsPriceControl_FO!AD$15 -> 0.02567873059 | CJ90: =+V90*KeyAssumptionsPriceControl_FO!AE$15 -> 0.4115530151 | CK90: =+W90*KeyAssumptionsPriceControl_FO!AF$15 -> 0 | CL90: =+X90*KeyAssumptionsPriceControl_FO!AG$15 -> 0 | CN90: 0 | CO90: 0 | CP90: 0 | CQ90: 0 | CR90: 0 | CS90: 0 | CT90: 0.0005135746117 | CU90: 0.009258209526 | CV90: 0.01748926983 | CW90: 0.01748926983
C91: Region Wide Waste Storage Facilities | E91: Water | F91: Improvements / Compliance | G91: Treatment | H91: Capital Programs / Allocation | J91: Straight line | K91: 2019-20 | L91: 30 | M91: 30 | O91: 0.21 | P91: 0.15 | Q91: 0 | R91: 0 | S91: 0 | T91: 0 | U91: 0 | V91: 0 | W91: 0 | X91: 0 | AV91: 0.21 | AW91: 0.15 | AX91: 0 | AY91: 0 | AZ91: 0 | BA91: 0 | BB91: 0 | BC91: 0 | BD91: 0 | BE91: 0 | BG91: 0 | BH91: 0.006 | BI91: 0.012 | BJ91: 0.012 | BK91: 0.012 | BL91: 0.012 | BM91: 0.012 | BN91: 0.012 | BO91: 0.012 | BP91: 0.012 | BR91: =+IF($K91="Ongoing",AV91,IF(RIGHT($K91,2)=RIGHT(BR$39,2),SUM($AV91:AV91),0)+IF(RIGHT(BR$39,2)>RIGHT($K91,2),AV91,0)) -> 0 | BS91: =+IF($K91="Ongoing",AW91,IF(RIGHT($K91,2)=RIGHT(BS$39,2),SUM($AV91:AW91),0)+IF(RIGHT(BS$39,2)>RIGHT($K91,2),AW91,0)) -> 0.36 | BT91: =+IF($K91="Ongoing",AX91,IF(RIGHT($K91,2)=RIGHT(BT$39,2),SUM($AV91:AX91),0)+IF(RIGHT(BT$39,2)>RIGHT($K91,2),AX91,0)) -> 0 | BU91: =+IF($K91="Ongoing",AY91,IF(RIGHT($K91,2)=RIGHT(BU$39,2),SUM($AV91:AY91),0)+IF(RIGHT(BU$39,2)>RIGHT($K91,2),AY91,0)) -> 0 | BV91: =+IF($K91="Ongoing",AZ91,IF(RIGHT($K91,2)=RIGHT(BV$39,2),SUM($AV91:AZ91),0)+IF(RIGHT(BV$39,2)>RIGHT($K91,2),AZ91,0)) -> 0 | BW91: =+IF($K91="Ongoing",BA91,IF(RIGHT($K91,2)=RIGHT(BW$39,2),SUM($AV91:BA91),0)+IF(RIGHT(BW$39,2)>RIGHT($K91,2),BA91,0)) -> 0 | BX91: =+IF($K91="Ongoing",BB91,IF(RIGHT($K91,2)=RIGHT(BX$39,2),SUM($AV91:BB91),0)+IF(RIGHT(BX$39,2)>RIGHT($K91,2),BB91,0)) -> 0 | BY91: =+IF($K91="Ongoing",BC91,IF(RIGHT($K91,2)=RIGHT(BY$39,2),SUM($AV91:BC91),0)+IF(RIGHT(BY$39,2)>RIGHT($K91,2),BC91,0)) -> 0 | BZ91: =+IF($K91="Ongoing",BD91,IF(RIGHT($K91,2)=RIGHT(BZ$39,2),SUM($AV91:BD91),0)+IF(RIGHT(BZ$39,2)>RIGHT($K91,2),BD91,0)) -> 0 | CA91: =+IF($K91="Ongoing",BE91,IF(RIGHT($K91,2)=RIGHT(CA$39,2),SUM($AV91:BE91),0)+IF(RIGHT(CA$39,2)>RIGHT($K91,2),BE91,0)) -> 0 | CC91: =+O91*KeyAssumptionsPriceControl_FO!X$15 -> 0.21483 | CD91: =+P91*KeyAssumptionsPriceControl_FO!Y$15 -> 0.15697935 | CE91: =+Q91*KeyAssumptionsPriceControl_FO!Z$15 -> 0 | CF91: =+R91*KeyAssumptionsPriceControl_FO!AA$15 -> 0 | CG91: =+S91*KeyAssumptionsPriceControl_FO!AB$15 -> 0 | CH91: =+T91*KeyAssumptionsPriceControl_FO!AC$15 -> 0 | CI91: =+U91*KeyAssumptionsPriceControl_FO!AD$15 -> 0 | CJ91: =+V91*KeyAssumptionsPriceControl_FO!AE$15 -> 0 | CK91: =+W91*KeyAssumptionsPriceControl_FO!AF$15 -> 0 | CL91: =+X91*KeyAssumptionsPriceControl_FO!AG$15 -> 0 | CN91: 0.0035805 | CO91: 0.0097773225 | CP91: 0.012393645 | CQ91: 0.012393645 | CR91: 0.012393645 | CS91: 0.012393645 | CT91: 0.012393645 | CU91: 0.012393645 | CV91: 0.012393645 | CW91: 0.012393645
C92: Yarrawonga South Rd SPS Upgrade | E92: Sewerage | F92: Growth | G92: Pipelines/network | H92: Capital Programs / Allocation | J92: Straight line | K92: 2023-24 | L92: 80 | M92: 80 | O92: 0 | P92: 0 | Q92: 0 | R92: 0 | S92: 0.0053 | T92: 0.2597 | U92: 0 | V92: 0 | W92: 0 | X92: 0 | AV92: 0 | AW92: 0 | AX92: 0 | AY92: 0 | AZ92: 0.0053 | BA92: 0.2597 | BB92: 0 | BC92: 0 | BD92: 0 | BE92: 0 | BG92: 0 | BH92: 0 | BI92: 0 | BJ92: 0 | BK92: 0 | BL92: 0.00165625 | BM92: 0.0033125 | BN92: 0.0033125 | BO92: 0.0033125 | BP92: 0.0033125 | BR92: =+IF($K92="Ongoing",AV92,IF(RIGHT($K92,2)=RIGHT(BR$39,2),SUM($AV92:AV92),0)+IF(RIGHT(BR$39,2)>RIGHT($K92,2),AV92,0)) -> 0 | BS92: =+IF($K92="Ongoing",AW92,IF(RIGHT($K92,2)=RIGHT(BS$39,2),SUM($AV92:AW92),0)+IF(RIGHT(BS$39,2)>RIGHT($K92,2),AW92,0)) -> 0 | BT92: =+IF($K92="Ongoing",AX92,IF(RIGHT($K92,2)=RIGHT(BT$39,2),SUM($AV92:AX92),0)+IF(RIGHT(BT$39,2)>RIGHT($K92,2),AX92,0)) -> 0 | BU92: =+IF($K92="Ongoing",AY92,IF(RIGHT($K92,2)=RIGHT(BU$39,2),SUM($AV92:AY92),0)+IF(RIGHT(BU$39,2)>RIGHT($K92,2),AY92,0)) -> 0 | BV92: =+IF($K92="Ongoing",AZ92,IF(RIGHT($K92,2)=RIGHT(BV$39,2),SUM($AV92:AZ92),0)+IF(RIGHT(BV$39,2)>RIGHT($K92,2),AZ92,0)) -> 0 | BW92: =+IF($K92="Ongoing",BA92,IF(RIGHT($K92,2)=RIGHT(BW$39,2),SUM($AV92:BA92),0)+IF(RIGHT(BW$39,2)>RIGHT($K92,2),BA92,0)) -> 0.265 | BX92: =+IF($K92="Ongoing",BB92,IF(RIGHT($K92,2)=RIGHT(BX$39,2),SUM($AV92:BB92),0)+IF(RIGHT(BX$39,2)>RIGHT($K92,2),BB92,0)) -> 0 | BY92: =+IF($K92="Ongoing",BC92,IF(RIGHT($K92,2)=RIGHT(BY$39,2),SUM($AV92:BC92),0)+IF(RIGHT(BY$39,2)>RIGHT($K92,2),BC92,0)) -> 0 | BZ92: =+IF($K92="Ongoing",BD92,IF(RIGHT($K92,2)=RIGHT(BZ$39,2),SUM($AV92:BD92),0)+IF(RIGHT(BZ$39,2)>RIGHT($K92,2),BD92,0)) -> 0 | CA92: =+IF($K92="Ongoing",BE92,IF(RIGHT($K92,2)=RIGHT(CA$39,2),SUM($AV92:BE92),0)+IF(RIGHT(CA$39,2)>RIGHT($K92,2),BE92,0)) -> 0 | CC92: =+O92*KeyAssumptionsPriceControl_FO!X$15 -> 0 | CD92: =+P92*KeyAssumptionsPriceControl_FO!Y$15 -> 0 | CE92: =+Q92*KeyAssumptionsPriceControl_FO!Z$15 -> 0 | CF92: =+R92*KeyAssumptionsPriceControl_FO!AA$15 -> 0 | CG92: =+S92*KeyAssumptionsPriceControl_FO!AB$15 -> 0.005938189301 | CH92: =+T92*KeyAssumptionsPriceControl_FO!AC$15 -> 0.2976636151 | CI92: =+U92*KeyAssumptionsPriceControl_FO!AD$15 -> 0 | CJ92: =+V92*KeyAssumptionsPriceControl_FO!AE$15 -> 0 | CK92: =+W92*KeyAssumptionsPriceControl_FO!AF$15 -> 0 | CL92: =+X92*KeyAssumptionsPriceControl_FO!AG$15 -> 0 | CN92: 0 | CO92: 0 | CP92: 0 | CQ92: 0 | CR92: 3.711368313e-05 | CS92: 0.001934624961 | CT92: 0.003795022555 | CU92: 0.003795022555 | CV92: 0.003795022555 | CW92: 0.003795022555
C93: Online Monitoring Industrial Customers | E93: Sewerage | F93: Improvements / Compliance | G93: Corporate | H93: Capital Programs / Allocation | J93: Straight line | K93: 2019-20 | L93: 15 | M93: 15 | O93: 0 | P93: 0.2 | Q93: 0 | R93: 0 | S93: 0 | T93: 0 | U93: 0 | V93: 0 | W93: 0 | X93: 0 | AV93: 0 | AW93: 0.2 | AX93: 0 | AY93: 0 | AZ93: 0 | BA93: 0 | BB93: 0 | BC93: 0 | BD93: 0 | BE93: 0 | BG93: 0 | BH93: 0.006666666667 | BI93: 0.01333333333 | BJ93: 0.01333333333 | BK93: 0.01333333333 | BL93: 0.01333333333 | BM93: 0.01333333333 | BN93: 0.01333333333 | BO93: 0.01333333333 | BP93: 0.01333333333 | BR93: =+IF($K93="Ongoing",AV93,IF(RIGHT($K93,2)=RIGHT(BR$39,2),SUM($AV93:AV93),0)+IF(RIGHT(BR$39,2)>RIGHT($K93,2),AV93,0)) -> 0 | BS93: =+IF($K93="Ongoing",AW93,IF(RIGHT($K93,2)=RIGHT(BS$39,2),SUM($AV93:AW93),0)+IF(RIGHT(BS$39,2)>RIGHT($K93,2),AW93,0)) -> 0.2 | BT93: =+IF($K93="Ongoing",AX93,IF(RIGHT($K93,2)=RIGHT(BT$39,2),SUM($AV93:AX93),0)+IF(RIGHT(BT$39,2)>RIGHT($K93,2),AX93,0)) -> 0 | BU93: =+IF($K93="Ongoing",AY93,IF(RIGHT($K93,2)=RIGHT(BU$39,2),SUM($AV93:AY93),0)+IF(RIGHT(BU$39,2)>RIGHT($K93,2),AY93,0)) -> 0 | BV93: =+IF($K93="Ongoing",AZ93,IF(RIGHT($K93,2)=RIGHT(BV$39,2),SUM($AV93:AZ93),0)+IF(RIGHT(BV$39,2)>RIGHT($K93,2),AZ93,0)) -> 0 | BW93: =+IF($K93="Ongoing",BA93,IF(RIGHT($K93,2)=RIGHT(BW$39,2),SUM($AV93:BA93),0)+IF(RIGHT(BW$39,2)>RIGHT($K93,2),BA93,0)) -> 0 | BX93: =+IF($K93="Ongoing",BB93,IF(RIGHT($K93,2)=RIGHT(BX$39,2),SUM($AV93:BB93),0)+IF(RIGHT(BX$39,2)>RIGHT($K93,2),BB93,0)) -> 0 | BY93: =+IF($K93="Ongoing",BC93,IF(RIGHT($K93,2)=RIGHT(BY$39,2),SUM($AV93:BC93),0)+IF(RIGHT(BY$39,2)>RIGHT($K93,2),BC93,0)) -> 0 | BZ93: =+IF($K93="Ongoing",BD93,IF(RIGHT($K93,2)=RIGHT(BZ$39,2),SUM($AV93:BD93),0)+IF(RIGHT(BZ$39,2)>RIGHT($K93,2),BD93,0)) -> 0 | CA93: =+IF($K93="Ongoing",BE93,IF(RIGHT($K93,2)=RIGHT(CA$39,2),SUM($AV93:BE93),0)+IF(RIGHT(CA$39,2)>RIGHT($K93,2),BE93,0)) -> 0 | CC93: =+O93*KeyAssumptionsPriceControl_FO!X$15 -> 0 | CD93: =+P93*KeyAssumptionsPriceControl_FO!Y$15 -> 0.2093058 | CE93: =+Q93*KeyAssumptionsPriceControl_FO!Z$15 -> 0 | CF93: =+R93*KeyAssumptionsPriceControl_FO!AA$15 -> 0 | CG93: =+S93*KeyAssumptionsPriceControl_FO!AB$15 -> 0 | CH93: =+T93*KeyAssumptionsPriceControl_FO!AC$15 -> 0 | CI93: =+U93*KeyAssumptionsPriceControl_FO!AD$15 -> 0 | CJ93: =+V93*KeyAssumptionsPriceControl_FO!AE$15 -> 0 | CK93: =+W93*KeyAssumptionsPriceControl_FO!AF$15 -> 0 | CL93: =+X93*KeyAssumptionsPriceControl_FO!AG$15 -> 0 | CN93: 0 | CO93: 0.00697686 | CP93: 0.01395372 | CQ93: 0.01395372 | CR93: 0.01395372 | CS93: 0.01395372 | CT93: 0.01395372 | CU93: 0.01395372 | CV93: 0.01395372 | CW93: 0.01395372
C94: Yarrawonga Raw Water Offtake Upgrade | E94: Water | F94: Improvements / Compliance | G94: Pipelines/network | H94: Capital Programs / Allocation | J94: Straight line | K94: 2018-19 | L94: 80 | M94: 80 | O94: 0.125 | P94: 0 | Q94: 0 | R94: 0 | S94: 0 | T94: 0 | U94: 0 | V94: 0 | W94: 0 | X94: 0 | AV94: 0.125 | AW94: 0 | AX94: 0 | AY94: 0 | AZ94: 0 | BA94: 0 | BB94: 0 | BC94: 0 | BD94: 0 | BE94: 0 | BG94: 0.00078125 | BH94: 0.0015625 | BI94: 0.0015625 | BJ94: 0.0015625 | BK94: 0.0015625 | BL94: 0.0015625 | BM94: 0.0015625 | BN94: 0.0015625 | BO94: 0.0015625 | BP94: 0.0015625 | BR94: =+IF($K94="Ongoing",AV94,IF(RIGHT($K94,2)=RIGHT(BR$39,2),SUM($AV94:AV94),0)+IF(RIGHT(BR$39,2)>RIGHT($K94,2),AV94,0)) -> 0.125 | BS94: =+IF($K94="Ongoing",AW94,IF(RIGHT($K94,2)=RIGHT(BS$39,2),SUM($AV94:AW94),0)+IF(RIGHT(BS$39,2)>RIGHT($K94,2),AW94,0)) -> 0 | BT94: =+IF($K94="Ongoing",AX94,IF(RIGHT($K94,2)=RIGHT(BT$39,2),SUM($AV94:AX94),0)+IF(RIGHT(BT$39,2)>RIGHT($K94,2),AX94,0)) -> 0 | BU94: =+IF($K94="Ongoing",AY94,IF(RIGHT($K94,2)=RIGHT(BU$39,2),SUM($AV94:AY94),0)+IF(RIGHT(BU$39,2)>RIGHT($K94,2),AY94,0)) -> 0 | BV94: =+IF($K94="Ongoing",AZ94,IF(RIGHT($K94,2)=RIGHT(BV$39,2),SUM($AV94:AZ94),0)+IF(RIGHT(BV$39,2)>RIGHT($K94,2),AZ94,0)) -> 0 | BW94: =+IF($K94="Ongoing",BA94,IF(RIGHT($K94,2)=RIGHT(BW$39,2),SUM($AV94:BA94),0)+IF(RIGHT(BW$39,2)>RIGHT($K94,2),BA94,0)) -> 0 | BX94: =+IF($K94="Ongoing",BB94,IF(RIGHT($K94,2)=RIGHT(BX$39,2),SUM($AV94:BB94),0)+IF(RIGHT(BX$39,2)>RIGHT($K94,2),BB94,0)) -> 0 | BY94: =+IF($K94="Ongoing",BC94,IF(RIGHT($K94,2)=RIGHT(BY$39,2),SUM($AV94:BC94),0)+IF(RIGHT(BY$39,2)>RIGHT($K94,2),BC94,0)) -> 0 | BZ94: =+IF($K94="Ongoing",BD94,IF(RIGHT($K94,2)=RIGHT(BZ$39,2),SUM($AV94:BD94),0)+IF(RIGHT(BZ$39,2)>RIGHT($K94,2),BD94,0)) -> 0 | CA94: =+IF($K94="Ongoing",BE94,IF(RIGHT($K94,2)=RIGHT(CA$39,2),SUM($AV94:BE94),0)+IF(RIGHT(CA$39,2)>RIGHT($K94,2),BE94,0)) -> 0 | CC94: =+O94*KeyAssumptionsPriceControl_FO!X$15 -> 0.127875 | CD94: =+P94*KeyAssumptionsPriceControl_FO!Y$15 -> 0 | CE94: =+Q94*KeyAssumptionsPriceControl_FO!Z$15 -> 0 | CF94: =+R94*KeyAssumptionsPriceControl_FO!AA$15 -> 0 | CG94: =+S94*KeyAssumptionsPriceControl_FO!AB$15 -> 0 | CH94: =+T94*KeyAssumptionsPriceControl_FO!AC$15 -> 0 | CI94: =+U94*KeyAssumptionsPriceControl_FO!AD$15 -> 0 | CJ94: =+V94*KeyAssumptionsPriceControl_FO!AE$15 -> 0 | CK94: =+W94*KeyAssumptionsPriceControl_FO!AF$15 -> 0 | CL94: =+X94*KeyAssumptionsPriceControl_FO!AG$15 -> 0 | CN94: 0.00079921875 | CO94: 0.0015984375 | CP94: 0.0015984375 | CQ94: 0.0015984375 | CR94: 0.0015984375 | CS94: 0.0015984375 | CT94: 0.0015984375 | CU94: 0.0015984375 | CV94: 0.0015984375 | CW94: 0.0015984375
C95: Corporate Office Furniture and Minor Equipment | E95: Water | F95: Improvements / Compliance | G95: Corporate | H95: Capital Programs / Allocation | J95: Straight line | K95: Ongoing | L95: 10 | M95: 10 | O95: 0.01 | P95: 0.01 | Q95: 0.01 | R95: 0.01 | S95: 0.01 | T95: 0.01 | U95: 0.01 | V95: 0.01 | W95: 0.01 | X95: 0.01 | AV95: 0.01 | AW95: 0.01 | AX95: 0.01 | AY95: 0.01 | AZ95: 0.01 | BA95: 0.01 | BB95: 0.01 | BC95: 0.01 | BD95: 0.01 | BE95: 0.01 | BG95: 0.0005 | BH95: 0.0015 | BI95: 0.0025 | BJ95: 0.0035 | BK95: 0.0045 | BL95: 0.0055 | BM95: 0.0065 | BN95: 0.0075 | BO95: 0.0085 | BP95: 0.0095 | BR95: =+IF($K95="Ongoing",AV95,IF(RIGHT($K95,2)=RIGHT(BR$39,2),SUM($AV95:AV95),0)+IF(RIGHT(BR$39,2)>RIGHT($K95,2),AV95,0)) -> 0.01 | BS95: =+IF($K95="Ongoing",AW95,IF(RIGHT($K95,2)=RIGHT(BS$39,2),SUM($AV95:AW95),0)+IF(RIGHT(BS$39,2)>RIGHT($K95,2),AW95,0)) -> 0.01 | BT95: =+IF($K95="Ongoing",AX95,IF(RIGHT($K95,2)=RIGHT(BT$39,2),SUM($AV95:AX95),0)+IF(RIGHT(BT$39,2)>RIGHT($K95,2),AX95,0)) -> 0.01 | BU95: =+IF($K95="Ongoing",AY95,IF(RIGHT($K95,2)=RIGHT(BU$39,2),SUM($AV95:AY95),0)+IF(RIGHT(BU$39,2)>RIGHT($K95,2),AY95,0)) -> 0.01 | BV95: =+IF($K95="Ongoing",AZ95,IF(RIGHT($K95,2)=RIGHT(BV$39,2),SUM($AV95:AZ95),0)+IF(RIGHT(BV$39,2)>RIGHT($K95,2),AZ95,0)) -> 0.01 | BW95: =+IF($K95="Ongoing",BA95,IF(RIGHT($K95,2)=RIGHT(BW$39,2),SUM($AV95:BA95),0)+IF(RIGHT(BW$39,2)>RIGHT($K95,2),BA95,0)) -> 0.01 | BX95: =+IF($K95="Ongoing",BB95,IF(RIGHT($K95,2)=RIGHT(BX$39,2),SUM($AV95:BB95),0)+IF(RIGHT(BX$39,2)>RIGHT($K95,2),BB95,0)) -> 0.01 | BY95: =+IF($K95="Ongoing",BC95,IF(RIGHT($K95,2)=RIGHT(BY$39,2),SUM($AV95:BC95),0)+IF(RIGHT(BY$39,2)>RIGHT($K95,2),BC95,0)) -> 0.01 | BZ95: =+IF($K95="Ongoing",BD95,IF(RIGHT($K95,2)=RIGHT(BZ$39,2),SUM($AV95:BD95),0)+IF(RIGHT(BZ$39,2)>RIGHT($K95,2),BD95,0)) -> 0.01 | CA95: =+IF($K95="Ongoing",BE95,IF(RIGHT($K95,2)=RIGHT(CA$39,2),SUM($AV95:BE95),0)+IF(RIGHT(CA$39,2)>RIGHT($K95,2),BE95,0)) -> 0.01 | CC95: =+O95*KeyAssumptionsPriceControl_FO!X$15 -> 0.01023 | CD95: =+P95*KeyAssumptionsPriceControl_FO!Y$15 -> 0.01046529 | CE95: =+Q95*KeyAssumptionsPriceControl_FO!Z$15 -> 0.01070599167 | CF95: =+R95*KeyAssumptionsPriceControl_FO!AA$15 -> 0.01095222948 | CG95: =+S95*KeyAssumptionsPriceControl_FO!AB$15 -> 0.01120413076 | CH95: =+T95*KeyAssumptionsPriceControl_FO!AC$15 -> 0.01146182576 | CI95: =+U95*KeyAssumptionsPriceControl_FO!AD$15 -> 0.01172544776 | CJ95: =+V95*KeyAssumptionsPriceControl_FO!AE$15 -> 0.01199513305 | CK95: =+W95*KeyAssumptionsPriceControl_FO!AF$15 -> 0.01227102112 | CL95: =+X95*KeyAssumptionsPriceControl_FO!AG$15 -> 0.0125532546 | CN95: 0.0005115 | CO95: 0.0015462645 | CP95: 0.002604828583 | CQ95: 0.003687739641 | CR95: 0.004795557653 | CS95: 0.005928855479 | CT95: 0.007088219155 | CU95: 0.008274248195 | CV95: 0.009487555904 | CW95: 0.01072876969
C96: Bellbridge Water System Upgrade | E96: Water | F96: Growth | G96: Headworks | H96: Capital Programs / Allocation | J96: Straight line | K96: 2019-20 | L96: 25 | M96: 25 | O96: 1.78756 | P96: 0.15544 | Q96: 0 | R96: 0 | S96: 0 | T96: 0 | U96: 0 | V96: 0 | W96: 0 | X96: 0 | AV96: 1.78756 | AW96: 0.15544 | AX96: 0 | AY96: 0 | AZ96: 0 | BA96: 0 | BB96: 0 | BC96: 0 | BD96: 0 | BE96: 0 | BG96: 0 | BH96: 0.03886 | BI96: 0.07772 | BJ96: 0.07772 | BK96: 0.07772 | BL96: 0.07772 | BM96: 0.07772 | BN96: 0.07772 | BO96: 0.07772 | BP96: 0.07772 | BR96: =+IF($K96="Ongoing",AV96,IF(RIGHT($K96,2)=RIGHT(BR$39,2),SUM($AV96:AV96),0)+IF(RIGHT(BR$39,2)>RIGHT($K96,2),AV96,0)) -> 0 | BS96: =+IF($K96="Ongoing",AW96,IF(RIGHT($K96,2)=RIGHT(BS$39,2),SUM($AV96:AW96),0)+IF(RIGHT(BS$39,2)>RIGHT($K96,2),AW96,0)) -> 1.943 | BT96: =+IF($K96="Ongoing",AX96,IF(RIGHT($K96,2)=RIGHT(BT$39,2),SUM($AV96:AX96),0)+IF(RIGHT(BT$39,2)>RIGHT($K96,2),AX96,0)) -> 0 | BU96: =+IF($K96="Ongoing",AY96,IF(RIGHT($K96,2)=RIGHT(BU$39,2),SUM($AV96:AY96),0)+IF(RIGHT(BU$39,2)>RIGHT($K96,2),AY96,0)) -> 0 | BV96: =+IF($K96="Ongoing",AZ96,IF(RIGHT($K96,2)=RIGHT(BV$39,2),SUM($AV96:AZ96),0)+IF(RIGHT(BV$39,2)>RIGHT($K96,2),AZ96,0)) -> 0 | BW96: =+IF($K96="Ongoing",BA96,IF(RIGHT($K96,2)=RIGHT(BW$39,2),SUM($AV96:BA96),0)+IF(RIGHT(BW$39,2)>RIGHT($K96,2),BA96,0)) -> 0 | BX96: =+IF($K96="Ongoing",BB96,IF(RIGHT($K96,2)=RIGHT(BX$39,2),SUM($AV96:BB96),0)+IF(RIGHT(BX$39,2)>RIGHT($K96,2),BB96,0)) -> 0 | BY96: =+IF($K96="Ongoing",BC96,IF(RIGHT($K96,2)=RIGHT(BY$39,2),SUM($AV96:BC96),0)+IF(RIGHT(BY$39,2)>RIGHT($K96,2),BC96,0)) -> 0 | BZ96: =+IF($K96="Ongoing",BD96,IF(RIGHT($K96,2)=RIGHT(BZ$39,2),SUM($AV96:BD96),0)+IF(RIGHT(BZ$39,2)>RIGHT($K96,2),BD96,0)) -> 0 | CA96: =+IF($K96="Ongoing",BE96,IF(RIGHT($K96,2)=RIGHT(CA$39,2),SUM($AV96:BE96),0)+IF(RIGHT(CA$39,2)>RIGHT($K96,2),BE96,0)) -> 0 | CC96: =+O96*KeyAssumptionsPriceControl_FO!X$15 -> 1.82867388 | CD96: =+P96*KeyAssumptionsPriceControl_FO!Y$15 -> 0.1626724678 | CE96: =+Q96*KeyAssumptionsPriceControl_FO!Z$15 -> 0 | CF96: =+R96*KeyAssumptionsPriceControl_FO!AA$15 -> 0 | CG96: =+S96*KeyAssumptionsPriceControl_FO!AB$15 -> 0 | CH96: =+T96*KeyAssumptionsPriceControl_FO!AC$15 -> 0 | CI96: =+U96*KeyAssumptionsPriceControl_FO!AD$15 -> 0 | CJ96: =+V96*KeyAssumptionsPriceControl_FO!AE$15 -> 0 | CK96: =+W96*KeyAssumptionsPriceControl_FO!AF$15 -> 0 | CL96: =+X96*KeyAssumptionsPriceControl_FO!AG$15 -> 0 | CN96: 0.0365734776 | CO96: 0.07640040456 | CP96: 0.07965385391 | CQ96: 0.07965385391 | CR96: 0.07965385391 | CS96: 0.07965385391 | CT96: 0.07965385391 | CU96: 0.07965385391 | CV96: 0.07965385391 | CW96: 0.07965385391
C97: Bellbridge Wastewater System Upgrade | E97: Sewerage | F97: Improvements / Compliance | G97: Treatment | H97: Capital Programs / Allocation | J97: Straight line | K97: 2021-22 | L97: 25 | M97: 25 | O97: 0.03684 | P97: 0.0921 | Q97: 1.25256 | R97: 0.4605 | S97: 0 | T97: 0 | U97: 0 | V97: 0 | W97: 0 | X97: 0 | AV97: 0.03684 | AW97: 0.0921 | AX97: 1.25256 | AY97: 0.4605 | AZ97: 0 | BA97: 0 | BB97: 0 | BC97: 0 | BD97: 0 | BE97: 0 | BG97: 0 | BH97: 0 | BI97: 0 | BJ97: 0.03684 | BK97: 0.07368 | BL97: 0.07368 | BM97: 0.07368 | BN97: 0.07368 | BO97: 0.07368 | BP97: 0.07368 | BR97: =+IF($K97="Ongoing",AV97,IF(RIGHT($K97,2)=RIGHT(BR$39,2),SUM($AV97:AV97),0)+IF(RIGHT(BR$39,2)>RIGHT($K97,2),AV97,0)) -> 0 | BS97: =+IF($K97="Ongoing",AW97,IF(RIGHT($K97,2)=RIGHT(BS$39,2),SUM($AV97:AW97),0)+IF(RIGHT(BS$39,2)>RIGHT($K97,2),AW97,0)) -> 0 | BT97: =+IF($K97="Ongoing",AX97,IF(RIGHT($K97,2)=RIGHT(BT$39,2),SUM($AV97:AX97),0)+IF(RIGHT(BT$39,2)>RIGHT($K97,2),AX97,0)) -> 0 | BU97: =+IF($K97="Ongoing",AY97,IF(RIGHT($K97,2)=RIGHT(BU$39,2),SUM($AV97:AY97),0)+IF(RIGHT(BU$39,2)>RIGHT($K97,2),AY97,0)) -> 1.842 | BV97: =+IF($K97="Ongoing",AZ97,IF(RIGHT($K97,2)=RIGHT(BV$39,2),SUM($AV97:AZ97),0)+IF(RIGHT(BV$39,2)>RIGHT($K97,2),AZ97,0)) -> 0 | BW97: =+IF($K97="Ongoing",BA97,IF(RIGHT($K97,2)=RIGHT(BW$39,2),SUM($AV97:BA97),0)+IF(RIGHT(BW$39,2)>RIGHT($K97,2),BA97,0)) -> 0 | BX97: =+IF($K97="Ongoing",BB97,IF(RIGHT($K97,2)=RIGHT(BX$39,2),SUM($AV97:BB97),0)+IF(RIGHT(BX$39,2)>RIGHT($K97,2),BB97,0)) -> 0 | BY97: =+IF($K97="Ongoing",BC97,IF(RIGHT($K97,2)=RIGHT(BY$39,2),SUM($AV97:BC97),0)+IF(RIGHT(BY$39,2)>RIGHT($K97,2),BC97,0)) -> 0 | BZ97: =+IF($K97="Ongoing",BD97,IF(RIGHT($K97,2)=RIGHT(BZ$39,2),SUM($AV97:BD97),0)+IF(RIGHT(BZ$39,2)>RIGHT($K97,2),BD97,0)) -> 0 | CA97: =+IF($K97="Ongoing",BE97,IF(RIGHT($K97,2)=RIGHT(CA$39,2),SUM($AV97:BE97),0)+IF(RIGHT(CA$39,2)>RIGHT($K97,2),BE97,0)) -> 0 | CC97: =+O97*KeyAssumptionsPriceControl_FO!X$15 -> 0.03768732 | CD97: =+P97*KeyAssumptionsPriceControl_FO!Y$15 -> 0.0963853209 | CE97: =+Q97*KeyAssumptionsPriceControl_FO!Z$15 -> 1.340989693 | CF97: =+R97*KeyAssumptionsPriceControl_FO!AA$15 -> 0.5043501675 | CG97: =+S97*KeyAssumptionsPriceControl_FO!AB$15 -> 0 | CH97: =+T97*KeyAssumptionsPriceControl_FO!AC$15 -> 0 | CI97: =+U97*KeyAssumptionsPriceControl_FO!AD$15 -> 0 | CJ97: =+V97*KeyAssumptionsPriceControl_FO!AE$15 -> 0 | CK97: =+W97*KeyAssumptionsPriceControl_FO!AF$15 -> 0 | CL97: =+X97*KeyAssumptionsPriceControl_FO!AG$15 -> 0 | CN97: 0.0007537464 | CO97: 0.003435199218 | CP97: 0.03218269949 | CQ97: 0.06908949669 | CR97: 0.07917650004 | CS97: 0.07917650004 | CT97: 0.07917650004 | CU97: 0.07917650004 | CV97: 0.07917650004 | CW97: 0.07917650004
C98: Region Wide Information Security Compliance | E98: Water | F98: Improvements / Compliance | G98: Corporate | H98: Capital Programs / Allocation | J98: Straight line | K98: 2021-22 | L98: 10 | M98: 10 | O98: 0.01762 | P98: 0.01762 | Q98: 0.03524 | R98: 1.69152 | S98: 0 | T98: 0 | U98: 0 | V98: 0 | W98: 0 | X98: 0 | AV98: 0.01762 | AW98: 0.01762 | AX98: 0.03524 | AY98: 1.69152 | AZ98: 0 | BA98: 0 | BB98: 0 | BC98: 0 | BD98: 0 | BE98: 0 | BG98: 0 | BH98: 0 | BI98: 0 | BJ98: 0.0881 | BK98: 0.1762 | BL98: 0.1762 | BM98: 0.1762 | BN98: 0.1762 | BO98: 0.1762 | BP98: 0.1762 | BR98: =+IF($K98="Ongoing",AV98,IF(RIGHT($K98,2)=RIGHT(BR$39,2),SUM($AV98:AV98),0)+IF(RIGHT(BR$39,2)>RIGHT($K98,2),AV98,0)) -> 0 | BS98: =+IF($K98="Ongoing",AW98,IF(RIGHT($K98,2)=RIGHT(BS$39,2),SUM($AV98:AW98),0)+IF(RIGHT(BS$39,2)>RIGHT($K98,2),AW98,0)) -> 0 | BT98: =+IF($K98="Ongoing",AX98,IF(RIGHT($K98,2)=RIGHT(BT$39,2),SUM($AV98:AX98),0)+IF(RIGHT(BT$39,2)>RIGHT($K98,2),AX98,0)) -> 0 | BU98: =+IF($K98="Ongoing",AY98,IF(RIGHT($K98,2)=RIGHT(BU$39,2),SUM($AV98:AY98),0)+IF(RIGHT(BU$39,2)>RIGHT($K98,2),AY98,0)) -> 1.762 | BV98: =+IF($K98="Ongoing",AZ98,IF(RIGHT($K98,2)=RIGHT(BV$39,2),SUM($AV98:AZ98),0)+IF(RIGHT(BV$39,2)>RIGHT($K98,2),AZ98,0)) -> 0 | BW98: =+IF($K98="Ongoing",BA98,IF(RIGHT($K98,2)=RIGHT(BW$39,2),SUM($AV98:BA98),0)+IF(RIGHT(BW$39,2)>RIGHT($K98,2),BA98,0)) -> 0 | BX98: =+IF($K98="Ongoing",BB98,IF(RIGHT($K98,2)=RIGHT(BX$39,2),SUM($AV98:BB98),0)+IF(RIGHT(BX$39,2)>RIGHT($K98,2),BB98,0)) -> 0 | BY98: =+IF($K98="Ongoing",BC98,IF(RIGHT($K98,2)=RIGHT(BY$39,2),SUM($AV98:BC98),0)+IF(RIGHT(BY$39,2)>RIGHT($K98,2),BC98,0)) -> 0 | BZ98: =+IF($K98="Ongoing",BD98,IF(RIGHT($K98,2)=RIGHT(BZ$39,2),SUM($AV98:BD98),0)+IF(RIGHT(BZ$39,2)>RIGHT($K98,2),BD98,0)) -> 0 | CA98: =+IF($K98="Ongoing",BE98,IF(RIGHT($K98,2)=RIGHT(CA$39,2),SUM($AV98:BE98),0)+IF(RIGHT(CA$39,2)>RIGHT($K98,2),BE98,0)) -> 0 | CC98: =+O98*KeyAssumptionsPriceControl_FO!X$15 -> 0.01802526 | CD98: =+P98*KeyAssumptionsPriceControl_FO!Y$15 -> 0.01843984098 | CE98: =+Q98*KeyAssumptionsPriceControl_FO!Z$15 -> 0.03772791465 | CF98: =+R98*KeyAssumptionsPriceControl_FO!AA$15 -> 1.852591521 | CG98: =+S98*KeyAssumptionsPriceControl_FO!AB$15 -> 0 | CH98: =+T98*KeyAssumptionsPriceControl_FO!AC$15 -> 0 | CI98: =+U98*KeyAssumptionsPriceControl_FO!AD$15 -> 0 | CJ98: =+V98*KeyAssumptionsPriceControl_FO!AE$15 -> 0 | CK98: =+W98*KeyAssumptionsPriceControl_FO!AF$15 -> 0 | CL98: =+X98*KeyAssumptionsPriceControl_FO!AG$15 -> 0 | CN98: 0.000901263 | CO98: 0.002724518049 | CP98: 0.00553290583 | CQ98: 0.1000488776 | CR98: 0.1926784536 | CS98: 0.1926784536 | CT98: 0.1926784536 | CU98: 0.1926784536 | CV98: 0.1926784536 | CW98: 0.1926784536
C99: Yackandandah Water Distribution Upgrade | E99: Water | F99: Growth | G99: Pipelines/network | H99: Capital Programs / Allocation | J99: Straight line | K99: 2020-21 | L99: 80 | M99: 80 | O99: 0.1422 | P99: 0.948 | Q99: 0.4898 | R99: 0 | S99: 0 | T99: 0 | U99: 0 | V99: 0 | W99: 0 | X99: 0 | AV99: 0.1422 | AW99: 0.948 | AX99: 0.4898 | AY99: 0 | AZ99: 0 | BA99: 0 | BB99: 0 | BC99: 0 | BD99: 0 | BE99: 0 | BG99: 0 | BH99: 0 | BI99: 0.009875 | BJ99: 0.01975 | BK99: 0.01975 | BL99: 0.01975 | BM99: 0.01975 | BN99: 0.01975 | BO99: 0.01975 | BP99: 0.01975 | BR99: =+IF($K99="Ongoing",AV99,IF(RIGHT($K99,2)=RIGHT(BR$39,2),SUM($AV99:AV99),0)+IF(RIGHT(BR$39,2)>RIGHT($K99,2),AV99,0)) -> 0 | BS99: =+IF($K99="Ongoing",AW99,IF(RIGHT($K99,2)=RIGHT(BS$39,2),SUM($AV99:AW99),0)+IF(RIGHT(BS$39,2)>RIGHT($K99,2),AW99,0)) -> 0 | BT99: =+IF($K99="Ongoing",AX99,IF(RIGHT($K99,2)=RIGHT(BT$39,2),SUM($AV99:AX99),0)+IF(RIGHT(BT$39,2)>RIGHT($K99,2),AX99,0)) -> 1.58 | BU99: =+IF($K99="Ongoing",AY99,IF(RIGHT($K99,2)=RIGHT(BU$39,2),SUM($AV99:AY99),0)+IF(RIGHT(BU$39,2)>RIGHT($K99,2),AY99,0)) -> 0 | BV99: =+IF($K99="Ongoing",AZ99,IF(RIGHT($K99,2)=RIGHT(BV$39,2),SUM($AV99:AZ99),0)+IF(RIGHT(BV$39,2)>RIGHT($K99,2),AZ99,0)) -> 0 | BW99: =+IF($K99="Ongoing",BA99,IF(RIGHT($K99,2)=RIGHT(BW$39,2),SUM($AV99:BA99),0)+IF(RIGHT(BW$39,2)>RIGHT($K99,2),BA99,0)) -> 0 | BX99: =+IF($K99="Ongoing",BB99,IF(RIGHT($K99,2)=RIGHT(BX$39,2),SUM($AV99:BB99),0)+IF(RIGHT(BX$39,2)>RIGHT($K99,2),BB99,0)) -> 0 | BY99: =+IF($K99="Ongoing",BC99,IF(RIGHT($K99,2)=RIGHT(BY$39,2),SUM($AV99:BC99),0)+IF(RIGHT(BY$39,2)>RIGHT($K99,2),BC99,0)) -> 0 | BZ99: =+IF($K99="Ongoing",BD99,IF(RIGHT($K99,2)=RIGHT(BZ$39,2),SUM($AV99:BD99),0)+IF(RIGHT(BZ$39,2)>RIGHT($K99,2),BD99,0)) -> 0 | CA99: =+IF($K99="Ongoing",BE99,IF(RIGHT($K99,2)=RIGHT(CA$39,2),SUM($AV99:BE99),0)+IF(RIGHT(CA$39,2)>RIGHT($K99,2),BE99,0)) -> 0 | CC99: =+O99*KeyAssumptionsPriceControl_FO!X$15 -> 0.1454706 | CD99: =+P99*KeyAssumptionsPriceControl_FO!Y$15 -> 0.992109492 | CE99: =+Q99*KeyAssumptionsPriceControl_FO!Z$15 -> 0.524379472 | CF99: =+R99*KeyAssumptionsPriceControl_FO!AA$15 -> 0 | CG99: =+S99*KeyAssumptionsPriceControl_FO!AB$15 -> 0 | CH99: =+T99*KeyAssumptionsPriceControl_FO!AC$15 -> 0 | CI99: =+U99*KeyAssumptionsPriceControl_FO!AD$15 -> 0 | CJ99: =+V99*KeyAssumptionsPriceControl_FO!AE$15 -> 0 | CK99: =+W99*KeyAssumptionsPriceControl_FO!AF$15 -> 0 | CL99: =+X99*KeyAssumptionsPriceControl_FO!AG$15 -> 0 | CN99: 0.00090919125 | CO99: 0.008019066825 | CP99: 0.01749712285 | CQ99: 0.02077449455 | CR99: 0.02077449455 | CS99: 0.02077449455 | CT99: 0.02077449455 | CU99: 0.02077449455 | CV99: 0.02077449455 | CW99: 0.02077449455
C100: Benalla Wastewater System Transfer Expansion | E100: Sewerage | F100: Growth | G100: Pipelines/network | H100: Capital Programs / Allocation | J100: Straight line | K100: 2021-22 | L100: 80 | M100: 80 | O100: 0 | P100: 0.00787 | Q100: 0.37776 | R100: 1.18837 | S100: 0 | T100: 0 | U100: 0 | V100: 0 | W100: 0 | X100: 0 | AV100: 0 | AW100: 0.00787 | AX100: 0.37776 | AY100: 1.18837 | AZ100: 0 | BA100: 0 | BB100: 0 | BC100: 0 | BD100: 0 | BE100: 0 | BG100: 0 | BH100: 0 | BI100: 0 | BJ100: 0.0098375 | BK100: 0.019675 | BL100: 0.019675 | BM100: 0.019675 | BN100: 0.019675 | BO100: 0.019675 | BP100: 0.019675 | BR100: =+IF($K100="Ongoing",AV100,IF(RIGHT($K100,2)=RIGHT(BR$39,2),SUM($AV100:AV100),0)+IF(RIGHT(BR$39,2)>RIGHT($K100,2),AV100,0)) -> 0 | BS100: =+IF($K100="Ongoing",AW100,IF(RIGHT($K100,2)=RIGHT(BS$39,2),SUM($AV100:AW100),0)+IF(RIGHT(BS$39,2)>RIGHT($K100,2),AW100,0)) -> 0 | BT100: =+IF($K100="Ongoing",AX100,IF(RIGHT($K100,2)=RIGHT(BT$39,2),SUM($AV100:AX100),0)+IF(RIGHT(BT$39,2)>RIGHT($K100,2),AX100,0)) -> 0 | BU100: =+IF($K100="Ongoing",AY100,IF(RIGHT($K100,2)=RIGHT(BU$39,2),SUM($AV100:AY100),0)+IF(RIGHT(BU$39,2)>RIGHT($K100,2),AY100,0)) -> 1.574 | BV100: =+IF($K100="Ongoing",AZ100,IF(RIGHT($K100,2)=RIGHT(BV$39,2),SUM($AV100:AZ100),0)+IF(RIGHT(BV$39,2)>RIGHT($K100,2),AZ100,0)) -> 0 | BW100: =+IF($K100="Ongoing",BA100,IF(RIGHT($K100,2)=RIGHT(BW$39,2),SUM($AV100:BA100),0)+IF(RIGHT(BW$39,2)>RIGHT($K100,2),BA100,0)) -> 0 | BX100: =+IF($K100="Ongoing",BB100,IF(RIGHT($K100,2)=RIGHT(BX$39,2),SUM($AV100:BB100),0)+IF(RIGHT(BX$39,2)>RIGHT($K100,2),BB100,0)) -> 0 | BY100: =+IF($K100="Ongoing",BC100,IF(RIGHT($K100,2)=RIGHT(BY$39,2),SUM($AV100:BC100),0)+IF(RIGHT(BY$39,2)>RIGHT($K100,2),BC100,0)) -> 0 | BZ100: =+IF($K100="Ongoing",BD100,IF(RIGHT($K100,2)=RIGHT(BZ$39,2),SUM($AV100:BD100),0)+IF(RIGHT(BZ$39,2)>RIGHT($K100,2),BD100,0)) -> 0 | CA100: =+IF($K100="Ongoing",BE100,IF(RIGHT($K100,2)=RIGHT(CA$39,2),SUM($AV100:BE100),0)+IF(RIGHT(CA$39,2)>RIGHT($K100,2),BE100,0)) -> 0 | CC100: =+O100*KeyAssumptionsPriceControl_FO!X$15 -> 0 | CD100: =+P100*KeyAssumptionsPriceControl_FO!Y$15 -> 0.00823618323 | CE100: =+Q100*KeyAssumptionsPriceControl_FO!Z$15 -> 0.4044295413 | CF100: =+R100*KeyAssumptionsPriceControl_FO!AA$15 -> 1.301530095 | CG100: =+S100*KeyAssumptionsPriceControl_FO!AB$15 -> 0 | CH100: =+T100*KeyAssumptionsPriceControl_FO!AC$15 -> 0 | CI100: =+U100*KeyAssumptionsPriceControl_FO!AD$15 -> 0 | CJ100: =+V100*KeyAssumptionsPriceControl_FO!AE$15 -> 0 | CK100: =+W100*KeyAssumptionsPriceControl_FO!AF$15 -> 0 | CL100: =+X100*KeyAssumptionsPriceControl_FO!AG$15 -> 0 | CN100: 0 | CO100: 5.147614519e-05 | CP100: 0.002630636924 | CQ100: 0.01329288465 | CR100: 0.02142744774 | CS100: 0.02142744774 | CT100: 0.02142744774 | CU100: 0.02142744774 | CV100: 0.02142744774 | CW100: 0.02142744774
C101: Chiltern CLEARWATER EXPANSION | E101: Water | F101: Growth | G101: Headworks | H101: Capital Programs / Allocation | J101: Straight line | K101: 2025-26 | L101: 50 | M101: 50 | O101: 0 | P101: 0 | Q101: 0 | R101: 0 | S101: 0 | T101: 0 | U101: 0 | V101: 0 | W101: 0.1 | X101: 0 | AV101: 0 | AW101: 0 | AX101: 0 | AY101: 0 | AZ101: 0 | BA101: 0 | BB101: 0 | BC101: 0 | BD101: 0.1 | BE101: 0 | BG101: 0 | BH101: 0 | BI101: 0 | BJ101: 0 | BK101: 0 | BL101: 0 | BM101: 0 | BN101: 0 | BO101: 0.001 | BP101: 0.002 | BR101: =+IF($K101="Ongoing",AV101,IF(RIGHT($K101,2)=RIGHT(BR$39,2),SUM($AV101:AV101),0)+IF(RIGHT(BR$39,2)>RIGHT($K101,2),AV101,0)) -> 0 | BS101: =+IF($K101="Ongoing",AW101,IF(RIGHT($K101,2)=RIGHT(BS$39,2),SUM($AV101:AW101),0)+IF(RIGHT(BS$39,2)>RIGHT($K101,2),AW101,0)) -> 0 | BT101: =+IF($K101="Ongoing",AX101,IF(RIGHT($K101,2)=RIGHT(BT$39,2),SUM($AV101:AX101),0)+IF(RIGHT(BT$39,2)>RIGHT($K101,2),AX101,0)) -> 0 | BU101: =+IF($K101="Ongoing",AY101,IF(RIGHT($K101,2)=RIGHT(BU$39,2),SUM($AV101:AY101),0)+IF(RIGHT(BU$39,2)>RIGHT($K101,2),AY101,0)) -> 0 | BV101: =+IF($K101="Ongoing",AZ101,IF(RIGHT($K101,2)=RIGHT(BV$39,2),SUM($AV101:AZ101),0)+IF(RIGHT(BV$39,2)>RIGHT($K101,2),AZ101,0)) -> 0 | BW101: =+IF($K101="Ongoing",BA101,IF(RIGHT($K101,2)=RIGHT(BW$39,2),SUM($AV101:BA101),0)+IF(RIGHT(BW$39,2)>RIGHT($K101,2),BA101,0)) -> 0 | BX101: =+IF($K101="Ongoing",BB101,IF(RIGHT($K101,2)=RIGHT(BX$39,2),SUM($AV101:BB101),0)+IF(RIGHT(BX$39,2)>RIGHT($K101,2),BB101,0)) -> 0 | BY101: =+IF($K101="Ongoing",BC101,IF(RIGHT($K101,2)=RIGHT(BY$39,2),SUM($AV101:BC101),0)+IF(RIGHT(BY$39,2)>RIGHT($K101,2),BC101,0)) -> 0 | BZ101: =+IF($K101="Ongoing",BD101,IF(RIGHT($K101,2)=RIGHT(BZ$39,2),SUM($AV101:BD101),0)+IF(RIGHT(BZ$39,2)>RIGHT($K101,2),BD101,0)) -> 0.1 | CA101: =+IF($K101="Ongoing",BE101,IF(RIGHT($K101,2)=RIGHT(CA$39,2),SUM($AV101:BE101),0)+IF(RIGHT(CA$39,2)>RIGHT($K101,2),BE101,0)) -> 0 | CC101: =+O101*KeyAssumptionsPriceControl_FO!X$15 -> 0 | CD101: =+P101*KeyAssumptionsPriceControl_FO!Y$15 -> 0 | CE101: =+Q101*KeyAssumptionsPriceControl_FO!Z$15 -> 0 | CF101: =+R101*KeyAssumptionsPriceControl_FO!AA$15 -> 0 | CG101: =+S101*KeyAssumptionsPriceControl_FO!AB$15 -> 0 | CH101: =+T101*KeyAssumptionsPriceControl_FO!AC$15 -> 0 | CI101: =+U101*KeyAssumptionsPriceControl_FO!AD$15 -> 0 | CJ101: =+V101*KeyAssumptionsPriceControl_FO!AE$15 -> 0 | CK101: =+W101*KeyAssumptionsPriceControl_FO!AF$15 -> 0.1227102112 | CL101: =+X101*KeyAssumptionsPriceControl_FO!AG$15 -> 0 | CN101: 0 | CO101: 0 | CP101: 0 | CQ101: 0 | CR101: 0 | CS101: 0 | CT101: 0 | CU101: 0 | CV101: 0.001227102112 | CW101: 0.002454204223
C102: Springhurst CLEARWATER EXPANSION | E102: Water | F102: Growth | G102: Headworks | H102: Other Capital expenditure | J102: Straight line | K102: 2026-27 | L102: 50 | M102: 50 | O102: 0 | P102: 0 | Q102: 0 | R102: 0 | S102: 0 | T102: 0 | U102: 0 | V102: 0 | W102: 0.2 | X102: 0 | AV102: 0 | AW102: 0 | AX102: 0 | AY102: 0 | AZ102: 0 | BA102: 0 | BB102: 0 | BC102: 0 | BD102: 0.2 | BE102: 0 | BG102: 0 | BH102: 0 | BI102: 0 | BJ102: 0 | BK102: 0 | BL102: 0 | BM102: 0 | BN102: 0 | BO102: 0.002 | BP102: 0.004 | BR102: =+IF($K102="Ongoing",AV102,IF(RIGHT($K102,2)=RIGHT(BR$39,2),SUM($AV102:AV102),0)+IF(RIGHT(BR$39,2)>RIGHT($K102,2),AV102,0)) -> 0 | BS102: =+IF($K102="Ongoing",AW102,IF(RIGHT($K102,2)=RIGHT(BS$39,2),SUM($AV102:AW102),0)+IF(RIGHT(BS$39,2)>RIGHT($K102,2),AW102,0)) -> 0 | BT102: =+IF($K102="Ongoing",AX102,IF(RIGHT($K102,2)=RIGHT(BT$39,2),SUM($AV102:AX102),0)+IF(RIGHT(BT$39,2)>RIGHT($K102,2),AX102,0)) -> 0 | BU102: =+IF($K102="Ongoing",AY102,IF(RIGHT($K102,2)=RIGHT(BU$39,2),SUM($AV102:AY102),0)+IF(RIGHT(BU$39,2)>RIGHT($K102,2),AY102,0)) -> 0 | BV102: =+IF($K102="Ongoing",AZ102,IF(RIGHT($K102,2)=RIGHT(BV$39,2),SUM($AV102:AZ102),0)+IF(RIGHT(BV$39,2)>RIGHT($K102,2),AZ102,0)) -> 0 | BW102: =+IF($K102="Ongoing",BA102,IF(RIGHT($K102,2)=RIGHT(BW$39,2),SUM($AV102:BA102),0)+IF(RIGHT(BW$39,2)>RIGHT($K102,2),BA102,0)) -> 0 | BX102: =+IF($K102="Ongoing",BB102,IF(RIGHT($K102,2)=RIGHT(BX$39,2),SUM($AV102:BB102),0)+IF(RIGHT(BX$39,2)>RIGHT($K102,2),BB102,0)) -> 0 | BY102: =+IF($K102="Ongoing",BC102,IF(RIGHT($K102,2)=RIGHT(BY$39,2),SUM($AV102:BC102),0)+IF(RIGHT(BY$39,2)>RIGHT($K102,2),BC102,0)) -> 0 | BZ102: =+IF($K102="Ongoing",BD102,IF(RIGHT($K102,2)=RIGHT(BZ$39,2),SUM($AV102:BD102),0)+IF(RIGHT(BZ$39,2)>RIGHT($K102,2),BD102,0)) -> 0.2 | CA102: =+IF($K102="Ongoing",BE102,IF(RIGHT($K102,2)=RIGHT(CA$39,2),SUM($AV102:BE102),0)+IF(RIGHT(CA$39,2)>RIGHT($K102,2),BE102,0)) -> 0 | CC102: =+O102*KeyAssumptionsPriceControl_FO!X$15 -> 0 | CD102: =+P102*KeyAssumptionsPriceControl_FO!Y$15 -> 0 | CE102: =+Q102*KeyAssumptionsPriceControl_FO!Z$15 -> 0 | CF102: =+R102*KeyAssumptionsPriceControl_FO!AA$15 -> 0 | CG102: =+S102*KeyAssumptionsPriceControl_FO!AB$15 -> 0 | CH102: =+T102*KeyAssumptionsPriceControl_FO!AC$15 -> 0 | CI102: =+U102*KeyAssumptionsPriceControl_FO!AD$15 -> 0 | CJ102: =+V102*KeyAssumptionsPriceControl_FO!AE$15 -> 0 | CK102: =+W102*KeyAssumptionsPriceControl_FO!AF$15 -> 0.2454204223 | CL102: =+X102*KeyAssumptionsPriceControl_FO!AG$15 -> 0 | CN102: 0 | CO102: 0 | CP102: 0 | CQ102: 0 | CR102: 0 | CS102: 0 | CT102: 0 | CU102: 0 | CV102: 0.002454204223 | CW102: 0.004908408446
C103: Customer contributions | E103: Water | F103: Growth | G103: Pipelines/network | H103: Other Capital expenditure | J103: Straight line | K103: Ongoing | O103: 0 | P103: 0 | Q103: 0 | R103: 0 | S103: 0 | T103: 0 | U103: 0 | V103: 0 | W103: 0 | X103: 0 | AK103: 0.514500565 | AL103: 0.5235209231 | AM103: 0.5327018807 | AN103: 0.5420463276 | AO103: 0.5515572063 | AP103: 0.5612375125 | AQ103: 0.5710902962 | AR103: 0.5811186628 | AS103: 0.591325774 | AT103: 0.6017148486 | AV103: -0.514500565 | AW103: -0.5235209231 | AX103: -0.5327018807 | AY103: -0.5420463276 | AZ103: -0.5515572063 | BA103: -0.5612375125 | BB103: -0.5710902962 | BC103: -0.5811186628 | BD103: -0.591325774 | BE103: -0.6017148486 | BG103: 0 | BH103: 0 | BI103: 0 | BJ103: 0 | BK103: 0 | BL103: 0 | BM103: 0 | BN103: 0 | BO103: 0 | BP103: 0 | BR103: =+IF($K103="Ongoing",AV103,IF(RIGHT($K103,2)=RIGHT(BR$39,2),SUM($AV103:AV103),0)+IF(RIGHT(BR$39,2)>RIGHT($K103,2),AV103,0)) -> -0.514500565 | BS103: =+IF($K103="Ongoing",AW103,IF(RIGHT($K103,2)=RIGHT(BS$39,2),SUM($AV103:AW103),0)+IF(RIGHT(BS$39,2)>RIGHT($K103,2),AW103,0)) -> -0.5235209231 | BT103: =+IF($K103="Ongoing",AX103,IF(RIGHT($K103,2)=RIGHT(BT$39,2),SUM($AV103:AX103),0)+IF(RIGHT(BT$39,2)>RIGHT($K103,2),AX103,0)) -> -0.5327018807 | BU103: =+IF($K103="Ongoing",AY103,IF(RIGHT($K103,2)=RIGHT(BU$39,2),SUM($AV103:AY103),0)+IF(RIGHT(BU$39,2)>RIGHT($K103,2),AY103,0)) -> -0.5420463276 | BV103: =+IF($K103="Ongoing",AZ103,IF(RIGHT($K103,2)=RIGHT(BV$39,2),SUM($AV103:AZ103),0)+IF(RIGHT(BV$39,2)>RIGHT($K103,2),AZ103,0)) -> -0.5515572063 | BW103: =+IF($K103="Ongoing",BA103,IF(RIGHT($K103,2)=RIGHT(BW$39,2),SUM($AV103:BA103),0)+IF(RIGHT(BW$39,2)>RIGHT($K103,2),BA103,0)) -> -0.5612375125 | BX103: =+IF($K103="Ongoing",BB103,IF(RIGHT($K103,2)=RIGHT(BX$39,2),SUM($AV103:BB103),0)+IF(RIGHT(BX$39,2)>RIGHT($K103,2),BB103,0)) -> -0.5710902962 | BY103: =+IF($K103="Ongoing",BC103,IF(RIGHT($K103,2)=RIGHT(BY$39,2),SUM($AV103:BC103),0)+IF(RIGHT(BY$39,2)>RIGHT($K103,2),BC103,0)) -> -0.5811186628 | BZ103: =+IF($K103="Ongoing",BD103,IF(RIGHT($K103,2)=RIGHT(BZ$39,2),SUM($AV103:BD103),0)+IF(RIGHT(BZ$39,2)>RIGHT($K103,2),BD103,0)) -> -0.591325774 | CA103: =+IF($K103="Ongoing",BE103,IF(RIGHT($K103,2)=RIGHT(CA$39,2),SUM($AV103:BE103),0)+IF(RIGHT(CA$39,2)>RIGHT($K103,2),BE103,0)) -> -0.6017148486 | CC103: =+O103*KeyAssumptionsPriceControl_FO!X$15 -> 0 | CD103: =+P103*KeyAssumptionsPriceControl_FO!Y$15 -> 0 | CE103: =+Q103*KeyAssumptionsPriceControl_FO!Z$15 -> 0 | CF103: =+R103*KeyAssumptionsPriceControl_FO!AA$15 -> 0 | CG103: =+S103*KeyAssumptionsPriceControl_FO!AB$15 -> 0 | CH103: =+T103*KeyAssumptionsPriceControl_FO!AC$15 -> 0 | CI103: =+U103*KeyAssumptionsPriceControl_FO!AD$15 -> 0 | CJ103: =+V103*KeyAssumptionsPriceControl_FO!AE$15 -> 0 | CK103: =+W103*KeyAssumptionsPriceControl_FO!AF$15 -> 0 | CL103: =+X103*KeyAssumptionsPriceControl_FO!AG$15 -> 0 | CN103: 0 | CO103: 0 | CP103: 0 | CQ103: 0 | CR103: 0 | CS103: 0 | CT103: 0 | CU103: 0 | CV103: 0 | CW103: 0
C104: Customer contributions | E104: Sewerage | F104: Growth | G104: Pipelines/network | H104: Other Capital expenditure | J104: Straight line | K104: Ongoing | O104: 0 | P104: 0 | Q104: 0 | R104: 0 | S104: 0 | T104: 0 | U104: 0 | V104: 0 | W104: 0 | X104: 0 | AK104: 1.200458762 | AL104: 1.221505519 | AM104: 1.242926994 | AN104: 1.26472993 | AO104: 1.286921194 | AP104: 1.309507774 | AQ104: 1.332496788 | AR104: 1.355895481 | AS104: 1.379711229 | AT104: 1.403951544 | AV104: -1.200458762 | AW104: -1.221505519 | AX104: -1.242926994 | AY104: -1.26472993 | AZ104: -1.286921194 | BA104: -1.309507774 | BB104: -1.332496788 | BC104: -1.355895481 | BD104: -1.379711229 | BE104: -1.403951544 | BG104: 0 | BH104: 0 | BI104: 0 | BJ104: 0 | BK104: 0 | BL104: 0 | BM104: 0 | BN104: 0 | BO104: 0 | BP104: 0 | BR104: =+IF($K104="Ongoing",AV104,IF(RIGHT($K104,2)=RIGHT(BR$39,2),SUM($AV104:AV104),0)+IF(RIGHT(BR$39,2)>RIGHT($K104,2),AV104,0)) -> -1.200458762 | BS104: =+IF($K104="Ongoing",AW104,IF(RIGHT($K104,2)=RIGHT(BS$39,2),SUM($AV104:AW104),0)+IF(RIGHT(BS$39,2)>RIGHT($K104,2),AW104,0)) -> -1.221505519 | BT104: =+IF($K104="Ongoing",AX104,IF(RIGHT($K104,2)=RIGHT(BT$39,2),SUM($AV104:AX104),0)+IF(RIGHT(BT$39,2)>RIGHT($K104,2),AX104,0)) -> -1.242926994 | BU104: =+IF($K104="Ongoing",AY104,IF(RIGHT($K104,2)=RIGHT(BU$39,2),SUM($AV104:AY104),0)+IF(RIGHT(BU$39,2)>RIGHT($K104,2),AY104,0)) -> -1.26472993 | BV104: =+IF($K104="Ongoing",AZ104,IF(RIGHT($K104,2)=RIGHT(BV$39,2),SUM($AV104:AZ104),0)+IF(RIGHT(BV$39,2)>RIGHT($K104,2),AZ104,0)) -> -1.286921194 | BW104: =+IF($K104="Ongoing",BA104,IF(RIGHT($K104,2)=RIGHT(BW$39,2),SUM($AV104:BA104),0)+IF(RIGHT(BW$39,2)>RIGHT($K104,2),BA104,0)) -> -1.309507774 | BX104: =+IF($K104="Ongoing",BB104,IF(RIGHT($K104,2)=RIGHT(BX$39,2),SUM($AV104:BB104),0)+IF(RIGHT(BX$39,2)>RIGHT($K104,2),BB104,0)) -> -1.332496788 | BY104: =+IF($K104="Ongoing",BC104,IF(RIGHT($K104,2)=RIGHT(BY$39,2),SUM($AV104:BC104),0)+IF(RIGHT(BY$39,2)>RIGHT($K104,2),BC104,0)) -> -1.355895481 | BZ104: =+IF($K104="Ongoing",BD104,IF(RIGHT($K104,2)=RIGHT(BZ$39,2),SUM($AV104:BD104),0)+IF(RIGHT(BZ$39,2)>RIGHT($K104,2),BD104,0)) -> -1.379711229 | CA104: =+IF($K104="Ongoing",BE104,IF(RIGHT($K104,2)=RIGHT(CA$39,2),SUM($AV104:BE104),0)+IF(RIGHT(CA$39,2)>RIGHT($K104,2),BE104,0)) -> -1.403951544 | CC104: =+O104*KeyAssumptionsPriceControl_FO!X$15 -> 0 | CD104: =+P104*KeyAssumptionsPriceControl_FO!Y$15 -> 0 | CE104: =+Q104*KeyAssumptionsPriceControl_FO!Z$15 -> 0 | CF104: =+R104*KeyAssumptionsPriceControl_FO!AA$15 -> 0 | CG104: =+S104*KeyAssumptionsPriceControl_FO!AB$15 -> 0 | CH104: =+T104*KeyAssumptionsPriceControl_FO!AC$15 -> 0 | CI104: =+U104*KeyAssumptionsPriceControl_FO!AD$15 -> 0 | CJ104: =+V104*KeyAssumptionsPriceControl_FO!AE$15 -> 0 | CK104: =+W104*KeyAssumptionsPriceControl_FO!AF$15 -> 0 | CL104: =+X104*KeyAssumptionsPriceControl_FO!AG$15 -> 0 | CN104: 0 | CO104: 0 | CP104: 0 | CQ104: 0 | CR104: 0 | CS104: 0 | CT104: 0 | CU104: 0 | CV104: 0 | CW104: 0
C105: Walwa WTP CWS Expansion (Security of Supply) | E105: Water | F105: Growth | G105: Headworks | H105: Capital Programs / Allocation | J105: Straight line | K105: 2026-27 | L105: 50 | M105: 50 | O105: 0 | P105: 0 | Q105: 0 | R105: 0 | S105: 0 | T105: 0 | U105: 0 | V105: 0 | W105: 0.35 | X105: 0 | AV105: 0 | AW105: 0 | AX105: 0 | AY105: 0 | AZ105: 0 | BA105: 0 | BB105: 0 | BC105: 0 | BD105: 0.35 | BE105: 0 | BG105: 0 | BH105: 0 | BI105: 0 | BJ105: 0 | BK105: 0 | BL105: 0 | BM105: 0 | BN105: 0 | BO105: 0.0035 | BP105: 0.007 | BR105: =+IF($K105="Ongoing",AV105,IF(RIGHT($K105,2)=RIGHT(BR$39,2),SUM($AV105:AV105),0)+IF(RIGHT(BR$39,2)>RIGHT($K105,2),AV105,0)) -> 0 | BS105: =+IF($K105="Ongoing",AW105,IF(RIGHT($K105,2)=RIGHT(BS$39,2),SUM($AV105:AW105),0)+IF(RIGHT(BS$39,2)>RIGHT($K105,2),AW105,0)) -> 0 | BT105: =+IF($K105="Ongoing",AX105,IF(RIGHT($K105,2)=RIGHT(BT$39,2),SUM($AV105:AX105),0)+IF(RIGHT(BT$39,2)>RIGHT($K105,2),AX105,0)) -> 0 | BU105: =+IF($K105="Ongoing",AY105,IF(RIGHT($K105,2)=RIGHT(BU$39,2),SUM($AV105:AY105),0)+IF(RIGHT(BU$39,2)>RIGHT($K105,2),AY105,0)) -> 0 | BV105: =+IF($K105="Ongoing",AZ105,IF(RIGHT($K105,2)=RIGHT(BV$39,2),SUM($AV105:AZ105),0)+IF(RIGHT(BV$39,2)>RIGHT($K105,2),AZ105,0)) -> 0 | BW105: =+IF($K105="Ongoing",BA105,IF(RIGHT($K105,2)=RIGHT(BW$39,2),SUM($AV105:BA105),0)+IF(RIGHT(BW$39,2)>RIGHT($K105,2),BA105,0)) -> 0 | BX105: =+IF($K105="Ongoing",BB105,IF(RIGHT($K105,2)=RIGHT(BX$39,2),SUM($AV105:BB105),0)+IF(RIGHT(BX$39,2)>RIGHT($K105,2),BB105,0)) -> 0 | BY105: =+IF($K105="Ongoing",BC105,IF(RIGHT($K105,2)=RIGHT(BY$39,2),SUM($AV105:BC105),0)+IF(RIGHT(BY$39,2)>RIGHT($K105,2),BC105,0)) -> 0 | BZ105: =+IF($K105="Ongoing",BD105,IF(RIGHT($K105,2)=RIGHT(BZ$39,2),SUM($AV105:BD105),0)+IF(RIGHT(BZ$39,2)>RIGHT($K105,2),BD105,0)) -> 0.35 | CA105: =+IF($K105="Ongoing",BE105,IF(RIGHT($K105,2)=RIGHT(CA$39,2),SUM($AV105:BE105),0)+IF(RIGHT(CA$39,2)>RIGHT($K105,2),BE105,0)) -> 0 | CC105: =+O105*KeyAssumptionsPriceControl_FO!X$15 -> 0 | CD105: =+P105*KeyAssumptionsPriceControl_FO!Y$15 -> 0 | CE105: =+Q105*KeyAssumptionsPriceControl_FO!Z$15 -> 0 | CF105: =+R105*KeyAssumptionsPriceControl_FO!AA$15 -> 0 | CG105: =+S105*KeyAssumptionsPriceControl_FO!AB$15 -> 0 | CH105: =+T105*KeyAssumptionsPriceControl_FO!AC$15 -> 0 | CI105: =+U105*KeyAssumptionsPriceControl_FO!AD$15 -> 0 | CJ105: =+V105*KeyAssumptionsPriceControl_FO!AE$15 -> 0 | CK105: =+W105*KeyAssumptionsPriceControl_FO!AF$15 -> 0.429485739 | CL105: =+X105*KeyAssumptionsPriceControl_FO!AG$15 -> 0 | CN105: 0 | CO105: 0 | CP105: 0 | CQ105: 0 | CR105: 0 | CS105: 0 | CT105: 0 | CU105: 0 | CV105: 0.00429485739 | CW105: 0.008589714781
C106: Bellbridge Water Main Distribution Upgrades (Reliable Services) | E106: Water | F106: Improvements / Compliance | G106: Pipelines/network | H106: Capital Programs / Allocation | J106: Straight line | K106: 2026-27 | L106: 80 | M106: 80 | O106: 0 | P106: 0 | Q106: 0 | R106: 0 | S106: 0 | T106: 0 | U106: 0 | V106: 0 | W106: 0.3 | X106: 0 | AV106: 0 | AW106: 0 | AX106: 0 | AY106: 0 | AZ106: 0 | BA106: 0 | BB106: 0 | BC106: 0 | BD106: 0.3 | BE106: 0 | BG106: 0 | BH106: 0 | BI106: 0 | BJ106: 0 | BK106: 0 | BL106: 0 | BM106: 0 | BN106: 0 | BO106: 0.001875 | BP106: 0.00375 | BR106: =+IF($K106="Ongoing",AV106,IF(RIGHT($K106,2)=RIGHT(BR$39,2),SUM($AV106:AV106),0)+IF(RIGHT(BR$39,2)>RIGHT($K106,2),AV106,0)) -> 0 | BS106: =+IF($K106="Ongoing",AW106,IF(RIGHT($K106,2)=RIGHT(BS$39,2),SUM($AV106:AW106),0)+IF(RIGHT(BS$39,2)>RIGHT($K106,2),AW106,0)) -> 0 | BT106: =+IF($K106="Ongoing",AX106,IF(RIGHT($K106,2)=RIGHT(BT$39,2),SUM($AV106:AX106),0)+IF(RIGHT(BT$39,2)>RIGHT($K106,2),AX106,0)) -> 0 | BU106: =+IF($K106="Ongoing",AY106,IF(RIGHT($K106,2)=RIGHT(BU$39,2),SUM($AV106:AY106),0)+IF(RIGHT(BU$39,2)>RIGHT($K106,2),AY106,0)) -> 0 | BV106: =+IF($K106="Ongoing",AZ106,IF(RIGHT($K106,2)=RIGHT(BV$39,2),SUM($AV106:AZ106),0)+IF(RIGHT(BV$39,2)>RIGHT($K106,2),AZ106,0)) -> 0 | BW106: =+IF($K106="Ongoing",BA106,IF(RIGHT($K106,2)=RIGHT(BW$39,2),SUM($AV106:BA106),0)+IF(RIGHT(BW$39,2)>RIGHT($K106,2),BA106,0)) -> 0 | BX106: =+IF($K106="Ongoing",BB106,IF(RIGHT($K106,2)=RIGHT(BX$39,2),SUM($AV106:BB106),0)+IF(RIGHT(BX$39,2)>RIGHT($K106,2),BB106,0)) -> 0 | BY106: =+IF($K106="Ongoing",BC106,IF(RIGHT($K106,2)=RIGHT(BY$39,2),SUM($AV106:BC106),0)+IF(RIGHT(BY$39,2)>RIGHT($K106,2),BC106,0)) -> 0 | BZ106: =+IF($K106="Ongoing",BD106,IF(RIGHT($K106,2)=RIGHT(BZ$39,2),SUM($AV106:BD106),0)+IF(RIGHT(BZ$39,2)>RIGHT($K106,2),BD106,0)) -> 0.3 | CA106: =+IF($K106="Ongoing",BE106,IF(RIGHT($K106,2)=RIGHT(CA$39,2),SUM($AV106:BE106),0)+IF(RIGHT(CA$39,2)>RIGHT($K106,2),BE106,0)) -> 0 | CC106: =+O106*KeyAssumptionsPriceControl_FO!X$15 -> 0 | CD106: =+P106*KeyAssumptionsPriceControl_FO!Y$15 -> 0 | CE106: =+Q106*KeyAssumptionsPriceControl_FO!Z$15 -> 0 | CF106: =+R106*KeyAssumptionsPriceControl_FO!AA$15 -> 0 | CG106: =+S106*KeyAssumptionsPriceControl_FO!AB$15 -> 0 | CH106: =+T106*KeyAssumptionsPriceControl_FO!AC$15 -> 0 | CI106: =+U106*KeyAssumptionsPriceControl_FO!AD$15 -> 0 | CJ106: =+V106*KeyAssumptionsPriceControl_FO!AE$15 -> 0 | CK106: =+W106*KeyAssumptionsPriceControl_FO!AF$15 -> 0.3681306335 | CL106: =+X106*KeyAssumptionsPriceControl_FO!AG$15 -> 0 | CN106: 0 | CO106: 0 | CP106: 0 | CQ106: 0 | CR106: 0 | CS106: 0 | CT106: 0 | CU106: 0 | CV106: 0.002300816459 | CW106: 0.004601632918
C107: Wangaratta Nth West Water Supply (Growth Support) | E107: Water | F107: Growth | G107: Pipelines/network | H107: Capital Programs / Allocation | J107: Straight line | K107: 2026-27 | L107: 80 | M107: 80 | O107: 0 | P107: 0 | Q107: 0 | R107: 0 | S107: 0 | T107: 0 | U107: 0 | V107: 0 | W107: 2 | X107: 0 | AV107: 0 | AW107: 0 | AX107: 0 | AY107: 0 | AZ107: 0 | BA107: 0 | BB107: 0 | BC107: 0 | BD107: 2 | BE107: 0 | BG107: =IF($L107=0,0, IF($L107<=0.5,BR107, IF($J107="straight line", IF((LEFT(BG$39,4)*1)-INT($L107)<LEFT($BG$39,4)*1,0,((OFFSET(BR107,0,-INT($L107+0.5),1,1))/$L107)*(IF($L107-INT($L107)>0.5,$L107-0.5-INT($L107),IF($L107-INT($L107)<=0.5,$L107-0.5-INT($L107)+1,0)))) +BR107/$L107*0.5, IF($J107="Declining Balance",-$BG$38,0)))) -> 0 | BH107: 0 | BI107: 0 | BJ107: 0 | BK107: 0 | BL107: 0 | BM107: 0 | BN107: 0 | BO107: 0.0125 | BP107: 0.025 | BR107: =+IF($K107="Ongoing",AV107,IF(RIGHT($K107,2)=RIGHT(BR$39,2),SUM($AV107:AV107),0)+IF(RIGHT(BR$39,2)>RIGHT($K107,2),AV107,0)) -> 0 | BS107: =+IF($K107="Ongoing",AW107,IF(RIGHT($K107,2)=RIGHT(BS$39,2),SUM($AV107:AW107),0)+IF(RIGHT(BS$39,2)>RIGHT($K107,2),AW107,0)) -> 0 | BT107: =+IF($K107="Ongoing",AX107,IF(RIGHT($K107,2)=RIGHT(BT$39,2),SUM($AV107:AX107),0)+IF(RIGHT(BT$39,2)>RIGHT($K107,2),AX107,0)) -> 0 | BU107: =+IF($K107="Ongoing",AY107,IF(RIGHT($K107,2)=RIGHT(BU$39,2),SUM($AV107:AY107),0)+IF(RIGHT(BU$39,2)>RIGHT($K107,2),AY107,0)) -> 0 | BV107: =+IF($K107="Ongoing",AZ107,IF(RIGHT($K107,2)=RIGHT(BV$39,2),SUM($AV107:AZ107),0)+IF(RIGHT(BV$39,2)>RIGHT($K107,2),AZ107,0)) -> 0 | BW107: =+IF($K107="Ongoing",BA107,IF(RIGHT($K107,2)=RIGHT(BW$39,2),SUM($AV107:BA107),0)+IF(RIGHT(BW$39,2)>RIGHT($K107,2),BA107,0)) -> 0 | BX107: =+IF($K107="Ongoing",BB107,IF(RIGHT($K107,2)=RIGHT(BX$39,2),SUM($AV107:BB107),0)+IF(RIGHT(BX$39,2)>RIGHT($K107,2),BB107,0)) -> 0 | BY107: =+IF($K107="Ongoing",BC107,IF(RIGHT($K107,2)=RIGHT(BY$39,2),SUM($AV107:BC107),0)+IF(RIGHT(BY$39,2)>RIGHT($K107,2),BC107,0)) -> 0 | BZ107: =+IF($K107="Ongoing",BD107,IF(RIGHT($K107,2)=RIGHT(BZ$39,2),SUM($AV107:BD107),0)+IF(RIGHT(BZ$39,2)>RIGHT($K107,2),BD107,0)) -> 2 | CA107: =+IF($K107="Ongoing",BE107,IF(RIGHT($K107,2)=RIGHT(CA$39,2),SUM($AV107:BE107),0)+IF(RIGHT(CA$39,2)>RIGHT($K107,2),BE107,0)) -> 0 | CC107: =+O107*KeyAssumptionsPriceControl_FO!X$15 -> 0 | CD107: =+P107*KeyAssumptionsPriceControl_FO!Y$15 -> 0 | CE107: =+Q107*KeyAssumptionsPriceControl_FO!Z$15 -> 0 | CF107: =+R107*KeyAssumptionsPriceControl_FO!AA$15 -> 0 | CG107: =+S107*KeyAssumptionsPriceControl_FO!AB$15 -> 0 | CH107: =+T107*KeyAssumptionsPriceControl_FO!AC$15 -> 0 | CI107: =+U107*KeyAssumptionsPriceControl_FO!AD$15 -> 0 | CJ107: =+V107*KeyAssumptionsPriceControl_FO!AE$15 -> 0 | CK107: =+W107*KeyAssumptionsPriceControl_FO!AF$15 -> 2.454204223 | CL107: =+X107*KeyAssumptionsPriceControl_FO!AG$15 -> 0 | CN107: =IF($M107=0,0, IF($M107<=0.5,CC107, IF($J107="straight line", IF((LEFT(CN$39,4)*1)-INT($M107)<LEFT($CN$39,4)*1,0,((OFFSET(CC107,0,-INT($M107+0.5),1,1))/$M107)*(IF($M107-INT($M107)>0.5,$M107-0.5-INT($M107),IF($M107-INT($M107)<=0.5,$M107-0.5-INT($M107)+1,0)))) +CC107/$M107*0.5, IF($J107="Declining Balance",-$CN$38,0)))) -> 0 | CO107: 0 | CP107: 0 | CQ107: 0 | CR107: 0 | CS107: 0 | CT107: 0 | CU107: 0 | CV107: 0.01533877639 | CW107: 0.03067755279
C108: Wodonga Enterprise Park Main Extension (Growth Support) | E108: Water | F108: Growth | G108: Pipelines/network | H108: Capital Programs / Allocation | J108: Straight line | K108: 2026-27 | L108: 80 | M108: 80 | O108: 0 | P108: 0 | Q108: 0 | R108: 0 | S108: 0 | T108: 0 | U108: 0 | V108: 0 | W108: 0.1 | X108: 0 | AV108: 0 | AW108: 0 | AX108: 0 | AY108: 0 | AZ108: 0 | BA108: 0 | BB108: 0 | BC108: 0 | BD108: 0.1 | BE108: 0 | BG108: 0 | BH108: 0 | BI108: 0 | BJ108: 0 | BK108: 0 | BL108: 0 | BM108: 0 | BN108: 0 | BO108: 0.000625 | BP108: 0.00125 | BR108: =+IF($K108="Ongoing",AV108,IF(RIGHT($K108,2)=RIGHT(BR$39,2),SUM($AV108:AV108),0)+IF(RIGHT(BR$39,2)>RIGHT($K108,2),AV108,0)) -> 0 | BS108: =+IF($K108="Ongoing",AW108,IF(RIGHT($K108,2)=RIGHT(BS$39,2),SUM($AV108:AW108),0)+IF(RIGHT(BS$39,2)>RIGHT($K108,2),AW108,0)) -> 0 | BT108: =+IF($K108="Ongoing",AX108,IF(RIGHT($K108,2)=RIGHT(BT$39,2),SUM($AV108:AX108),0)+IF(RIGHT(BT$39,2)>RIGHT($K108,2),AX108,0)) -> 0 | BU108: =+IF($K108="Ongoing",AY108,IF(RIGHT($K108,2)=RIGHT(BU$39,2),SUM($AV108:AY108),0)+IF(RIGHT(BU$39,2)>RIGHT($K108,2),AY108,0)) -> 0 | BV108: =+IF($K108="Ongoing",AZ108,IF(RIGHT($K108,2)=RIGHT(BV$39,2),SUM($AV108:AZ108),0)+IF(RIGHT(BV$39,2)>RIGHT($K108,2),AZ108,0)) -> 0 | BW108: =+IF($K108="Ongoing",BA108,IF(RIGHT($K108,2)=RIGHT(BW$39,2),SUM($AV108:BA108),0)+IF(RIGHT(BW$39,2)>RIGHT($K108,2),BA108,0)) -> 0 | BX108: =+IF($K108="Ongoing",BB108,IF(RIGHT($K108,2)=RIGHT(BX$39,2),SUM($AV108:BB108),0)+IF(RIGHT(BX$39,2)>RIGHT($K108,2),BB108,0)) -> 0 | BY108: =+IF($K108="Ongoing",BC108,IF(RIGHT($K108,2)=RIGHT(BY$39,2),SUM($AV108:BC108),0)+IF(RIGHT(BY$39,2)>RIGHT($K108,2),BC108,0)) -> 0 | BZ108: =+IF($K108="Ongoing",BD108,IF(RIGHT($K108,2)=RIGHT(BZ$39,2),SUM($AV108:BD108),0)+IF(RIGHT(BZ$39,2)>RIGHT($K108,2),BD108,0)) -> 0.1 | CA108: =+IF($K108="Ongoing",BE108,IF(RIGHT($K108,2)=RIGHT(CA$39,2),SUM($AV108:BE108),0)+IF(RIGHT(CA$39,2)>RIGHT($K108,2),BE108,0)) -> 0 | CC108: =+O108*KeyAssumptionsPriceControl_FO!X$15 -> 0 | CD108: =+P108*KeyAssumptionsPriceControl_FO!Y$15 -> 0 | CE108: =+Q108*KeyAssumptionsPriceControl_FO!Z$15 -> 0 | CF108: =+R108*KeyAssumptionsPriceControl_FO!AA$15 -> 0 | CG108: =+S108*KeyAssumptionsPriceControl_FO!AB$15 -> 0 | CH108: =+T108*KeyAssumptionsPriceControl_FO!AC$15 -> 0 | CI108: =+U108*KeyAssumptionsPriceControl_FO!AD$15 -> 0 | CJ108: =+V108*KeyAssumptionsPriceControl_FO!AE$15 -> 0 | CK108: =+W108*KeyAssumptionsPriceControl_FO!AF$15 -> 0.1227102112 | CL108: =+X108*KeyAssumptionsPriceControl_FO!AG$15 -> 0 | CN108: 0 | CO108: 0 | CP108: 0 | CQ108: 0 | CR108: 0 | CS108: 0 | CT108: 0 | CU108: 0 | CV108: 0.0007669388197 | CW108: 0.001533877639
C109: Wodonga Leneva Trunk Mains (Growth Support) | E109: Water | F109: Growth | G109: Pipelines/network | H109: Capital Programs / Allocation | J109: Straight line | K109: 2026-27 | L109: 80 | M109: 80 | O109: 0 | P109: 0 | Q109: 0 | R109: 0 | S109: 0 | T109: 0 | U109: 0 | V109: 0 | W109: 1 | X109: 0 | AV109: 0 | AW109: 0 | AX109: 0 | AY109: 0 | AZ109: 0 | BA109: 0 | BB109: 0 | BC109: 0 | BD109: 1 | BE109: 0 | BG109: 0 | BH109: 0 | BI109: 0 | BJ109: 0 | BK109: 0 | BL109: 0 | BM109: 0 | BN109: 0 | BO109: 0.00625 | BP109: 0.0125 | BR109: =+IF($K109="Ongoing",AV109,IF(RIGHT($K109,2)=RIGHT(BR$39,2),SUM($AV109:AV109),0)+IF(RIGHT(BR$39,2)>RIGHT($K109,2),AV109,0)) -> 0 | BS109: =+IF($K109="Ongoing",AW109,IF(RIGHT($K109,2)=RIGHT(BS$39,2),SUM($AV109:AW109),0)+IF(RIGHT(BS$39,2)>RIGHT($K109,2),AW109,0)) -> 0 | BT109: =+IF($K109="Ongoing",AX109,IF(RIGHT($K109,2)=RIGHT(BT$39,2),SUM($AV109:AX109),0)+IF(RIGHT(BT$39,2)>RIGHT($K109,2),AX109,0)) -> 0 | BU109: =+IF($K109="Ongoing",AY109,IF(RIGHT($K109,2)=RIGHT(BU$39,2),SUM($AV109:AY109),0)+IF(RIGHT(BU$39,2)>RIGHT($K109,2),AY109,0)) -> 0 | BV109: =+IF($K109="Ongoing",AZ109,IF(RIGHT($K109,2)=RIGHT(BV$39,2),SUM($AV109:AZ109),0)+IF(RIGHT(BV$39,2)>RIGHT($K109,2),AZ109,0)) -> 0 | BW109: =+IF($K109="Ongoing",BA109,IF(RIGHT($K109,2)=RIGHT(BW$39,2),SUM($AV109:BA109),0)+IF(RIGHT(BW$39,2)>RIGHT($K109,2),BA109,0)) -> 0 | BX109: =+IF($K109="Ongoing",BB109,IF(RIGHT($K109,2)=RIGHT(BX$39,2),SUM($AV109:BB109),0)+IF(RIGHT(BX$39,2)>RIGHT($K109,2),BB109,0)) -> 0 | BY109: =+IF($K109="Ongoing",BC109,IF(RIGHT($K109,2)=RIGHT(BY$39,2),SUM($AV109:BC109),0)+IF(RIGHT(BY$39,2)>RIGHT($K109,2),BC109,0)) -> 0 | BZ109: =+IF($K109="Ongoing",BD109,IF(RIGHT($K109,2)=RIGHT(BZ$39,2),SUM($AV109:BD109),0)+IF(RIGHT(BZ$39,2)>RIGHT($K109,2),BD109,0)) -> 1 | CA109: =+IF($K109="Ongoing",BE109,IF(RIGHT($K109,2)=RIGHT(CA$39,2),SUM($AV109:BE109),0)+IF(RIGHT(CA$39,2)>RIGHT($K109,2),BE109,0)) -> 0 | CC109: =+O109*KeyAssumptionsPriceControl_FO!X$15 -> 0 | CD109: =+P109*KeyAssumptionsPriceControl_FO!Y$15 -> 0 | CE109: =+Q109*KeyAssumptionsPriceControl_FO!Z$15 -> 0 | CF109: =+R109*KeyAssumptionsPriceControl_FO!AA$15 -> 0 | CG109: =+S109*KeyAssumptionsPriceControl_FO!AB$15 -> 0 | CH109: =+T109*KeyAssumptionsPriceControl_FO!AC$15 -> 0 | CI109: =+U109*KeyAssumptionsPriceControl_FO!AD$15 -> 0 | CJ109: =+V109*KeyAssumptionsPriceControl_FO!AE$15 -> 0 | CK109: =+W109*KeyAssumptionsPriceControl_FO!AF$15 -> 1.227102112 | CL109: =+X109*KeyAssumptionsPriceControl_FO!AG$15 -> 0 | CN109: 0 | CO109: 0 | CP109: 0 | CQ109: 0 | CR109: 0 | CS109: 0 | CT109: 0 | CU109: 0 | CV109: 0.007669388197 | CW109: 0.01533877639
C110: Wodonga WTP Bandiana Pump Upgrade (Growth Support) | E110: Water | F110: Improvements / Compliance | G110: Pipelines/network | H110: Capital Programs / Allocation | J110: Straight line | K110: 2026-27 | L110: 20 | M110: 20 | O110: 0 | P110: 0 | Q110: 0 | R110: 0 | S110: 0 | T110: 0 | U110: 0 | V110: 0 | W110: 0.39 | X110: 0 | AV110: 0 | AW110: 0 | AX110: 0 | AY110: 0 | AZ110: =+S110-AD110-AO110 -> 0 | BA110: 0 | BB110: 0 | BC110: 0 | BD110: 0.39 | BE110: 0 | BG110: 0 | BH110: 0 | BI110: 0 | BJ110: 0 | BK110: 0 | BL110: 0 | BM110: 0 | BN110: 0 | BO110: 0.00975 | BP110: 0.0195 | BR110: =+IF($K110="Ongoing",AV110,IF(RIGHT($K110,2)=RIGHT(BR$39,2),SUM($AV110:AV110),0)+IF(RIGHT(BR$39,2)>RIGHT($K110,2),AV110,0)) -> 0 | BS110: =+IF($K110="Ongoing",AW110,IF(RIGHT($K110,2)=RIGHT(BS$39,2),SUM($AV110:AW110),0)+IF(RIGHT(BS$39,2)>RIGHT($K110,2),AW110,0)) -> 0 | BT110: =+IF($K110="Ongoing",AX110,IF(RIGHT($K110,2)=RIGHT(BT$39,2),SUM($AV110:AX110),0)+IF(RIGHT(BT$39,2)>RIGHT($K110,2),AX110,0)) -> 0 | BU110: =+IF($K110="Ongoing",AY110,IF(RIGHT($K110,2)=RIGHT(BU$39,2),SUM($AV110:AY110),0)+IF(RIGHT(BU$39,2)>RIGHT($K110,2),AY110,0)) -> 0 | BV110: =+IF($K110="Ongoing",AZ110,IF(RIGHT($K110,2)=RIGHT(BV$39,2),SUM($AV110:AZ110),0)+IF(RIGHT(BV$39,2)>RIGHT($K110,2),AZ110,0)) -> 0 | BW110: =+IF($K110="Ongoing",BA110,IF(RIGHT($K110,2)=RIGHT(BW$39,2),SUM($AV110:BA110),0)+IF(RIGHT(BW$39,2)>RIGHT($K110,2),BA110,0)) -> 0 | BX110: =+IF($K110="Ongoing",BB110,IF(RIGHT($K110,2)=RIGHT(BX$39,2),SUM($AV110:BB110),0)+IF(RIGHT(BX$39,2)>RIGHT($K110,2),BB110,0)) -> 0 | BY110: =+IF($K110="Ongoing",BC110,IF(RIGHT($K110,2)=RIGHT(BY$39,2),SUM($AV110:BC110),0)+IF(RIGHT(BY$39,2)>RIGHT($K110,2),BC110,0)) -> 0 | BZ110: =+IF($K110="Ongoing",BD110,IF(RIGHT($K110,2)=RIGHT(BZ$39,2),SUM($AV110:BD110),0)+IF(RIGHT(BZ$39,2)>RIGHT($K110,2),BD110,0)) -> 0.39 | CA110: =+IF($K110="Ongoing",BE110,IF(RIGHT($K110,2)=RIGHT(CA$39,2),SUM($AV110:BE110),0)+IF(RIGHT(CA$39,2)>RIGHT($K110,2),BE110,0)) -> 0 | CC110: =+O110*KeyAssumptionsPriceControl_FO!X$15 -> 0 | CD110: =+P110*KeyAssumptionsPriceControl_FO!Y$15 -> 0 | CE110: =+Q110*KeyAssumptionsPriceControl_FO!Z$15 -> 0 | CF110: =+R110*KeyAssumptionsPriceControl_FO!AA$15 -> 0 | CG110: =+S110*KeyAssumptionsPriceControl_FO!AB$15 -> 0 | CH110: =+T110*KeyAssumptionsPriceControl_FO!AC$15 -> 0 | CI110: =+U110*KeyAssumptionsPriceControl_FO!AD$15 -> 0 | CJ110: =+V110*KeyAssumptionsPriceControl_FO!AE$15 -> 0 | CK110: =+W110*KeyAssumptionsPriceControl_FO!AF$15 -> 0.4785698235 | CL110: =+X110*KeyAssumptionsPriceControl_FO!AG$15 -> 0 | CN110: 0 | CO110: 0 | CP110: 0 | CQ110: 0 | CR110: 0 | CS110: 0 | CT110: 0 | CU110: 0 | CV110: 0.01196424559 | CW110: 0.02392849117
C111: Moyhu Water Security Alternative Supply (Security of Supply) | E111: Water | F111: Improvements / Compliance | G111: Pipelines/network | H111: Significant projects | J111: Straight line | K111: 2026-27 | L111: 80 | M111: 80 | O111: 0 | P111: 0 | Q111: 0 | R111: 0 | S111: 0 | T111: 0 | U111: 0 | V111: 0 | W111: 3 | X111: 0 | AV111: 0 | AW111: 0 | AX111: 0 | AY111: 0 | AZ111: 0 | BA111: 0 | BB111: 0 | BC111: 0 | BD111: 3 | BE111: 0 | BG111: 0 | BH111: 0 | BI111: 0 | BJ111: 0 | BK111: 0 | BL111: 0 | BM111: 0 | BN111: 0 | BO111: 0.01875 | BP111: 0.0375 | BR111: =+IF($K111="Ongoing",AV111,IF(RIGHT($K111,2)=RIGHT(BR$39,2),SUM($AV111:AV111),0)+IF(RIGHT(BR$39,2)>RIGHT($K111,2),AV111,0)) -> 0 | BS111: =+IF($K111="Ongoing",AW111,IF(RIGHT($K111,2)=RIGHT(BS$39,2),SUM($AV111:AW111),0)+IF(RIGHT(BS$39,2)>RIGHT($K111,2),AW111,0)) -> 0 | BT111: =+IF($K111="Ongoing",AX111,IF(RIGHT($K111,2)=RIGHT(BT$39,2),SUM($AV111:AX111),0)+IF(RIGHT(BT$39,2)>RIGHT($K111,2),AX111,0)) -> 0 | BU111: =+IF($K111="Ongoing",AY111,IF(RIGHT($K111,2)=RIGHT(BU$39,2),SUM($AV111:AY111),0)+IF(RIGHT(BU$39,2)>RIGHT($K111,2),AY111,0)) -> 0 | BV111: =+IF($K111="Ongoing",AZ111,IF(RIGHT($K111,2)=RIGHT(BV$39,2),SUM($AV111:AZ111),0)+IF(RIGHT(BV$39,2)>RIGHT($K111,2),AZ111,0)) -> 0 | BW111: =+IF($K111="Ongoing",BA111,IF(RIGHT($K111,2)=RIGHT(BW$39,2),SUM($AV111:BA111),0)+IF(RIGHT(BW$39,2)>RIGHT($K111,2),BA111,0)) -> 0 | BX111: =+IF($K111="Ongoing",BB111,IF(RIGHT($K111,2)=RIGHT(BX$39,2),SUM($AV111:BB111),0)+IF(RIGHT(BX$39,2)>RIGHT($K111,2),BB111,0)) -> 0 | BY111: =+IF($K111="Ongoing",BC111,IF(RIGHT($K111,2)=RIGHT(BY$39,2),SUM($AV111:BC111),0)+IF(RIGHT(BY$39,2)>RIGHT($K111,2),BC111,0)) -> 0 | BZ111: =+IF($K111="Ongoing",BD111,IF(RIGHT($K111,2)=RIGHT(BZ$39,2),SUM($AV111:BD111),0)+IF(RIGHT(BZ$39,2)>RIGHT($K111,2),BD111,0)) -> 3 | CA111: =+IF($K111="Ongoing",BE111,IF(RIGHT($K111,2)=RIGHT(CA$39,2),SUM($AV111:BE111),0)+IF(RIGHT(CA$39,2)>RIGHT($K111,2),BE111,0)) -> 0 | CC111: =+O111*KeyAssumptionsPriceControl_FO!X$15 -> 0 | CD111: =+P111*KeyAssumptionsPriceControl_FO!Y$15 -> 0 | CE111: =+Q111*KeyAssumptionsPriceControl_FO!Z$15 -> 0 | CF111: =+R111*KeyAssumptionsPriceControl_FO!AA$15 -> 0 | CG111: =+S111*KeyAssumptionsPriceControl_FO!AB$15 -> 0 | CH111: =+T111*KeyAssumptionsPriceControl_FO!AC$15 -> 0 | CI111: =+U111*KeyAssumptionsPriceControl_FO!AD$15 -> 0 | CJ111: =+V111*KeyAssumptionsPriceControl_FO!AE$15 -> 0 | CK111: =+W111*KeyAssumptionsPriceControl_FO!AF$15 -> 3.681306335 | CL111: =+X111*KeyAssumptionsPriceControl_FO!AG$15 -> 0 | CN111: 0 | CO111: 0 | CP111: 0 | CQ111: 0 | CR111: 0 | CS111: 0 | CT111: 0 | CU111: 0 | CV111: 0.02300816459 | CW111: 0.04601632918
C112: Oxley Water Security Alternative Supply (Security of Supply) | E112: Water | F112: Improvements / Compliance | G112: Pipelines/network | H112: Significant projects | J112: Straight line | K112: 2026-27 | L112: 80 | M112: 80 | O112: 0 | P112: 0 | Q112: 0 | R112: 0 | S112: 0 | T112: 0 | U112: 0 | V112: 0 | W112: 1 | X112: 0 | AV112: 0 | AW112: 0 | AX112: 0 | AY112: 0 | AZ112: 0 | BA112: 0 | BB112: 0 | BC112: 0 | BD112: 1 | BE112: 0 | BG112: 0 | BH112: 0 | BI112: 0 | BJ112: 0 | BK112: 0 | BL112: 0 | BM112: 0 | BN112: 0 | BO112: 0.00625 | BP112: 0.0125 | BR112: =+IF($K112="Ongoing",AV112,IF(RIGHT($K112,2)=RIGHT(BR$39,2),SUM($AV112:AV112),0)+IF(RIGHT(BR$39,2)>RIGHT($K112,2),AV112,0)) -> 0 | BS112: =+IF($K112="Ongoing",AW112,IF(RIGHT($K112,2)=RIGHT(BS$39,2),SUM($AV112:AW112),0)+IF(RIGHT(BS$39,2)>RIGHT($K112,2),AW112,0)) -> 0 | BT112: =+IF($K112="Ongoing",AX112,IF(RIGHT($K112,2)=RIGHT(BT$39,2),SUM($AV112:AX112),0)+IF(RIGHT(BT$39,2)>RIGHT($K112,2),AX112,0)) -> 0 | BU112: =+IF($K112="Ongoing",AY112,IF(RIGHT($K112,2)=RIGHT(BU$39,2),SUM($AV112:AY112),0)+IF(RIGHT(BU$39,2)>RIGHT($K112,2),AY112,0)) -> 0 | BV112: =+IF($K112="Ongoing",AZ112,IF(RIGHT($K112,2)=RIGHT(BV$39,2),SUM($AV112:AZ112),0)+IF(RIGHT(BV$39,2)>RIGHT($K112,2),AZ112,0)) -> 0 | BW112: =+IF($K112="Ongoing",BA112,IF(RIGHT($K112,2)=RIGHT(BW$39,2),SUM($AV112:BA112),0)+IF(RIGHT(BW$39,2)>RIGHT($K112,2),BA112,0)) -> 0 | BX112: =+IF($K112="Ongoing",BB112,IF(RIGHT($K112,2)=RIGHT(BX$39,2),SUM($AV112:BB112),0)+IF(RIGHT(BX$39,2)>RIGHT($K112,2),BB112,0)) -> 0 | BY112: =+IF($K112="Ongoing",BC112,IF(RIGHT($K112,2)=RIGHT(BY$39,2),SUM($AV112:BC112),0)+IF(RIGHT(BY$39,2)>RIGHT($K112,2),BC112,0)) -> 0 | BZ112: =+IF($K112="Ongoing",BD112,IF(RIGHT($K112,2)=RIGHT(BZ$39,2),SUM($AV112:BD112),0)+IF(RIGHT(BZ$39,2)>RIGHT($K112,2),BD112,0)) -> 1 | CA112: =+IF($K112="Ongoing",BE112,IF(RIGHT($K112,2)=RIGHT(CA$39,2),SUM($AV112:BE112),0)+IF(RIGHT(CA$39,2)>RIGHT($K112,2),BE112,0)) -> 0 | CC112: =+O112*KeyAssumptionsPriceControl_FO!X$15 -> 0 | CD112: =+P112*KeyAssumptionsPriceControl_FO!Y$15 -> 0 | CE112: =+Q112*KeyAssumptionsPriceControl_FO!Z$15 -> 0 | CF112: =+R112*KeyAssumptionsPriceControl_FO!AA$15 -> 0 | CG112: =+S112*KeyAssumptionsPriceControl_FO!AB$15 -> 0 | CH112: =+T112*KeyAssumptionsPriceControl_FO!AC$15 -> 0 | CI112: =+U112*KeyAssumptionsPriceControl_FO!AD$15 -> 0 | CJ112: =+V112*KeyAssumptionsPriceControl_FO!AE$15 -> 0 | CK112: =+W112*KeyAssumptionsPriceControl_FO!AF$15 -> 1.227102112 | CL112: =+X112*KeyAssumptionsPriceControl_FO!AG$15 -> 0 | CN112: 0 | CO112: 0 | CP112: 0 | CQ112: 0 | CR112: 0 | CS112: 0 | CT112: 0 | CU112: 0 | CV112: 0.007669388197 | CW112: 0.01533877639
C113: Whitfield Bore Capacity (Security of Supply) | E113: Water | F113: Improvements / Compliance | G113: Pipelines/network | H113: Capital Programs / Allocation | J113: Straight line | K113: 2026-27 | L113: 50 | M113: 50 | O113: 0 | P113: 0 | Q113: 0 | R113: 0 | S113: 0 | T113: 0 | U113: 0 | V113: 0 | W113: 0.1 | X113: 0 | AV113: 0 | AW113: 0 | AX113: 0 | AY113: 0 | AZ113: 0 | BA113: 0 | BB113: 0 | BC113: 0 | BD113: 0.1 | BE113: 0 | BG113: 0 | BH113: 0 | BI113: 0 | BJ113: 0 | BK113: 0 | BL113: 0 | BM113: 0 | BN113: 0 | BO113: 0.001 | BP113: 0.002 | BR113: =+IF($K113="Ongoing",AV113,IF(RIGHT($K113,2)=RIGHT(BR$39,2),SUM($AV113:AV113),0)+IF(RIGHT(BR$39,2)>RIGHT($K113,2),AV113,0)) -> 0 | BS113: =+IF($K113="Ongoing",AW113,IF(RIGHT($K113,2)=RIGHT(BS$39,2),SUM($AV113:AW113),0)+IF(RIGHT(BS$39,2)>RIGHT($K113,2),AW113,0)) -> 0 | BT113: =+IF($K113="Ongoing",AX113,IF(RIGHT($K113,2)=RIGHT(BT$39,2),SUM($AV113:AX113),0)+IF(RIGHT(BT$39,2)>RIGHT($K113,2),AX113,0)) -> 0 | BU113: =+IF($K113="Ongoing",AY113,IF(RIGHT($K113,2)=RIGHT(BU$39,2),SUM($AV113:AY113),0)+IF(RIGHT(BU$39,2)>RIGHT($K113,2),AY113,0)) -> 0 | BV113: =+IF($K113="Ongoing",AZ113,IF(RIGHT($K113,2)=RIGHT(BV$39,2),SUM($AV113:AZ113),0)+IF(RIGHT(BV$39,2)>RIGHT($K113,2),AZ113,0)) -> 0 | BW113: =+IF($K113="Ongoing",BA113,IF(RIGHT($K113,2)=RIGHT(BW$39,2),SUM($AV113:BA113),0)+IF(RIGHT(BW$39,2)>RIGHT($K113,2),BA113,0)) -> 0 | BX113: =+IF($K113="Ongoing",BB113,IF(RIGHT($K113,2)=RIGHT(BX$39,2),SUM($AV113:BB113),0)+IF(RIGHT(BX$39,2)>RIGHT($K113,2),BB113,0)) -> 0 | BY113: =+IF($K113="Ongoing",BC113,IF(RIGHT($K113,2)=RIGHT(BY$39,2),SUM($AV113:BC113),0)+IF(RIGHT(BY$39,2)>RIGHT($K113,2),BC113,0)) -> 0 | BZ113: =+IF($K113="Ongoing",BD113,IF(RIGHT($K113,2)=RIGHT(BZ$39,2),SUM($AV113:BD113),0)+IF(RIGHT(BZ$39,2)>RIGHT($K113,2),BD113,0)) -> 0.1 | CA113: =+IF($K113="Ongoing",BE113,IF(RIGHT($K113,2)=RIGHT(CA$39,2),SUM($AV113:BE113),0)+IF(RIGHT(CA$39,2)>RIGHT($K113,2),BE113,0)) -> 0 | CC113: =+O113*KeyAssumptionsPriceControl_FO!X$15 -> 0 | CD113: =+P113*KeyAssumptionsPriceControl_FO!Y$15 -> 0 | CE113: =+Q113*KeyAssumptionsPriceControl_FO!Z$15 -> 0 | CF113: =+R113*KeyAssumptionsPriceControl_FO!AA$15 -> 0 | CG113: =+S113*KeyAssumptionsPriceControl_FO!AB$15 -> 0 | CH113: =+T113*KeyAssumptionsPriceControl_FO!AC$15 -> 0 | CI113: =+U113*KeyAssumptionsPriceControl_FO!AD$15 -> 0 | CJ113: =+V113*KeyAssumptionsPriceControl_FO!AE$15 -> 0 | CK113: =+W113*KeyAssumptionsPriceControl_FO!AF$15 -> 0.1227102112 | CL113: =+X113*KeyAssumptionsPriceControl_FO!AG$15 -> 0 | CN113: 0 | CO113: 0 | CP113: 0 | CQ113: 0 | CR113: 0 | CS113: 0 | CT113: 0 | CU113: 0 | CV113: 0.001227102112 | CW113: 0.002454204223
C114: Yarrawonga Sludge Management (Social & Environmental Benefits) | E114: Water | F114: Improvements / Compliance | G114: Treatment | H114: Capital Programs / Allocation | J114: Straight line | K114: 2026-27 | L114: 20 | M114: 20 | O114: 0 | P114: 0 | Q114: 0 | R114: 0 | S114: 0 | T114: 0 | U114: 0 | V114: 0 | W114: 1.3 | X114: 0 | AV114: 0 | AW114: 0 | AX114: 0 | AY114: 0 | AZ114: 0 | BA114: 0 | BB114: 0 | BC114: 0 | BD114: 1.3 | BE114: 0 | BG114: 0 | BH114: 0 | BI114: 0 | BJ114: 0 | BK114: 0 | BL114: 0 | BM114: 0 | BN114: 0 | BO114: 0.0325 | BP114: 0.065 | BR114: =+IF($K114="Ongoing",AV114,IF(RIGHT($K114,2)=RIGHT(BR$39,2),SUM($AV114:AV114),0)+IF(RIGHT(BR$39,2)>RIGHT($K114,2),AV114,0)) -> 0 | BS114: =+IF($K114="Ongoing",AW114,IF(RIGHT($K114,2)=RIGHT(BS$39,2),SUM($AV114:AW114),0)+IF(RIGHT(BS$39,2)>RIGHT($K114,2),AW114,0)) -> 0 | BT114: =+IF($K114="Ongoing",AX114,IF(RIGHT($K114,2)=RIGHT(BT$39,2),SUM($AV114:AX114),0)+IF(RIGHT(BT$39,2)>RIGHT($K114,2),AX114,0)) -> 0 | BU114: =+IF($K114="Ongoing",AY114,IF(RIGHT($K114,2)=RIGHT(BU$39,2),SUM($AV114:AY114),0)+IF(RIGHT(BU$39,2)>RIGHT($K114,2),AY114,0)) -> 0 | BV114: =+IF($K114="Ongoing",AZ114,IF(RIGHT($K114,2)=RIGHT(BV$39,2),SUM($AV114:AZ114),0)+IF(RIGHT(BV$39,2)>RIGHT($K114,2),AZ114,0)) -> 0 | BW114: =+IF($K114="Ongoing",BA114,IF(RIGHT($K114,2)=RIGHT(BW$39,2),SUM($AV114:BA114),0)+IF(RIGHT(BW$39,2)>RIGHT($K114,2),BA114,0)) -> 0 | BX114: =+IF($K114="Ongoing",BB114,IF(RIGHT($K114,2)=RIGHT(BX$39,2),SUM($AV114:BB114),0)+IF(RIGHT(BX$39,2)>RIGHT($K114,2),BB114,0)) -> 0 | BY114: =+IF($K114="Ongoing",BC114,IF(RIGHT($K114,2)=RIGHT(BY$39,2),SUM($AV114:BC114),0)+IF(RIGHT(BY$39,2)>RIGHT($K114,2),BC114,0)) -> 0 | BZ114: =+IF($K114="Ongoing",BD114,IF(RIGHT($K114,2)=RIGHT(BZ$39,2),SUM($AV114:BD114),0)+IF(RIGHT(BZ$39,2)>RIGHT($K114,2),BD114,0)) -> 1.3 | CA114: =+IF($K114="Ongoing",BE114,IF(RIGHT($K114,2)=RIGHT(CA$39,2),SUM($AV114:BE114),0)+IF(RIGHT(CA$39,2)>RIGHT($K114,2),BE114,0)) -> 0 | CC114: =+O114*KeyAssumptionsPriceControl_FO!X$15 -> 0 | CD114: =+P114*KeyAssumptionsPriceControl_FO!Y$15 -> 0 | CE114: =+Q114*KeyAssumptionsPriceControl_FO!Z$15 -> 0 | CF114: =+R114*KeyAssumptionsPriceControl_FO!AA$15 -> 0 | CG114: =+S114*KeyAssumptionsPriceControl_FO!AB$15 -> 0 | CH114: =+T114*KeyAssumptionsPriceControl_FO!AC$15 -> 0 | CI114: =+U114*KeyAssumptionsPriceControl_FO!AD$15 -> 0 | CJ114: =+V114*KeyAssumptionsPriceControl_FO!AE$15 -> 0 | CK114: =+W114*KeyAssumptionsPriceControl_FO!AF$15 -> 1.595232745 | CL114: =+X114*KeyAssumptionsPriceControl_FO!AG$15 -> 0 | CN114: 0 | CO114: 0 | CP114: 0 | CQ114: 0 | CR114: 0 | CS114: 0 | CT114: 0 | CU114: 0 | CV114: 0.03988081862 | CW114: 0.07976163725
C115: Baranduda Reuse - Stage 2 (Social & Environmental Benefits) | E115: Sewerage | F115: Improvements / Compliance | G115: Treatment | H115: Capital Programs / Allocation | J115: Straight line | K115: 2026-27 | L115: 50 | M115: 50 | O115: 0 | P115: 0 | Q115: 0 | R115: 0 | S115: 0 | T115: 0 | U115: 0 | V115: 0 | W115: 0.25 | X115: 0 | AV115: 0 | AW115: 0 | AX115: 0 | AY115: 0 | AZ115: 0 | BA115: 0 | BB115: 0 | BC115: 0 | BD115: 0.25 | BE115: 0 | BG115: 0 | BH115: 0 | BI115: 0 | BJ115: 0 | BK115: 0 | BL115: 0 | BM115: 0 | BN115: 0 | BO115: 0.0025 | BP115: 0.005 | BR115: =+IF($K115="Ongoing",AV115,IF(RIGHT($K115,2)=RIGHT(BR$39,2),SUM($AV115:AV115),0)+IF(RIGHT(BR$39,2)>RIGHT($K115,2),AV115,0)) -> 0 | BS115: =+IF($K115="Ongoing",AW115,IF(RIGHT($K115,2)=RIGHT(BS$39,2),SUM($AV115:AW115),0)+IF(RIGHT(BS$39,2)>RIGHT($K115,2),AW115,0)) -> 0 | BT115: =+IF($K115="Ongoing",AX115,IF(RIGHT($K115,2)=RIGHT(BT$39,2),SUM($AV115:AX115),0)+IF(RIGHT(BT$39,2)>RIGHT($K115,2),AX115,0)) -> 0 | BU115: =+IF($K115="Ongoing",AY115,IF(RIGHT($K115,2)=RIGHT(BU$39,2),SUM($AV115:AY115),0)+IF(RIGHT(BU$39,2)>RIGHT($K115,2),AY115,0)) -> 0 | BV115: =+IF($K115="Ongoing",AZ115,IF(RIGHT($K115,2)=RIGHT(BV$39,2),SUM($AV115:AZ115),0)+IF(RIGHT(BV$39,2)>RIGHT($K115,2),AZ115,0)) -> 0 | BW115: =+IF($K115="Ongoing",BA115,IF(RIGHT($K115,2)=RIGHT(BW$39,2),SUM($AV115:BA115),0)+IF(RIGHT(BW$39,2)>RIGHT($K115,2),BA115,0)) -> 0 | BX115: =+IF($K115="Ongoing",BB115,IF(RIGHT($K115,2)=RIGHT(BX$39,2),SUM($AV115:BB115),0)+IF(RIGHT(BX$39,2)>RIGHT($K115,2),BB115,0)) -> 0 | BY115: =+IF($K115="Ongoing",BC115,IF(RIGHT($K115,2)=RIGHT(BY$39,2),SUM($AV115:BC115),0)+IF(RIGHT(BY$39,2)>RIGHT($K115,2),BC115,0)) -> 0 | BZ115: =+IF($K115="Ongoing",BD115,IF(RIGHT($K115,2)=RIGHT(BZ$39,2),SUM($AV115:BD115),0)+IF(RIGHT(BZ$39,2)>RIGHT($K115,2),BD115,0)) -> 0.25 | CA115: =+IF($K115="Ongoing",BE115,IF(RIGHT($K115,2)=RIGHT(CA$39,2),SUM($AV115:BE115),0)+IF(RIGHT(CA$39,2)>RIGHT($K115,2),BE115,0)) -> 0 | CC115: =+O115*KeyAssumptionsPriceControl_FO!X$15 -> 0 | CD115: =+P115*KeyAssumptionsPriceControl_FO!Y$15 -> 0 | CE115: =+Q115*KeyAssumptionsPriceControl_FO!Z$15 -> 0 | CF115: =+R115*KeyAssumptionsPriceControl_FO!AA$15 -> 0 | CG115: =+S115*KeyAssumptionsPriceControl_FO!AB$15 -> 0 | CH115: =+T115*KeyAssumptionsPriceControl_FO!AC$15 -> 0 | CI115: =+U115*KeyAssumptionsPriceControl_FO!AD$15 -> 0 | CJ115: =+V115*KeyAssumptionsPriceControl_FO!AE$15 -> 0 | CK115: =+W115*KeyAssumptionsPriceControl_FO!AF$15 -> 0.3067755279 | CL115: =+X115*KeyAssumptionsPriceControl_FO!AG$15 -> 0 | CN115: 0 | CO115: 0 | CP115: 0 | CQ115: 0 | CR115: 0 | CS115: 0 | CT115: 0 | CU115: 0 | CV115: 0.003067755279 | CW115: 0.006135510558
C116: Mt Beauty WWTP Sludge Management | E116: Sewerage | F116: Improvements / Compliance | G116: Treatment | H116: Capital Programs / Allocation | J116: Straight line | K116: 2026-27 | L116: 20 | M116: 20 | O116: 0 | P116: 0 | Q116: 0 | R116: 0 | S116: 0 | T116: 0 | U116: 0 | V116: 0 | W116: 0.25 | X116: 0 | AV116: 0 | AW116: 0 | AX116: 0 | AY116: 0 | AZ116: 0 | BA116: 0 | BB116: 0 | BC116: 0 | BD116: 0.25 | BE116: 0 | BG116: 0 | BH116: 0 | BI116: 0 | BJ116: 0 | BK116: 0 | BL116: 0 | BM116: 0 | BN116: 0 | BO116: 0.00625 | BP116: 0.0125 | BR116: =+IF($K116="Ongoing",AV116,IF(RIGHT($K116,2)=RIGHT(BR$39,2),SUM($AV116:AV116),0)+IF(RIGHT(BR$39,2)>RIGHT($K116,2),AV116,0)) -> 0 | BS116: =+IF($K116="Ongoing",AW116,IF(RIGHT($K116,2)=RIGHT(BS$39,2),SUM($AV116:AW116),0)+IF(RIGHT(BS$39,2)>RIGHT($K116,2),AW116,0)) -> 0 | BT116: =+IF($K116="Ongoing",AX116,IF(RIGHT($K116,2)=RIGHT(BT$39,2),SUM($AV116:AX116),0)+IF(RIGHT(BT$39,2)>RIGHT($K116,2),AX116,0)) -> 0 | BU116: =+IF($K116="Ongoing",AY116,IF(RIGHT($K116,2)=RIGHT(BU$39,2),SUM($AV116:AY116),0)+IF(RIGHT(BU$39,2)>RIGHT($K116,2),AY116,0)) -> 0 | BV116: =+IF($K116="Ongoing",AZ116,IF(RIGHT($K116,2)=RIGHT(BV$39,2),SUM($AV116:AZ116),0)+IF(RIGHT(BV$39,2)>RIGHT($K116,2),AZ116,0)) -> 0 | BW116: =+IF($K116="Ongoing",BA116,IF(RIGHT($K116,2)=RIGHT(BW$39,2),SUM($AV116:BA116),0)+IF(RIGHT(BW$39,2)>RIGHT($K116,2),BA116,0)) -> 0 | BX116: =+IF($K116="Ongoing",BB116,IF(RIGHT($K116,2)=RIGHT(BX$39,2),SUM($AV116:BB116),0)+IF(RIGHT(BX$39,2)>RIGHT($K116,2),BB116,0)) -> 0 | BY116: =+IF($K116="Ongoing",BC116,IF(RIGHT($K116,2)=RIGHT(BY$39,2),SUM($AV116:BC116),0)+IF(RIGHT(BY$39,2)>RIGHT($K116,2),BC116,0)) -> 0 | BZ116: =+IF($K116="Ongoing",BD116,IF(RIGHT($K116,2)=RIGHT(BZ$39,2),SUM($AV116:BD116),0)+IF(RIGHT(BZ$39,2)>RIGHT($K116,2),BD116,0)) -> 0.25 | CA116: =+IF($K116="Ongoing",BE116,IF(RIGHT($K116,2)=RIGHT(CA$39,2),SUM($AV116:BE116),0)+IF(RIGHT(CA$39,2)>RIGHT($K116,2),BE116,0)) -> 0 | CC116: =+O116*KeyAssumptionsPriceControl_FO!X$15 -> 0 | CD116: =+P116*KeyAssumptionsPriceControl_FO!Y$15 -> 0 | CE116: =+Q116*KeyAssumptionsPriceControl_FO!Z$15 -> 0 | CF116: =+R116*KeyAssumptionsPriceControl_FO!AA$15 -> 0 | CG116: =+S116*KeyAssumptionsPriceControl_FO!AB$15 -> 0 | CH116: =+T116*KeyAssumptionsPriceControl_FO!AC$15 -> 0 | CI116: =+U116*KeyAssumptionsPriceControl_FO!AD$15 -> 0 | CJ116: =+V116*KeyAssumptionsPriceControl_FO!AE$15 -> 0 | CK116: =+W116*KeyAssumptionsPriceControl_FO!AF$15 -> 0.3067755279 | CL116: =+X116*KeyAssumptionsPriceControl_FO!AG$15 -> 0 | CN116: 0 | CO116: 0 | CP116: 0 | CQ116: 0 | CR116: 0 | CS116: 0 | CT116: 0 | CU116: 0 | CV116: 0.007669388197 | CW116: 0.01533877639
C117: Dartmouth CWS Expansion (Reliable Services) | E117: Water | F117: Growth | G117: Headworks | H117: Capital Programs / Allocation | J117: Straight line | K117: 2027-28 | L117: 50 | M117: 50 | O117: 0 | P117: 0 | Q117: 0 | R117: 0 | S117: 0 | T117: 0 | U117: 0 | V117: 0 | W117: 0 | X117: 0.2 | AV117: 0 | AW117: 0 | AX117: 0 | AY117: 0 | AZ117: 0 | BA117: 0 | BB117: 0 | BC117: 0 | BD117: 0 | BE117: 0.2 | BG117: 0 | BH117: 0 | BI117: 0 | BJ117: 0 | BK117: 0 | BL117: 0 | BM117: 0 | BN117: 0 | BO117: 0 | BP117: 0.002 | BR117: =+IF($K117="Ongoing",AV117,IF(RIGHT($K117,2)=RIGHT(BR$39,2),SUM($AV117:AV117),0)+IF(RIGHT(BR$39,2)>RIGHT($K117,2),AV117,0)) -> 0 | BS117: =+IF($K117="Ongoing",AW117,IF(RIGHT($K117,2)=RIGHT(BS$39,2),SUM($AV117:AW117),0)+IF(RIGHT(BS$39,2)>RIGHT($K117,2),AW117,0)) -> 0 | BT117: =+IF($K117="Ongoing",AX117,IF(RIGHT($K117,2)=RIGHT(BT$39,2),SUM($AV117:AX117),0)+IF(RIGHT(BT$39,2)>RIGHT($K117,2),AX117,0)) -> 0 | BU117: =+IF($K117="Ongoing",AY117,IF(RIGHT($K117,2)=RIGHT(BU$39,2),SUM($AV117:AY117),0)+IF(RIGHT(BU$39,2)>RIGHT($K117,2),AY117,0)) -> 0 | BV117: =+IF($K117="Ongoing",AZ117,IF(RIGHT($K117,2)=RIGHT(BV$39,2),SUM($AV117:AZ117),0)+IF(RIGHT(BV$39,2)>RIGHT($K117,2),AZ117,0)) -> 0 | BW117: =+IF($K117="Ongoing",BA117,IF(RIGHT($K117,2)=RIGHT(BW$39,2),SUM($AV117:BA117),0)+IF(RIGHT(BW$39,2)>RIGHT($K117,2),BA117,0)) -> 0 | BX117: =+IF($K117="Ongoing",BB117,IF(RIGHT($K117,2)=RIGHT(BX$39,2),SUM($AV117:BB117),0)+IF(RIGHT(BX$39,2)>RIGHT($K117,2),BB117,0)) -> 0 | BY117: =+IF($K117="Ongoing",BC117,IF(RIGHT($K117,2)=RIGHT(BY$39,2),SUM($AV117:BC117),0)+IF(RIGHT(BY$39,2)>RIGHT($K117,2),BC117,0)) -> 0 | BZ117: =+IF($K117="Ongoing",BD117,IF(RIGHT($K117,2)=RIGHT(BZ$39,2),SUM($AV117:BD117),0)+IF(RIGHT(BZ$39,2)>RIGHT($K117,2),BD117,0)) -> 0 | CA117: =+IF($K117="Ongoing",BE117,IF(RIGHT($K117,2)=RIGHT(CA$39,2),SUM($AV117:BE117),0)+IF(RIGHT(CA$39,2)>RIGHT($K117,2),BE117,0)) -> 0.2 | CC117: =+O117*KeyAssumptionsPriceControl_FO!X$15 -> 0 | CD117: =+P117*KeyAssumptionsPriceControl_FO!Y$15 -> 0 | CE117: =+Q117*KeyAssumptionsPriceControl_FO!Z$15 -> 0 | CF117: =+R117*KeyAssumptionsPriceControl_FO!AA$15 -> 0 | CG117: =+S117*KeyAssumptionsPriceControl_FO!AB$15 -> 0 | CH117: =+T117*KeyAssumptionsPriceControl_FO!AC$15 -> 0 | CI117: =+U117*KeyAssumptionsPriceControl_FO!AD$15 -> 0 | CJ117: =+V117*KeyAssumptionsPriceControl_FO!AE$15 -> 0 | CK117: =+W117*KeyAssumptionsPriceControl_FO!AF$15 -> 0 | CL117: =+X117*KeyAssumptionsPriceControl_FO!AG$15 -> 0.251065092 | CN117: 0 | CO117: 0 | CP117: 0 | CQ117: 0 | CR117: 0 | CS117: 0 | CT117: 0 | CU117: 0 | CV117: 0 | CW117: 0.00251065092
C118: Eskdale CWS Expansion (Reliable Services) | E118: Water | F118: Growth | G118: Headworks | H118: Capital Programs / Allocation | J118: Straight line | K118: 2027-28 | L118: 50 | M118: 50 | O118: 0 | P118: 0 | Q118: 0 | R118: 0 | S118: 0 | T118: 0 | U118: 0 | V118: 0 | W118: 0 | X118: 0.2 | AV118: 0 | AW118: 0 | AX118: 0 | AY118: 0 | AZ118: 0 | BA118: 0 | BB118: 0 | BC118: 0 | BD118: 0 | BE118: 0.2 | BG118: 0 | BH118: 0 | BI118: 0 | BJ118: 0 | BK118: 0 | BL118: 0 | BM118: 0 | BN118: 0 | BO118: 0 | BP118: 0.002 | BR118: =+IF($K118="Ongoing",AV118,IF(RIGHT($K118,2)=RIGHT(BR$39,2),SUM($AV118:AV118),0)+IF(RIGHT(BR$39,2)>RIGHT($K118,2),AV118,0)) -> 0 | BS118: =+IF($K118="Ongoing",AW118,IF(RIGHT($K118,2)=RIGHT(BS$39,2),SUM($AV118:AW118),0)+IF(RIGHT(BS$39,2)>RIGHT($K118,2),AW118,0)) -> 0 | BT118: =+IF($K118="Ongoing",AX118,IF(RIGHT($K118,2)=RIGHT(BT$39,2),SUM($AV118:AX118),0)+IF(RIGHT(BT$39,2)>RIGHT($K118,2),AX118,0)) -> 0 | BU118: =+IF($K118="Ongoing",AY118,IF(RIGHT($K118,2)=RIGHT(BU$39,2),SUM($AV118:AY118),0)+IF(RIGHT(BU$39,2)>RIGHT($K118,2),AY118,0)) -> 0 | BV118: =+IF($K118="Ongoing",AZ118,IF(RIGHT($K118,2)=RIGHT(BV$39,2),SUM($AV118:AZ118),0)+IF(RIGHT(BV$39,2)>RIGHT($K118,2),AZ118,0)) -> 0 | BW118: =+IF($K118="Ongoing",BA118,IF(RIGHT($K118,2)=RIGHT(BW$39,2),SUM($AV118:BA118),0)+IF(RIGHT(BW$39,2)>RIGHT($K118,2),BA118,0)) -> 0 | BX118: =+IF($K118="Ongoing",BB118,IF(RIGHT($K118,2)=RIGHT(BX$39,2),SUM($AV118:BB118),0)+IF(RIGHT(BX$39,2)>RIGHT($K118,2),BB118,0)) -> 0 | BY118: =+IF($K118="Ongoing",BC118,IF(RIGHT($K118,2)=RIGHT(BY$39,2),SUM($AV118:BC118),0)+IF(RIGHT(BY$39,2)>RIGHT($K118,2),BC118,0)) -> 0 | BZ118: =+IF($K118="Ongoing",BD118,IF(RIGHT($K118,2)=RIGHT(BZ$39,2),SUM($AV118:BD118),0)+IF(RIGHT(BZ$39,2)>RIGHT($K118,2),BD118,0)) -> 0 | CA118: =+IF($K118="Ongoing",BE118,IF(RIGHT($K118,2)=RIGHT(CA$39,2),SUM($AV118:BE118),0)+IF(RIGHT(CA$39,2)>RIGHT($K118,2),BE118,0)) -> 0.2 | CC118: =+O118*KeyAssumptionsPriceControl_FO!X$15 -> 0 | CD118: =+P118*KeyAssumptionsPriceControl_FO!Y$15 -> 0 | CE118: =+Q118*KeyAssumptionsPriceControl_FO!Z$15 -> 0 | CF118: =+R118*KeyAssumptionsPriceControl_FO!AA$15 -> 0 | CG118: =+S118*KeyAssumptionsPriceControl_FO!AB$15 -> 0 | CH118: =+T118*KeyAssumptionsPriceControl_FO!AC$15 -> 0 | CI118: =+U118*KeyAssumptionsPriceControl_FO!AD$15 -> 0 | CJ118: =+V118*KeyAssumptionsPriceControl_FO!AE$15 -> 0 | CK118: =+W118*KeyAssumptionsPriceControl_FO!AF$15 -> 0 | CL118: =+X118*KeyAssumptionsPriceControl_FO!AG$15 -> 0.251065092 | CN118: 0 | CO118: 0 | CP118: 0 | CQ118: 0 | CR118: 0 | CS118: 0 | CT118: 0 | CU118: 0 | CV118: 0 | CW118: 0.00251065092
C119: Harrietville CWS Expansion (Security of Supply) | E119: Water | F119: Growth | G119: Headworks | H119: Capital Programs / Allocation | J119: Straight line | K119: 2027-28 | L119: 50 | M119: 50 | O119: 0 | P119: 0 | Q119: 0 | R119: 0 | S119: 0 | T119: 0 | U119: 0 | V119: 0 | W119: 0 | X119: 0.4 | AV119: 0 | AW119: 0 | AX119: 0 | AY119: 0 | AZ119: 0 | BA119: 0 | BB119: 0 | BC119: 0 | BD119: 0 | BE119: 0.4 | BG119: 0 | BH119: 0 | BI119: 0 | BJ119: 0 | BK119: 0 | BL119: 0 | BM119: 0 | BN119: 0 | BO119: 0 | BP119: 0.004 | BR119: =+IF($K119="Ongoing",AV119,IF(RIGHT($K119,2)=RIGHT(BR$39,2),SUM($AV119:AV119),0)+IF(RIGHT(BR$39,2)>RIGHT($K119,2),AV119,0)) -> 0 | BS119: =+IF($K119="Ongoing",AW119,IF(RIGHT($K119,2)=RIGHT(BS$39,2),SUM($AV119:AW119),0)+IF(RIGHT(BS$39,2)>RIGHT($K119,2),AW119,0)) -> 0 | BT119: =+IF($K119="Ongoing",AX119,IF(RIGHT($K119,2)=RIGHT(BT$39,2),SUM($AV119:AX119),0)+IF(RIGHT(BT$39,2)>RIGHT($K119,2),AX119,0)) -> 0 | BU119: =+IF($K119="Ongoing",AY119,IF(RIGHT($K119,2)=RIGHT(BU$39,2),SUM($AV119:AY119),0)+IF(RIGHT(BU$39,2)>RIGHT($K119,2),AY119,0)) -> 0 | BV119: =+IF($K119="Ongoing",AZ119,IF(RIGHT($K119,2)=RIGHT(BV$39,2),SUM($AV119:AZ119),0)+IF(RIGHT(BV$39,2)>RIGHT($K119,2),AZ119,0)) -> 0 | BW119: =+IF($K119="Ongoing",BA119,IF(RIGHT($K119,2)=RIGHT(BW$39,2),SUM($AV119:BA119),0)+IF(RIGHT(BW$39,2)>RIGHT($K119,2),BA119,0)) -> 0 | BX119: =+IF($K119="Ongoing",BB119,IF(RIGHT($K119,2)=RIGHT(BX$39,2),SUM($AV119:BB119),0)+IF(RIGHT(BX$39,2)>RIGHT($K119,2),BB119,0)) -> 0 | BY119: =+IF($K119="Ongoing",BC119,IF(RIGHT($K119,2)=RIGHT(BY$39,2),SUM($AV119:BC119),0)+IF(RIGHT(BY$39,2)>RIGHT($K119,2),BC119,0)) -> 0 | BZ119: =+IF($K119="Ongoing",BD119,IF(RIGHT($K119,2)=RIGHT(BZ$39,2),SUM($AV119:BD119),0)+IF(RIGHT(BZ$39,2)>RIGHT($K119,2),BD119,0)) -> 0 | CA119: =+IF($K119="Ongoing",BE119,IF(RIGHT($K119,2)=RIGHT(CA$39,2),SUM($AV119:BE119),0)+IF(RIGHT(CA$39,2)>RIGHT($K119,2),BE119,0)) -> 0.4 | CC119: =+O119*KeyAssumptionsPriceControl_FO!X$15 -> 0 | CD119: =+P119*KeyAssumptionsPriceControl_FO!Y$15 -> 0 | CE119: =+Q119*KeyAssumptionsPriceControl_FO!Z$15 -> 0 | CF119: =+R119*KeyAssumptionsPriceControl_FO!AA$15 -> 0 | CG119: =+S119*KeyAssumptionsPriceControl_FO!AB$15 -> 0 | CH119: =+T119*KeyAssumptionsPriceControl_FO!AC$15 -> 0 | CI119: =+U119*KeyAssumptionsPriceControl_FO!AD$15 -> 0 | CJ119: =+V119*KeyAssumptionsPriceControl_FO!AE$15 -> 0 | CK119: =+W119*KeyAssumptionsPriceControl_FO!AF$15 -> 0 | CL119: =+X119*KeyAssumptionsPriceControl_FO!AG$15 -> 0.502130184 | CN119: 0 | CO119: 0 | CP119: 0 | CQ119: 0 | CR119: 0 | CS119: 0 | CT119: 0 | CU119: 0 | CV119: 0 | CW119: 0.00502130184
C120: Mt Beauty / Tawonga CWS Expansion (Security of Supply) | E120: Water | F120: Growth | G120: Headworks | H120: Capital Programs / Allocation | J120: Straight line | K120: 2027-28 | L120: 50 | M120: 50 | O120: 0 | P120: 0 | Q120: 0 | R120: 0 | S120: 0 | T120: 0 | U120: 0 | V120: 0 | W120: 0 | X120: 0.7 | AV120: 0 | AW120: 0 | AX120: 0 | AY120: 0 | AZ120: 0 | BA120: 0 | BB120: 0 | BC120: 0 | BD120: 0 | BE120: 0.7 | BG120: 0 | BH120: 0 | BI120: 0 | BJ120: 0 | BK120: 0 | BL120: 0 | BM120: 0 | BN120: 0 | BO120: 0 | BP120: 0.007 | BR120: =+IF($K120="Ongoing",AV120,IF(RIGHT($K120,2)=RIGHT(BR$39,2),SUM($AV120:AV120),0)+IF(RIGHT(BR$39,2)>RIGHT($K120,2),AV120,0)) -> 0 | BS120: =+IF($K120="Ongoing",AW120,IF(RIGHT($K120,2)=RIGHT(BS$39,2),SUM($AV120:AW120),0)+IF(RIGHT(BS$39,2)>RIGHT($K120,2),AW120,0)) -> 0 | BT120: =+IF($K120="Ongoing",AX120,IF(RIGHT($K120,2)=RIGHT(BT$39,2),SUM($AV120:AX120),0)+IF(RIGHT(BT$39,2)>RIGHT($K120,2),AX120,0)) -> 0 | BU120: =+IF($K120="Ongoing",AY120,IF(RIGHT($K120,2)=RIGHT(BU$39,2),SUM($AV120:AY120),0)+IF(RIGHT(BU$39,2)>RIGHT($K120,2),AY120,0)) -> 0 | BV120: =+IF($K120="Ongoing",AZ120,IF(RIGHT($K120,2)=RIGHT(BV$39,2),SUM($AV120:AZ120),0)+IF(RIGHT(BV$39,2)>RIGHT($K120,2),AZ120,0)) -> 0 | BW120: =+IF($K120="Ongoing",BA120,IF(RIGHT($K120,2)=RIGHT(BW$39,2),SUM($AV120:BA120),0)+IF(RIGHT(BW$39,2)>RIGHT($K120,2),BA120,0)) -> 0 | BX120: =+IF($K120="Ongoing",BB120,IF(RIGHT($K120,2)=RIGHT(BX$39,2),SUM($AV120:BB120),0)+IF(RIGHT(BX$39,2)>RIGHT($K120,2),BB120,0)) -> 0 | BY120: =+IF($K120="Ongoing",BC120,IF(RIGHT($K120,2)=RIGHT(BY$39,2),SUM($AV120:BC120),0)+IF(RIGHT(BY$39,2)>RIGHT($K120,2),BC120,0)) -> 0 | BZ120: =+IF($K120="Ongoing",BD120,IF(RIGHT($K120,2)=RIGHT(BZ$39,2),SUM($AV120:BD120),0)+IF(RIGHT(BZ$39,2)>RIGHT($K120,2),BD120,0)) -> 0 | CA120: =+IF($K120="Ongoing",BE120,IF(RIGHT($K120,2)=RIGHT(CA$39,2),SUM($AV120:BE120),0)+IF(RIGHT(CA$39,2)>RIGHT($K120,2),BE120,0)) -> 0.7 | CC120: =+O120*KeyAssumptionsPriceControl_FO!X$15 -> 0 | CD120: =+P120*KeyAssumptionsPriceControl_FO!Y$15 -> 0 | CE120: =+Q120*KeyAssumptionsPriceControl_FO!Z$15 -> 0 | CF120: =+R120*KeyAssumptionsPriceControl_FO!AA$15 -> 0 | CG120: =+S120*KeyAssumptionsPriceControl_FO!AB$15 -> 0 | CH120: =+T120*KeyAssumptionsPriceControl_FO!AC$15 -> 0 | CI120: =+U120*KeyAssumptionsPriceControl_FO!AD$15 -> 0 | CJ120: =+V120*KeyAssumptionsPriceControl_FO!AE$15 -> 0 | CK120: =+W120*KeyAssumptionsPriceControl_FO!AF$15 -> 0 | CL120: =+X120*KeyAssumptionsPriceControl_FO!AG$15 -> 0.878727822 | CN120: 0 | CO120: 0 | CP120: 0 | CQ120: 0 | CR120: 0 | CS120: 0 | CT120: 0 | CU120: 0 | CV120: 0 | CW120: 0.00878727822
C121: Whitfield CWS Expansion (Security of Supply) | E121: Water | F121: Growth | G121: Headworks | H121: Capital Programs / Allocation | J121: Straight line | K121: 2027-28 | L121: 50 | M121: 50 | O121: 0 | P121: 0 | Q121: 0 | R121: 0 | S121: 0 | T121: 0 | U121: 0 | V121: 0 | W121: 0 | X121: 0.45 | AV121: 0 | AW121: 0 | AX121: 0 | AY121: 0 | AZ121: 0 | BA121: 0 | BB121: 0 | BC121: 0 | BD121: 0 | BE121: 0.45 | BG121: 0 | BH121: 0 | BI121: 0 | BJ121: 0 | BK121: =IF($L121=0,0, IF($L121<=0.5,BV121, IF(AND($J121="straight line",$L121<1.51),(BU121-((BU121/$L121)*0.5))+BV121/$L121*0.5, IF($J121="straight line", IF((LEFT(BK$39,4)*1)-INT($L121)<LEFT($BG$39,4)*1,0,((OFFSET(BV121,0,-INT($L121+0.5),1,1))/$L121)*(IF($L121-INT($L121)>0.5,$L121-0.5-INT($L121),IF($L121-INT($L121)<=0.5,$L121-0.5-INT($L121)+1,0)))) +BV121/$L121*0.5 +SUM(OFFSET(BV121,0,MAX(-INT($L121+(0.5-(10^-12))),-BK$40)+1,1,MIN(INT($L121+(0.5-(10^-12))),BK$40)-1))*1/$L121, IF($J121="Declining Balance",-$BG$38,0))))) -> 0 | BL121: 0 | BM121: 0 | BN121: 0 | BO121: 0 | BP121: 0.0045 | BR121: =+IF($K121="Ongoing",AV121,IF(RIGHT($K121,2)=RIGHT(BR$39,2),SUM($AV121:AV121),0)+IF(RIGHT(BR$39,2)>RIGHT($K121,2),AV121,0)) -> 0 | BS121: =+IF($K121="Ongoing",AW121,IF(RIGHT($K121,2)=RIGHT(BS$39,2),SUM($AV121:AW121),0)+IF(RIGHT(BS$39,2)>RIGHT($K121,2),AW121,0)) -> 0 | BT121: =+IF($K121="Ongoing",AX121,IF(RIGHT($K121,2)=RIGHT(BT$39,2),SUM($AV121:AX121),0)+IF(RIGHT(BT$39,2)>RIGHT($K121,2),AX121,0)) -> 0 | BU121: =+IF($K121="Ongoing",AY121,IF(RIGHT($K121,2)=RIGHT(BU$39,2),SUM($AV121:AY121),0)+IF(RIGHT(BU$39,2)>RIGHT($K121,2),AY121,0)) -> 0 | BV121: =+IF($K121="Ongoing",AZ121,IF(RIGHT($K121,2)=RIGHT(BV$39,2),SUM($AV121:AZ121),0)+IF(RIGHT(BV$39,2)>RIGHT($K121,2),AZ121,0)) -> 0 | BW121: =+IF($K121="Ongoing",BA121,IF(RIGHT($K121,2)=RIGHT(BW$39,2),SUM($AV121:BA121),0)+IF(RIGHT(BW$39,2)>RIGHT($K121,2),BA121,0)) -> 0 | BX121: =+IF($K121="Ongoing",BB121,IF(RIGHT($K121,2)=RIGHT(BX$39,2),SUM($AV121:BB121),0)+IF(RIGHT(BX$39,2)>RIGHT($K121,2),BB121,0)) -> 0 | BY121: =+IF($K121="Ongoing",BC121,IF(RIGHT($K121,2)=RIGHT(BY$39,2),SUM($AV121:BC121),0)+IF(RIGHT(BY$39,2)>RIGHT($K121,2),BC121,0)) -> 0 | BZ121: =+IF($K121="Ongoing",BD121,IF(RIGHT($K121,2)=RIGHT(BZ$39,2),SUM($AV121:BD121),0)+IF(RIGHT(BZ$39,2)>RIGHT($K121,2),BD121,0)) -> 0 | CA121: =+IF($K121="Ongoing",BE121,IF(RIGHT($K121,2)=RIGHT(CA$39,2),SUM($AV121:BE121),0)+IF(RIGHT(CA$39,2)>RIGHT($K121,2),BE121,0)) -> 0.45 | CC121: =+O121*KeyAssumptionsPriceControl_FO!X$15 -> 0 | CD121: =+P121*KeyAssumptionsPriceControl_FO!Y$15 -> 0 | CE121: =+Q121*KeyAssumptionsPriceControl_FO!Z$15 -> 0 | CF121: =+R121*KeyAssumptionsPriceControl_FO!AA$15 -> 0 | CG121: =+S121*KeyAssumptionsPriceControl_FO!AB$15 -> 0 | CH121: =+T121*KeyAssumptionsPriceControl_FO!AC$15 -> 0 | CI121: =+U121*KeyAssumptionsPriceControl_FO!AD$15 -> 0 | CJ121: =+V121*KeyAssumptionsPriceControl_FO!AE$15 -> 0 | CK121: =+W121*KeyAssumptionsPriceControl_FO!AF$15 -> 0 | CL121: =+X121*KeyAssumptionsPriceControl_FO!AG$15 -> 0.564896457 | CN121: 0 | CO121: 0 | CP121: 0 | CQ121: 0 | CR121: =IF($M121=0,0, IF($M121<=0.5,CG121, IF(AND($J121="straight line",$M121<1.51),(CF121-((CF121/$M121)*0.5))+CG121/$M121*0.5, IF($J121="straight line", IF((LEFT(CR$39,4)*1)-INT($M121)<LEFT($CN$39,4)*1,0,((OFFSET(CG121,0,-INT($M121+0.5),1,1))/$M121)*(IF($M121-INT($M121)>0.5,$M121-0.5-INT($M121),IF($M121-INT($M121)<=0.5,$M121-0.5-INT($M121)+1,0)))) +CG121/$M121*0.5 +SUM(OFFSET(CG121,0,MAX(-INT($M121+(0.5-(10^-12))),-CR$40)+1,1,MIN(INT($M121+(0.5-(10^-12))),CR$40)-1))*1/$M121, IF($J121="Declining Balance",-$CN$38,0))))) -> 0 | CS121: 0 | CT121: 0 | CU121: 0 | CV121: 0 | CW121: 0.00564896457
C122: Tallangatta East-West Ring Main (Security of Supply) | E122: Water | F122: Improvements / Compliance | G122: Pipelines/network | H122: Capital Programs / Allocation | J122: Straight line | K122: 2027-28 | L122: 80 | M122: 80 | O122: 0 | P122: 0 | Q122: 0 | R122: 0 | S122: 0 | T122: 0 | U122: 0 | V122: 0 | W122: 0 | X122: 0.25 | AV122: 0 | AW122: 0 | AX122: 0 | AY122: 0 | AZ122: 0 | BA122: 0 | BB122: 0 | BC122: 0 | BD122: 0 | BE122: 0.25 | BG122: 0 | BH122: =IF($L122=0,0, IF($L122<=0.5,BS122, IF(AND($J122="straight line",$L122<1.51),(BR122-((BR122/$L122)*0.5))+BS122/$L122*0.5, IF($J122="straight line", IF((LEFT(BH$39,4)*1)-INT($L122)<LEFT($BG$39,4)*1,0,((OFFSET(BS122,0,-INT($L122+0.5),1,1))/$L122)*(IF($L122-INT($L122)>0.5,$L122-0.5-INT($L122),IF($L122-INT($L122)<=0.5,$L122-0.5-INT($L122)+1,0)))) +BS122/$L122*0.5 +SUM(OFFSET(BS122,0,MAX(-INT($L122+(0.5-(10^-12))),-BH$40)+1,1,MIN(INT($L122+(0.5-(10^-12))),BH$40)-1))*1/$L122, IF($J122="Declining Balance",-$BG$38,0))))) -> 0 | BI122: 0 | BJ122: 0 | BK122: 0 | BL122: 0 | BM122: 0 | BN122: 0 | BO122: 0 | BP122: 0.0015625 | BR122: =+IF($K122="Ongoing",AV122,IF(RIGHT($K122,2)=RIGHT(BR$39,2),SUM($AV122:AV122),0)+IF(RIGHT(BR$39,2)>RIGHT($K122,2),AV122,0)) -> 0 | BS122: =+IF($K122="Ongoing",AW122,IF(RIGHT($K122,2)=RIGHT(BS$39,2),SUM($AV122:AW122),0)+IF(RIGHT(BS$39,2)>RIGHT($K122,2),AW122,0)) -> 0 | BT122: =+IF($K122="Ongoing",AX122,IF(RIGHT($K122,2)=RIGHT(BT$39,2),SUM($AV122:AX122),0)+IF(RIGHT(BT$39,2)>RIGHT($K122,2),AX122,0)) -> 0 | BU122: =+IF($K122="Ongoing",AY122,IF(RIGHT($K122,2)=RIGHT(BU$39,2),SUM($AV122:AY122),0)+IF(RIGHT(BU$39,2)>RIGHT($K122,2),AY122,0)) -> 0 | BV122: =+IF($K122="Ongoing",AZ122,IF(RIGHT($K122,2)=RIGHT(BV$39,2),SUM($AV122:AZ122),0)+IF(RIGHT(BV$39,2)>RIGHT($K122,2),AZ122,0)) -> 0 | BW122: =+IF($K122="Ongoing",BA122,IF(RIGHT($K122,2)=RIGHT(BW$39,2),SUM($AV122:BA122),0)+IF(RIGHT(BW$39,2)>RIGHT($K122,2),BA122,0)) -> 0 | BX122: =+IF($K122="Ongoing",BB122,IF(RIGHT($K122,2)=RIGHT(BX$39,2),SUM($AV122:BB122),0)+IF(RIGHT(BX$39,2)>RIGHT($K122,2),BB122,0)) -> 0 | BY122: =+IF($K122="Ongoing",BC122,IF(RIGHT($K122,2)=RIGHT(BY$39,2),SUM($AV122:BC122),0)+IF(RIGHT(BY$39,2)>RIGHT($K122,2),BC122,0)) -> 0 | BZ122: =+IF($K122="Ongoing",BD122,IF(RIGHT($K122,2)=RIGHT(BZ$39,2),SUM($AV122:BD122),0)+IF(RIGHT(BZ$39,2)>RIGHT($K122,2),BD122,0)) -> 0 | CA122: =+IF($K122="Ongoing",BE122,IF(RIGHT($K122,2)=RIGHT(CA$39,2),SUM($AV122:BE122),0)+IF(RIGHT(CA$39,2)>RIGHT($K122,2),BE122,0)) -> 0.25 | CC122: =+O122*KeyAssumptionsPriceControl_FO!X$15 -> 0 | CD122: =+P122*KeyAssumptionsPriceControl_FO!Y$15 -> 0 | CE122: =+Q122*KeyAssumptionsPriceControl_FO!Z$15 -> 0 | CF122: =+R122*KeyAssumptionsPriceControl_FO!AA$15 -> 0 | CG122: =+S122*KeyAssumptionsPriceControl_FO!AB$15 -> 0 | CH122: =+T122*KeyAssumptionsPriceControl_FO!AC$15 -> 0 | CI122: =+U122*KeyAssumptionsPriceControl_FO!AD$15 -> 0 | CJ122: =+V122*KeyAssumptionsPriceControl_FO!AE$15 -> 0 | CK122: =+W122*KeyAssumptionsPriceControl_FO!AF$15 -> 0 | CL122: =+X122*KeyAssumptionsPriceControl_FO!AG$15 -> 0.313831365 | CN122: 0 | CO122: =IF($M122=0,0, IF($M122<=0.5,CD122, IF(AND($J122="straight line",$M122<1.51),(CC122-((CC122/$M122)*0.5))+CD122/$M122*0.5, IF($J122="straight line", IF((LEFT(CO$39,4)*1)-INT($M122)<LEFT($CN$39,4)*1,0,((OFFSET(CD122,0,-INT($M122+0.5),1,1))/$M122)*(IF($M122-INT($M122)>0.5,$M122-0.5-INT($M122),IF($M122-INT($M122)<=0.5,$M122-0.5-INT($M122)+1,0)))) +CD122/$M122*0.5 +SUM(OFFSET(CD122,0,MAX(-INT($M122+(0.5-(10^-12))),-CO$40)+1,1,MIN(INT($M122+(0.5-(10^-12))),CO$40)-1))*1/$M122, IF($J122="Declining Balance",-$CN$38,0))))) -> 0 | CP122: 0 | CQ122: 0 | CR122: 0 | CS122: 0 | CT122: 0 | CU122: 0 | CV122: 0 | CW122: 0.001961446031
C123: Wangaratta Southern Ring Main (Growth Support) | E123: Water | F123: Growth | G123: Pipelines/network | H123: Capital Programs / Allocation | J123: Straight line | K123: 2027-28 | L123: 80 | M123: 80 | O123: 0 | P123: 0 | Q123: 0 | R123: 0 | S123: 0 | T123: 0 | U123: 0 | V123: 0 | W123: 0 | X123: 0.8 | AV123: 0 | AW123: 0 | AX123: 0 | AY123: 0 | AZ123: 0 | BA123: 0 | BB123: 0 | BC123: 0 | BD123: 0 | BE123: 0.8 | BG123: 0 | BH123: 0 | BI123: 0 | BJ123: 0 | BK123: 0 | BL123: 0 | BM123: 0 | BN123: 0 | BO123: 0 | BP123: 0.005 | BR123: =+IF($K123="Ongoing",AV123,IF(RIGHT($K123,2)=RIGHT(BR$39,2),SUM($AV123:AV123),0)+IF(RIGHT(BR$39,2)>RIGHT($K123,2),AV123,0)) -> 0 | BS123: =+IF($K123="Ongoing",AW123,IF(RIGHT($K123,2)=RIGHT(BS$39,2),SUM($AV123:AW123),0)+IF(RIGHT(BS$39,2)>RIGHT($K123,2),AW123,0)) -> 0 | BT123: =+IF($K123="Ongoing",AX123,IF(RIGHT($K123,2)=RIGHT(BT$39,2),SUM($AV123:AX123),0)+IF(RIGHT(BT$39,2)>RIGHT($K123,2),AX123,0)) -> 0 | BU123: =+IF($K123="Ongoing",AY123,IF(RIGHT($K123,2)=RIGHT(BU$39,2),SUM($AV123:AY123),0)+IF(RIGHT(BU$39,2)>RIGHT($K123,2),AY123,0)) -> 0 | BV123: =+IF($K123="Ongoing",AZ123,IF(RIGHT($K123,2)=RIGHT(BV$39,2),SUM($AV123:AZ123),0)+IF(RIGHT(BV$39,2)>RIGHT($K123,2),AZ123,0)) -> 0 | BW123: =+IF($K123="Ongoing",BA123,IF(RIGHT($K123,2)=RIGHT(BW$39,2),SUM($AV123:BA123),0)+IF(RIGHT(BW$39,2)>RIGHT($K123,2),BA123,0)) -> 0 | BX123: =+IF($K123="Ongoing",BB123,IF(RIGHT($K123,2)=RIGHT(BX$39,2),SUM($AV123:BB123),0)+IF(RIGHT(BX$39,2)>RIGHT($K123,2),BB123,0)) -> 0 | BY123: =+IF($K123="Ongoing",BC123,IF(RIGHT($K123,2)=RIGHT(BY$39,2),SUM($AV123:BC123),0)+IF(RIGHT(BY$39,2)>RIGHT($K123,2),BC123,0)) -> 0 | BZ123: =+IF($K123="Ongoing",BD123,IF(RIGHT($K123,2)=RIGHT(BZ$39,2),SUM($AV123:BD123),0)+IF(RIGHT(BZ$39,2)>RIGHT($K123,2),BD123,0)) -> 0 | CA123: =+IF($K123="Ongoing",BE123,IF(RIGHT($K123,2)=RIGHT(CA$39,2),SUM($AV123:BE123),0)+IF(RIGHT(CA$39,2)>RIGHT($K123,2),BE123,0)) -> 0.8 | CC123: =+O123*KeyAssumptionsPriceControl_FO!X$15 -> 0 | CD123: =+P123*KeyAssumptionsPriceControl_FO!Y$15 -> 0 | CE123: =+Q123*KeyAssumptionsPriceControl_FO!Z$15 -> 0 | CF123: =+R123*KeyAssumptionsPriceControl_FO!AA$15 -> 0 | CG123: =+S123*KeyAssumptionsPriceControl_FO!AB$15 -> 0 | CH123: =+T123*KeyAssumptionsPriceControl_FO!AC$15 -> 0 | CI123: =+U123*KeyAssumptionsPriceControl_FO!AD$15 -> 0 | CJ123: =+V123*KeyAssumptionsPriceControl_FO!AE$15 -> 0 | CK123: =+W123*KeyAssumptionsPriceControl_FO!AF$15 -> 0 | CL123: =+X123*KeyAssumptionsPriceControl_FO!AG$15 -> 1.004260368 | CN123: 0 | CO123: 0 | CP123: 0 | CQ123: 0 | CR123: 0 | CS123: 0 | CT123: 0 | CU123: 0 | CV123: 0 | CW123: 0.0062766273
C124: Wodonga Baranduda Blvd Trunk Main Extension (Growth Support) | E124: Water | F124: Growth | G124: Pipelines/network | H124: Capital Programs / Allocation | J124: Straight line | K124: 2027-28 | L124: 80 | M124: 80 | O124: 0 | P124: 0 | Q124: 0 | R124: 0 | S124: 0 | T124: 0 | U124: 0 | V124: 0 | W124: 0 | X124: 0.36 | AV124: 0 | AW124: 0 | AX124: 0 | AY124: 0 | AZ124: 0 | BA124: 0 | BB124: 0 | BC124: 0 | BD124: 0 | BE124: 0.36 | BG124: 0 | BH124: 0 | BI124: 0 | BJ124: 0 | BK124: 0 | BL124: 0 | BM124: 0 | BN124: 0 | BO124: 0 | BP124: 0.00225 | BR124: =+IF($K124="Ongoing",AV124,IF(RIGHT($K124,2)=RIGHT(BR$39,2),SUM($AV124:AV124),0)+IF(RIGHT(BR$39,2)>RIGHT($K124,2),AV124,0)) -> 0 | BS124: =+IF($K124="Ongoing",AW124,IF(RIGHT($K124,2)=RIGHT(BS$39,2),SUM($AV124:AW124),0)+IF(RIGHT(BS$39,2)>RIGHT($K124,2),AW124,0)) -> 0 | BT124: =+IF($K124="Ongoing",AX124,IF(RIGHT($K124,2)=RIGHT(BT$39,2),SUM($AV124:AX124),0)+IF(RIGHT(BT$39,2)>RIGHT($K124,2),AX124,0)) -> 0 | BU124: =+IF($K124="Ongoing",AY124,IF(RIGHT($K124,2)=RIGHT(BU$39,2),SUM($AV124:AY124),0)+IF(RIGHT(BU$39,2)>RIGHT($K124,2),AY124,0)) -> 0 | BV124: =+IF($K124="Ongoing",AZ124,IF(RIGHT($K124,2)=RIGHT(BV$39,2),SUM($AV124:AZ124),0)+IF(RIGHT(BV$39,2)>RIGHT($K124,2),AZ124,0)) -> 0 | BW124: =+IF($K124="Ongoing",BA124,IF(RIGHT($K124,2)=RIGHT(BW$39,2),SUM($AV124:BA124),0)+IF(RIGHT(BW$39,2)>RIGHT($K124,2),BA124,0)) -> 0 | BX124: =+IF($K124="Ongoing",BB124,IF(RIGHT($K124,2)=RIGHT(BX$39,2),SUM($AV124:BB124),0)+IF(RIGHT(BX$39,2)>RIGHT($K124,2),BB124,0)) -> 0 | BY124: =+IF($K124="Ongoing",BC124,IF(RIGHT($K124,2)=RIGHT(BY$39,2),SUM($AV124:BC124),0)+IF(RIGHT(BY$39,2)>RIGHT($K124,2),BC124,0)) -> 0 | BZ124: =+IF($K124="Ongoing",BD124,IF(RIGHT($K124,2)=RIGHT(BZ$39,2),SUM($AV124:BD124),0)+IF(RIGHT(BZ$39,2)>RIGHT($K124,2),BD124,0)) -> 0 | CA124: =+IF($K124="Ongoing",BE124,IF(RIGHT($K124,2)=RIGHT(CA$39,2),SUM($AV124:BE124),0)+IF(RIGHT(CA$39,2)>RIGHT($K124,2),BE124,0)) -> 0.36 | CC124: =+O124*KeyAssumptionsPriceControl_FO!X$15 -> 0 | CD124: =+P124*KeyAssumptionsPriceControl_FO!Y$15 -> 0 | CE124: =+Q124*KeyAssumptionsPriceControl_FO!Z$15 -> 0 | CF124: =+R124*KeyAssumptionsPriceControl_FO!AA$15 -> 0 | CG124: =+S124*KeyAssumptionsPriceControl_FO!AB$15 -> 0 | CH124: =+T124*KeyAssumptionsPriceControl_FO!AC$15 -> 0 | CI124: =+U124*KeyAssumptionsPriceControl_FO!AD$15 -> 0 | CJ124: =+V124*KeyAssumptionsPriceControl_FO!AE$15 -> 0 | CK124: =+W124*KeyAssumptionsPriceControl_FO!AF$15 -> 0 | CL124: =+X124*KeyAssumptionsPriceControl_FO!AG$15 -> 0.4519171656 | CN124: 0 | CO124: 0 | CP124: 0 | CQ124: 0 | CR124: 0 | CS124: 0 | CT124: 0 | CU124: 0 | CV124: 0 | CW124: 0.002824482285
C125: Wodonga High Level Pump Station Rising Main (Growth Support) | E125: Water | F125: Growth | G125: Pipelines/network | H125: Capital Programs / Allocation | J125: Straight line | K125: 2027-28 | L125: 50 | M125: 50 | O125: 0 | P125: 0 | Q125: 0 | R125: 0 | S125: 0 | T125: 0 | U125: 0 | V125: 0 | W125: 0 | X125: 0.45 | AV125: 0 | AW125: 0 | AX125: 0 | AY125: 0 | AZ125: 0 | BA125: 0 | BB125: 0 | BC125: 0 | BD125: 0 | BE125: 0.45 | BG125: 0 | BH125: 0 | BI125: 0 | BJ125: 0 | BK125: 0 | BL125: 0 | BM125: 0 | BN125: 0 | BO125: 0 | BP125: 0.0045 | BR125: =+IF($K125="Ongoing",AV125,IF(RIGHT($K125,2)=RIGHT(BR$39,2),SUM($AV125:AV125),0)+IF(RIGHT(BR$39,2)>RIGHT($K125,2),AV125,0)) -> 0 | BS125: =+IF($K125="Ongoing",AW125,IF(RIGHT($K125,2)=RIGHT(BS$39,2),SUM($AV125:AW125),0)+IF(RIGHT(BS$39,2)>RIGHT($K125,2),AW125,0)) -> 0 | BT125: =+IF($K125="Ongoing",AX125,IF(RIGHT($K125,2)=RIGHT(BT$39,2),SUM($AV125:AX125),0)+IF(RIGHT(BT$39,2)>RIGHT($K125,2),AX125,0)) -> 0 | BU125: =+IF($K125="Ongoing",AY125,IF(RIGHT($K125,2)=RIGHT(BU$39,2),SUM($AV125:AY125),0)+IF(RIGHT(BU$39,2)>RIGHT($K125,2),AY125,0)) -> 0 | BV125: =+IF($K125="Ongoing",AZ125,IF(RIGHT($K125,2)=RIGHT(BV$39,2),SUM($AV125:AZ125),0)+IF(RIGHT(BV$39,2)>RIGHT($K125,2),AZ125,0)) -> 0 | BW125: =+IF($K125="Ongoing",BA125,IF(RIGHT($K125,2)=RIGHT(BW$39,2),SUM($AV125:BA125),0)+IF(RIGHT(BW$39,2)>RIGHT($K125,2),BA125,0)) -> 0 | BX125: =+IF($K125="Ongoing",BB125,IF(RIGHT($K125,2)=RIGHT(BX$39,2),SUM($AV125:BB125),0)+IF(RIGHT(BX$39,2)>RIGHT($K125,2),BB125,0)) -> 0 | BY125: =+IF($K125="Ongoing",BC125,IF(RIGHT($K125,2)=RIGHT(BY$39,2),SUM($AV125:BC125),0)+IF(RIGHT(BY$39,2)>RIGHT($K125,2),BC125,0)) -> 0 | BZ125: =+IF($K125="Ongoing",BD125,IF(RIGHT($K125,2)=RIGHT(BZ$39,2),SUM($AV125:BD125),0)+IF(RIGHT(BZ$39,2)>RIGHT($K125,2),BD125,0)) -> 0 | CA125: =+IF($K125="Ongoing",BE125,IF(RIGHT($K125,2)=RIGHT(CA$39,2),SUM($AV125:BE125),0)+IF(RIGHT(CA$39,2)>RIGHT($K125,2),BE125,0)) -> 0.45 | CC125: =+O125*KeyAssumptionsPriceControl_FO!X$15 -> 0 | CD125: =+P125*KeyAssumptionsPriceControl_FO!Y$15 -> 0 | CE125: =+Q125*KeyAssumptionsPriceControl_FO!Z$15 -> 0 | CF125: =+R125*KeyAssumptionsPriceControl_FO!AA$15 -> 0 | CG125: =+S125*KeyAssumptionsPriceControl_FO!AB$15 -> 0 | CH125: =+T125*KeyAssumptionsPriceControl_FO!AC$15 -> 0 | CI125: =+U125*KeyAssumptionsPriceControl_FO!AD$15 -> 0 | CJ125: =+V125*KeyAssumptionsPriceControl_FO!AE$15 -> 0 | CK125: =+W125*KeyAssumptionsPriceControl_FO!AF$15 -> 0 | CL125: =+X125*KeyAssumptionsPriceControl_FO!AG$15 -> 0.564896457 | CN125: 0 | CO125: 0 | CP125: 0 | CQ125: 0 | CR125: 0 | CS125: 0 | CT125: 0 | CU125: 0 | CV125: 0 | CW125: 0.00564896457
